Workbook

Sheet s_sp_ce_ricl (hidden)
F2: SCHEMA ORDINARIO | M2: SCHEMA ABBREVIATO | S2: SCHEMA FINALE
B3: Stato patrimoniale sintetico
C4: Attivo | F4: N | G4: N-1 | H4: N-2 | I4: N-3 | J4: N-4 | M4: N | N4: N-1 | O4: N-2 | P4: N-3 | Q4: N-4 | S4: =F4 -> N | T4: =G4 -> N-1 | U4: =H4 -> N-2 | V4: =I4 -> N-3 | W4: =J4 -> N-4
A5: 10 | C5: Crediti verso soci | F5: =#REF! ->  | G5: =#REF! ->  | H5: =#REF! ->  | I5: =#REF! ->  | J5: =#REF! ->  | M5: ='pa_SP Abbreviato'!F5 -> 0 | N5: ='pa_SP Abbreviato'!G5 -> 0 | O5: ='pa_SP Abbreviato'!L5 -> 0 | P5: ='pa_SP Abbreviato'!Q5 -> 0 | Q5: ='pa_SP Abbreviato'!V5 -> 0 | S5: =IF(s_bil_std!$AA$2="1",F5,M5) -> 0 | T5: =IF(s_bil_std!$AA$2="1",G5,N5) -> 0 | U5: =IF(s_bil_std!$AA$2="1",H5,O5) -> 0 | V5: =IF(s_bil_std!$AA$2="1",I5,P5) -> 0 | W5: =IF(s_bil_std!$AA$2="1",J5,Q5) -> 0
A6: 20 | C6: Immobilizzazioni | F6: =#REF! ->  | G6: =#REF! ->  | H6: =#REF! ->  | I6: =#REF! ->  | J6: =#REF! ->  | M6: ='pa_SP Abbreviato'!F8 -> 0 | N6: ='pa_SP Abbreviato'!G8 -> 0 | O6: ='pa_SP Abbreviato'!L8 -> 0 | P6: ='pa_SP Abbreviato'!Q8 -> 0 | Q6: ='pa_SP Abbreviato'!V8 -> 0 | S6: =IF(s_bil_std!$AA$2="1",F6,M6) -> 0 | T6: =IF(s_bil_std!$AA$2="1",G6,N6) -> 0 | U6: =IF(s_bil_std!$AA$2="1",H6,O6) -> 0 | V6: =IF(s_bil_std!$AA$2="1",I6,P6) -> 0 | W6: =IF(s_bil_std!$AA$2="1",J6,Q6) -> 0
A7: 30 | D7: Immateriali | F7: =#REF! ->  | G7: =#REF! ->  | H7: =#REF! ->  | I7: =#REF! ->  | J7: =#REF! ->  | M7: ='pa_SP Abbreviato'!F9 -> 0 | N7: ='pa_SP Abbreviato'!G9 -> 0 | O7: ='pa_SP Abbreviato'!L9 -> 0 | P7: ='pa_SP Abbreviato'!Q9 -> 0 | Q7: ='pa_SP Abbreviato'!V9 -> 0 | S7: =IF(s_bil_std!$AA$2="1",F7,M7) -> 0 | T7: =IF(s_bil_std!$AA$2="1",G7,N7) -> 0 | U7: =IF(s_bil_std!$AA$2="1",H7,O7) -> 0 | V7: =IF(s_bil_std!$AA$2="1",I7,P7) -> 0 | W7: =IF(s_bil_std!$AA$2="1",J7,Q7) -> 0
A8: 40 | D8: Materiali | F8: =#REF! ->  | G8: =#REF! ->  | H8: =#REF! ->  | I8: =#REF! ->  | J8: =#REF! ->  | M8: ='pa_SP Abbreviato'!F13 -> 0 | N8: ='pa_SP Abbreviato'!G13 -> 0 | O8: ='pa_SP Abbreviato'!L13 -> 0 | P8: ='pa_SP Abbreviato'!Q13 -> 0 | Q8: ='pa_SP Abbreviato'!V13 -> 0 | S8: =IF(s_bil_std!$AA$2="1",F8,M8) -> 0 | T8: =IF(s_bil_std!$AA$2="1",G8,N8) -> 0 | U8: =IF(s_bil_std!$AA$2="1",H8,O8) -> 0 | V8: =IF(s_bil_std!$AA$2="1",I8,P8) -> 0 | W8: =IF(s_bil_std!$AA$2="1",J8,Q8) -> 0
A9: 50 | D9: Finanziarie | F9: =#REF! ->  | G9: =#REF! ->  | H9: =#REF! ->  | I9: =#REF! ->  | J9: =#REF! ->  | M9: ='pa_SP Abbreviato'!F17 -> 0 | N9: ='pa_SP Abbreviato'!G17 -> 0 | O9: ='pa_SP Abbreviato'!L17 -> 0 | P9: ='pa_SP Abbreviato'!Q17 -> 0 | Q9: ='pa_SP Abbreviato'!V17 -> 0 | S9: =IF(s_bil_std!$AA$2="1",F9,M9) -> 0 | T9: =IF(s_bil_std!$AA$2="1",G9,N9) -> 0 | U9: =IF(s_bil_std!$AA$2="1",H9,O9) -> 0 | V9: =IF(s_bil_std!$AA$2="1",I9,P9) -> 0 | W9: =IF(s_bil_std!$AA$2="1",J9,Q9) -> 0
A10: S10 | E10: di cui Crediti a breve termine | F10: =SUM(#REF!,#REF!,#REF!,#REF!) ->  | G10: =SUM(#REF!,#REF!,#REF!,#REF!) ->  | H10: =SUM(#REF!,#REF!,#REF!,#REF!) ->  | I10: =SUM(#REF!,#REF!,#REF!,#REF!) ->  | J10: =SUM(#REF!,#REF!,#REF!,#REF!) ->  | M10: 0 | N10: 0 | O10: 0 | P10: 0 | Q10: 0 | S10: =IF(s_bil_std!$AA$2="1",F10,M10) -> 0 | T10: =IF(s_bil_std!$AA$2="1",G10,N10) -> 0 | U10: =IF(s_bil_std!$AA$2="1",H10,O10) -> 0 | V10: =IF(s_bil_std!$AA$2="1",I10,P10) -> 0 | W10: =IF(s_bil_std!$AA$2="1",J10,Q10) -> 0
A11: 60 | E11: Crediti vs cont.te / coll.te / cont.ti | F11: =SUM(#REF!,#REF!,#REF!) ->  | G11: =SUM(#REF!,#REF!,#REF!) ->  | H11: =SUM(#REF!,#REF!,#REF!) ->  | I11: =SUM(#REF!,#REF!,#REF!) ->  | J11: =SUM(#REF!,#REF!,#REF!) ->  | M11: 0 | N11: 0 | O11: 0 | P11: 0 | Q11: 0 | S11: =IF(s_bil_std!$AA$2="1",F11,M11) -> 0 | T11: =IF(s_bil_std!$AA$2="1",G11,N11) -> 0 | U11: =IF(s_bil_std!$AA$2="1",H11,O11) -> 0 | V11: =IF(s_bil_std!$AA$2="1",I11,P11) -> 0 | W11: =IF(s_bil_std!$AA$2="1",J11,Q11) -> 0
A12: 67 | E12: Partecipazioni | F12: =#REF! ->  | G12: =#REF! ->  | H12: =#REF! ->  | I12: =#REF! ->  | J12: =#REF! ->  | M12: 0 | N12: 0 | O12: 0 | P12: 0 | Q12: 0 | S12: =IF(s_bil_std!$AA$2="1",F12,M12) -> 0 | T12: =IF(s_bil_std!$AA$2="1",G12,N12) -> 0 | U12: =IF(s_bil_std!$AA$2="1",H12,O12) -> 0 | V12: =IF(s_bil_std!$AA$2="1",I12,P12) -> 0 | W12: =IF(s_bil_std!$AA$2="1",J12,Q12) -> 0
A13: 260 | E13: Azioni proprie | F13: =#REF! ->  | G13: =#REF! ->  | H13: =#REF! ->  | I13: =#REF! ->  | J13: =#REF! ->  | M13: 0 | N13: 0 | O13: 0 | P13: 0 | Q13: 0 | S13: =IF(s_bil_std!$AA$2="1",F13,M13) -> 0 | T13: =IF(s_bil_std!$AA$2="1",G13,N13) -> 0 | U13: =IF(s_bil_std!$AA$2="1",H13,O13) -> 0 | V13: =IF(s_bil_std!$AA$2="1",I13,P13) -> 0 | W13: =IF(s_bil_std!$AA$2="1",J13,Q13) -> 0
A14: 70 | C14: Attivo Circolante | F14: =#REF! ->  | G14: =#REF! ->  | H14: =#REF! ->  | I14: =#REF! ->  | J14: =#REF! ->  | M14: ='pa_SP Abbreviato'!F18 -> 0 | N14: ='pa_SP Abbreviato'!G18 -> 0 | O14: ='pa_SP Abbreviato'!L18 -> 0 | P14: ='pa_SP Abbreviato'!Q18 -> 0 | Q14: ='pa_SP Abbreviato'!V18 -> 0 | S14: =IF(s_bil_std!$AA$2="1",F14,M14) -> 0 | T14: =IF(s_bil_std!$AA$2="1",G14,N14) -> 0 | U14: =IF(s_bil_std!$AA$2="1",H14,O14) -> 0 | V14: =IF(s_bil_std!$AA$2="1",I14,P14) -> 0 | W14: =IF(s_bil_std!$AA$2="1",J14,Q14) -> 0
A15: 80 | D15: Rimanenze | F15: =#REF! ->  | G15: =#REF! ->  | H15: =#REF! ->  | I15: =#REF! ->  | J15: =#REF! ->  | M15: ='pa_SP Abbreviato'!F19 -> 0 | N15: ='pa_SP Abbreviato'!G19 -> 0 | O15: ='pa_SP Abbreviato'!L19 -> 0 | P15: ='pa_SP Abbreviato'!Q19 -> 0 | Q15: ='pa_SP Abbreviato'!V19 -> 0 | S15: =IF(s_bil_std!$AA$2="1",F15,M15) -> 0 | T15: =IF(s_bil_std!$AA$2="1",G15,N15) -> 0 | U15: =IF(s_bil_std!$AA$2="1",H15,O15) -> 0 | V15: =IF(s_bil_std!$AA$2="1",I15,P15) -> 0 | W15: =IF(s_bil_std!$AA$2="1",J15,Q15) -> 0
A16: 82 | E16: Prodotti finiti, semilavorati e merci | F16: =SUM(#REF!,#REF!) ->  | G16: =SUM(#REF!,#REF!) ->  | H16: =SUM(#REF!,#REF!) ->  | I16: =SUM(#REF!,#REF!) ->  | J16: =SUM(#REF!,#REF!) ->  | M16: 0 | N16: 0 | O16: 0 | P16: 0 | Q16: 0 | S16: =IF(s_bil_std!$AA$2="1",F16,M16) -> 0 | T16: =IF(s_bil_std!$AA$2="1",G16,N16) -> 0 | U16: =IF(s_bil_std!$AA$2="1",H16,O16) -> 0 | V16: =IF(s_bil_std!$AA$2="1",I16,P16) -> 0 | W16: =IF(s_bil_std!$AA$2="1",J16,Q16) -> 0
A17: 90 | D17: Crediti | F17: =#REF! ->  | G17: =#REF! ->  | H17: =#REF! ->  | I17: =#REF! ->  | J17: =#REF! ->  | M17: ='pa_SP Abbreviato'!F20 -> 0 | N17: ='pa_SP Abbreviato'!G20 -> 0 | O17: ='pa_SP Abbreviato'!L20 -> 0 | P17: ='pa_SP Abbreviato'!Q20 -> 0 | Q17: ='pa_SP Abbreviato'!V20 -> 0 | S17: =IF(s_bil_std!$AA$2="1",F17,M17) -> 0 | T17: =IF(s_bil_std!$AA$2="1",G17,N17) -> 0 | U17: =IF(s_bil_std!$AA$2="1",H17,O17) -> 0 | V17: =IF(s_bil_std!$AA$2="1",I17,P17) -> 0 | W17: =IF(s_bil_std!$AA$2="1",J17,Q17) -> 0
A18: 100 | E18: di cui Crediti a breve termine | F18: =SUM(#REF!,#REF!,#REF!,#REF!,#REF!,#REF!,#REF!) ->  | G18: =SUM(#REF!,#REF!,#REF!,#REF!,#REF!,#REF!,#REF!) ->  | H18: =SUM(#REF!,#REF!,#REF!,#REF!,#REF!,#REF!,#REF!) ->  | I18: =SUM(#REF!,#REF!,#REF!,#REF!,#REF!,#REF!,#REF!) ->  | J18: =SUM(#REF!,#REF!,#REF!,#REF!,#REF!,#REF!,#REF!) ->  | M18: ='pa_SP Abbreviato'!F21 -> 0 | N18: ='pa_SP Abbreviato'!G21 -> 0 | O18: ='pa_SP Abbreviato'!L21 -> 0 | P18: ='pa_SP Abbreviato'!Q21 -> 0 | Q18: ='pa_SP Abbreviato'!V21 -> 0 | S18: =IF(s_bil_std!$AA$2="1",F18,M18) -> 0 | T18: =IF(s_bil_std!$AA$2="1",G18,N18) -> 0 | U18: =IF(s_bil_std!$AA$2="1",H18,O18) -> 0 | V18: =IF(s_bil_std!$AA$2="1",I18,P18) -> 0 | W18: =IF(s_bil_std!$AA$2="1",J18,Q18) -> 0
A19: S20 | E19: di cui Crediti a m/l termine | F19: =SUM(#REF!,#REF!,#REF!,#REF!,#REF!,#REF!,#REF!) ->  | G19: =SUM(#REF!,#REF!,#REF!,#REF!,#REF!,#REF!,#REF!) ->  | H19: =SUM(#REF!,#REF!,#REF!,#REF!,#REF!,#REF!,#REF!) ->  | I19: =SUM(#REF!,#REF!,#REF!,#REF!,#REF!,#REF!,#REF!) ->  | J19: =SUM(#REF!,#REF!,#REF!,#REF!,#REF!,#REF!,#REF!) ->  | M19: ='pa_SP Abbreviato'!F22 -> 0 | N19: ='pa_SP Abbreviato'!G22 -> 0 | O19: ='pa_SP Abbreviato'!L22 -> 0 | P19: ='pa_SP Abbreviato'!Q22 -> 0 | Q19: ='pa_SP Abbreviato'!V22 -> 0 | S19: =IF(s_bil_std!$AA$2="1",F19,M19) -> 0 | T19: =IF(s_bil_std!$AA$2="1",G19,N19) -> 0 | U19: =IF(s_bil_std!$AA$2="1",H19,O19) -> 0 | V19: =IF(s_bil_std!$AA$2="1",I19,P19) -> 0 | W19: =IF(s_bil_std!$AA$2="1",J19,Q19) -> 0
A20: 102 | E20: Crediti vs Clienti | F20: =#REF! ->  | G20: =#REF! ->  | H20: =#REF! ->  | I20: =#REF! ->  | J20: =#REF! ->  | M20: 0 | N20: 0 | O20: 0 | P20: 0 | Q20: 0 | S20: =IF(s_bil_std!$AA$2="1",F20,M20) -> 0 | T20: =IF(s_bil_std!$AA$2="1",G20,N20) -> 0 | U20: =IF(s_bil_std!$AA$2="1",H20,O20) -> 0 | V20: =IF(s_bil_std!$AA$2="1",I20,P20) -> 0 | W20: =IF(s_bil_std!$AA$2="1",J20,Q20) -> 0
A21: 110 | D21: Attività finanziarie | F21: =#REF! ->  | G21: =#REF! ->  | H21: =#REF! ->  | I21: =#REF! ->  | J21: =#REF! ->  | M21: ='pa_SP Abbreviato'!F23 -> 0 | N21: ='pa_SP Abbreviato'!G23 -> 0 | O21: ='pa_SP Abbreviato'!L23 -> 0 | P21: ='pa_SP Abbreviato'!Q23 -> 0 | Q21: ='pa_SP Abbreviato'!V23 -> 0 | S21: =IF(s_bil_std!$AA$2="1",F21,M21) -> 0 | T21: =IF(s_bil_std!$AA$2="1",G21,N21) -> 0 | U21: =IF(s_bil_std!$AA$2="1",H21,O21) -> 0 | V21: =IF(s_bil_std!$AA$2="1",I21,P21) -> 0 | W21: =IF(s_bil_std!$AA$2="1",J21,Q21) -> 0
A22: 120 | D22: Disponibilità liquide | F22: =#REF! ->  | G22: =#REF! ->  | H22: =#REF! ->  | I22: =#REF! ->  | J22: =#REF! ->  | M22: ='pa_SP Abbreviato'!F24 -> 0 | N22: ='pa_SP Abbreviato'!G24 -> 0 | O22: ='pa_SP Abbreviato'!L24 -> 0 | P22: ='pa_SP Abbreviato'!Q24 -> 0 | Q22: ='pa_SP Abbreviato'!V24 -> 0 | S22: =IF(s_bil_std!$AA$2="1",F22,M22) -> 0 | T22: =IF(s_bil_std!$AA$2="1",G22,N22) -> 0 | U22: =IF(s_bil_std!$AA$2="1",H22,O22) -> 0 | V22: =IF(s_bil_std!$AA$2="1",I22,P22) -> 0 | W22: =IF(s_bil_std!$AA$2="1",J22,Q22) -> 0
A23: 130 | C23: Ratei e risconti attivi | F23: =#REF! ->  | G23: =#REF! ->  | H23: =#REF! ->  | I23: =#REF! ->  | J23: =#REF! ->  | M23: ='pa_SP Abbreviato'!F25 -> 0 | N23: ='pa_SP Abbreviato'!G25 -> 0 | O23: ='pa_SP Abbreviato'!L25 -> 0 | P23: ='pa_SP Abbreviato'!Q25 -> 0 | Q23: ='pa_SP Abbreviato'!V25 -> 0 | S23: =IF(s_bil_std!$AA$2="1",F23,M23) -> 0 | T23: =IF(s_bil_std!$AA$2="1",G23,N23) -> 0 | U23: =IF(s_bil_std!$AA$2="1",H23,O23) -> 0 | V23: =IF(s_bil_std!$AA$2="1",I23,P23) -> 0 | W23: =IF(s_bil_std!$AA$2="1",J23,Q23) -> 0
A24: 150 | C24: Totale attivo | F24: =#REF! ->  | G24: =#REF! ->  | H24: =#REF! ->  | I24: =#REF! ->  | J24: =#REF! ->  | M24: ='pa_SP Abbreviato'!F28 -> 0 | N24: ='pa_SP Abbreviato'!G28 -> 0 | O24: ='pa_SP Abbreviato'!L28 -> 0 | P24: ='pa_SP Abbreviato'!Q28 -> 0 | Q24: ='pa_SP Abbreviato'!V28 -> 0 | S24: =IF(s_bil_std!$AA$2="1",F24,M24) -> 0 | T24: =IF(s_bil_std!$AA$2="1",G24,N24) -> 0 | U24: =IF(s_bil_std!$AA$2="1",H24,O24) -> 0 | V24: =IF(s_bil_std!$AA$2="1",I24,P24) -> 0 | W24: =IF(s_bil_std!$AA$2="1",J24,Q24) -> 0
D25: Attivo corrente (Crediti verso soci + Crediti immobilizzati a breve termine + Crediti del Circolante a breve termine + Rimanenze + Att. Finanziarie + Disp. Liquide + Ratei e risconti) | F25: =SUM(F5,F10,F15,F18,F21,F22,F23) ->  | G25: =SUM(G5,G10,G15,G18,G21,G22,G23) ->  | H25: =SUM(H5,H10,H15,H18,H21,H22,H23) ->  | I25: =SUM(I5,I10,I15,I18,I21,I22,I23) ->  | J25: =SUM(J5,J10,J15,J18,J21,J22,J23) ->  | M25: =SUM(M5,M10,M15,M18,M21,M22,M23) -> 0 | N25: =SUM(N5,N10,N15,N18,N21,N22,N23) -> 0 | O25: =SUM(O5,O10,O15,O18,O21,O22,O23) -> 0 | P25: =SUM(P5,P10,P15,P18,P21,P22,P23) -> 0 | Q25: =SUM(Q5,Q10,Q15,Q18,Q21,Q22,Q23) -> 0 | S25: =IF(s_bil_std!$AA$2="1",F25,M25) -> 0 | T25: =IF(s_bil_std!$AA$2="1",G25,N25) -> 0 | U25: =IF(s_bil_std!$AA$2="1",H25,O25) -> 0 | V25: =IF(s_bil_std!$AA$2="1",I25,P25) -> 0 | W25: =IF(s_bil_std!$AA$2="1",J25,Q25) -> 0
D26: Attivo fisso (Immobilizzazioni - Crediti immobilizzati a breve + Crediti dell'Attivo Circolante a m/l termine) | F26: =F6-F10+F19 ->  | G26: =G6-G10+G19 ->  | H26: =H6-H10+H19 ->  | I26: =I6-I10+I19 ->  | J26: =J6-J10+J19 ->  | M26: =M6-M10+M19 -> 0 | N26: =N6-N10+N19 -> 0 | O26: =O6-O10+O19 -> 0 | P26: =P6-P10+P19 -> 0 | Q26: =Q6-Q10+Q19 -> 0 | S26: =IF(s_bil_std!$AA$2="1",F26,M26) -> 0 | T26: =IF(s_bil_std!$AA$2="1",G26,N26) -> 0 | U26: =IF(s_bil_std!$AA$2="1",H26,O26) -> 0 | V26: =IF(s_bil_std!$AA$2="1",I26,P26) -> 0 | W26: =IF(s_bil_std!$AA$2="1",J26,Q26) -> 0
C29: Passivo | F29: =F4 -> N | G29: =G4 -> N-1 | H29: =H4 -> N-2 | I29: =I4 -> N-3 | J29: =J4 -> N-4 | M29: N | N29: N-1 | O29: N-2 | P29: N-3 | Q29: N-4 | S29: =S4 -> N | T29: =T4 -> N-1 | U29: =U4 -> N-2 | V29: =V4 -> N-3 | W29: =W4 -> N-4
A30: 160 | C30: Patrimonio netto | D30: =s_sp_ce_ricl!F817 -> 0 | F30: =#REF! ->  | G30: =#REF! ->  | H30: =#REF! ->  | I30: =#REF! ->  | J30: =#REF! ->  | M30: =F30 ->  | N30: =G30 ->  | O30: =H30 ->  | P30: =I30 ->  | Q30: =J30 ->  | S30: =IF(s_bil_std!$AA$2="1",F30,M30) ->  | T30: =IF(s_bil_std!$AA$2="1",G30,N30) ->  | U30: =IF(s_bil_std!$AA$2="1",H30,O30) ->  | V30: =IF(s_bil_std!$AA$2="1",I30,P30) ->  | W30: =IF(s_bil_std!$AA$2="1",J30,Q30) -> 
A31: 162 | D31: Capitale sociale | F31: =#REF! ->  | G31: =#REF! ->  | H31: =#REF! ->  | I31: =#REF! ->  | J31: =#REF! ->  | S31: =IF(s_bil_std!$AA$2="1",F31,M31) ->  | T31: =IF(s_bil_std!$AA$2="1",G31,N31) ->  | U31: =IF(s_bil_std!$AA$2="1",H31,O31) ->  | V31: =IF(s_bil_std!$AA$2="1",I31,P31) ->  | W31: =IF(s_bil_std!$AA$2="1",J31,Q31) -> 
A32: 164 | D32: Riserva sovrapprezzo | F32: =#REF! ->  | G32: =#REF! ->  | H32: =#REF! ->  | I32: =#REF! ->  | J32: =#REF! ->  | S32: =IF(s_bil_std!$AA$2="1",F32,M32) ->  | T32: =IF(s_bil_std!$AA$2="1",G32,N32) ->  | U32: =IF(s_bil_std!$AA$2="1",H32,O32) ->  | V32: =IF(s_bil_std!$AA$2="1",I32,P32) ->  | W32: =IF(s_bil_std!$AA$2="1",J32,Q32) -> 
A33: 166 | D33: Riserva di rivalutazione | F33: =#REF! ->  | G33: =#REF! ->  | H33: =#REF! ->  | I33: =#REF! ->  | J33: =#REF! ->  | S33: =IF(s_bil_std!$AA$2="1",F33,M33) ->  | T33: =IF(s_bil_std!$AA$2="1",G33,N33) ->  | U33: =IF(s_bil_std!$AA$2="1",H33,O33) ->  | V33: =IF(s_bil_std!$AA$2="1",I33,P33) ->  | W33: =IF(s_bil_std!$AA$2="1",J33,Q33) -> 
D34: Totale riserve di Patrimonio Netto | F34: =SUM(#REF!,#REF!,#REF!,#REF!,#REF!,#REF!) ->  | G34: =SUM(#REF!,#REF!,#REF!,#REF!,#REF!,#REF!) ->  | H34: =SUM(#REF!,#REF!,#REF!,#REF!,#REF!,#REF!) ->  | I34: =SUM(#REF!,#REF!,#REF!,#REF!,#REF!,#REF!) ->  | J34: =SUM(#REF!,#REF!,#REF!,#REF!,#REF!,#REF!) ->  | S34: =IF(s_bil_std!$AA$2="1",F34,M34) ->  | T34: =IF(s_bil_std!$AA$2="1",G34,N34) ->  | U34: =IF(s_bil_std!$AA$2="1",H34,O34) ->  | V34: =IF(s_bil_std!$AA$2="1",I34,P34) ->  | W34: =IF(s_bil_std!$AA$2="1",J34,Q34) -> 
E35: Riserva Legale | F35: =#REF! ->  | G35: =#REF! ->  | H35: =#REF! ->  | I35: =#REF! ->  | J35: =#REF! ->  | S35: =IF(s_bil_std!$AA$2="1",F35,M35) ->  | T35: =IF(s_bil_std!$AA$2="1",G35,N35) ->  | U35: =IF(s_bil_std!$AA$2="1",H35,O35) ->  | V35: =IF(s_bil_std!$AA$2="1",I35,P35) ->  | W35: =IF(s_bil_std!$AA$2="1",J35,Q35) -> 
E36: Riserva Statutaria | F36: =#REF! ->  | G36: =#REF! ->  | H36: =#REF! ->  | I36: =#REF! ->  | J36: =#REF! ->  | S36: =IF(s_bil_std!$AA$2="1",F36,M36) ->  | T36: =IF(s_bil_std!$AA$2="1",G36,N36) ->  | U36: =IF(s_bil_std!$AA$2="1",H36,O36) ->  | V36: =IF(s_bil_std!$AA$2="1",I36,P36) ->  | W36: =IF(s_bil_std!$AA$2="1",J36,Q36) -> 
E37: Altre riserve | F37: =#REF! ->  | G37: =#REF! ->  | H37: =#REF! ->  | I37: =#REF! ->  | J37: =#REF! ->  | S37: =IF(s_bil_std!$AA$2="1",F37,M37) ->  | T37: =IF(s_bil_std!$AA$2="1",G37,N37) ->  | U37: =IF(s_bil_std!$AA$2="1",H37,O37) ->  | V37: =IF(s_bil_std!$AA$2="1",I37,P37) ->  | W37: =IF(s_bil_std!$AA$2="1",J37,Q37) -> 
D38: Utili (perdita) portati a nuovo | F38: =#REF! ->  | G38: =#REF! ->  | H38: =#REF! ->  | I38: =#REF! ->  | J38: =#REF! ->  | S38: =IF(s_bil_std!$AA$2="1",F38,M38) ->  | T38: =IF(s_bil_std!$AA$2="1",G38,N38) ->  | U38: =IF(s_bil_std!$AA$2="1",H38,O38) ->  | V38: =IF(s_bil_std!$AA$2="1",I38,P38) ->  | W38: =IF(s_bil_std!$AA$2="1",J38,Q38) -> 
D39: Utile (perdita) dell'esercizio | F39: =#REF! ->  | G39: =#REF! ->  | H39: =#REF! ->  | I39: =#REF! ->  | J39: =#REF! ->  | S39: =IF(s_bil_std!$AA$2="1",F39,M39) ->  | T39: =IF(s_bil_std!$AA$2="1",G39,N39) ->  | U39: =IF(s_bil_std!$AA$2="1",H39,O39) ->  | V39: =IF(s_bil_std!$AA$2="1",I39,P39) ->  | W39: =IF(s_bil_std!$AA$2="1",J39,Q39) -> 
C40: Patrimonio netto di terzi | F40: =#REF! ->  | G40: =#REF! ->  | H40: =#REF! ->  | I40: =#REF! ->  | J40: =#REF! ->  | M40: 0 | N40: 0 | O40: 0 | P40: 0 | Q40: 0 | S40: =IF(s_bil_std!$AA$2="1",F40,M40) -> 0 | T40: =IF(s_bil_std!$AA$2="1",G40,N40) -> 0 | U40: =IF(s_bil_std!$AA$2="1",H40,O40) -> 0 | V40: =IF(s_bil_std!$AA$2="1",I40,P40) -> 0 | W40: =IF(s_bil_std!$AA$2="1",J40,Q40) -> 0
D41: Capitale e riserve di terzi | F41: =#REF! ->  | G41: =#REF! ->  | H41: =#REF! ->  | I41: =#REF! ->  | J41: =#REF! ->  | M41: 0 | N41: 0 | O41: 0 | P41: 0 | Q41: 0 | S41: =IF(s_bil_std!$AA$2="1",F41,M41) -> 0 | T41: =IF(s_bil_std!$AA$2="1",G41,N41) -> 0 | U41: =IF(s_bil_std!$AA$2="1",H41,O41) -> 0 | V41: =IF(s_bil_std!$AA$2="1",I41,P41) -> 0 | W41: =IF(s_bil_std!$AA$2="1",J41,Q41) -> 0
D42: Utile (perdita) dell'esercizio di pertinenza di terzi | F42: =#REF! ->  | G42: =#REF! ->  | H42: =#REF! ->  | I42: =#REF! ->  | J42: =#REF! ->  | M42: 0 | N42: 0 | O42: 0 | P42: 0 | Q42: 0 | S42: =IF(s_bil_std!$AA$2="1",F42,M42) -> 0 | T42: =IF(s_bil_std!$AA$2="1",G42,N42) -> 0 | U42: =IF(s_bil_std!$AA$2="1",H42,O42) -> 0 | V42: =IF(s_bil_std!$AA$2="1",I42,P42) -> 0 | W42: =IF(s_bil_std!$AA$2="1",J42,Q42) -> 0
A43: 170 | C43: Fondo rischi e oneri | F43: =#REF! ->  | G43: =#REF! ->  | H43: =#REF! ->  | I43: =#REF! ->  | J43: =#REF! ->  | M43: ='pa_SP Abbreviato'!F63 -> 0 | N43: ='pa_SP Abbreviato'!G63 -> 0 | O43: ='pa_SP Abbreviato'!L63 -> 0 | P43: ='pa_SP Abbreviato'!Q63 -> 0 | Q43: ='pa_SP Abbreviato'!V63 -> 0 | S43: =IF(s_bil_std!$AA$2="1",F43,M43) -> 0 | T43: =IF(s_bil_std!$AA$2="1",G43,N43) -> 0 | U43: =IF(s_bil_std!$AA$2="1",H43,O43) -> 0 | V43: =IF(s_bil_std!$AA$2="1",I43,P43) -> 0 | W43: =IF(s_bil_std!$AA$2="1",J43,Q43) -> 0
A44: 175 | D44: Fondo Imposte | F44: =#REF! ->  | G44: =#REF! ->  | H44: =#REF! ->  | I44: =#REF! ->  | J44: =#REF! ->  | M44: 0 | N44: 0 | O44: 0 | P44: 0 | Q44: 0 | S44: =IF(s_bil_std!$AA$2="1",F44,M44) -> 0 | T44: =IF(s_bil_std!$AA$2="1",G44,N44) -> 0 | U44: =IF(s_bil_std!$AA$2="1",H44,O44) -> 0 | V44: =IF(s_bil_std!$AA$2="1",I44,P44) -> 0 | W44: =IF(s_bil_std!$AA$2="1",J44,Q44) -> 0
A45: 180 | C45: TFR | F45: =#REF! ->  | G45: =#REF! ->  | H45: =#REF! ->  | I45: =#REF! ->  | J45: =#REF! ->  | M45: ='pa_SP Abbreviato'!F64 -> 0 | N45: ='pa_SP Abbreviato'!G64 -> 0 | O45: ='pa_SP Abbreviato'!L64 -> 0 | P45: ='pa_SP Abbreviato'!Q64 -> 0 | Q45: ='pa_SP Abbreviato'!V64 -> 0 | S45: =IF(s_bil_std!$AA$2="1",F45,M45) -> 0 | T45: =IF(s_bil_std!$AA$2="1",G45,N45) -> 0 | U45: =IF(s_bil_std!$AA$2="1",H45,O45) -> 0 | V45: =IF(s_bil_std!$AA$2="1",I45,P45) -> 0 | W45: =IF(s_bil_std!$AA$2="1",J45,Q45) -> 0
A46: 190 | C46: Debiti | F46: =#REF! ->  | G46: =#REF! ->  | H46: =#REF! ->  | I46: =#REF! ->  | J46: =#REF! ->  | M46: ='pa_SP Abbreviato'!F65 -> 0 | N46: ='pa_SP Abbreviato'!G65 -> 0 | O46: ='pa_SP Abbreviato'!L65 -> 0 | P46: ='pa_SP Abbreviato'!Q65 -> 0 | Q46: ='pa_SP Abbreviato'!V65 -> 0 | S46: =IF(s_bil_std!$AA$2="1",F46,M46) -> 0 | T46: =IF(s_bil_std!$AA$2="1",G46,N46) -> 0 | U46: =IF(s_bil_std!$AA$2="1",H46,O46) -> 0 | V46: =IF(s_bil_std!$AA$2="1",I46,P46) -> 0 | W46: =IF(s_bil_std!$AA$2="1",J46,Q46) -> 0
A47: 200 | D47: di cui Debiti a breve termine | F47: =SUM(#REF!,#REF!,#REF!,#REF!,#REF!,#REF!,#REF!,#REF!,#REF!,#REF!,#REF!,#REF!,#REF!,#REF!) ->  | G47: =SUM(#REF!,#REF!,#REF!,#REF!,#REF!,#REF!,#REF!,#REF!,#REF!,#REF!,#REF!,#REF!,#REF!,#REF!) ->  | H47: =SUM(#REF!,#REF!,#REF!,#REF!,#REF!,#REF!,#REF!,#REF!,#REF!,#REF!,#REF!,#REF!,#REF!,#REF!) ->  | I47: =SUM(#REF!,#REF!,#REF!,#REF!,#REF!,#REF!,#REF!,#REF!,#REF!,#REF!,#REF!,#REF!,#REF!,#REF!) ->  | J47: =SUM(#REF!,#REF!,#REF!,#REF!,#REF!,#REF!,#REF!,#REF!,#REF!,#REF!,#REF!,#REF!,#REF!,#REF!) ->  | M47: ='pa_SP Abbreviato'!F66 -> 0 | N47: ='pa_SP Abbreviato'!G66 -> 0 | O47: ='pa_SP Abbreviato'!L66 -> 0 | P47: ='pa_SP Abbreviato'!Q66 -> 0 | Q47: ='pa_SP Abbreviato'!V66 -> 0 | S47: =IF(s_bil_std!$AA$2="1",F47,M47) -> 0 | T47: =IF(s_bil_std!$AA$2="1",G47,N47) -> 0 | U47: =IF(s_bil_std!$AA$2="1",H47,O47) -> 0 | V47: =IF(s_bil_std!$AA$2="1",I47,P47) -> 0 | W47: =IF(s_bil_std!$AA$2="1",J47,Q47) -> 0
D48: di cui Debiti a lungo termine | F48: =SUM(#REF!,#REF!,#REF!,#REF!,#REF!,#REF!,#REF!,#REF!,#REF!,#REF!,#REF!,#REF!,#REF!,#REF!) ->  | G48: =SUM(#REF!,#REF!,#REF!,#REF!,#REF!,#REF!,#REF!,#REF!,#REF!,#REF!,#REF!,#REF!,#REF!,#REF!) ->  | H48: =SUM(#REF!,#REF!,#REF!,#REF!,#REF!,#REF!,#REF!,#REF!,#REF!,#REF!,#REF!,#REF!,#REF!,#REF!) ->  | I48: =SUM(#REF!,#REF!,#REF!,#REF!,#REF!,#REF!,#REF!,#REF!,#REF!,#REF!,#REF!,#REF!,#REF!,#REF!) ->  | J48: =SUM(#REF!,#REF!,#REF!,#REF!,#REF!,#REF!,#REF!,#REF!,#REF!,#REF!,#REF!,#REF!,#REF!,#REF!) ->  | M48: ='pa_SP Abbreviato'!F67 -> 0 | N48: ='pa_SP Abbreviato'!G67 -> 0 | O48: ='pa_SP Abbreviato'!L67 -> 0 | P48: ='pa_SP Abbreviato'!Q67 -> 0 | Q48: ='pa_SP Abbreviato'!V67 -> 0 | S48: =IF(s_bil_std!$AA$2="1",F48,M48) -> 0 | T48: =IF(s_bil_std!$AA$2="1",G48,N48) -> 0 | U48: =IF(s_bil_std!$AA$2="1",H48,O48) -> 0 | V48: =IF(s_bil_std!$AA$2="1",I48,P48) -> 0 | W48: =IF(s_bil_std!$AA$2="1",J48,Q48) -> 0
A49: 212 | D49: Debiti vs Banche a breve termine | F49: =#REF! ->  | G49: =#REF! ->  | H49: =#REF! ->  | I49: =#REF! ->  | J49: =#REF! ->  | M49: 0 | N49: 0 | O49: 0 | P49: 0 | Q49: 0 | S49: =IF(s_bil_std!$AA$2="1",F49,M49) -> 0 | T49: =IF(s_bil_std!$AA$2="1",G49,N49) -> 0 | U49: =IF(s_bil_std!$AA$2="1",H49,O49) -> 0 | V49: =IF(s_bil_std!$AA$2="1",I49,P49) -> 0 | W49: =IF(s_bil_std!$AA$2="1",J49,Q49) -> 0
A50: 210 | D50: Debiti vs Banche a m/l termine | F50: =#REF! ->  | G50: =#REF! ->  | H50: =#REF! ->  | I50: =#REF! ->  | J50: =#REF! ->  | M50: 0 | N50: 0 | O50: 0 | P50: 0 | Q50: 0 | S50: =IF(s_bil_std!$AA$2="1",F50,M50) -> 0 | T50: =IF(s_bil_std!$AA$2="1",G50,N50) -> 0 | U50: =IF(s_bil_std!$AA$2="1",H50,O50) -> 0 | V50: =IF(s_bil_std!$AA$2="1",I50,P50) -> 0 | W50: =IF(s_bil_std!$AA$2="1",J50,Q50) -> 0
A51: 195 | D51: Debiti vs Fornitori | F51: =#REF! ->  | G51: =#REF! ->  | H51: =#REF! ->  | I51: =#REF! ->  | J51: =#REF! ->  | M51: 0 | N51: 0 | O51: 0 | P51: 0 | Q51: 0 | S51: =IF(s_bil_std!$AA$2="1",F51,M51) -> 0 | T51: =IF(s_bil_std!$AA$2="1",G51,N51) -> 0 | U51: =IF(s_bil_std!$AA$2="1",H51,O51) -> 0 | V51: =IF(s_bil_std!$AA$2="1",I51,P51) -> 0 | W51: =IF(s_bil_std!$AA$2="1",J51,Q51) -> 0
D52: Debiti vs Altri | F52: =#REF!+#REF!+#REF!+#REF!+#REF!+#REF!+#REF!+#REF!+#REF!+#REF!+#REF!+#REF! ->  | G52: =#REF!+#REF!+#REF!+#REF!+#REF!+#REF!+#REF!+#REF!+#REF!+#REF!+#REF!+#REF! ->  | H52: =#REF!+#REF!+#REF!+#REF!+#REF!+#REF!+#REF!+#REF!+#REF!+#REF!+#REF!+#REF! ->  | I52: =#REF!+#REF!+#REF!+#REF!+#REF!+#REF!+#REF!+#REF!+#REF!+#REF!+#REF!+#REF! ->  | J52: =#REF!+#REF!+#REF!+#REF!+#REF!+#REF!+#REF!+#REF!+#REF!+#REF!+#REF!+#REF! ->  | M52: 0 | N52: 0 | O52: 0 | P52: 0 | Q52: 0 | S52: =IF(s_bil_std!$AA$2="1",F52,M52) -> 0 | T52: =IF(s_bil_std!$AA$2="1",G52,N52) -> 0 | U52: =IF(s_bil_std!$AA$2="1",H52,O52) -> 0 | V52: =IF(s_bil_std!$AA$2="1",I52,P52) -> 0 | W52: =IF(s_bil_std!$AA$2="1",J52,Q52) -> 0
A53: 220 | C53: Ratei e risconti passivi | F53: =#REF! ->  | G53: =#REF! ->  | H53: =#REF! ->  | I53: =#REF! ->  | J53: =#REF! ->  | M53: ='pa_SP Abbreviato'!F68 -> 0 | N53: ='pa_SP Abbreviato'!G68 -> 0 | O53: ='pa_SP Abbreviato'!L68 -> 0 | P53: ='pa_SP Abbreviato'!Q68 -> 0 | Q53: ='pa_SP Abbreviato'!V68 -> 0 | S53: =IF(s_bil_std!$AA$2="1",F53,M53) -> 0 | T53: =IF(s_bil_std!$AA$2="1",G53,N53) -> 0 | U53: =IF(s_bil_std!$AA$2="1",H53,O53) -> 0 | V53: =IF(s_bil_std!$AA$2="1",I53,P53) -> 0 | W53: =IF(s_bil_std!$AA$2="1",J53,Q53) -> 0
A54: 240 | C54: Totale passivo | F54: =#REF! ->  | G54: =#REF! ->  | H54: =#REF! ->  | I54: =#REF! ->  | J54: =#REF! ->  | M54: ='pa_SP Abbreviato'!F71 -> 92654 | N54: ='pa_SP Abbreviato'!G71 -> 92110 | O54: ='pa_SP Abbreviato'!L71 -> 0 | P54: ='pa_SP Abbreviato'!Q71 -> 0 | Q54: ='pa_SP Abbreviato'!V71 -> 0 | S54: =IF(s_bil_std!$AA$2="1",F54,M54) -> 92654 | T54: =IF(s_bil_std!$AA$2="1",G54,N54) -> 92110 | U54: =IF(s_bil_std!$AA$2="1",H54,O54) -> 0 | V54: =IF(s_bil_std!$AA$2="1",I54,P54) -> 0 | W54: =IF(s_bil_std!$AA$2="1",J54,Q54) -> 0
D55: Passivo corrente (Debiti a breve + Ratei e risconti) | F55: =F47+F53 ->  | G55: =G47+G53 ->  | H55: =H47+H53 ->  | I55: =I47+I53 ->  | J55: =J47+J53 ->  | M55: =SUM(M47,M53) -> 0 | N55: =SUM(N47,N53) -> 0 | O55: =SUM(O47,O53) -> 0 | P55: =SUM(P47,P53) -> 0 | Q55: =SUM(Q47,Q53) -> 0 | S55: =IF(s_bil_std!$AA$2="1",F55,M55) -> 0 | T55: =IF(s_bil_std!$AA$2="1",G55,N55) -> 0 | U55: =IF(s_bil_std!$AA$2="1",H55,O55) -> 0 | V55: =IF(s_bil_std!$AA$2="1",I55,P55) -> 0 | W55: =IF(s_bil_std!$AA$2="1",J55,Q55) -> 0
D56: Passivo fisso (Fondo rischi e oneri + TFR + Debiti a m/l) | F56: =F43+F45+F46-F47 ->  | G56: =G43+G45+G46-G47 ->  | H56: =H43+H45+H46-H47 ->  | I56: =I43+I45+I46-I47 ->  | J56: =J43+J45+J46-J47 ->  | M56: =M43+M45+M46-M47 -> 0 | N56: =N43+N45+N46-N47 -> 0 | O56: =O43+O45+O46-O47 -> 0 | P56: =P43+P45+P46-P47 -> 0 | Q56: =Q43+Q45+Q46-Q47 -> 0 | S56: =IF(s_bil_std!$AA$2="1",F56,M56) -> 0 | T56: =IF(s_bil_std!$AA$2="1",G56,N56) -> 0 | U56: =IF(s_bil_std!$AA$2="1",H56,O56) -> 0 | V56: =IF(s_bil_std!$AA$2="1",I56,P56) -> 0 | W56: =IF(s_bil_std!$AA$2="1",J56,Q56) -> 0
B59: Conto economico sintetico
F61: =F29 -> N | G61: =G29 -> N-1 | H61: =H29 -> N-2 | I61: =I29 -> N-3 | J61: =J29 -> N-4 | M61: =F4 -> N | N61: =G4 -> N-1 | O61: =H4 -> N-2 | P61: =I4 -> N-3 | Q61: =J4 -> N-4 | S61: =S4 -> N | T61: =T4 -> N-1 | U61: =U4 -> N-2 | V61: =V4 -> N-3 | W61: =W4 -> N-4
A62: 270 | B62: Valore della produzione | F62: =#REF! ->  | G62: =#REF! ->  | H62: =#REF! ->  | I62: =#REF! ->  | J62: =#REF! ->  | M62: =F62 ->  | N62: =G62 ->  | O62: =H62 ->  | P62: =I62 ->  | Q62: =J62 ->  | S62: =IF(s_bil_std!$AA$2="1",F62,M62) ->  | T62: =IF(s_bil_std!$AA$2="1",G62,N62) ->  | U62: =IF(s_bil_std!$AA$2="1",H62,O62) ->  | V62: =IF(s_bil_std!$AA$2="1",I62,P62) ->  | W62: =IF(s_bil_std!$AA$2="1",J62,Q62) -> 
A63: 280 | C63: Ricavi | F63: =#REF! ->  | G63: =#REF! ->  | H63: =#REF! ->  | I63: =#REF! ->  | J63: =#REF! ->  | S63: =IF(s_bil_std!$AA$2="1",F63,M63) ->  | T63: =IF(s_bil_std!$AA$2="1",G63,N63) ->  | U63: =IF(s_bil_std!$AA$2="1",H63,O63) ->  | V63: =IF(s_bil_std!$AA$2="1",I63,P63) ->  | W63: =IF(s_bil_std!$AA$2="1",J63,Q63) -> 
A64: 290 | C64: Variazione rimanenze | F64: =SUM(#REF!) ->  | G64: =SUM(#REF!) ->  | H64: =SUM(#REF!) ->  | I64: =SUM(#REF!) ->  | J64: =SUM(#REF!) ->  | S64: =IF(s_bil_std!$AA$2="1",F64,M64) ->  | T64: =IF(s_bil_std!$AA$2="1",G64,N64) ->  | U64: =IF(s_bil_std!$AA$2="1",H64,O64) ->  | V64: =IF(s_bil_std!$AA$2="1",I64,P64) ->  | W64: =IF(s_bil_std!$AA$2="1",J64,Q64) -> 
D65: Variazioni delle rimanenze in corso di lavorazione, semilavorati e prodotti finiti | F65: =#REF! ->  | G65: =#REF! ->  | H65: =#REF! ->  | I65: =#REF! ->  | J65: =#REF! ->  | S65: =IF(s_bil_std!$AA$2="1",F65,M65) ->  | T65: =IF(s_bil_std!$AA$2="1",G65,N65) ->  | U65: =IF(s_bil_std!$AA$2="1",H65,O65) ->  | V65: =IF(s_bil_std!$AA$2="1",I65,P65) ->  | W65: =IF(s_bil_std!$AA$2="1",J65,Q65) -> 
D66: Variazioni dei lavori in corso su ordinazione | F66: =#REF! ->  | G66: =#REF! ->  | H66: =#REF! ->  | I66: =#REF! ->  | J66: =#REF! ->  | S66: =IF(s_bil_std!$AA$2="1",F66,M66) ->  | T66: =IF(s_bil_std!$AA$2="1",G66,N66) ->  | U66: =IF(s_bil_std!$AA$2="1",H66,O66) ->  | V66: =IF(s_bil_std!$AA$2="1",I66,P66) ->  | W66: =IF(s_bil_std!$AA$2="1",J66,Q66) -> 
C67: Incrementi di immobilizzazioni per lavori interni | F67: =#REF! ->  | G67: =#REF! ->  | H67: =#REF! ->  | I67: =#REF! ->  | J67: =#REF! ->  | S67: =IF(s_bil_std!$AA$2="1",F67,M67) ->  | T67: =IF(s_bil_std!$AA$2="1",G67,N67) ->  | U67: =IF(s_bil_std!$AA$2="1",H67,O67) ->  | V67: =IF(s_bil_std!$AA$2="1",I67,P67) ->  | W67: =IF(s_bil_std!$AA$2="1",J67,Q67) -> 
A68: 300 | C68: Altri ricavi | F68: =#REF! ->  | G68: =#REF! ->  | H68: =#REF! ->  | I68: =#REF! ->  | J68: =#REF! ->  | S68: =IF(s_bil_std!$AA$2="1",F68,M68) ->  | T68: =IF(s_bil_std!$AA$2="1",G68,N68) ->  | U68: =IF(s_bil_std!$AA$2="1",H68,O68) ->  | V68: =IF(s_bil_std!$AA$2="1",I68,P68) ->  | W68: =IF(s_bil_std!$AA$2="1",J68,Q68) -> 
A69: 310 | B69: Costi della produzione | F69: =#REF! ->  | G69: =#REF! ->  | H69: =#REF! ->  | I69: =#REF! ->  | J69: =#REF! ->  | S69: =IF(s_bil_std!$AA$2="1",F69,M69) ->  | T69: =IF(s_bil_std!$AA$2="1",G69,N69) ->  | U69: =IF(s_bil_std!$AA$2="1",H69,O69) ->  | V69: =IF(s_bil_std!$AA$2="1",I69,P69) ->  | W69: =IF(s_bil_std!$AA$2="1",J69,Q69) -> 
A70: 340 | C70: Consumi di materie | F70: =SUM(#REF!,#REF!) ->  | G70: =SUM(#REF!,#REF!) ->  | H70: =SUM(#REF!,#REF!) ->  | I70: =SUM(#REF!,#REF!) ->  | J70: =SUM(#REF!,#REF!) ->  | S70: =IF(s_bil_std!$AA$2="1",F70,M70) ->  | T70: =IF(s_bil_std!$AA$2="1",G70,N70) ->  | U70: =IF(s_bil_std!$AA$2="1",H70,O70) ->  | V70: =IF(s_bil_std!$AA$2="1",I70,P70) ->  | W70: =IF(s_bil_std!$AA$2="1",J70,Q70) -> 
A71: 320 | D71: Acquisti di materie | F71: =#REF! ->  | G71: =#REF! ->  | H71: =#REF! ->  | I71: =#REF! ->  | J71: =#REF! ->  | S71: =IF(s_bil_std!$AA$2="1",F71,M71) ->  | T71: =IF(s_bil_std!$AA$2="1",G71,N71) ->  | U71: =IF(s_bil_std!$AA$2="1",H71,O71) ->  | V71: =IF(s_bil_std!$AA$2="1",I71,P71) ->  | W71: =IF(s_bil_std!$AA$2="1",J71,Q71) -> 
A72: 330 | D72: Variazione delle materie | F72: =#REF! ->  | G72: =#REF! ->  | H72: =#REF! ->  | I72: =#REF! ->  | J72: =#REF! ->  | S72: =IF(s_bil_std!$AA$2="1",F72,M72) ->  | T72: =IF(s_bil_std!$AA$2="1",G72,N72) ->  | U72: =IF(s_bil_std!$AA$2="1",H72,O72) ->  | V72: =IF(s_bil_std!$AA$2="1",I72,P72) ->  | W72: =IF(s_bil_std!$AA$2="1",J72,Q72) -> 
A73: 350 | C73: Spese generali | F73: =SUM(#REF!) ->  | G73: =SUM(#REF!) ->  | H73: =SUM(#REF!) ->  | I73: =SUM(#REF!) ->  | J73: =SUM(#REF!) ->  | S73: =IF(s_bil_std!$AA$2="1",F73,M73) ->  | T73: =IF(s_bil_std!$AA$2="1",G73,N73) ->  | U73: =IF(s_bil_std!$AA$2="1",H73,O73) ->  | V73: =IF(s_bil_std!$AA$2="1",I73,P73) ->  | W73: =IF(s_bil_std!$AA$2="1",J73,Q73) -> 
D74: Costi per servizi | F74: =#REF! ->  | G74: =#REF! ->  | H74: =#REF! ->  | I74: =#REF! ->  | J74: =#REF! ->  | S74: =IF(s_bil_std!$AA$2="1",F74,M74) ->  | T74: =IF(s_bil_std!$AA$2="1",G74,N74) ->  | U74: =IF(s_bil_std!$AA$2="1",H74,O74) ->  | V74: =IF(s_bil_std!$AA$2="1",I74,P74) ->  | W74: =IF(s_bil_std!$AA$2="1",J74,Q74) -> 
D75: Costi per godimento di beni di terzi | F75: =#REF! ->  | G75: =#REF! ->  | H75: =#REF! ->  | I75: =#REF! ->  | J75: =#REF! ->  | S75: =IF(s_bil_std!$AA$2="1",F75,M75) ->  | T75: =IF(s_bil_std!$AA$2="1",G75,N75) ->  | U75: =IF(s_bil_std!$AA$2="1",H75,O75) ->  | V75: =IF(s_bil_std!$AA$2="1",I75,P75) ->  | W75: =IF(s_bil_std!$AA$2="1",J75,Q75) -> 
A76: 355 | C76: Accantonamenti | F76: =SUM(#REF!) ->  | G76: =SUM(#REF!) ->  | H76: =SUM(#REF!) ->  | I76: =SUM(#REF!) ->  | J76: =SUM(#REF!) ->  | S76: =IF(s_bil_std!$AA$2="1",F76,M76) ->  | T76: =IF(s_bil_std!$AA$2="1",G76,N76) ->  | U76: =IF(s_bil_std!$AA$2="1",H76,O76) ->  | V76: =IF(s_bil_std!$AA$2="1",I76,P76) ->  | W76: =IF(s_bil_std!$AA$2="1",J76,Q76) -> 
D77: Accantonamenti per rischi | F77: =#REF! ->  | G77: =#REF! ->  | H77: =#REF! ->  | I77: =#REF! ->  | J77: =#REF! ->  | S77: =IF(s_bil_std!$AA$2="1",F77,M77) ->  | T77: =IF(s_bil_std!$AA$2="1",G77,N77) ->  | U77: =IF(s_bil_std!$AA$2="1",H77,O77) ->  | V77: =IF(s_bil_std!$AA$2="1",I77,P77) ->  | W77: =IF(s_bil_std!$AA$2="1",J77,Q77) -> 
D78: Altri accantonamenti | F78: =#REF! ->  | G78: =#REF! ->  | H78: =#REF! ->  | I78: =#REF! ->  | J78: =#REF! ->  | S78: =IF(s_bil_std!$AA$2="1",F78,M78) ->  | T78: =IF(s_bil_std!$AA$2="1",G78,N78) ->  | U78: =IF(s_bil_std!$AA$2="1",H78,O78) ->  | V78: =IF(s_bil_std!$AA$2="1",I78,P78) ->  | W78: =IF(s_bil_std!$AA$2="1",J78,Q78) -> 
A79: S40 | C79: Oneri diversi di gestione | F79: =#REF! ->  | G79: =#REF! ->  | H79: =#REF! ->  | I79: =#REF! ->  | J79: =#REF! ->  | S79: =IF(s_bil_std!$AA$2="1",F79,M79) ->  | T79: =IF(s_bil_std!$AA$2="1",G79,N79) ->  | U79: =IF(s_bil_std!$AA$2="1",H79,O79) ->  | V79: =IF(s_bil_std!$AA$2="1",I79,P79) ->  | W79: =IF(s_bil_std!$AA$2="1",J79,Q79) -> 
A80: 360 | B80: Valore aggiunto | F80: =F62-F70-F73 ->  | G80: =G62-G70-G73 ->  | H80: =H62-H70-H73 ->  | I80: =I62-I70-I73 ->  | J80: =J62-J70-J73 ->  | S80: =IF(s_bil_std!$AA$2="1",F80,M80) ->  | T80: =IF(s_bil_std!$AA$2="1",G80,N80) ->  | U80: =IF(s_bil_std!$AA$2="1",H80,O80) ->  | V80: =IF(s_bil_std!$AA$2="1",I80,P80) ->  | W80: =IF(s_bil_std!$AA$2="1",J80,Q80) -> 
A81: 370 | C81: Costi del personale | F81: =#REF! ->  | G81: =#REF! ->  | H81: =#REF! ->  | I81: =#REF! ->  | J81: =#REF! ->  | S81: =IF(s_bil_std!$AA$2="1",F81,M81) ->  | T81: =IF(s_bil_std!$AA$2="1",G81,N81) ->  | U81: =IF(s_bil_std!$AA$2="1",H81,O81) ->  | V81: =IF(s_bil_std!$AA$2="1",I81,P81) ->  | W81: =IF(s_bil_std!$AA$2="1",J81,Q81) -> 
A82: 375 | D82: Trattamento di fine rapporto | F82: =#REF! ->  | G82: =#REF! ->  | H82: =#REF! ->  | I82: =#REF! ->  | J82: =#REF! ->  | S82: =IF(s_bil_std!$AA$2="1",F82,M82) ->  | T82: =IF(s_bil_std!$AA$2="1",G82,N82) ->  | U82: =IF(s_bil_std!$AA$2="1",H82,O82) ->  | V82: =IF(s_bil_std!$AA$2="1",I82,P82) ->  | W82: =IF(s_bil_std!$AA$2="1",J82,Q82) -> 
A83: 380 | B83: Margine Operativo Lordo | F83: =(F62-F68)-(F69-F84-F79) ->  | G83: =(G62-G68)-(G69-G84-G79) ->  | H83: =(H62-H68)-(H69-H84-H79) ->  | I83: =(I62-I68)-(I69-I84-I79) ->  | J83: =(J62-J68)-(J69-J84-J79) ->  | S83: =IF(s_bil_std!$AA$2="1",F83,M83) ->  | T83: =IF(s_bil_std!$AA$2="1",G83,N83) ->  | U83: =IF(s_bil_std!$AA$2="1",H83,O83) ->  | V83: =IF(s_bil_std!$AA$2="1",I83,P83) ->  | W83: =IF(s_bil_std!$AA$2="1",J83,Q83) -> 
A84: 390 | C84: Ammortamenti e svalutazioni | F84: =#REF! ->  | G84: =#REF! ->  | H84: =#REF! ->  | I84: =#REF! ->  | J84: =#REF! ->  | S84: =IF(s_bil_std!$AA$2="1",F84,M84) ->  | T84: =IF(s_bil_std!$AA$2="1",G84,N84) ->  | U84: =IF(s_bil_std!$AA$2="1",H84,O84) ->  | V84: =IF(s_bil_std!$AA$2="1",I84,P84) ->  | W84: =IF(s_bil_std!$AA$2="1",J84,Q84) -> 
A85: 11700 | D85: Ammortamenti e svalutazioni Immobilizzazioni | F85: =SUM(#REF!:#REF!) ->  | G85: =SUM(#REF!:#REF!) ->  | H85: =SUM(#REF!:#REF!) ->  | I85: =SUM(#REF!:#REF!) ->  | J85: =SUM(#REF!:#REF!) ->  | S85: =IF(s_bil_std!$AA$2="1",F85,M85) ->  | T85: =IF(s_bil_std!$AA$2="1",G85,N85) ->  | U85: =IF(s_bil_std!$AA$2="1",H85,O85) ->  | V85: =IF(s_bil_std!$AA$2="1",I85,P85) ->  | W85: =IF(s_bil_std!$AA$2="1",J85,Q85) -> 
A86: 392 | E86: Ammortamenti Immob. Immateriali | F86: =#REF! ->  | G86: =#REF! ->  | H86: =#REF! ->  | I86: =#REF! ->  | J86: =#REF! ->  | S86: =IF(s_bil_std!$AA$2="1",F86,M86) ->  | T86: =IF(s_bil_std!$AA$2="1",G86,N86) ->  | U86: =IF(s_bil_std!$AA$2="1",H86,O86) ->  | V86: =IF(s_bil_std!$AA$2="1",I86,P86) ->  | W86: =IF(s_bil_std!$AA$2="1",J86,Q86) -> 
A87: 394 | E87: Ammortamenti Immob. Materiali | F87: =#REF! ->  | G87: =#REF! ->  | H87: =#REF! ->  | I87: =#REF! ->  | J87: =#REF! ->  | S87: =IF(s_bil_std!$AA$2="1",F87,M87) ->  | T87: =IF(s_bil_std!$AA$2="1",G87,N87) ->  | U87: =IF(s_bil_std!$AA$2="1",H87,O87) ->  | V87: =IF(s_bil_std!$AA$2="1",I87,P87) ->  | W87: =IF(s_bil_std!$AA$2="1",J87,Q87) -> 
A88: 400 | B88: Risultato operativo caratteristico | F88: =F83-F84 ->  | G88: =G83-G84 ->  | H88: =H83-H84 ->  | I88: =I83-I84 ->  | J88: =J83-J84 ->  | S88: =IF(s_bil_std!$AA$2="1",F88,M88) ->  | T88: =IF(s_bil_std!$AA$2="1",G88,N88) ->  | U88: =IF(s_bil_std!$AA$2="1",H88,O88) ->  | V88: =IF(s_bil_std!$AA$2="1",I88,P88) ->  | W88: =IF(s_bil_std!$AA$2="1",J88,Q88) -> 
A89: 410 | B89: Prov. e oneri non caratt. | F89: =F68-F79+#REF!+#REF!+#REF! ->  | G89: =G68-G79+#REF!+#REF!+#REF! ->  | H89: =H68-H79+#REF!+#REF!+#REF! ->  | I89: =I68-I79+#REF!+#REF!+#REF! ->  | J89: =J68-J79+#REF!+#REF!+#REF! ->  | S89: =IF(s_bil_std!$AA$2="1",F89,M89) ->  | T89: =IF(s_bil_std!$AA$2="1",G89,N89) ->  | U89: =IF(s_bil_std!$AA$2="1",H89,O89) ->  | V89: =IF(s_bil_std!$AA$2="1",I89,P89) ->  | W89: =IF(s_bil_std!$AA$2="1",J89,Q89) -> 
C90: Proventi ed oneri finanziari | F90: =#REF! ->  | G90: =#REF! ->  | H90: =#REF! ->  | I90: =#REF! ->  | J90: =#REF! ->  | S90: =IF(s_bil_std!$AA$2="1",F90,M90) ->  | T90: =IF(s_bil_std!$AA$2="1",G90,N90) ->  | U90: =IF(s_bil_std!$AA$2="1",H90,O90) ->  | V90: =IF(s_bil_std!$AA$2="1",I90,P90) ->  | W90: =IF(s_bil_std!$AA$2="1",J90,Q90) -> 
A91: 412 | C91: Proventi finanziari | F91: =SUM(#REF!,#REF!) ->  | G91: =SUM(#REF!,#REF!) ->  | H91: =SUM(#REF!,#REF!) ->  | I91: =SUM(#REF!,#REF!) ->  | J91: =SUM(#REF!,#REF!) ->  | S91: =IF(s_bil_std!$AA$2="1",F91,M91) ->  | T91: =IF(s_bil_std!$AA$2="1",G91,N91) ->  | U91: =IF(s_bil_std!$AA$2="1",H91,O91) ->  | V91: =IF(s_bil_std!$AA$2="1",I91,P91) ->  | W91: =IF(s_bil_std!$AA$2="1",J91,Q91) -> 
C92: Utili e perdite su cambi | F92: =#REF! ->  | G92: =#REF! ->  | H92: =#REF! ->  | I92: =#REF! ->  | J92: =#REF! ->  | S92: =IF(s_bil_std!$AA$2="1",F92,M92) ->  | T92: =IF(s_bil_std!$AA$2="1",G92,N92) ->  | U92: =IF(s_bil_std!$AA$2="1",H92,O92) ->  | V92: =IF(s_bil_std!$AA$2="1",I92,P92) ->  | W92: =IF(s_bil_std!$AA$2="1",J92,Q92) -> 
A93: S30 | C93: Risultato ante gestione finanziaria | F93: =F88+F68-F79 ->  | G93: =G88+G68-G79 ->  | H93: =H88+H68-H79 ->  | I93: =I88+I68-I79 ->  | J93: =J88+J68-J79 ->  | S93: =IF(s_bil_std!$AA$2="1",F93,M93) ->  | T93: =IF(s_bil_std!$AA$2="1",G93,N93) ->  | U93: =IF(s_bil_std!$AA$2="1",H93,O93) ->  | V93: =IF(s_bil_std!$AA$2="1",I93,P93) ->  | W93: =IF(s_bil_std!$AA$2="1",J93,Q93) -> 
A94: 415 | B94: Risultato operativo (Margine corrente ante oneri finanziari) | F94: =F88+F89 ->  | G94: =G88+G89 ->  | H94: =H88+H89 ->  | I94: =I88+I89 ->  | J94: =J88+J89 ->  | S94: =IF(s_bil_std!$AA$2="1",F94,M94) ->  | T94: =IF(s_bil_std!$AA$2="1",G94,N94) ->  | U94: =IF(s_bil_std!$AA$2="1",H94,O94) ->  | V94: =IF(s_bil_std!$AA$2="1",I94,P94) ->  | W94: =IF(s_bil_std!$AA$2="1",J94,Q94) -> 
A95: 420 | B95: Oneri finanziari | F95: =#REF! ->  | G95: =#REF! ->  | H95: =#REF! ->  | I95: =#REF! ->  | J95: =#REF! ->  | S95: =IF(s_bil_std!$AA$2="1",F95,M95) ->  | T95: =IF(s_bil_std!$AA$2="1",G95,N95) ->  | U95: =IF(s_bil_std!$AA$2="1",H95,O95) ->  | V95: =IF(s_bil_std!$AA$2="1",I95,P95) ->  | W95: =IF(s_bil_std!$AA$2="1",J95,Q95) -> 
A96: 440 | B96: Risultato ante gestione straordinaria (Margine corrente) | F96: =F94+F95 ->  | G96: =G94+G95 ->  | H96: =H94+H95 ->  | I96: =I94+I95 ->  | J96: =J94+J95 ->  | S96: =IF(s_bil_std!$AA$2="1",F96,M96) ->  | T96: =IF(s_bil_std!$AA$2="1",G96,N96) ->  | U96: =IF(s_bil_std!$AA$2="1",H96,O96) ->  | V96: =IF(s_bil_std!$AA$2="1",I96,P96) ->  | W96: =IF(s_bil_std!$AA$2="1",J96,Q96) -> 
A97: 430 | B97: Rettifica di valore di Attività Finanziarie | F97: =#REF! ->  | G97: =#REF! ->  | H97: =#REF! ->  | I97: =#REF! ->  | J97: =#REF! ->  | S97: =IF(s_bil_std!$AA$2="1",F97,M97) ->  | T97: =IF(s_bil_std!$AA$2="1",G97,N97) ->  | U97: =IF(s_bil_std!$AA$2="1",H97,O97) ->  | V97: =IF(s_bil_std!$AA$2="1",I97,P97) ->  | W97: =IF(s_bil_std!$AA$2="1",J97,Q97) -> 
A98: 450 | B98: Proventi e oneri straordinari | F98: =#REF! ->  | G98: =#REF! ->  | H98: =#REF! ->  | I98: =#REF! ->  | J98: =#REF! ->  | S98: =IF(s_bil_std!$AA$2="1",F98,M98) ->  | T98: =IF(s_bil_std!$AA$2="1",G98,N98) ->  | U98: =IF(s_bil_std!$AA$2="1",H98,O98) ->  | V98: =IF(s_bil_std!$AA$2="1",I98,P98) ->  | W98: =IF(s_bil_std!$AA$2="1",J98,Q98) -> 
A99: 460 | B99: Risultato ante imposte | F99: =F96+F97+F98 ->  | G99: =G96+G97+G98 ->  | H99: =H96+H97+H98 ->  | I99: =I96+I97+I98 ->  | J99: =J96+J97+J98 ->  | S99: =IF(s_bil_std!$AA$2="1",F99,M99) ->  | T99: =IF(s_bil_std!$AA$2="1",G99,N99) ->  | U99: =IF(s_bil_std!$AA$2="1",H99,O99) ->  | V99: =IF(s_bil_std!$AA$2="1",I99,P99) ->  | W99: =IF(s_bil_std!$AA$2="1",J99,Q99) -> 
A100: 465 | B100: Imposte dell'esercizio | F100: =#REF! ->  | G100: =#REF! ->  | H100: =#REF! ->  | I100: =#REF! ->  | J100: =#REF! ->  | S100: =IF(s_bil_std!$AA$2="1",F100,M100) ->  | T100: =IF(s_bil_std!$AA$2="1",G100,N100) ->  | U100: =IF(s_bil_std!$AA$2="1",H100,O100) ->  | V100: =IF(s_bil_std!$AA$2="1",I100,P100) ->  | W100: =IF(s_bil_std!$AA$2="1",J100,Q100) -> 
A101: 477 | B101: Reddito netto | F101: =F99-F100 ->  | G101: =G99-G100 ->  | H101: =H99-H100 ->  | I101: =I99-I100 ->  | J101: =J99-J100 ->  | S101: =IF(s_bil_std!$AA$2="1",F101,M101) ->  | T101: =IF(s_bil_std!$AA$2="1",G101,N101) ->  | U101: =IF(s_bil_std!$AA$2="1",H101,O101) ->  | V101: =IF(s_bil_std!$AA$2="1",I101,P101) ->  | W101: =IF(s_bil_std!$AA$2="1",J101,Q101) -> 
B103: Dipendenti medi | F103: =dati_an!$B$34 -> 0 | G103: =dati_an!$B$35 -> 0 | H103: =dati_an!$B$36 -> 0 | I103: =dati_an!$B$37 -> 0 | J103: =dati_an!$B$38 -> 0 | M103: =dati_an!$B$34 -> 0 | N103: =dati_an!$B$35 -> 0 | O103: =dati_an!$B$36 -> 0 | P103: =dati_an!$B$37 -> 0 | Q103: =dati_an!$B$38 -> 0 | S103: =IF(s_bil_std!$AA$2="1",F103,M103) -> 0 | T103: =IF(s_bil_std!$AA$2="1",G103,N103) -> 0 | U103: =IF(s_bil_std!$AA$2="1",H103,O103) -> 0 | V103: =IF(s_bil_std!$AA$2="1",I103,P103) -> 0 | W103: =IF(s_bil_std!$AA$2="1",J103,Q103) -> 0

Sheet s_bil_std (hidden)
A1: Codice voce | B1: Descrizione | C1: Solo Cons. | D1: ORD | E1: ABB | F1: Codice Cerved | G1: Codice Bilancio sintetico | I1: N ORD | J1: N ABB | L1: N-1 ORD | M1: N-1 ABB | O1: N-2 ORD | P1: N-2 ABB | R1: N-3 ORD | S1: N-3 ABB | U1: N-4 ORD | V1: N-4 ABB | Y1: N DEF | Z1: N-1 DEF | AA1: N-2 DEF | AB1: N-3 DEF | AC1: N-4 DEF | AE1: Codice in stampa
A2: 1 | B2: Attivo | Y2: Forma bilancio: | AA2: =TEXT(dati_an!B4+1,"0") -> 8 | AB2: =dati_an!C4 -> Ordinaria
A3: 1.A | B3: CREDITI VERSO SOCI PER VERSAMENTI ANCORA DOVUTI | C3: NO | D3: Totale | E3: Totale | F3: 10 | G3: 10 | I3: =SUM(I4:I5) -> 0 | J3: =SUM(J4:J5) -> 0 | L3: =SUM(L4:L5) -> 0 | M3: =SUM(M4:M5) -> 0 | O3: =SUM(O4:O5) -> 0 | P3: =SUM(P4:P5) -> 0 | R3: =SUM(R4:R5) -> 0 | S3: =SUM(S4:S5) -> 0 | U3: =SUM(U4:U5) -> 0 | V3: =SUM(V4:V5) -> 0 | Y3: =IF($AA$2="1",I3,J3) -> 0 | Z3: =IF($AA$2="1",L3,M3) -> 0 | AA3: =IF($AA$2="1",O3,P3) -> 0 | AB3: =IF($AA$2="1",R3,S3) -> 0 | AC3: =IF($AA$2="1",U3,V3) -> 0 | AE3: A) | AH3: Voce calcolata
A4: 1.A.1 | B4: Versamenti non ancora richiamati | C4: NO | D4: Dett. | E4: Dett. | F4: 12 | I4: =SUMIF(dati_sp!$H$2:$H$65536,s_bil_std!$A4,dati_sp!$C$2:$C$65536) -> 0 | J4: =SUMIF(dati_sp!$H$2:$H$65536,s_bil_std!$A4,dati_sp!$C$2:$C$65536) -> 0 | L4: =SUMIF(dati_sp!$H$2:$H$65536,s_bil_std!$A4,dati_sp!$D$2:$D$65536) -> 0 | M4: =SUMIF(dati_sp!$H$2:$H$65536,s_bil_std!$A4,dati_sp!$D$2:$D$65536) -> 0 | O4: =SUMIF(dati_sp!$H$2:$H$65536,s_bil_std!$A4,dati_sp!$E$2:$E$65536) -> 0 | P4: =SUMIF(dati_sp!$H$2:$H$65536,s_bil_std!$A4,dati_sp!$E$2:$E$65536) -> 0 | R4: =SUMIF(dati_sp!$H$2:$H$65536,s_bil_std!$A4,dati_sp!$F$2:$F$65536) -> 0 | S4: =SUMIF(dati_sp!$H$2:$H$65536,s_bil_std!$A4,dati_sp!$F$2:$F$65536) -> 0 | U4: =SUMIF(dati_sp!$H$2:$H$65536,s_bil_std!$A4,dati_sp!$G$2:$G$65536) -> 0 | V4: =SUMIF(dati_sp!$H$2:$H$65536,s_bil_std!$A4,dati_sp!$G$2:$G$65536) -> 0 | Y4: 0 | Z4: 0 | AA4: 0 | AB4: 0 | AC4: 0 | AH4: Voce di scomp. Temp.
A5: 1.A.2 | B5: Versamenti già richiamati | C5: NO | D5: Dett. | E5: Dett. | I5: =SUMIF(dati_sp!$H$2:$H$65536,s_bil_std!$A5,dati_sp!$C$2:$C$65536) -> 0 | J5: =SUMIF(dati_sp!$H$2:$H$65536,s_bil_std!$A5,dati_sp!$C$2:$C$65536) -> 0 | L5: =SUMIF(dati_sp!$H$2:$H$65536,s_bil_std!$A5,dati_sp!$D$2:$D$65536) -> 0 | M5: =SUMIF(dati_sp!$H$2:$H$65536,s_bil_std!$A5,dati_sp!$D$2:$D$65536) -> 0 | O5: =SUMIF(dati_sp!$H$2:$H$65536,s_bil_std!$A5,dati_sp!$E$2:$E$65536) -> 0 | P5: =SUMIF(dati_sp!$H$2:$H$65536,s_bil_std!$A5,dati_sp!$E$2:$E$65536) -> 0 | R5: =SUMIF(dati_sp!$H$2:$H$65536,s_bil_std!$A5,dati_sp!$F$2:$F$65536) -> 0 | S5: =SUMIF(dati_sp!$H$2:$H$65536,s_bil_std!$A5,dati_sp!$F$2:$F$65536) -> 0 | U5: =SUMIF(dati_sp!$H$2:$H$65536,s_bil_std!$A5,dati_sp!$G$2:$G$65536) -> 0 | V5: =SUMIF(dati_sp!$H$2:$H$65536,s_bil_std!$A5,dati_sp!$G$2:$G$65536) -> 0 | Y5: 0 | Z5: 0 | AA5: 0 | AB5: 0 | AC5: 0 | AH5: Voce calcolata nell'ord, dettaglio nell'abb.
A6: 1.B | B6: IMMOBILIZZAZIONI | C6: NO | D6: Totale | E6: Totale | F6: 20 | G6: 20 | I6: =SUM(I7,I19,I28) -> 3000 | J6: =SUM(J7,J19) -> 0 | L6: =SUM(L7,L19,L28) -> 3000 | M6: =SUM(M7,M19) -> 0 | O6: =SUM(O7,O19,O28) -> 0 | P6: =SUM(P7,P19) -> 0 | R6: =SUM(R7,R19,R28) -> 0 | S6: =SUM(S7,S19) -> 0 | U6: =SUM(U7,U19,U28) -> 0 | V6: =SUM(V7,V19) -> 0 | Y6: 0 | Z6: 0 | AA6: 0 | AB6: 0 | AC6: 0 | AE6: B) | AH6: Voce non rilevante per lo schema abbreviato
A7: 1.B.1 | B7: IMMOBILIZZAZIONI IMMATERIALI | C7: NO | D7: Totale | E7: Totale | F7: 30 | G7: 30 | I7: =SUM(I8:I15) -> 3000 | J7: =SUM(J16:J18) -> 0 | L7: =SUM(L8:L15) -> 3000 | M7: =SUM(M16:M18) -> 0 | O7: =SUM(O8:O15) -> 0 | P7: =SUM(P16:P18) -> 0 | R7: =SUM(R8:R15) -> 0 | S7: =SUM(S16:S18) -> 0 | U7: =SUM(U8:U15) -> 0 | V7: =SUM(V16:V18) -> 0 | Y7: 0 | Z7: 0 | AA7: 0 | AB7: 0 | AC7: 0 | AE7: I - | AH7: Voce solo consolidato
A8: 1.B.1.1 | B8: Costi di impianto e di ampliamento | C8: NO | D8: Dett. | F8: 31 | I8: =SUMIF(dati_sp!$H$2:$H$65536,s_bil_std!$A8,dati_sp!$C$2:$C$65536) -> 0 | L8: =SUMIF(dati_sp!$H$2:$H$65536,s_bil_std!$A8,dati_sp!$D$2:$D$65536) -> 0 | O8: =SUMIF(dati_sp!$H$2:$H$65536,s_bil_std!$A8,dati_sp!$E$2:$E$65536) -> 0 | R8: =SUMIF(dati_sp!$H$2:$H$65536,s_bil_std!$A8,dati_sp!$F$2:$F$65536) -> 0 | U8: =SUMIF(dati_sp!$H$2:$H$65536,s_bil_std!$A8,dati_sp!$G$2:$G$65536) -> 0 | Y8: 0 | Z8: 0 | AA8: 0 | AB8: 0 | AC8: 0 | AE8: 1)
A9: 1.B.1.2 | B9: Costi di ricerca, di sviluppo e di pubblicità | C9: NO | D9: Dett. | F9: 32 | I9: =SUMIF(dati_sp!$H$2:$H$65536,s_bil_std!$A9,dati_sp!$C$2:$C$65536) -> 0 | L9: =SUMIF(dati_sp!$H$2:$H$65536,s_bil_std!$A9,dati_sp!$D$2:$D$65536) -> 0 | O9: =SUMIF(dati_sp!$H$2:$H$65536,s_bil_std!$A9,dati_sp!$E$2:$E$65536) -> 0 | R9: =SUMIF(dati_sp!$H$2:$H$65536,s_bil_std!$A9,dati_sp!$F$2:$F$65536) -> 0 | U9: =SUMIF(dati_sp!$H$2:$H$65536,s_bil_std!$A9,dati_sp!$G$2:$G$65536) -> 0 | Y9: 0 | Z9: 0 | AA9: 0 | AB9: 0 | AC9: 0 | AE9: 2)
A10: 1.B.1.3 | B10: Diritto di brevetto industriale e diritti di utilizzazione delle opere di ingegno | C10: NO | D10: Dett. | F10: 33 | I10: =SUMIF(dati_sp!$H$2:$H$65536,s_bil_std!$A10,dati_sp!$C$2:$C$65536) -> 3000 | L10: =SUMIF(dati_sp!$H$2:$H$65536,s_bil_std!$A10,dati_sp!$D$2:$D$65536) -> 3000 | O10: =SUMIF(dati_sp!$H$2:$H$65536,s_bil_std!$A10,dati_sp!$E$2:$E$65536) -> 0 | R10: =SUMIF(dati_sp!$H$2:$H$65536,s_bil_std!$A10,dati_sp!$F$2:$F$65536) -> 0 | U10: =SUMIF(dati_sp!$H$2:$H$65536,s_bil_std!$A10,dati_sp!$G$2:$G$65536) -> 0 | Y10: 0 | Z10: 0 | AA10: 0 | AB10: 0 | AC10: 0 | AE10: 3)
A11: 1.B.1.4 | B11: Concessioni, licenze, marchi e diritti simili | C11: NO | D11: Dett. | F11: 34 | I11: =SUMIF(dati_sp!$H$2:$H$65536,s_bil_std!$A11,dati_sp!$C$2:$C$65536) -> 0 | L11: =SUMIF(dati_sp!$H$2:$H$65536,s_bil_std!$A11,dati_sp!$D$2:$D$65536) -> 0 | O11: =SUMIF(dati_sp!$H$2:$H$65536,s_bil_std!$A11,dati_sp!$E$2:$E$65536) -> 0 | R11: =SUMIF(dati_sp!$H$2:$H$65536,s_bil_std!$A11,dati_sp!$F$2:$F$65536) -> 0 | U11: =SUMIF(dati_sp!$H$2:$H$65536,s_bil_std!$A11,dati_sp!$G$2:$G$65536) -> 0 | Y11: 0 | Z11: 0 | AA11: 0 | AB11: 0 | AC11: 0 | AE11: 4)
A12: 1.B.1.5 | B12: Avviamento | C12: NO | D12: Dett. | F12: 35 | I12: =SUMIF(dati_sp!$H$2:$H$65536,s_bil_std!$A12,dati_sp!$C$2:$C$65536) -> 0 | L12: =SUMIF(dati_sp!$H$2:$H$65536,s_bil_std!$A12,dati_sp!$D$2:$D$65536) -> 0 | O12: =SUMIF(dati_sp!$H$2:$H$65536,s_bil_std!$A12,dati_sp!$E$2:$E$65536) -> 0 | R12: =SUMIF(dati_sp!$H$2:$H$65536,s_bil_std!$A12,dati_sp!$F$2:$F$65536) -> 0 | U12: =SUMIF(dati_sp!$H$2:$H$65536,s_bil_std!$A12,dati_sp!$G$2:$G$65536) -> 0 | Y12: 0 | Z12: 0 | AA12: 0 | AB12: 0 | AC12: 0 | AE12: 5)
A13: 1.B.1.5a | B13: Differenza da consolidamento | C13: SI | D13: Dett. | F13: 35 | I13: =SUMIF(dati_sp!$H$2:$H$65536,s_bil_std!$A13,dati_sp!$C$2:$C$65536) -> 0 | L13: =SUMIF(dati_sp!$H$2:$H$65536,s_bil_std!$A13,dati_sp!$D$2:$D$65536) -> 0 | O13: =SUMIF(dati_sp!$H$2:$H$65536,s_bil_std!$A13,dati_sp!$E$2:$E$65536) -> 0 | R13: =SUMIF(dati_sp!$H$2:$H$65536,s_bil_std!$A13,dati_sp!$F$2:$F$65536) -> 0 | U13: =SUMIF(dati_sp!$H$2:$H$65536,s_bil_std!$A13,dati_sp!$G$2:$G$65536) -> 0 | Y13: 0 | Z13: 0 | AA13: 0 | AB13: 0 | AC13: 0
A14: 1.B.1.6 | B14: Immobilizzazioni in corso e acconti | C14: NO | D14: Dett. | F14: 36 | I14: =SUMIF(dati_sp!$H$2:$H$65536,s_bil_std!$A14,dati_sp!$C$2:$C$65536) -> 0 | L14: =SUMIF(dati_sp!$H$2:$H$65536,s_bil_std!$A14,dati_sp!$D$2:$D$65536) -> 0 | O14: =SUMIF(dati_sp!$H$2:$H$65536,s_bil_std!$A14,dati_sp!$E$2:$E$65536) -> 0 | R14: =SUMIF(dati_sp!$H$2:$H$65536,s_bil_std!$A14,dati_sp!$F$2:$F$65536) -> 0 | U14: =SUMIF(dati_sp!$H$2:$H$65536,s_bil_std!$A14,dati_sp!$G$2:$G$65536) -> 0 | Y14: 0 | Z14: 0 | AA14: 0 | AB14: 0 | AC14: 0 | AE14: 6)
A15: 1.B.1.7 | B15: Altre immobilizzazioni immateriali | C15: NO | D15: Dett. | F15: 37 | I15: =SUMIF(dati_sp!$H$2:$H$65536,s_bil_std!$A15,dati_sp!$C$2:$C$65536) -> 0 | L15: =SUMIF(dati_sp!$H$2:$H$65536,s_bil_std!$A15,dati_sp!$D$2:$D$65536) -> 0 | O15: =SUMIF(dati_sp!$H$2:$H$65536,s_bil_std!$A15,dati_sp!$E$2:$E$65536) -> 0 | R15: =SUMIF(dati_sp!$H$2:$H$65536,s_bil_std!$A15,dati_sp!$F$2:$F$65536) -> 0 | U15: =SUMIF(dati_sp!$H$2:$H$65536,s_bil_std!$A15,dati_sp!$G$2:$G$65536) -> 0 | Y15: 0 | Z15: 0 | AA15: 0 | AB15: 0 | AC15: 0 | AE15: 7)
A16: 1.B.1.90 | B16: Immobilizzazioni immateriali lorde | C16: NO | E16: Dett. | J16: =SUMIF(dati_sp!$H$2:$H$65536,s_bil_std!$A16,dati_sp!$C$2:$C$65536) -> 0 | M16: =SUMIF(dati_sp!$H$2:$H$65536,s_bil_std!$A16,dati_sp!$D$2:$D$65536) -> 0 | P16: =SUMIF(dati_sp!$H$2:$H$65536,s_bil_std!$A16,dati_sp!$E$2:$E$65536) -> 0 | S16: =SUMIF(dati_sp!$H$2:$H$65536,s_bil_std!$A16,dati_sp!$F$2:$F$65536) -> 0 | V16: =SUMIF(dati_sp!$H$2:$H$65536,s_bil_std!$A16,dati_sp!$G$2:$G$65536) -> 0 | Y16: 0 | Z16: 0 | AA16: 0 | AB16: 0 | AC16: 0
A17: 1.B.1.91 | B17: Fondi Ammortam. immobili. immateriali | C17: NO | E17: Dett. | F17: 21 | J17: =SUMIF(dati_sp!$H$2:$H$65536,s_bil_std!$A17,dati_sp!$C$2:$C$65536) -> 0 | M17: =SUMIF(dati_sp!$H$2:$H$65536,s_bil_std!$A17,dati_sp!$D$2:$D$65536) -> 0 | P17: =SUMIF(dati_sp!$H$2:$H$65536,s_bil_std!$A17,dati_sp!$E$2:$E$65536) -> 0 | S17: =SUMIF(dati_sp!$H$2:$H$65536,s_bil_std!$A17,dati_sp!$F$2:$F$65536) -> 0 | V17: =SUMIF(dati_sp!$H$2:$H$65536,s_bil_std!$A17,dati_sp!$G$2:$G$65536) -> 0 | Y17: 0 | Z17: 0 | AA17: 0 | AB17: 0 | AC17: 0
A18: 1.B.1.92 | B18: Fondi svalutazione immobil. immateriali | C18: NO | E18: Dett. | F18: 21 | J18: =SUMIF(dati_sp!$H$2:$H$65536,s_bil_std!$A18,dati_sp!$C$2:$C$65536) -> 0 | M18: =SUMIF(dati_sp!$H$2:$H$65536,s_bil_std!$A18,dati_sp!$D$2:$D$65536) -> 0 | P18: =SUMIF(dati_sp!$H$2:$H$65536,s_bil_std!$A18,dati_sp!$E$2:$E$65536) -> 0 | S18: =SUMIF(dati_sp!$H$2:$H$65536,s_bil_std!$A18,dati_sp!$F$2:$F$65536) -> 0 | V18: =SUMIF(dati_sp!$H$2:$H$65536,s_bil_std!$A18,dati_sp!$G$2:$G$65536) -> 0 | Y18: 0 | Z18: 0 | AA18: 0 | AB18: 0 | AC18: 0
A19: 1.B.2 | B19: IMMOBILIZZAZIONI MATERIALI | C19: NO | D19: Totale | E19: Totale | F19: 40 | G19: 40 | I19: =SUM(I20:I24) -> 0 | J19: =SUM(J25:J27) -> 0 | L19: =SUM(L20:L24) -> 0 | M19: =SUM(M25:M27) -> 0 | O19: =SUM(O20:O24) -> 0 | P19: =SUM(P25:P27) -> 0 | R19: =SUM(R20:R24) -> 0 | S19: =SUM(S25:S27) -> 0 | U19: =SUM(U20:U24) -> 0 | V19: =SUM(V25:V27) -> 0 | Y19: 0 | Z19: 0 | AA19: 0 | AB19: 0 | AC19: 0 | AE19: II -
A20: 1.B.2.1 | B20: Terreni e fabbricati | C20: NO | D20: Dett. | F20: 45 | I20: =SUMIF(dati_sp!$H$2:$H$65536,s_bil_std!$A20,dati_sp!$C$2:$C$65536) -> 0 | L20: =SUMIF(dati_sp!$H$2:$H$65536,s_bil_std!$A20,dati_sp!$D$2:$D$65536) -> 0 | O20: =SUMIF(dati_sp!$H$2:$H$65536,s_bil_std!$A20,dati_sp!$E$2:$E$65536) -> 0 | R20: =SUMIF(dati_sp!$H$2:$H$65536,s_bil_std!$A20,dati_sp!$F$2:$F$65536) -> 0 | U20: =SUMIF(dati_sp!$H$2:$H$65536,s_bil_std!$A20,dati_sp!$G$2:$G$65536) -> 0 | Y20: 0 | Z20: 0 | AA20: 0 | AB20: 0 | AC20: 0 | AE20: 1)
A21: 1.B.2.2 | B21: Impianti e macchinario | C21: NO | D21: Dett. | F21: 41 | I21: =SUMIF(dati_sp!$H$2:$H$65536,s_bil_std!$A21,dati_sp!$C$2:$C$65536) -> 0 | L21: =SUMIF(dati_sp!$H$2:$H$65536,s_bil_std!$A21,dati_sp!$D$2:$D$65536) -> 0 | O21: =SUMIF(dati_sp!$H$2:$H$65536,s_bil_std!$A21,dati_sp!$E$2:$E$65536) -> 0 | R21: =SUMIF(dati_sp!$H$2:$H$65536,s_bil_std!$A21,dati_sp!$F$2:$F$65536) -> 0 | U21: =SUMIF(dati_sp!$H$2:$H$65536,s_bil_std!$A21,dati_sp!$G$2:$G$65536) -> 0 | Y21: 0 | Z21: 0 | AA21: 0 | AB21: 0 | AC21: 0 | AE21: 2)
A22: 1.B.2.3 | B22: Attrezzature industriali e commerciali | C22: NO | D22: Dett. | F22: 42 | I22: =SUMIF(dati_sp!$H$2:$H$65536,s_bil_std!$A22,dati_sp!$C$2:$C$65536) -> 0 | L22: =SUMIF(dati_sp!$H$2:$H$65536,s_bil_std!$A22,dati_sp!$D$2:$D$65536) -> 0 | O22: =SUMIF(dati_sp!$H$2:$H$65536,s_bil_std!$A22,dati_sp!$E$2:$E$65536) -> 0 | R22: =SUMIF(dati_sp!$H$2:$H$65536,s_bil_std!$A22,dati_sp!$F$2:$F$65536) -> 0 | U22: =SUMIF(dati_sp!$H$2:$H$65536,s_bil_std!$A22,dati_sp!$G$2:$G$65536) -> 0 | Y22: 0 | Z22: 0 | AA22: 0 | AB22: 0 | AC22: 0 | AE22: 3)
A23: 1.B.2.4 | B23: Altri beni materiali | C23: NO | D23: Dett. | F23: 43 | I23: =SUMIF(dati_sp!$H$2:$H$65536,s_bil_std!$A23,dati_sp!$C$2:$C$65536) -> 0 | L23: =SUMIF(dati_sp!$H$2:$H$65536,s_bil_std!$A23,dati_sp!$D$2:$D$65536) -> 0 | O23: =SUMIF(dati_sp!$H$2:$H$65536,s_bil_std!$A23,dati_sp!$E$2:$E$65536) -> 0 | R23: =SUMIF(dati_sp!$H$2:$H$65536,s_bil_std!$A23,dati_sp!$F$2:$F$65536) -> 0 | U23: =SUMIF(dati_sp!$H$2:$H$65536,s_bil_std!$A23,dati_sp!$G$2:$G$65536) -> 0 | Y23: 0 | Z23: 0 | AA23: 0 | AB23: 0 | AC23: 0 | AE23: 4)
A24: 1.B.2.5 | B24: Immobilizzazioni in corso e acconti | C24: NO | D24: Dett. | F24: 44 | I24: =SUMIF(dati_sp!$H$2:$H$65536,s_bil_std!$A24,dati_sp!$C$2:$C$65536) -> 0 | L24: =SUMIF(dati_sp!$H$2:$H$65536,s_bil_std!$A24,dati_sp!$D$2:$D$65536) -> 0 | O24: =SUMIF(dati_sp!$H$2:$H$65536,s_bil_std!$A24,dati_sp!$E$2:$E$65536) -> 0 | R24: =SUMIF(dati_sp!$H$2:$H$65536,s_bil_std!$A24,dati_sp!$F$2:$F$65536) -> 0 | U24: =SUMIF(dati_sp!$H$2:$H$65536,s_bil_std!$A24,dati_sp!$G$2:$G$65536) -> 0 | Y24: 0 | Z24: 0 | AA24: 0 | AB24: 0 | AC24: 0 | AE24: 5)
A25: 1.B.2.90 | B25: Immobilizzazioni materiali lorde | C25: NO | E25: Dett. | J25: =SUMIF(dati_sp!$H$2:$H$65536,s_bil_std!$A25,dati_sp!$C$2:$C$65536) -> 0 | M25: =SUMIF(dati_sp!$H$2:$H$65536,s_bil_std!$A25,dati_sp!$D$2:$D$65536) -> 0 | P25: =SUMIF(dati_sp!$H$2:$H$65536,s_bil_std!$A25,dati_sp!$E$2:$E$65536) -> 0 | S25: =SUMIF(dati_sp!$H$2:$H$65536,s_bil_std!$A25,dati_sp!$F$2:$F$65536) -> 0 | V25: =SUMIF(dati_sp!$H$2:$H$65536,s_bil_std!$A25,dati_sp!$G$2:$G$65536) -> 0 | Y25: 0 | Z25: 0 | AA25: 0 | AB25: 0 | AC25: 0
A26: 1.B.2.91 | B26: Fondi Ammort. immobil. materiali | C26: NO | E26: Dett. | F26: 265 | J26: =SUMIF(dati_sp!$H$2:$H$65536,s_bil_std!$A26,dati_sp!$C$2:$C$65536) -> 0 | M26: =SUMIF(dati_sp!$H$2:$H$65536,s_bil_std!$A26,dati_sp!$D$2:$D$65536) -> 0 | P26: =SUMIF(dati_sp!$H$2:$H$65536,s_bil_std!$A26,dati_sp!$E$2:$E$65536) -> 0 | S26: =SUMIF(dati_sp!$H$2:$H$65536,s_bil_std!$A26,dati_sp!$F$2:$F$65536) -> 0 | V26: =SUMIF(dati_sp!$H$2:$H$65536,s_bil_std!$A26,dati_sp!$G$2:$G$65536) -> 0 | Y26: 0 | Z26: 0 | AA26: 0 | AB26: 0 | AC26: 0
A27: 1.B.2.92 | B27: Fondi svalutazione immobil.materiali | C27: NO | E27: Dett. | F27: 265 | J27: =SUMIF(dati_sp!$H$2:$H$65536,s_bil_std!$A27,dati_sp!$C$2:$C$65536) -> 0 | M27: =SUMIF(dati_sp!$H$2:$H$65536,s_bil_std!$A27,dati_sp!$D$2:$D$65536) -> 0 | P27: =SUMIF(dati_sp!$H$2:$H$65536,s_bil_std!$A27,dati_sp!$E$2:$E$65536) -> 0 | S27: =SUMIF(dati_sp!$H$2:$H$65536,s_bil_std!$A27,dati_sp!$F$2:$F$65536) -> 0 | V27: =SUMIF(dati_sp!$H$2:$H$65536,s_bil_std!$A27,dati_sp!$G$2:$G$65536) -> 0 | Y27: 0 | Z27: 0 | AA27: 0 | AB27: 0 | AC27: 0
A28: 1.B.3 | B28: IMMOBILIZZAZIONI FINANZIARIE | C28: NO | D28: Totale | E28: Dett. | F28: 50 | G28: 50 | I28: =SUM(I29,I34) -> 0 | J28: =SUMIF(dati_sp!$H$2:$H$65536,s_bil_std!$A28,dati_sp!$C$2:$C$65536) -> 0 | L28: =SUM(L29,L34) -> 0 | M28: =SUMIF(dati_sp!$H$2:$H$65536,s_bil_std!$A28,dati_sp!$D$2:$D$65536) -> 0 | O28: =SUM(O29,O34) -> 0 | P28: =SUMIF(dati_sp!$H$2:$H$65536,s_bil_std!$A28,dati_sp!$E$2:$E$65536) -> 0 | R28: =SUM(R29,R34) -> 0 | S28: =SUMIF(dati_sp!$H$2:$H$65536,s_bil_std!$A28,dati_sp!$F$2:$F$65536) -> 0 | U28: =SUM(U29,U34) -> 0 | V28: =SUMIF(dati_sp!$H$2:$H$65536,s_bil_std!$A28,dati_sp!$G$2:$G$65536) -> 0 | Y28: 0 | Z28: 0 | AA28: 0 | AB28: 0 | AC28: 0 | AE28: III -
A29: 1.B.3.1 | B29: Partecipazioni | C29: NO | D29: Totale | F29: 67 | G29: 67 | I29: =SUM(I30:I33) -> 0 | L29: =SUM(L30:L33) -> 0 | O29: =SUM(O30:O33) -> 0 | R29: =SUM(R30:R33) -> 0 | U29: =SUM(U30:U33) -> 0 | Y29: 0 | Z29: 0 | AA29: 0 | AB29: 0 | AC29: 0 | AE29: 1)
A30: 1.B.3.1.a | B30: Partecipazioni in imprese controllate | C30: NO | D30: Dett. | F30: 61 | I30: =SUMIF(dati_sp!$H$2:$H$65536,s_bil_std!$A30,dati_sp!$C$2:$C$65536) -> 0 | L30: =SUMIF(dati_sp!$H$2:$H$65536,s_bil_std!$A30,dati_sp!$D$2:$D$65536) -> 0 | O30: =SUMIF(dati_sp!$H$2:$H$65536,s_bil_std!$A30,dati_sp!$E$2:$E$65536) -> 0 | R30: =SUMIF(dati_sp!$H$2:$H$65536,s_bil_std!$A30,dati_sp!$F$2:$F$65536) -> 0 | U30: =SUMIF(dati_sp!$H$2:$H$65536,s_bil_std!$A30,dati_sp!$G$2:$G$65536) -> 0 | Y30: 0 | Z30: 0 | AA30: 0 | AB30: 0 | AC30: 0 | AE30: a)
A31: 1.B.3.1.b | B31: Partecipazioni in imprese collegate | C31: NO | D31: Dett. | F31: 62 | I31: =SUMIF(dati_sp!$H$2:$H$65536,s_bil_std!$A31,dati_sp!$C$2:$C$65536) -> 0 | L31: =SUMIF(dati_sp!$H$2:$H$65536,s_bil_std!$A31,dati_sp!$D$2:$D$65536) -> 0 | O31: =SUMIF(dati_sp!$H$2:$H$65536,s_bil_std!$A31,dati_sp!$E$2:$E$65536) -> 0 | R31: =SUMIF(dati_sp!$H$2:$H$65536,s_bil_std!$A31,dati_sp!$F$2:$F$65536) -> 0 | U31: =SUMIF(dati_sp!$H$2:$H$65536,s_bil_std!$A31,dati_sp!$G$2:$G$65536) -> 0 | Y31: 0 | Z31: 0 | AA31: 0 | AB31: 0 | AC31: 0 | AE31: b)
A32: 1.B.3.1.c | B32: Partecipazioni in imprese controllanti | C32: NO | D32: Dett. | F32: 63 | I32: =SUMIF(dati_sp!$H$2:$H$65536,s_bil_std!$A32,dati_sp!$C$2:$C$65536) -> 0 | L32: =SUMIF(dati_sp!$H$2:$H$65536,s_bil_std!$A32,dati_sp!$D$2:$D$65536) -> 0 | O32: =SUMIF(dati_sp!$H$2:$H$65536,s_bil_std!$A32,dati_sp!$E$2:$E$65536) -> 0 | R32: =SUMIF(dati_sp!$H$2:$H$65536,s_bil_std!$A32,dati_sp!$F$2:$F$65536) -> 0 | U32: =SUMIF(dati_sp!$H$2:$H$65536,s_bil_std!$A32,dati_sp!$G$2:$G$65536) -> 0 | Y32: 0 | Z32: 0 | AA32: 0 | AB32: 0 | AC32: 0 | AE32: c)
A33: 1.B.3.1.d | B33: Partecipazioni in altre imprese | C33: NO | D33: Dett. | F33: 64 | I33: =SUMIF(dati_sp!$H$2:$H$65536,s_bil_std!$A33,dati_sp!$C$2:$C$65536) -> 0 | L33: =SUMIF(dati_sp!$H$2:$H$65536,s_bil_std!$A33,dati_sp!$D$2:$D$65536) -> 0 | O33: =SUMIF(dati_sp!$H$2:$H$65536,s_bil_std!$A33,dati_sp!$E$2:$E$65536) -> 0 | R33: =SUMIF(dati_sp!$H$2:$H$65536,s_bil_std!$A33,dati_sp!$F$2:$F$65536) -> 0 | U33: =SUMIF(dati_sp!$H$2:$H$65536,s_bil_std!$A33,dati_sp!$G$2:$G$65536) -> 0 | Y33: 0 | Z33: 0 | AA33: 0 | AB33: 0 | AC33: 0 | AE33: d)
A34: 1.B.3.2 | B34: Crediti | C34: NO | D34: Totale | F34: 65 | I34: =SUM(I35,I38,I41,I44) -> 0 | L34: =SUM(L35,L38,L41,L44) -> 0 | O34: =SUM(O35,O38,O41,O44) -> 0 | R34: =SUM(R35,R38,R41,R44) -> 0 | U34: =SUM(U35,U38,U41,U44) -> 0 | Y34: 0 | Z34: 0 | AA34: 0 | AB34: 0 | AC34: 0 | AE34: 2)
A35: 1.B.3.2.a | B35: Crediti verso imprese controllate | C35: NO | D35: Dett. | F35: 66 | G35: 60 | I35: =SUMIF(dati_sp!$H$2:$H$65536,s_bil_std!$A35,dati_sp!$C$2:$C$65536) -> 0 | L35: =SUMIF(dati_sp!$H$2:$H$65536,s_bil_std!$A35,dati_sp!$D$2:$D$65536) -> 0 | O35: =SUMIF(dati_sp!$H$2:$H$65536,s_bil_std!$A35,dati_sp!$E$2:$E$65536) -> 0 | R35: =SUMIF(dati_sp!$H$2:$H$65536,s_bil_std!$A35,dati_sp!$F$2:$F$65536) -> 0 | U35: =SUMIF(dati_sp!$H$2:$H$65536,s_bil_std!$A35,dati_sp!$G$2:$G$65536) -> 0 | Y35: =IF($AA$2="1",I35,J35) -> 0 | Z35: =IF($AA$2="1",L35,M35) -> 0 | AA35: =IF($AA$2="1",O35,P35) -> 0 | AB35: =IF($AA$2="1",R35,S35) -> 0 | AC35: =IF($AA$2="1",U35,V35) -> 0 | AE35: a)
A36: 1.B.3.2.a.1 | B36: Entro l'esercizio successivo | C36: NO | D36: Sc. Temp. | F36: 51 | G36: S10 | I36: =s_sep_ind!C5 -> 0 | L36: =s_sep_ind!G5 -> 0 | O36: =s_sep_ind!K5 -> 0 | R36: =s_sep_ind!O5 -> 0 | U36: =s_sep_ind!S5 -> 0 | Y36: 0 | Z36: 0 | AA36: 0 | AB36: 0 | AC36: 0
A37: 1.B.3.2.a.2 | B37: Oltre l'esercizio successivo | C37: NO | D37: Sc. Temp. | I37: =s_sep_ind!C6+s_sep_ind!D6 -> 0 | L37: =s_sep_ind!G6+s_sep_ind!H6 -> 0 | O37: =s_sep_ind!K6+s_sep_ind!L6 -> 0 | R37: =s_sep_ind!O6+s_sep_ind!P6 -> 0 | U37: =s_sep_ind!S6+s_sep_ind!T6 -> 0 | Y37: 0 | Z37: 0 | AA37: 0 | AB37: 0 | AC37: 0
A38: 1.B.3.2.b | B38: Crediti verso imprese collegate | C38: NO | D38: Dett. | F38: 68 | G38: 60 | I38: =SUMIF(dati_sp!$H$2:$H$65536,s_bil_std!$A38,dati_sp!$C$2:$C$65536) -> 0 | L38: =SUMIF(dati_sp!$H$2:$H$65536,s_bil_std!$A38,dati_sp!$D$2:$D$65536) -> 0 | O38: =SUMIF(dati_sp!$H$2:$H$65536,s_bil_std!$A38,dati_sp!$E$2:$E$65536) -> 0 | R38: =SUMIF(dati_sp!$H$2:$H$65536,s_bil_std!$A38,dati_sp!$F$2:$F$65536) -> 0 | U38: =SUMIF(dati_sp!$H$2:$H$65536,s_bil_std!$A38,dati_sp!$G$2:$G$65536) -> 0 | Y38: 0 | Z38: 0 | AA38: 0 | AB38: 0 | AC38: 0 | AE38: b)
A39: 1.B.3.2.b.1 | B39: Entro l'esercizio successivo | C39: NO | D39: Sc. Temp. | F39: 52 | G39: S10 | I39: =s_sep_ind!C8 -> 0 | L39: =s_sep_ind!G8 -> 0 | O39: =s_sep_ind!K8 -> 0 | R39: =s_sep_ind!O8 -> 0 | U39: =s_sep_ind!S8 -> 0 | Y39: 0 | Z39: 0 | AA39: 0 | AB39: 0 | AC39: 0
A40: 1.B.3.2.b.2 | B40: Oltre l'esercizio successivo | C40: NO | D40: Sc. Temp. | I40: =s_sep_ind!C9+s_sep_ind!D9 -> 0 | L40: =s_sep_ind!G9+s_sep_ind!H9 -> 0 | O40: =s_sep_ind!K9+s_sep_ind!L9 -> 0 | R40: =s_sep_ind!O9+s_sep_ind!P9 -> 0 | U40: =s_sep_ind!S9+s_sep_ind!T9 -> 0 | Y40: 0 | Z40: 0 | AA40: 0 | AB40: 0 | AC40: 0
A41: 1.B.3.2.c | B41: Crediti verso imprese controllanti | C41: NO | D41: Dett. | F41: 69 | G41: 60 | I41: =SUMIF(dati_sp!$H$2:$H$65536,s_bil_std!$A41,dati_sp!$C$2:$C$65536) -> 0 | L41: =SUMIF(dati_sp!$H$2:$H$65536,s_bil_std!$A41,dati_sp!$D$2:$D$65536) -> 0 | O41: =SUMIF(dati_sp!$H$2:$H$65536,s_bil_std!$A41,dati_sp!$E$2:$E$65536) -> 0 | R41: =SUMIF(dati_sp!$H$2:$H$65536,s_bil_std!$A41,dati_sp!$F$2:$F$65536) -> 0 | U41: =SUMIF(dati_sp!$H$2:$H$65536,s_bil_std!$A41,dati_sp!$G$2:$G$65536) -> 0 | Y41: 0 | Z41: 0 | AA41: 0 | AB41: 0 | AC41: 0 | AE41: c)
A42: 1.B.3.2.c.1 | B42: Entro l'esercizio successivo | C42: NO | D42: Sc. Temp. | F42: 53 | G42: S10 | I42: =s_sep_ind!C11 -> 0 | L42: =s_sep_ind!G11 -> 0 | O42: =s_sep_ind!K11 -> 0 | R42: =s_sep_ind!O11 -> 0 | U42: =s_sep_ind!S11 -> 0 | Y42: 0 | Z42: 0 | AA42: 0 | AB42: 0 | AC42: 0
A43: 1.B.3.2.c.2 | B43: Oltre l'esercizio successivo | C43: NO | D43: Sc. Temp. | I43: =s_sep_ind!C12+s_sep_ind!D12 -> 0 | L43: =s_sep_ind!G12+s_sep_ind!H12 -> 0 | O43: =s_sep_ind!K12+s_sep_ind!L12 -> 0 | R43: =s_sep_ind!O12+s_sep_ind!P12 -> 0 | U43: =s_sep_ind!S12+s_sep_ind!T12 -> 0 | Y43: 0 | Z43: 0 | AA43: 0 | AB43: 0 | AC43: 0
A44: 1.B.3.2.d | B44: Crediti verso altri | C44: NO | D44: Dett. | F44: 71 | I44: =SUMIF(dati_sp!$H$2:$H$65536,s_bil_std!$A44,dati_sp!$C$2:$C$65536) -> 0 | L44: =SUMIF(dati_sp!$H$2:$H$65536,s_bil_std!$A44,dati_sp!$D$2:$D$65536) -> 0 | O44: =SUMIF(dati_sp!$H$2:$H$65536,s_bil_std!$A44,dati_sp!$E$2:$E$65536) -> 0 | R44: =SUMIF(dati_sp!$H$2:$H$65536,s_bil_std!$A44,dati_sp!$F$2:$F$65536) -> 0 | U44: =SUMIF(dati_sp!$H$2:$H$65536,s_bil_std!$A44,dati_sp!$G$2:$G$65536) -> 0 | Y44: 0 | Z44: 0 | AA44: 0 | AB44: 0 | AC44: 0 | AE44: d)
A45: 1.B.3.2.d.1 | B45: Entro l'esercizio successivo | C45: NO | D45: Sc. Temp. | F45: 54 | G45: S10 | I45: =s_sep_ind!C14 -> 0 | L45: =s_sep_ind!G14 -> 0 | O45: =s_sep_ind!K14 -> 0 | R45: =s_sep_ind!O14 -> 0 | U45: =s_sep_ind!S14 -> 0 | Y45: 0 | Z45: 0 | AA45: 0 | AB45: 0 | AC45: 0
A46: 1.B.3.2.d.2 | B46: Oltre l'esercizio successivo | C46: NO | D46: Sc. Temp. | I46: =s_sep_ind!C15+s_sep_ind!D15 -> 0 | L46: =s_sep_ind!G15+s_sep_ind!H15 -> 0 | O46: =s_sep_ind!K15+s_sep_ind!L15 -> 0 | R46: =s_sep_ind!O15+s_sep_ind!P15 -> 0 | U46: =s_sep_ind!S15+s_sep_ind!T15 -> 0 | Y46: 0 | Z46: 0 | AA46: 0 | AB46: 0 | AC46: 0
A47: 1.B.3.3 | B47: Altri titoli | C47: NO | D47: Dett. | F47: 72 | I47: =SUMIF(dati_sp!$H$2:$H$65536,s_bil_std!$A47,dati_sp!$C$2:$C$65536) -> 0 | L47: =SUMIF(dati_sp!$H$2:$H$65536,s_bil_std!$A47,dati_sp!$D$2:$D$65536) -> 0 | O47: =SUMIF(dati_sp!$H$2:$H$65536,s_bil_std!$A47,dati_sp!$E$2:$E$65536) -> 0 | R47: =SUMIF(dati_sp!$H$2:$H$65536,s_bil_std!$A47,dati_sp!$F$2:$F$65536) -> 0 | U47: =SUMIF(dati_sp!$H$2:$H$65536,s_bil_std!$A47,dati_sp!$G$2:$G$65536) -> 0 | Y47: 0 | Z47: 0 | AA47: 0 | AB47: 0 | AC47: 0 | AE47: 3)
A48: 1.B.3.4 | B48: Azioni proprie | C48: NO | D48: Dett. | F48: 260 | G48: 260 | I48: =SUMIF(dati_sp!$H$2:$H$65536,s_bil_std!$A48,dati_sp!$C$2:$C$65536) -> 0 | L48: =SUMIF(dati_sp!$H$2:$H$65536,s_bil_std!$A48,dati_sp!$D$2:$D$65536) -> 0 | O48: =SUMIF(dati_sp!$H$2:$H$65536,s_bil_std!$A48,dati_sp!$E$2:$E$65536) -> 0 | R48: =SUMIF(dati_sp!$H$2:$H$65536,s_bil_std!$A48,dati_sp!$F$2:$F$65536) -> 0 | U48: =SUMIF(dati_sp!$H$2:$H$65536,s_bil_std!$A48,dati_sp!$G$2:$G$65536) -> 0 | Y48: 0 | Z48: 0 | AA48: 0 | AB48: 0 | AC48: 0 | AE48: 4)
A49: 1.C | B49: ATTIVO CIRCOLANTE | C49: NO | D49: Totale | E49: Totale | F49: 70 | G49: 70 | I49: =SUM(I50,I56,I80,I87) -> 249617 | J49: =SUM(J50,J56,J80,J87) -> 0 | L49: =SUM(L50,L56,L80,L87) -> 184958 | M49: =SUM(M50,M56,M80,M87) -> 0 | O49: =SUM(O50,O56,O80,O87) -> 0 | P49: =SUM(P50,P56,P80,P87) -> 0 | R49: =SUM(R50,R56,R80,R87) -> 0 | S49: =SUM(S50,S56,S80,S87) -> 0 | U49: =SUM(U50,U56,U80,U87) -> 0 | V49: =SUM(V50,V56,V80,V87) -> 0 | Y49: 0 | Z49: 0 | AA49: 0 | AB49: 0 | AC49: 0 | AE49: C)
A50: 1.C.1 | B50: RIMANENZE | C50: NO | D50: Totale | E50: Dett. | F50: 80 | G50: 80 | I50: =SUM(I51:I55) -> 172855 | J50: =SUMIF(dati_sp!$H$2:$H$65536,s_bil_std!$A50,dati_sp!$C$2:$C$65536) -> 0 | L50: =SUM(L51:L55) -> 172855 | M50: =SUMIF(dati_sp!$H$2:$H$65536,s_bil_std!$A50,dati_sp!$D$2:$D$65536) -> 0 | O50: =SUM(O51:O55) -> 0 | P50: =SUMIF(dati_sp!$H$2:$H$65536,s_bil_std!$A50,dati_sp!$E$2:$E$65536) -> 0 | R50: =SUM(R51:R55) -> 0 | S50: =SUMIF(dati_sp!$H$2:$H$65536,s_bil_std!$A50,dati_sp!$F$2:$F$65536) -> 0 | U50: =SUM(U51:U55) -> 0 | V50: =SUMIF(dati_sp!$H$2:$H$65536,s_bil_std!$A50,dati_sp!$G$2:$G$65536) -> 0 | Y50: 0 | Z50: 0 | AA50: 0 | AB50: 0 | AC50: 0 | AE50: I -
A51: 1.C.1.1 | B51: Materie prime, sussidiarie e di consumo | C51: NO | D51: Dett. | F51: 81 | I51: =SUMIF(dati_sp!$H$2:$H$65536,s_bil_std!$A51,dati_sp!$C$2:$C$65536) -> 0 | L51: =SUMIF(dati_sp!$H$2:$H$65536,s_bil_std!$A51,dati_sp!$D$2:$D$65536) -> 0 | O51: =SUMIF(dati_sp!$H$2:$H$65536,s_bil_std!$A51,dati_sp!$E$2:$E$65536) -> 0 | R51: =SUMIF(dati_sp!$H$2:$H$65536,s_bil_std!$A51,dati_sp!$F$2:$F$65536) -> 0 | U51: =SUMIF(dati_sp!$H$2:$H$65536,s_bil_std!$A51,dati_sp!$G$2:$G$65536) -> 0 | Y51: 0 | Z51: 0 | AA51: 0 | AB51: 0 | AC51: 0 | AE51: 1)
A52: 1.C.1.2 | B52: Prodotti in corso di lavorazione e semilavorati | C52: NO | D52: Dett. | F52: 83 | G52: 82 | I52: =SUMIF(dati_sp!$H$2:$H$65536,s_bil_std!$A52,dati_sp!$C$2:$C$65536) -> 172855 | L52: =SUMIF(dati_sp!$H$2:$H$65536,s_bil_std!$A52,dati_sp!$D$2:$D$65536) -> 172855 | O52: =SUMIF(dati_sp!$H$2:$H$65536,s_bil_std!$A52,dati_sp!$E$2:$E$65536) -> 0 | R52: =SUMIF(dati_sp!$H$2:$H$65536,s_bil_std!$A52,dati_sp!$F$2:$F$65536) -> 0 | U52: =SUMIF(dati_sp!$H$2:$H$65536,s_bil_std!$A52,dati_sp!$G$2:$G$65536) -> 0 | Y52: 0 | Z52: 0 | AA52: 0 | AB52: 0 | AC52: 0 | AE52: 2)
A53: 1.C.1.3 | B53: Lavori in corso su ordinazione | C53: NO | D53: Dett. | F53: 84 | I53: =SUMIF(dati_sp!$H$2:$H$65536,s_bil_std!$A53,dati_sp!$C$2:$C$65536) -> 0 | L53: =SUMIF(dati_sp!$H$2:$H$65536,s_bil_std!$A53,dati_sp!$D$2:$D$65536) -> 0 | O53: =SUMIF(dati_sp!$H$2:$H$65536,s_bil_std!$A53,dati_sp!$E$2:$E$65536) -> 0 | R53: =SUMIF(dati_sp!$H$2:$H$65536,s_bil_std!$A53,dati_sp!$F$2:$F$65536) -> 0 | U53: =SUMIF(dati_sp!$H$2:$H$65536,s_bil_std!$A53,dati_sp!$G$2:$G$65536) -> 0 | Y53: 0 | Z53: 0 | AA53: 0 | AB53: 0 | AC53: 0 | AE53: 3)
A54: 1.C.1.4 | B54: Prodotti finiti e merci | C54: NO | D54: Dett. | F54: 85 | G54: 82 | I54: =SUMIF(dati_sp!$H$2:$H$65536,s_bil_std!$A54,dati_sp!$C$2:$C$65536) -> 0 | L54: =SUMIF(dati_sp!$H$2:$H$65536,s_bil_std!$A54,dati_sp!$D$2:$D$65536) -> 0 | O54: =SUMIF(dati_sp!$H$2:$H$65536,s_bil_std!$A54,dati_sp!$E$2:$E$65536) -> 0 | R54: =SUMIF(dati_sp!$H$2:$H$65536,s_bil_std!$A54,dati_sp!$F$2:$F$65536) -> 0 | U54: =SUMIF(dati_sp!$H$2:$H$65536,s_bil_std!$A54,dati_sp!$G$2:$G$65536) -> 0 | Y54: 0 | Z54: 0 | AA54: 0 | AB54: 0 | AC54: 0 | AE54: 4)
A55: 1.C.1.5 | B55: Acconti | C55: NO | D55: Dett. | F55: 86 | I55: =SUMIF(dati_sp!$H$2:$H$65536,s_bil_std!$A55,dati_sp!$C$2:$C$65536) -> 0 | L55: =SUMIF(dati_sp!$H$2:$H$65536,s_bil_std!$A55,dati_sp!$D$2:$D$65536) -> 0 | O55: =SUMIF(dati_sp!$H$2:$H$65536,s_bil_std!$A55,dati_sp!$E$2:$E$65536) -> 0 | R55: =SUMIF(dati_sp!$H$2:$H$65536,s_bil_std!$A55,dati_sp!$F$2:$F$65536) -> 0 | U55: =SUMIF(dati_sp!$H$2:$H$65536,s_bil_std!$A55,dati_sp!$G$2:$G$65536) -> 0 | Y55: 0 | Z55: 0 | AA55: 0 | AB55: 0 | AC55: 0 | AE55: 5)
A56: 1.C.2 | B56: CREDITI CHE NON COSTITUISCONO IMMOBILIZZAZIONI | C56: NO | D56: Totale | E56: Dett. | F56: 90 | G56: 90 | I56: =SUM(I59,I62,I65,I68,I71,I74,I77) -> 76581 | J56: =SUMIF(dati_sp!$H$2:$H$65536,s_bil_std!$A56,dati_sp!$C$2:$C$65536) -> 0 | L56: =SUM(L59,L62,L65,L68,L71,L74,L77) -> 4581 | M56: =SUMIF(dati_sp!$H$2:$H$65536,s_bil_std!$A56,dati_sp!$D$2:$D$65536) -> 0 | O56: =SUM(O59,O62,O65,O68,O71,O74,O77) -> 0 | P56: =SUMIF(dati_sp!$H$2:$H$65536,s_bil_std!$A56,dati_sp!$E$2:$E$65536) -> 0 | R56: =SUM(R59,R62,R65,R68,R71,R74,R77) -> 0 | S56: =SUMIF(dati_sp!$H$2:$H$65536,s_bil_std!$A56,dati_sp!$F$2:$F$65536) -> 0 | U56: =SUM(U59,U62,U65,U68,U71,U74,U77) -> 0 | V56: =SUMIF(dati_sp!$H$2:$H$65536,s_bil_std!$A56,dati_sp!$G$2:$G$65536) -> 0 | Y56: 0 | Z56: 0 | AA56: 0 | AB56: 0 | AC56: 0 | AE56: II -
A57: 1.C.2.a | B57: Entro l'esercizio successivo | C57: NO | E57: Sc. Temp. | F57: S200 | G57: 100 | I57: =SUM(I60,I63,I66,I69,I72,I75,I78) -> 76581 | J57: =s_sep_ind!E19+s_sep_ind!F19 -> 0 | L57: =SUM(L60,L63,L66,L69,L72,L75,L78) -> 4581 | M57: =s_sep_ind!I19+s_sep_ind!J19 -> 0 | O57: =SUM(O60,O63,O66,O69,O72,O75,O78) -> 0 | P57: =s_sep_ind!M19+s_sep_ind!N19 -> 0 | R57: =SUM(R60,R63,R66,R69,R72,R75,R78) -> 0 | S57: =s_sep_ind!Q19+s_sep_ind!R19 -> 0 | U57: =SUM(U60,U63,U66,U69,U72,U75,U78) -> 0 | V57: =s_sep_ind!U19+s_sep_ind!V19 -> 0 | Y57: 0 | Z57: 0 | AA57: 0 | AB57: 0 | AC57: 0
A58: 1.C.2.b | B58: Oltre l'esercizio successivo | C58: NO | E58: Sc. Temp. | F58: 99 | G58: S20 | I58: =SUM(I61,I64,I67,I70,I73,I76,I79) -> 0 | J58: =s_sep_ind!E20 -> 0 | L58: =SUM(L61,L64,L67,L70,L73,L76,L79) -> 0 | M58: =s_sep_ind!I20 -> 0 | O58: =SUM(O61,O64,O67,O70,O73,O76,O79) -> 0 | P58: =s_sep_ind!M20 -> 0 | R58: =SUM(R61,R64,R67,R70,R73,R76,R79) -> 0 | S58: =s_sep_ind!Q20 -> 0 | U58: =SUM(U61,U64,U67,U70,U73,U76,U79) -> 0 | V58: =s_sep_ind!U20 -> 0 | Y58: 0 | Z58: 0 | AA58: 0 | AB58: 0 | AC58: 0
A59: 1.C.2.1 | B59: Crediti verso clienti | C59: NO | D59: Dett. | F59: 102 | G59: 102 | I59: =SUMIF(dati_sp!$H$2:$H$65536,s_bil_std!$A59,dati_sp!$C$2:$C$65536) -> 72000 | L59: =SUMIF(dati_sp!$H$2:$H$65536,s_bil_std!$A59,dati_sp!$D$2:$D$65536) -> 0 | O59: =SUMIF(dati_sp!$H$2:$H$65536,s_bil_std!$A59,dati_sp!$E$2:$E$65536) -> 0 | R59: =SUMIF(dati_sp!$H$2:$H$65536,s_bil_std!$A59,dati_sp!$F$2:$F$65536) -> 0 | U59: =SUMIF(dati_sp!$H$2:$H$65536,s_bil_std!$A59,dati_sp!$G$2:$G$65536) -> 0 | Y59: 0 | Z59: 0 | AA59: 0 | AB59: 0 | AC59: 0 | AE59: 1)
A60: 1.C.2.1.1 | B60: Entro l'esercizio successivo | C60: NO | D60: Sc. Temp. | I60: =s_sep_ind!C22+s_sep_ind!D22 -> 72000 | L60: =s_sep_ind!G22+s_sep_ind!H22 -> 0 | O60: =s_sep_ind!K22+s_sep_ind!L22 -> 0 | R60: =s_sep_ind!O22+s_sep_ind!P22 -> 0 | U60: =s_sep_ind!S22+s_sep_ind!T22 -> 0 | Y60: 0 | Z60: 0 | AA60: 0 | AB60: 0 | AC60: 0
A61: 1.C.2.1.2 | B61: Oltre l'esercizio successivo | C61: NO | D61: Sc. Temp. | F61: 103 | I61: =s_sep_ind!C23 -> 0 | L61: =s_sep_ind!G23 -> 0 | O61: =s_sep_ind!K23 -> 0 | R61: =s_sep_ind!O23 -> 0 | U61: =s_sep_ind!S23 -> 0 | Y61: 0 | Z61: 0 | AA61: 0 | AB61: 0 | AC61: 0
A62: 1.C.2.2 | B62: Crediti verso imprese controllate | C62: NO | D62: Dett. | F62: 91 | I62: =SUMIF(dati_sp!$H$2:$H$65536,s_bil_std!$A62,dati_sp!$C$2:$C$65536) -> 0 | L62: =SUMIF(dati_sp!$H$2:$H$65536,s_bil_std!$A62,dati_sp!$D$2:$D$65536) -> 0 | O62: =SUMIF(dati_sp!$H$2:$H$65536,s_bil_std!$A62,dati_sp!$E$2:$E$65536) -> 0 | R62: =SUMIF(dati_sp!$H$2:$H$65536,s_bil_std!$A62,dati_sp!$F$2:$F$65536) -> 0 | U62: =SUMIF(dati_sp!$H$2:$H$65536,s_bil_std!$A62,dati_sp!$G$2:$G$65536) -> 0 | Y62: 0 | Z62: 0 | AA62: 0 | AB62: 0 | AC62: 0 | AE62: 2)
A63: 1.C.2.2.1 | B63: Entro l'esercizio successivo | C63: NO | D63: Sc. Temp. | I63: =s_sep_ind!C25+s_sep_ind!D25 -> 0 | L63: =s_sep_ind!G25+s_sep_ind!H25 -> 0 | O63: =s_sep_ind!K25+s_sep_ind!L25 -> 0 | R63: =s_sep_ind!O25+s_sep_ind!P25 -> 0 | U63: =s_sep_ind!S25+s_sep_ind!T25 -> 0 | Y63: 0 | Z63: 0 | AA63: 0 | AB63: 0 | AC63: 0
A64: 1.C.2.2.2 | B64: Oltre l'esercizio successivo | C64: NO | D64: Sc. Temp. | F64: 92 | I64: =s_sep_ind!C26 -> 0 | L64: =s_sep_ind!G26 -> 0 | O64: =s_sep_ind!K26 -> 0 | R64: =s_sep_ind!O26 -> 0 | U64: =s_sep_ind!S26 -> 0 | Y64: 0 | Z64: 0 | AA64: 0 | AB64: 0 | AC64: 0
A65: 1.C.2.3 | B65: Crediti verso imprese collegate | C65: NO | D65: Dett. | F65: 93 | I65: =SUMIF(dati_sp!$H$2:$H$65536,s_bil_std!$A65,dati_sp!$C$2:$C$65536) -> 0 | L65: =SUMIF(dati_sp!$H$2:$H$65536,s_bil_std!$A65,dati_sp!$D$2:$D$65536) -> 0 | O65: =SUMIF(dati_sp!$H$2:$H$65536,s_bil_std!$A65,dati_sp!$E$2:$E$65536) -> 0 | R65: =SUMIF(dati_sp!$H$2:$H$65536,s_bil_std!$A65,dati_sp!$F$2:$F$65536) -> 0 | U65: =SUMIF(dati_sp!$H$2:$H$65536,s_bil_std!$A65,dati_sp!$G$2:$G$65536) -> 0 | Y65: 0 | Z65: 0 | AA65: 0 | AB65: 0 | AC65: 0 | AE65: 3)
A66: 1.C.2.3.1 | B66: Entro l'esercizio successivo | C66: NO | D66: Sc. Temp. | I66: =s_sep_ind!C28+s_sep_ind!D28 -> 0 | L66: =s_sep_ind!G28+s_sep_ind!H28 -> 0 | O66: =s_sep_ind!K28+s_sep_ind!L28 -> 0 | R66: =s_sep_ind!O28+s_sep_ind!P28 -> 0 | U66: =s_sep_ind!S28+s_sep_ind!T28 -> 0 | Y66: 0 | Z66: 0 | AA66: 0 | AB66: 0 | AC66: 0
A67: 1.C.2.3.2 | B67: Oltre l'esercizio successivo | C67: NO | D67: Sc. Temp. | F67: 94 | I67: =s_sep_ind!C29 -> 0 | L67: =s_sep_ind!G29 -> 0 | O67: =s_sep_ind!K29 -> 0 | R67: =s_sep_ind!O29 -> 0 | U67: =s_sep_ind!S29 -> 0 | Y67: =IF($AA$2="1",I67,J67) -> 0 | Z67: =IF($AA$2="1",L67,M67) -> 0 | AA67: =IF($AA$2="1",O67,P67) -> 0 | AB67: =IF($AA$2="1",R67,S67) -> 0 | AC67: =IF($AA$2="1",U67,V67) -> 0
A68: 1.C.2.4 | B68: Crediti verso imprese controllanti | C68: NO | D68: Dett. | F68: 95 | I68: =SUMIF(dati_sp!$H$2:$H$65536,s_bil_std!$A68,dati_sp!$C$2:$C$65536) -> 0 | L68: =SUMIF(dati_sp!$H$2:$H$65536,s_bil_std!$A68,dati_sp!$D$2:$D$65536) -> 0 | O68: =SUMIF(dati_sp!$H$2:$H$65536,s_bil_std!$A68,dati_sp!$E$2:$E$65536) -> 0 | R68: =SUMIF(dati_sp!$H$2:$H$65536,s_bil_std!$A68,dati_sp!$F$2:$F$65536) -> 0 | U68: =SUMIF(dati_sp!$H$2:$H$65536,s_bil_std!$A68,dati_sp!$G$2:$G$65536) -> 0 | Y68: 0 | Z68: 0 | AA68: 0 | AB68: 0 | AC68: 0 | AE68: 4)
A69: 1.C.2.4.1 | B69: Entro l'esercizio successivo | C69: NO | D69: Sc. Temp. | I69: =s_sep_ind!C31+s_sep_ind!D31 -> 0 | L69: =s_sep_ind!G31+s_sep_ind!H31 -> 0 | O69: =s_sep_ind!K31+s_sep_ind!L31 -> 0 | R69: =s_sep_ind!O31+s_sep_ind!P31 -> 0 | U69: =s_sep_ind!S31+s_sep_ind!T31 -> 0 | Y69: 0 | Z69: 0 | AA69: 0 | AB69: 0 | AC69: 0
A70: 1.C.2.4.2 | B70: Oltre l'esercizio successivo | C70: NO | D70: Sc. Temp. | F70: 96 | I70: =s_sep_ind!C32 -> 0 | L70: =s_sep_ind!G32 -> 0 | O70: =s_sep_ind!K32 -> 0 | R70: =s_sep_ind!O32 -> 0 | U70: =s_sep_ind!S32 -> 0 | Y70: 0 | Z70: 0 | AA70: 0 | AB70: 0 | AC70: 0
A71: 1.C.2.4a | B71: Crediti tributari | C71: NO | D71: Dett. | F71: 11200 | I71: =SUMIF(dati_sp!$H$2:$H$65536,s_bil_std!$A71,dati_sp!$C$2:$C$65536) -> 783 | L71: =SUMIF(dati_sp!$H$2:$H$65536,s_bil_std!$A71,dati_sp!$D$2:$D$65536) -> 783 | O71: =SUMIF(dati_sp!$H$2:$H$65536,s_bil_std!$A71,dati_sp!$E$2:$E$65536) -> 0 | R71: =SUMIF(dati_sp!$H$2:$H$65536,s_bil_std!$A71,dati_sp!$F$2:$F$65536) -> 0 | U71: =SUMIF(dati_sp!$H$2:$H$65536,s_bil_std!$A71,dati_sp!$G$2:$G$65536) -> 0 | Y71: 0 | Z71: 0 | AA71: 0 | AB71: 0 | AC71: 0 | AE71: 4-bis)
A72: 1.C.2.4a.1 | B72: Entro l'esercizio successivo | C72: NO | D72: Sc. Temp. | I72: =s_sep_ind!C34+s_sep_ind!D34 -> 783 | L72: =s_sep_ind!G34+s_sep_ind!H34 -> 783 | O72: =s_sep_ind!K34+s_sep_ind!L34 -> 0 | R72: =s_sep_ind!O34+s_sep_ind!P34 -> 0 | U72: =s_sep_ind!S34+s_sep_ind!T34 -> 0 | Y72: 0 | Z72: 0 | AA72: 0 | AB72: 0 | AC72: 0
A73: 1.C.2.4a.2 | B73: Oltre l'esercizio successivo | C73: NO | D73: Sc. Temp. | F73: 11250 | I73: =s_sep_ind!C35 -> 0 | L73: =s_sep_ind!G35 -> 0 | O73: =s_sep_ind!K35 -> 0 | R73: =s_sep_ind!O35 -> 0 | U73: =s_sep_ind!S35 -> 0 | Y73: 0 | Z73: 0 | AA73: 0 | AB73: 0 | AC73: 0
A74: 1.C.2.4b | B74: Imposte anticipate | C74: NO | D74: Dett. | F74: 11300 | I74: =SUMIF(dati_sp!$H$2:$H$65536,s_bil_std!$A74,dati_sp!$C$2:$C$65536) -> 0 | L74: =SUMIF(dati_sp!$H$2:$H$65536,s_bil_std!$A74,dati_sp!$D$2:$D$65536) -> 0 | O74: =SUMIF(dati_sp!$H$2:$H$65536,s_bil_std!$A74,dati_sp!$E$2:$E$65536) -> 0 | R74: =SUMIF(dati_sp!$H$2:$H$65536,s_bil_std!$A74,dati_sp!$F$2:$F$65536) -> 0 | U74: =SUMIF(dati_sp!$H$2:$H$65536,s_bil_std!$A74,dati_sp!$G$2:$G$65536) -> 0 | Y74: 0 | Z74: 0 | AA74: 0 | AB74: 0 | AC74: 0 | AE74: 4-ter)
A75: 1.C.2.4b.1 | B75: Entro l'esercizio successivo | C75: NO | D75: Sc. Temp. | I75: =s_sep_ind!C37+s_sep_ind!D37 -> 0 | L75: =s_sep_ind!G37+s_sep_ind!H37 -> 0 | O75: =s_sep_ind!K37+s_sep_ind!L37 -> 0 | R75: =s_sep_ind!O37+s_sep_ind!P37 -> 0 | U75: =s_sep_ind!S37+s_sep_ind!T37 -> 0 | Y75: 0 | Z75: 0 | AA75: 0 | AB75: 0 | AC75: 0
A76: 1.C.2.4b.2 | B76: Oltre l'esercizio successivo | C76: NO | D76: Sc. Temp. | F76: 97 | I76: =s_sep_ind!C38 -> 0 | L76: =s_sep_ind!G38 -> 0 | O76: =s_sep_ind!K38 -> 0 | R76: =s_sep_ind!O38 -> 0 | U76: =s_sep_ind!S38 -> 0 | Y76: 0 | Z76: 0 | AA76: 0 | AB76: 0 | AC76: 0
A77: 1.C.2.5 | B77: Crediti verso altri | C77: NO | D77: Dett. | F77: 11350 | I77: =SUMIF(dati_sp!$H$2:$H$65536,s_bil_std!$A77,dati_sp!$C$2:$C$65536) -> 3798 | L77: =SUMIF(dati_sp!$H$2:$H$65536,s_bil_std!$A77,dati_sp!$D$2:$D$65536) -> 3798 | O77: =SUMIF(dati_sp!$H$2:$H$65536,s_bil_std!$A77,dati_sp!$E$2:$E$65536) -> 0 | R77: =SUMIF(dati_sp!$H$2:$H$65536,s_bil_std!$A77,dati_sp!$F$2:$F$65536) -> 0 | U77: =SUMIF(dati_sp!$H$2:$H$65536,s_bil_std!$A77,dati_sp!$G$2:$G$65536) -> 0 | Y77: 0 | Z77: 0 | AA77: 0 | AB77: 0 | AC77: 0 | AE77: 5)
A78: 1.C.2.5.1 | B78: Entro l'esercizio successivo | C78: NO | D78: Sc. Temp. | I78: =s_sep_ind!C40+s_sep_ind!D40 -> 3798 | L78: =s_sep_ind!G40+s_sep_ind!H40 -> 3798 | O78: =s_sep_ind!K40+s_sep_ind!L40 -> 0 | R78: =s_sep_ind!O40+s_sep_ind!P40 -> 0 | U78: =s_sep_ind!S40+s_sep_ind!T40 -> 0 | Y78: 0 | Z78: 0 | AA78: 0 | AB78: 0 | AC78: 0
A79: 1.C.2.5.2 | B79: Oltre l'esercizio successivo | C79: NO | D79: Sc. Temp. | F79: 98 | I79: =s_sep_ind!C41 -> 0 | L79: =s_sep_ind!G41 -> 0 | O79: =s_sep_ind!K41 -> 0 | R79: =s_sep_ind!O41 -> 0 | U79: =s_sep_ind!S41 -> 0 | Y79: 0 | Z79: 0 | AA79: 0 | AB79: 0 | AC79: 0
A80: 1.C.3 | B80: ATTIVITA' FINANZIARIE CHE NON COSTITUISCONO IMMOBILIZZAZIONE | C80: NO | D80: Totale | E80: Dett. | F80: 110 | G80: 110 | I80: =SUM(I81:I86) -> 0 | J80: =SUMIF(dati_sp!$H$2:$H$65536,s_bil_std!$A80,dati_sp!$C$2:$C$65536) -> 0 | L80: =SUM(L81:L86) -> 0 | M80: =SUMIF(dati_sp!$H$2:$H$65536,s_bil_std!$A80,dati_sp!$D$2:$D$65536) -> 0 | O80: =SUM(O81:O86) -> 0 | P80: =SUMIF(dati_sp!$H$2:$H$65536,s_bil_std!$A80,dati_sp!$E$2:$E$65536) -> 0 | R80: =SUM(R81:R86) -> 0 | S80: =SUMIF(dati_sp!$H$2:$H$65536,s_bil_std!$A80,dati_sp!$F$2:$F$65536) -> 0 | U80: =SUM(U81:U86) -> 0 | V80: =SUMIF(dati_sp!$H$2:$H$65536,s_bil_std!$A80,dati_sp!$G$2:$G$65536) -> 0 | Y80: 0 | Z80: 0 | AA80: 0 | AB80: 0 | AC80: 0 | AE80: III -
A81: 1.C.3.1 | B81: Partecipazioni in imprese controllate | C81: NO | D81: Dett. | F81: 111 | I81: =SUMIF(dati_sp!$H$2:$H$65536,s_bil_std!$A81,dati_sp!$C$2:$C$65536) -> 0 | L81: =SUMIF(dati_sp!$H$2:$H$65536,s_bil_std!$A81,dati_sp!$D$2:$D$65536) -> 0 | O81: =SUMIF(dati_sp!$H$2:$H$65536,s_bil_std!$A81,dati_sp!$E$2:$E$65536) -> 0 | R81: =SUMIF(dati_sp!$H$2:$H$65536,s_bil_std!$A81,dati_sp!$F$2:$F$65536) -> 0 | U81: =SUMIF(dati_sp!$H$2:$H$65536,s_bil_std!$A81,dati_sp!$G$2:$G$65536) -> 0 | Y81: 0 | Z81: 0 | AA81: 0 | AB81: 0 | AC81: 0 | AE81: 1)
A82: 1.C.3.2 | B82: Partecipazioni in imprese collegate | C82: NO | D82: Dett. | F82: 112 | I82: =SUMIF(dati_sp!$H$2:$H$65536,s_bil_std!$A82,dati_sp!$C$2:$C$65536) -> 0 | L82: =SUMIF(dati_sp!$H$2:$H$65536,s_bil_std!$A82,dati_sp!$D$2:$D$65536) -> 0 | O82: =SUMIF(dati_sp!$H$2:$H$65536,s_bil_std!$A82,dati_sp!$E$2:$E$65536) -> 0 | R82: =SUMIF(dati_sp!$H$2:$H$65536,s_bil_std!$A82,dati_sp!$F$2:$F$65536) -> 0 | U82: =SUMIF(dati_sp!$H$2:$H$65536,s_bil_std!$A82,dati_sp!$G$2:$G$65536) -> 0 | Y82: 0 | Z82: 0 | AA82: 0 | AB82: 0 | AC82: 0 | AE82: 2)
A83: 1.C.3.3 | B83: Partecipazioni in imprese controllanti | C83: NO | D83: Dett. | F83: 113 | I83: =SUMIF(dati_sp!$H$2:$H$65536,s_bil_std!$A83,dati_sp!$C$2:$C$65536) -> 0 | L83: =SUMIF(dati_sp!$H$2:$H$65536,s_bil_std!$A83,dati_sp!$D$2:$D$65536) -> 0 | O83: =SUMIF(dati_sp!$H$2:$H$65536,s_bil_std!$A83,dati_sp!$E$2:$E$65536) -> 0 | R83: =SUMIF(dati_sp!$H$2:$H$65536,s_bil_std!$A83,dati_sp!$F$2:$F$65536) -> 0 | U83: =SUMIF(dati_sp!$H$2:$H$65536,s_bil_std!$A83,dati_sp!$G$2:$G$65536) -> 0 | Y83: 0 | Z83: 0 | AA83: 0 | AB83: 0 | AC83: 0 | AE83: 3)
A84: 1.C.3.4 | B84: Altre partecipazioni | C84: NO | D84: Dett. | F84: 114 | I84: =SUMIF(dati_sp!$H$2:$H$65536,s_bil_std!$A84,dati_sp!$C$2:$C$65536) -> 0 | L84: =SUMIF(dati_sp!$H$2:$H$65536,s_bil_std!$A84,dati_sp!$D$2:$D$65536) -> 0 | O84: =SUMIF(dati_sp!$H$2:$H$65536,s_bil_std!$A84,dati_sp!$E$2:$E$65536) -> 0 | R84: =SUMIF(dati_sp!$H$2:$H$65536,s_bil_std!$A84,dati_sp!$F$2:$F$65536) -> 0 | U84: =SUMIF(dati_sp!$H$2:$H$65536,s_bil_std!$A84,dati_sp!$G$2:$G$65536) -> 0 | Y84: 0 | Z84: 0 | AA84: 0 | AB84: 0 | AC84: 0 | AE84: 4)
A85: 1.C.3.5 | B85: Azioni proprie | C85: NO | D85: Dett. | F85: 115 | I85: =SUMIF(dati_sp!$H$2:$H$65536,s_bil_std!$A85,dati_sp!$C$2:$C$65536) -> 0 | L85: =SUMIF(dati_sp!$H$2:$H$65536,s_bil_std!$A85,dati_sp!$D$2:$D$65536) -> 0 | O85: =SUMIF(dati_sp!$H$2:$H$65536,s_bil_std!$A85,dati_sp!$E$2:$E$65536) -> 0 | R85: =SUMIF(dati_sp!$H$2:$H$65536,s_bil_std!$A85,dati_sp!$F$2:$F$65536) -> 0 | U85: =SUMIF(dati_sp!$H$2:$H$65536,s_bil_std!$A85,dati_sp!$G$2:$G$65536) -> 0 | Y85: 0 | Z85: 0 | AA85: 0 | AB85: 0 | AC85: 0 | AE85: 5)
A86: 1.C.3.6 | B86: Altri titoli | C86: NO | D86: Dett. | F86: 116 | I86: =SUMIF(dati_sp!$H$2:$H$65536,s_bil_std!$A86,dati_sp!$C$2:$C$65536) -> 0 | L86: =SUMIF(dati_sp!$H$2:$H$65536,s_bil_std!$A86,dati_sp!$D$2:$D$65536) -> 0 | O86: =SUMIF(dati_sp!$H$2:$H$65536,s_bil_std!$A86,dati_sp!$E$2:$E$65536) -> 0 | R86: =SUMIF(dati_sp!$H$2:$H$65536,s_bil_std!$A86,dati_sp!$F$2:$F$65536) -> 0 | U86: =SUMIF(dati_sp!$H$2:$H$65536,s_bil_std!$A86,dati_sp!$G$2:$G$65536) -> 0 | Y86: 0 | Z86: 0 | AA86: 0 | AB86: 0 | AC86: 0 | AE86: 6)
A87: 1.C.4 | B87: DISPONIBILITA' LIQUIDE | C87: NO | D87: Totale | E87: Dett. | F87: 120 | G87: 120 | I87: =SUM(I88:I90) -> 181 | J87: =SUMIF(dati_sp!$H$2:$H$65536,s_bil_std!$A87,dati_sp!$C$2:$C$65536) -> 0 | L87: =SUM(L88:L90) -> 7522 | M87: =SUMIF(dati_sp!$H$2:$H$65536,s_bil_std!$A87,dati_sp!$D$2:$D$65536) -> 0 | O87: =SUM(O88:O90) -> 0 | P87: =SUMIF(dati_sp!$H$2:$H$65536,s_bil_std!$A87,dati_sp!$E$2:$E$65536) -> 0 | R87: =SUM(R88:R90) -> 0 | S87: =SUMIF(dati_sp!$H$2:$H$65536,s_bil_std!$A87,dati_sp!$F$2:$F$65536) -> 0 | U87: =SUM(U88:U90) -> 0 | V87: =SUMIF(dati_sp!$H$2:$H$65536,s_bil_std!$A87,dati_sp!$G$2:$G$65536) -> 0 | Y87: 0 | Z87: 0 | AA87: 0 | AB87: 0 | AC87: 0 | AE87: IV -
A88: 1.C.4.1 | B88: Depositi bancari e postali | C88: NO | D88: Dett. | F88: 121 | I88: =SUMIF(dati_sp!$H$2:$H$65536,s_bil_std!$A88,dati_sp!$C$2:$C$65536) -> 0 | L88: =SUMIF(dati_sp!$H$2:$H$65536,s_bil_std!$A88,dati_sp!$D$2:$D$65536) -> 7341 | O88: =SUMIF(dati_sp!$H$2:$H$65536,s_bil_std!$A88,dati_sp!$E$2:$E$65536) -> 0 | R88: =SUMIF(dati_sp!$H$2:$H$65536,s_bil_std!$A88,dati_sp!$F$2:$F$65536) -> 0 | U88: =SUMIF(dati_sp!$H$2:$H$65536,s_bil_std!$A88,dati_sp!$G$2:$G$65536) -> 0 | Y88: 0 | Z88: 0 | AA88: 0 | AB88: 0 | AC88: 0 | AE88: 1)
A89: 1.C.4.2 | B89: Assegni | C89: NO | D89: Dett. | F89: 122 | I89: =SUMIF(dati_sp!$H$2:$H$65536,s_bil_std!$A89,dati_sp!$C$2:$C$65536) -> 0 | L89: =SUMIF(dati_sp!$H$2:$H$65536,s_bil_std!$A89,dati_sp!$D$2:$D$65536) -> 0 | O89: =SUMIF(dati_sp!$H$2:$H$65536,s_bil_std!$A89,dati_sp!$E$2:$E$65536) -> 0 | R89: =SUMIF(dati_sp!$H$2:$H$65536,s_bil_std!$A89,dati_sp!$F$2:$F$65536) -> 0 | U89: =SUMIF(dati_sp!$H$2:$H$65536,s_bil_std!$A89,dati_sp!$G$2:$G$65536) -> 0 | Y89: 0 | Z89: 0 | AA89: 0 | AB89: 0 | AC89: 0 | AE89: 2)
A90: 1.C.4.3 | B90: Denaro e valori in cassa | C90: NO | D90: Dett. | F90: 123 | I90: =SUMIF(dati_sp!$H$2:$H$65536,s_bil_std!$A90,dati_sp!$C$2:$C$65536) -> 181 | L90: =SUMIF(dati_sp!$H$2:$H$65536,s_bil_std!$A90,dati_sp!$D$2:$D$65536) -> 181 | O90: =SUMIF(dati_sp!$H$2:$H$65536,s_bil_std!$A90,dati_sp!$E$2:$E$65536) -> 0 | R90: =SUMIF(dati_sp!$H$2:$H$65536,s_bil_std!$A90,dati_sp!$F$2:$F$65536) -> 0 | U90: =SUMIF(dati_sp!$H$2:$H$65536,s_bil_std!$A90,dati_sp!$G$2:$G$65536) -> 0 | Y90: 0 | Z90: 0 | AA90: 0 | AB90: 0 | AC90: 0 | AE90: 3)
A91: 1.D | B91: RATEI E RISCONTI ATTIVI | C91: NO | D91: Totale | E91: Totale | F91: 130 | G91: 130 | I91: =SUM(I92:I93) -> 0 | J91: =SUMIF(dati_sp!$H$2:$H$65536,s_bil_std!$A91,dati_sp!$C$2:$C$65536) -> 0 | L91: =SUM(L92:L93) -> 0 | M91: =SUMIF(dati_sp!$H$2:$H$65536,s_bil_std!$A91,dati_sp!$D$2:$D$65536) -> 0 | O91: =SUM(O92:O93) -> 0 | P91: =SUMIF(dati_sp!$H$2:$H$65536,s_bil_std!$A91,dati_sp!$E$2:$E$65536) -> 0 | R91: =SUM(R92:R93) -> 0 | S91: =SUMIF(dati_sp!$H$2:$H$65536,s_bil_std!$A91,dati_sp!$F$2:$F$65536) -> 0 | U91: =SUM(U92:U93) -> 0 | V91: =SUMIF(dati_sp!$H$2:$H$65536,s_bil_std!$A91,dati_sp!$G$2:$G$65536) -> 0 | Y91: 0 | Z91: 0 | AA91: 0 | AB91: 0 | AC91: 0 | AE91: D)
A92: 1.D.1 | B92: Disaggio su prestiti | C92: NO | D92: Dett. | E92: Dett. | F92: 131 | I92: =SUMIF(dati_sp!$H$2:$H$65536,s_bil_std!$A92,dati_sp!$C$2:$C$65536) -> 0 | J92: =SUMIF(dati_sp!$H$2:$H$65536,s_bil_std!$A92,dati_sp!$C$2:$C$65536) -> 0 | L92: =SUMIF(dati_sp!$H$2:$H$65536,s_bil_std!$A92,dati_sp!$D$2:$D$65536) -> 0 | M92: =SUMIF(dati_sp!$H$2:$H$65536,s_bil_std!$A92,dati_sp!$D$2:$D$65536) -> 0 | O92: =SUMIF(dati_sp!$H$2:$H$65536,s_bil_std!$A92,dati_sp!$E$2:$E$65536) -> 0 | P92: =SUMIF(dati_sp!$H$2:$H$65536,s_bil_std!$A92,dati_sp!$E$2:$E$65536) -> 0 | R92: =SUMIF(dati_sp!$H$2:$H$65536,s_bil_std!$A92,dati_sp!$F$2:$F$65536) -> 0 | S92: =SUMIF(dati_sp!$H$2:$H$65536,s_bil_std!$A92,dati_sp!$F$2:$F$65536) -> 0 | U92: =SUMIF(dati_sp!$H$2:$H$65536,s_bil_std!$A92,dati_sp!$G$2:$G$65536) -> 0 | V92: =SUMIF(dati_sp!$H$2:$H$65536,s_bil_std!$A92,dati_sp!$G$2:$G$65536) -> 0 | Y92: 0 | Z92: 0 | AA92: 0 | AB92: 0 | AC92: 0
A93: 1.D.2 | B93: Altri ratei e risconti attivi | C93: NO | D93: Dett. | E93: Dett. | I93: =SUMIF(dati_sp!$H$2:$H$65536,s_bil_std!$A93,dati_sp!$C$2:$C$65536) -> 0 | J93: =SUMIF(dati_sp!$H$2:$H$65536,s_bil_std!$A93,dati_sp!$C$2:$C$65536) -> 0 | L93: =SUMIF(dati_sp!$H$2:$H$65536,s_bil_std!$A93,dati_sp!$D$2:$D$65536) -> 0 | M93: =SUMIF(dati_sp!$H$2:$H$65536,s_bil_std!$A93,dati_sp!$D$2:$D$65536) -> 0 | O93: =SUMIF(dati_sp!$H$2:$H$65536,s_bil_std!$A93,dati_sp!$E$2:$E$65536) -> 0 | P93: =SUMIF(dati_sp!$H$2:$H$65536,s_bil_std!$A93,dati_sp!$E$2:$E$65536) -> 0 | R93: =SUMIF(dati_sp!$H$2:$H$65536,s_bil_std!$A93,dati_sp!$F$2:$F$65536) -> 0 | S93: =SUMIF(dati_sp!$H$2:$H$65536,s_bil_std!$A93,dati_sp!$F$2:$F$65536) -> 0 | U93: =SUMIF(dati_sp!$H$2:$H$65536,s_bil_std!$A93,dati_sp!$G$2:$G$65536) -> 0 | V93: =SUMIF(dati_sp!$H$2:$H$65536,s_bil_std!$A93,dati_sp!$G$2:$G$65536) -> 0 | Y93: 0 | Z93: 0 | AA93: 0 | AB93: 0 | AC93: 0
B94: TOTALE ATTIVO | F94: 150 | G94: 150 | I94: =SUM(I91,I49,I6,I3) -> 252617 | J94: =SUM(J91,J49,J6,J3) -> 0 | L94: =SUM(L91,L49,L6,L3) -> 187958 | M94: =SUM(M91,M49,M6,M3) -> 0 | O94: =SUM(O91,O49,O6,O3) -> 0 | P94: =SUM(P91,P49,P6,P3) -> 0 | R94: =SUM(R91,R49,R6,R3) -> 0 | S94: =SUM(S91,S49,S6,S3) -> 0 | U94: =SUM(U91,U49,U6,U3) -> 0 | V94: =SUM(V91,V49,V6,V3) -> 0 | Y94: 0 | Z94: 0 | AA94: 0 | AB94: 0 | AC94: 0
A95: 2 | B95: Passivo
A96: 2.A | B96: PATRIMONIO NETTO | C96: NO | D96: Totale | E96: Totale | F96: 160 | G96: 160 | I96: =SUM(I127+I128) -> 92654 | J96: =SUM(J97:J103,J125:J126) -> 92654 | L96: =SUM(L127:L128) -> 92110 | M96: =SUM(M97:M103,M125:M126) -> 92110 | O96: =SUM(O127:O128) -> 0 | P96: =SUM(P97:P103,P125:P126) -> 0 | R96: =SUM(R127:R128) -> 0 | S96: =SUM(S97:S103,S125:S126) -> 0 | U96: =SUM(U127:U128) -> 0 | V96: =SUM(V97:V103,V125:V126) -> 0 | Y96: =IF($AA$2="1",I96,J96) -> 92654 | Z96: =IF($AA$2="1",L96,M96) -> 92110 | AA96: =IF($AA$2="1",O96,P96) -> 0 | AB96: =IF($AA$2="1",R96,S96) -> 0 | AC96: =IF($AA$2="1",U96,V96) -> 0 | AE96: A)
A97: 2.A.1 | B97: Capitale | C97: NO | D97: Dett. | E97: Dett. | F97: 162 | G97: 162 | I97: =SUMIF(dati_sp!$H$2:$H$65536,s_bil_std!$A97,dati_sp!$C$2:$C$65536) -> 20800 | J97: =SUMIF(dati_sp!$H$2:$H$65536,s_bil_std!$A97,dati_sp!$C$2:$C$65536) -> 20800 | L97: =SUMIF(dati_sp!$H$2:$H$65536,s_bil_std!$A97,dati_sp!$D$2:$D$65536) -> 20800 | M97: =SUMIF(dati_sp!$H$2:$H$65536,s_bil_std!$A97,dati_sp!$D$2:$D$65536) -> 20800 | O97: =SUMIF(dati_sp!$H$2:$H$65536,s_bil_std!$A97,dati_sp!$E$2:$E$65536) -> 0 | P97: =SUMIF(dati_sp!$H$2:$H$65536,s_bil_std!$A97,dati_sp!$E$2:$E$65536) -> 0 | R97: =SUMIF(dati_sp!$H$2:$H$65536,s_bil_std!$A97,dati_sp!$F$2:$F$65536) -> 0 | S97: =SUMIF(dati_sp!$H$2:$H$65536,s_bil_std!$A97,dati_sp!$F$2:$F$65536) -> 0 | U97: =SUMIF(dati_sp!$H$2:$H$65536,s_bil_std!$A97,dati_sp!$G$2:$G$65536) -> 0 | V97: =SUMIF(dati_sp!$H$2:$H$65536,s_bil_std!$A97,dati_sp!$G$2:$G$65536) -> 0 | Y97: 20800 | Z97: 20800 | AA97: 0 | AB97: 0 | AC97: 0 | AE97: I -
A98: 2.A.2 | B98: Riserva da sopraprezzo delle azioni | C98: NO | D98: Dett. | E98: Dett. | F98: 164 | G98: 164 | I98: =SUMIF(dati_sp!$H$2:$H$65536,s_bil_std!$A98,dati_sp!$C$2:$C$65536) -> 0 | J98: =SUMIF(dati_sp!$H$2:$H$65536,s_bil_std!$A98,dati_sp!$C$2:$C$65536) -> 0 | L98: =SUMIF(dati_sp!$H$2:$H$65536,s_bil_std!$A98,dati_sp!$D$2:$D$65536) -> 0 | M98: =SUMIF(dati_sp!$H$2:$H$65536,s_bil_std!$A98,dati_sp!$D$2:$D$65536) -> 0 | O98: =SUMIF(dati_sp!$H$2:$H$65536,s_bil_std!$A98,dati_sp!$E$2:$E$65536) -> 0 | P98: =SUMIF(dati_sp!$H$2:$H$65536,s_bil_std!$A98,dati_sp!$E$2:$E$65536) -> 0 | R98: =SUMIF(dati_sp!$H$2:$H$65536,s_bil_std!$A98,dati_sp!$F$2:$F$65536) -> 0 | S98: =SUMIF(dati_sp!$H$2:$H$65536,s_bil_std!$A98,dati_sp!$F$2:$F$65536) -> 0 | U98: =SUMIF(dati_sp!$H$2:$H$65536,s_bil_std!$A98,dati_sp!$G$2:$G$65536) -> 0 | V98: =SUMIF(dati_sp!$H$2:$H$65536,s_bil_std!$A98,dati_sp!$G$2:$G$65536) -> 0 | Y98: 0 | Z98: 0 | AA98: 0 | AB98: 0 | AC98: 0 | AE98: II -
A99: 2.A.3 | B99: Riserve di rivalutazione | C99: NO | D99: Dett. | E99: Dett. | F99: 166 | G99: 166 | I99: =SUMIF(dati_sp!$H$2:$H$65536,s_bil_std!$A99,dati_sp!$C$2:$C$65536) -> 0 | J99: =SUMIF(dati_sp!$H$2:$H$65536,s_bil_std!$A99,dati_sp!$C$2:$C$65536) -> 0 | L99: =SUMIF(dati_sp!$H$2:$H$65536,s_bil_std!$A99,dati_sp!$D$2:$D$65536) -> 0 | M99: =SUMIF(dati_sp!$H$2:$H$65536,s_bil_std!$A99,dati_sp!$D$2:$D$65536) -> 0 | O99: =SUMIF(dati_sp!$H$2:$H$65536,s_bil_std!$A99,dati_sp!$E$2:$E$65536) -> 0 | P99: =SUMIF(dati_sp!$H$2:$H$65536,s_bil_std!$A99,dati_sp!$E$2:$E$65536) -> 0 | R99: =SUMIF(dati_sp!$H$2:$H$65536,s_bil_std!$A99,dati_sp!$F$2:$F$65536) -> 0 | S99: =SUMIF(dati_sp!$H$2:$H$65536,s_bil_std!$A99,dati_sp!$F$2:$F$65536) -> 0 | U99: =SUMIF(dati_sp!$H$2:$H$65536,s_bil_std!$A99,dati_sp!$G$2:$G$65536) -> 0 | V99: =SUMIF(dati_sp!$H$2:$H$65536,s_bil_std!$A99,dati_sp!$G$2:$G$65536) -> 0 | Y99: 0 | Z99: 0 | AA99: 0 | AB99: 0 | AC99: 0 | AE99: III -
A100: 2.A.4 | B100: Riserva legale | C100: NO | D100: Dett. | E100: Dett. | F100: 163 | I100: =SUMIF(dati_sp!$H$2:$H$65536,s_bil_std!$A100,dati_sp!$C$2:$C$65536) -> 7486 | J100: =SUMIF(dati_sp!$H$2:$H$65536,s_bil_std!$A100,dati_sp!$C$2:$C$65536) -> 7486 | L100: =SUMIF(dati_sp!$H$2:$H$65536,s_bil_std!$A100,dati_sp!$D$2:$D$65536) -> 7486 | M100: =SUMIF(dati_sp!$H$2:$H$65536,s_bil_std!$A100,dati_sp!$D$2:$D$65536) -> 7486 | O100: =SUMIF(dati_sp!$H$2:$H$65536,s_bil_std!$A100,dati_sp!$E$2:$E$65536) -> 0 | P100: =SUMIF(dati_sp!$H$2:$H$65536,s_bil_std!$A100,dati_sp!$E$2:$E$65536) -> 0 | R100: =SUMIF(dati_sp!$H$2:$H$65536,s_bil_std!$A100,dati_sp!$F$2:$F$65536) -> 0 | S100: =SUMIF(dati_sp!$H$2:$H$65536,s_bil_std!$A100,dati_sp!$F$2:$F$65536) -> 0 | U100: =SUMIF(dati_sp!$H$2:$H$65536,s_bil_std!$A100,dati_sp!$G$2:$G$65536) -> 0 | V100: =SUMIF(dati_sp!$H$2:$H$65536,s_bil_std!$A100,dati_sp!$G$2:$G$65536) -> 0 | Y100: 7486 | Z100: 7486 | AA100: 0 | AB100: 0 | AC100: 0 | AE100: IV -
A101: 2.A.5 | B101: Riserve statutarie | C101: NO | D101: Dett. | E101: Dett. | F101: 167 | I101: =SUMIF(dati_sp!$H$2:$H$65536,s_bil_std!$A101,dati_sp!$C$2:$C$65536) -> 0 | J101: =SUMIF(dati_sp!$H$2:$H$65536,s_bil_std!$A101,dati_sp!$C$2:$C$65536) -> 0 | L101: =SUMIF(dati_sp!$H$2:$H$65536,s_bil_std!$A101,dati_sp!$D$2:$D$65536) -> 0 | M101: =SUMIF(dati_sp!$H$2:$H$65536,s_bil_std!$A101,dati_sp!$D$2:$D$65536) -> 0 | O101: =SUMIF(dati_sp!$H$2:$H$65536,s_bil_std!$A101,dati_sp!$E$2:$E$65536) -> 0 | P101: =SUMIF(dati_sp!$H$2:$H$65536,s_bil_std!$A101,dati_sp!$E$2:$E$65536) -> 0 | R101: =SUMIF(dati_sp!$H$2:$H$65536,s_bil_std!$A101,dati_sp!$F$2:$F$65536) -> 0 | S101: =SUMIF(dati_sp!$H$2:$H$65536,s_bil_std!$A101,dati_sp!$F$2:$F$65536) -> 0 | U101: =SUMIF(dati_sp!$H$2:$H$65536,s_bil_std!$A101,dati_sp!$G$2:$G$65536) -> 0 | V101: =SUMIF(dati_sp!$H$2:$H$65536,s_bil_std!$A101,dati_sp!$G$2:$G$65536) -> 0 | Y101: 0 | Z101: 0 | AA101: 0 | AB101: 0 | AC101: 0 | AE101: V -
A102: 2.A.6 | B102: Riserva per azioni proprie in portafoglio | C102: NO | D102: Dett. | E102: Dett. | F102: 165 | I102: =SUMIF(dati_sp!$H$2:$H$65536,s_bil_std!$A102,dati_sp!$C$2:$C$65536) -> 0 | J102: =SUMIF(dati_sp!$H$2:$H$65536,s_bil_std!$A102,dati_sp!$C$2:$C$65536) -> 0 | L102: =SUMIF(dati_sp!$H$2:$H$65536,s_bil_std!$A102,dati_sp!$D$2:$D$65536) -> 0 | M102: =SUMIF(dati_sp!$H$2:$H$65536,s_bil_std!$A102,dati_sp!$D$2:$D$65536) -> 0 | O102: =SUMIF(dati_sp!$H$2:$H$65536,s_bil_std!$A102,dati_sp!$E$2:$E$65536) -> 0 | P102: =SUMIF(dati_sp!$H$2:$H$65536,s_bil_std!$A102,dati_sp!$E$2:$E$65536) -> 0 | R102: =SUMIF(dati_sp!$H$2:$H$65536,s_bil_std!$A102,dati_sp!$F$2:$F$65536) -> 0 | S102: =SUMIF(dati_sp!$H$2:$H$65536,s_bil_std!$A102,dati_sp!$F$2:$F$65536) -> 0 | U102: =SUMIF(dati_sp!$H$2:$H$65536,s_bil_std!$A102,dati_sp!$G$2:$G$65536) -> 0 | V102: =SUMIF(dati_sp!$H$2:$H$65536,s_bil_std!$A102,dati_sp!$G$2:$G$65536) -> 0 | Y102: 0 | Z102: 0 | AA102: 0 | AB102: 0 | AC102: 0 | AE102: VI -
A103: 2.A.7 | B103: Altre riserve | C103: NO | D103: Totale | E103: Totale | F103: 169 | I103: =SUM(I104:I124) -> 1 | J103: =SUM(J104:J124) -> 1 | L103: =SUM(L104:L124) -> 0 | M103: =SUM(M104:M124) -> 0 | O103: =SUM(O104:O124) -> 0 | P103: =SUM(P104:P124) -> 0 | R103: =SUM(R104:R124) -> 0 | S103: =SUM(S104:S124) -> 0 | U103: =SUM(U104:U124) -> 0 | V103: =SUM(V104:V122) -> 0 | Y103: 1 | Z103: 0 | AA103: 0 | AB103: 0 | AC103: 0 | AE103: VII -
A104: 2.A.7.1 | B104: Riserva straordinaria | C104: NO | D104: Dett. | E104: Dett. | I104: =SUMIF(dati_sp!$H$2:$H$65536,s_bil_std!$A104,dati_sp!$C$2:$C$65536) -> 0 | J104: =SUMIF(dati_sp!$H$2:$H$65536,s_bil_std!$A104,dati_sp!$C$2:$C$65536) -> 0 | L104: =SUMIF(dati_sp!$H$2:$H$65536,s_bil_std!$A104,dati_sp!$D$2:$D$65536) -> 0 | M104: =SUMIF(dati_sp!$H$2:$H$65536,s_bil_std!$A104,dati_sp!$D$2:$D$65536) -> 0 | O104: =SUMIF(dati_sp!$H$2:$H$65536,s_bil_std!$A104,dati_sp!$E$2:$E$65536) -> 0 | P104: =SUMIF(dati_sp!$H$2:$H$65536,s_bil_std!$A104,dati_sp!$E$2:$E$65536) -> 0 | R104: =SUMIF(dati_sp!$H$2:$H$65536,s_bil_std!$A104,dati_sp!$F$2:$F$65536) -> 0 | S104: =SUMIF(dati_sp!$H$2:$H$65536,s_bil_std!$A104,dati_sp!$F$2:$F$65536) -> 0 | U104: =SUMIF(dati_sp!$H$2:$H$65536,s_bil_std!$A104,dati_sp!$G$2:$G$65536) -> 0 | V104: =SUMIF(dati_sp!$H$2:$H$65536,s_bil_std!$A104,dati_sp!$G$2:$G$65536) -> 0 | Y104: 0 | Z104: 0 | AA104: 0 | AB104: 0 | AC104: 0
A105: 2.A.7.2 | B105: Riserva per rinnovamento impianti e macchinari | C105: NO | D105: Dett. | E105: Dett. | I105: =SUMIF(dati_sp!$H$2:$H$65536,s_bil_std!$A105,dati_sp!$C$2:$C$65536) -> 0 | J105: =SUMIF(dati_sp!$H$2:$H$65536,s_bil_std!$A105,dati_sp!$C$2:$C$65536) -> 0 | L105: =SUMIF(dati_sp!$H$2:$H$65536,s_bil_std!$A105,dati_sp!$D$2:$D$65536) -> 0 | M105: =SUMIF(dati_sp!$H$2:$H$65536,s_bil_std!$A105,dati_sp!$D$2:$D$65536) -> 0 | O105: =SUMIF(dati_sp!$H$2:$H$65536,s_bil_std!$A105,dati_sp!$E$2:$E$65536) -> 0 | P105: =SUMIF(dati_sp!$H$2:$H$65536,s_bil_std!$A105,dati_sp!$E$2:$E$65536) -> 0 | R105: =SUMIF(dati_sp!$H$2:$H$65536,s_bil_std!$A105,dati_sp!$F$2:$F$65536) -> 0 | S105: =SUMIF(dati_sp!$H$2:$H$65536,s_bil_std!$A105,dati_sp!$F$2:$F$65536) -> 0 | U105: =SUMIF(dati_sp!$H$2:$H$65536,s_bil_std!$A105,dati_sp!$G$2:$G$65536) -> 0 | V105: =SUMIF(dati_sp!$H$2:$H$65536,s_bil_std!$A105,dati_sp!$G$2:$G$65536) -> 0 | Y105: 0 | Z105: 0 | AA105: 0 | AB105: 0 | AC105: 0
A106: 2.A.7.3 | B106: Riserva ammortamento anticipato | C106: NO | D106: Dett. | E106: Dett. | I106: =SUMIF(dati_sp!$H$2:$H$65536,s_bil_std!$A106,dati_sp!$C$2:$C$65536) -> 0 | J106: =SUMIF(dati_sp!$H$2:$H$65536,s_bil_std!$A106,dati_sp!$C$2:$C$65536) -> 0 | L106: =SUMIF(dati_sp!$H$2:$H$65536,s_bil_std!$A106,dati_sp!$D$2:$D$65536) -> 0 | M106: =SUMIF(dati_sp!$H$2:$H$65536,s_bil_std!$A106,dati_sp!$D$2:$D$65536) -> 0 | O106: =SUMIF(dati_sp!$H$2:$H$65536,s_bil_std!$A106,dati_sp!$E$2:$E$65536) -> 0 | P106: =SUMIF(dati_sp!$H$2:$H$65536,s_bil_std!$A106,dati_sp!$E$2:$E$65536) -> 0 | R106: =SUMIF(dati_sp!$H$2:$H$65536,s_bil_std!$A106,dati_sp!$F$2:$F$65536) -> 0 | S106: =SUMIF(dati_sp!$H$2:$H$65536,s_bil_std!$A106,dati_sp!$F$2:$F$65536) -> 0 | U106: =SUMIF(dati_sp!$H$2:$H$65536,s_bil_std!$A106,dati_sp!$G$2:$G$65536) -> 0 | V106: =SUMIF(dati_sp!$H$2:$H$65536,s_bil_std!$A106,dati_sp!$G$2:$G$65536) -> 0 | Y106: 0 | Z106: 0 | AA106: 0 | AB106: 0 | AC106: 0
A107: 2.A.7.4 | B107: Riserva per acquisto azioni proprie | C107: NO | D107: Dett. | E107: Dett. | I107: =SUMIF(dati_sp!$H$2:$H$65536,s_bil_std!$A107,dati_sp!$C$2:$C$65536) -> 0 | J107: =SUMIF(dati_sp!$H$2:$H$65536,s_bil_std!$A107,dati_sp!$C$2:$C$65536) -> 0 | L107: =SUMIF(dati_sp!$H$2:$H$65536,s_bil_std!$A107,dati_sp!$D$2:$D$65536) -> 0 | M107: =SUMIF(dati_sp!$H$2:$H$65536,s_bil_std!$A107,dati_sp!$D$2:$D$65536) -> 0 | O107: =SUMIF(dati_sp!$H$2:$H$65536,s_bil_std!$A107,dati_sp!$E$2:$E$65536) -> 0 | P107: =SUMIF(dati_sp!$H$2:$H$65536,s_bil_std!$A107,dati_sp!$E$2:$E$65536) -> 0 | R107: =SUMIF(dati_sp!$H$2:$H$65536,s_bil_std!$A107,dati_sp!$F$2:$F$65536) -> 0 | S107: =SUMIF(dati_sp!$H$2:$H$65536,s_bil_std!$A107,dati_sp!$F$2:$F$65536) -> 0 | U107: =SUMIF(dati_sp!$H$2:$H$65536,s_bil_std!$A107,dati_sp!$G$2:$G$65536) -> 0 | V107: =SUMIF(dati_sp!$H$2:$H$65536,s_bil_std!$A107,dati_sp!$G$2:$G$65536) -> 0 | Y107: 0 | Z107: 0 | AA107: 0 | AB107: 0 | AC107: 0
A108: 2.A.7.5 | B108: Riserva da deroghe ex. art. 2423 CC | C108: NO | D108: Dett. | E108: Dett. | I108: =SUMIF(dati_sp!$H$2:$H$65536,s_bil_std!$A108,dati_sp!$C$2:$C$65536) -> 0 | J108: =SUMIF(dati_sp!$H$2:$H$65536,s_bil_std!$A108,dati_sp!$C$2:$C$65536) -> 0 | L108: =SUMIF(dati_sp!$H$2:$H$65536,s_bil_std!$A108,dati_sp!$D$2:$D$65536) -> 0 | M108: =SUMIF(dati_sp!$H$2:$H$65536,s_bil_std!$A108,dati_sp!$D$2:$D$65536) -> 0 | O108: =SUMIF(dati_sp!$H$2:$H$65536,s_bil_std!$A108,dati_sp!$E$2:$E$65536) -> 0 | P108: =SUMIF(dati_sp!$H$2:$H$65536,s_bil_std!$A108,dati_sp!$E$2:$E$65536) -> 0 | R108: =SUMIF(dati_sp!$H$2:$H$65536,s_bil_std!$A108,dati_sp!$F$2:$F$65536) -> 0 | S108: =SUMIF(dati_sp!$H$2:$H$65536,s_bil_std!$A108,dati_sp!$F$2:$F$65536) -> 0 | U108: =SUMIF(dati_sp!$H$2:$H$65536,s_bil_std!$A108,dati_sp!$G$2:$G$65536) -> 0 | V108: =SUMIF(dati_sp!$H$2:$H$65536,s_bil_std!$A108,dati_sp!$G$2:$G$65536) -> 0 | Y108: 0 | Z108: 0 | AA108: 0 | AB108: 0 | AC108: 0
A109: 2.A.7.6 | B109: Riserva per azioni delle società controllante | C109: NO | D109: Dett. | E109: Dett. | I109: =SUMIF(dati_sp!$H$2:$H$65536,s_bil_std!$A109,dati_sp!$C$2:$C$65536) -> 0 | J109: =SUMIF(dati_sp!$H$2:$H$65536,s_bil_std!$A109,dati_sp!$C$2:$C$65536) -> 0 | L109: =SUMIF(dati_sp!$H$2:$H$65536,s_bil_std!$A109,dati_sp!$D$2:$D$65536) -> 0 | M109: =SUMIF(dati_sp!$H$2:$H$65536,s_bil_std!$A109,dati_sp!$D$2:$D$65536) -> 0 | O109: =SUMIF(dati_sp!$H$2:$H$65536,s_bil_std!$A109,dati_sp!$E$2:$E$65536) -> 0 | P109: =SUMIF(dati_sp!$H$2:$H$65536,s_bil_std!$A109,dati_sp!$E$2:$E$65536) -> 0 | R109: =SUMIF(dati_sp!$H$2:$H$65536,s_bil_std!$A109,dati_sp!$F$2:$F$65536) -> 0 | S109: =SUMIF(dati_sp!$H$2:$H$65536,s_bil_std!$A109,dati_sp!$F$2:$F$65536) -> 0 | U109: =SUMIF(dati_sp!$H$2:$H$65536,s_bil_std!$A109,dati_sp!$G$2:$G$65536) -> 0 | V109: =SUMIF(dati_sp!$H$2:$H$65536,s_bil_std!$A109,dati_sp!$G$2:$G$65536) -> 0 | Y109: 0 | Z109: 0 | AA109: 0 | AB109: 0 | AC109: 0
A110: 2.A.7.7 | B110: Riserva non distribuibile da rivalutazione delle partecipazioni | C110: NO | D110: Dett. | E110: Dett. | I110: =SUMIF(dati_sp!$H$2:$H$65536,s_bil_std!$A110,dati_sp!$C$2:$C$65536) -> 0 | J110: =SUMIF(dati_sp!$H$2:$H$65536,s_bil_std!$A110,dati_sp!$C$2:$C$65536) -> 0 | L110: =SUMIF(dati_sp!$H$2:$H$65536,s_bil_std!$A110,dati_sp!$D$2:$D$65536) -> 0 | M110: =SUMIF(dati_sp!$H$2:$H$65536,s_bil_std!$A110,dati_sp!$D$2:$D$65536) -> 0 | O110: =SUMIF(dati_sp!$H$2:$H$65536,s_bil_std!$A110,dati_sp!$E$2:$E$65536) -> 0 | P110: =SUMIF(dati_sp!$H$2:$H$65536,s_bil_std!$A110,dati_sp!$E$2:$E$65536) -> 0 | R110: =SUMIF(dati_sp!$H$2:$H$65536,s_bil_std!$A110,dati_sp!$F$2:$F$65536) -> 0 | S110: =SUMIF(dati_sp!$H$2:$H$65536,s_bil_std!$A110,dati_sp!$F$2:$F$65536) -> 0 | U110: =SUMIF(dati_sp!$H$2:$H$65536,s_bil_std!$A110,dati_sp!$G$2:$G$65536) -> 0 | V110: =SUMIF(dati_sp!$H$2:$H$65536,s_bil_std!$A110,dati_sp!$G$2:$G$65536) -> 0 | Y110: 0 | Z110: 0 | AA110: 0 | AB110: 0 | AC110: 0
A111: 2.A.7.8 | B111: Versamenti in conto aumento di capitale | C111: NO | D111: Dett. | E111: Dett. | I111: =SUMIF(dati_sp!$H$2:$H$65536,s_bil_std!$A111,dati_sp!$C$2:$C$65536) -> 0 | J111: =SUMIF(dati_sp!$H$2:$H$65536,s_bil_std!$A111,dati_sp!$C$2:$C$65536) -> 0 | L111: =SUMIF(dati_sp!$H$2:$H$65536,s_bil_std!$A111,dati_sp!$D$2:$D$65536) -> 0 | M111: =SUMIF(dati_sp!$H$2:$H$65536,s_bil_std!$A111,dati_sp!$D$2:$D$65536) -> 0 | O111: =SUMIF(dati_sp!$H$2:$H$65536,s_bil_std!$A111,dati_sp!$E$2:$E$65536) -> 0 | P111: =SUMIF(dati_sp!$H$2:$H$65536,s_bil_std!$A111,dati_sp!$E$2:$E$65536) -> 0 | R111: =SUMIF(dati_sp!$H$2:$H$65536,s_bil_std!$A111,dati_sp!$F$2:$F$65536) -> 0 | S111: =SUMIF(dati_sp!$H$2:$H$65536,s_bil_std!$A111,dati_sp!$F$2:$F$65536) -> 0 | U111: =SUMIF(dati_sp!$H$2:$H$65536,s_bil_std!$A111,dati_sp!$G$2:$G$65536) -> 0 | V111: =SUMIF(dati_sp!$H$2:$H$65536,s_bil_std!$A111,dati_sp!$G$2:$G$65536) -> 0 | Y111: 0 | Z111: 0 | AA111: 0 | AB111: 0 | AC111: 0
A112: 2.A.7.9 | B112: Versamente in conto futuro aumento di capitale | C112: NO | D112: Dett. | E112: Dett. | I112: =SUMIF(dati_sp!$H$2:$H$65536,s_bil_std!$A112,dati_sp!$C$2:$C$65536) -> 0 | J112: =SUMIF(dati_sp!$H$2:$H$65536,s_bil_std!$A112,dati_sp!$C$2:$C$65536) -> 0 | L112: =SUMIF(dati_sp!$H$2:$H$65536,s_bil_std!$A112,dati_sp!$D$2:$D$65536) -> 0 | M112: =SUMIF(dati_sp!$H$2:$H$65536,s_bil_std!$A112,dati_sp!$D$2:$D$65536) -> 0 | O112: =SUMIF(dati_sp!$H$2:$H$65536,s_bil_std!$A112,dati_sp!$E$2:$E$65536) -> 0 | P112: =SUMIF(dati_sp!$H$2:$H$65536,s_bil_std!$A112,dati_sp!$E$2:$E$65536) -> 0 | R112: =SUMIF(dati_sp!$H$2:$H$65536,s_bil_std!$A112,dati_sp!$F$2:$F$65536) -> 0 | S112: =SUMIF(dati_sp!$H$2:$H$65536,s_bil_std!$A112,dati_sp!$F$2:$F$65536) -> 0 | U112: =SUMIF(dati_sp!$H$2:$H$65536,s_bil_std!$A112,dati_sp!$G$2:$G$65536) -> 0 | V112: =SUMIF(dati_sp!$H$2:$H$65536,s_bil_std!$A112,dati_sp!$G$2:$G$65536) -> 0 | Y112: 0 | Z112: 0 | AA112: 0 | AB112: 0 | AC112: 0
A113: 2.A.7.10 | B113: Versamenti in conto capitale | C113: NO | D113: Dett. | E113: Dett. | I113: =SUMIF(dati_sp!$H$2:$H$65536,s_bil_std!$A113,dati_sp!$C$2:$C$65536) -> 0 | J113: =SUMIF(dati_sp!$H$2:$H$65536,s_bil_std!$A113,dati_sp!$C$2:$C$65536) -> 0 | L113: =SUMIF(dati_sp!$H$2:$H$65536,s_bil_std!$A113,dati_sp!$D$2:$D$65536) -> 0 | M113: =SUMIF(dati_sp!$H$2:$H$65536,s_bil_std!$A113,dati_sp!$D$2:$D$65536) -> 0 | O113: =SUMIF(dati_sp!$H$2:$H$65536,s_bil_std!$A113,dati_sp!$E$2:$E$65536) -> 0 | P113: =SUMIF(dati_sp!$H$2:$H$65536,s_bil_std!$A113,dati_sp!$E$2:$E$65536) -> 0 | R113: =SUMIF(dati_sp!$H$2:$H$65536,s_bil_std!$A113,dati_sp!$F$2:$F$65536) -> 0 | S113: =SUMIF(dati_sp!$H$2:$H$65536,s_bil_std!$A113,dati_sp!$F$2:$F$65536) -> 0 | U113: =SUMIF(dati_sp!$H$2:$H$65536,s_bil_std!$A113,dati_sp!$G$2:$G$65536) -> 0 | V113: =SUMIF(dati_sp!$H$2:$H$65536,s_bil_std!$A113,dati_sp!$G$2:$G$65536) -> 0 | Y113: 0 | Z113: 0 | AA113: 0 | AB113: 0 | AC113: 0
A114: 2.A.7.10a | B114: Versamenti a copertura perdite | C114: NO | D114: Dett. | E114: Dett. | I114: =SUMIF(dati_sp!$H$2:$H$65536,s_bil_std!$A114,dati_sp!$C$2:$C$65536) -> 0 | J114: =SUMIF(dati_sp!$H$2:$H$65536,s_bil_std!$A114,dati_sp!$C$2:$C$65536) -> 0 | L114: =SUMIF(dati_sp!$H$2:$H$65536,s_bil_std!$A114,dati_sp!$D$2:$D$65536) -> 0 | M114: =SUMIF(dati_sp!$H$2:$H$65536,s_bil_std!$A114,dati_sp!$D$2:$D$65536) -> 0 | O114: =SUMIF(dati_sp!$H$2:$H$65536,s_bil_std!$A114,dati_sp!$E$2:$E$65536) -> 0 | P114: =SUMIF(dati_sp!$H$2:$H$65536,s_bil_std!$A114,dati_sp!$E$2:$E$65536) -> 0 | R114: =SUMIF(dati_sp!$H$2:$H$65536,s_bil_std!$A114,dati_sp!$F$2:$F$65536) -> 0 | S114: =SUMIF(dati_sp!$H$2:$H$65536,s_bil_std!$A114,dati_sp!$F$2:$F$65536) -> 0 | U114: =SUMIF(dati_sp!$H$2:$H$65536,s_bil_std!$A114,dati_sp!$G$2:$G$65536) -> 0 | V114: =SUMIF(dati_sp!$H$2:$H$65536,s_bil_std!$A114,dati_sp!$G$2:$G$65536) -> 0 | Y114: 0 | Z114: 0 | AA114: 0 | AB114: 0 | AC114: 0
A115: 2.A.7.11 | B115: Riserva da riduzione capitale sociale | C115: NO | D115: Dett. | E115: Dett. | I115: =SUMIF(dati_sp!$H$2:$H$65536,s_bil_std!$A115,dati_sp!$C$2:$C$65536) -> 0 | J115: =SUMIF(dati_sp!$H$2:$H$65536,s_bil_std!$A115,dati_sp!$C$2:$C$65536) -> 0 | L115: =SUMIF(dati_sp!$H$2:$H$65536,s_bil_std!$A115,dati_sp!$D$2:$D$65536) -> 0 | M115: =SUMIF(dati_sp!$H$2:$H$65536,s_bil_std!$A115,dati_sp!$D$2:$D$65536) -> 0 | O115: =SUMIF(dati_sp!$H$2:$H$65536,s_bil_std!$A115,dati_sp!$E$2:$E$65536) -> 0 | P115: =SUMIF(dati_sp!$H$2:$H$65536,s_bil_std!$A115,dati_sp!$E$2:$E$65536) -> 0 | R115: =SUMIF(dati_sp!$H$2:$H$65536,s_bil_std!$A115,dati_sp!$F$2:$F$65536) -> 0 | S115: =SUMIF(dati_sp!$H$2:$H$65536,s_bil_std!$A115,dati_sp!$F$2:$F$65536) -> 0 | U115: =SUMIF(dati_sp!$H$2:$H$65536,s_bil_std!$A115,dati_sp!$G$2:$G$65536) -> 0 | V115: =SUMIF(dati_sp!$H$2:$H$65536,s_bil_std!$A115,dati_sp!$G$2:$G$65536) -> 0 | Y115: 0 | Z115: 0 | AA115: 0 | AB115: 0 | AC115: 0
A116: 2.A.7.12 | B116: Riserva avanzo di fusione | C116: NO | D116: Dett. | E116: Dett. | I116: =SUMIF(dati_sp!$H$2:$H$65536,s_bil_std!$A116,dati_sp!$C$2:$C$65536) -> 0 | J116: =SUMIF(dati_sp!$H$2:$H$65536,s_bil_std!$A116,dati_sp!$C$2:$C$65536) -> 0 | L116: =SUMIF(dati_sp!$H$2:$H$65536,s_bil_std!$A116,dati_sp!$D$2:$D$65536) -> 0 | M116: =SUMIF(dati_sp!$H$2:$H$65536,s_bil_std!$A116,dati_sp!$D$2:$D$65536) -> 0 | O116: =SUMIF(dati_sp!$H$2:$H$65536,s_bil_std!$A116,dati_sp!$E$2:$E$65536) -> 0 | P116: =SUMIF(dati_sp!$H$2:$H$65536,s_bil_std!$A116,dati_sp!$E$2:$E$65536) -> 0 | R116: =SUMIF(dati_sp!$H$2:$H$65536,s_bil_std!$A116,dati_sp!$F$2:$F$65536) -> 0 | S116: =SUMIF(dati_sp!$H$2:$H$65536,s_bil_std!$A116,dati_sp!$F$2:$F$65536) -> 0 | U116: =SUMIF(dati_sp!$H$2:$H$65536,s_bil_std!$A116,dati_sp!$G$2:$G$65536) -> 0 | V116: =SUMIF(dati_sp!$H$2:$H$65536,s_bil_std!$A116,dati_sp!$G$2:$G$65536) -> 0 | Y116: 0 | Z116: 0 | AA116: 0 | AB116: 0 | AC116: 0
A117: 2.A.7.13 | B117: Riserva contributi in conto capitale | C117: NO | D117: Dett. | E117: Dett. | I117: =SUMIF(dati_sp!$H$2:$H$65536,s_bil_std!$A117,dati_sp!$C$2:$C$65536) -> 0 | J117: =SUMIF(dati_sp!$H$2:$H$65536,s_bil_std!$A117,dati_sp!$C$2:$C$65536) -> 0 | L117: =SUMIF(dati_sp!$H$2:$H$65536,s_bil_std!$A117,dati_sp!$D$2:$D$65536) -> 0 | M117: =SUMIF(dati_sp!$H$2:$H$65536,s_bil_std!$A117,dati_sp!$D$2:$D$65536) -> 0 | O117: =SUMIF(dati_sp!$H$2:$H$65536,s_bil_std!$A117,dati_sp!$E$2:$E$65536) -> 0 | P117: =SUMIF(dati_sp!$H$2:$H$65536,s_bil_std!$A117,dati_sp!$E$2:$E$65536) -> 0 | R117: =SUMIF(dati_sp!$H$2:$H$65536,s_bil_std!$A117,dati_sp!$F$2:$F$65536) -> 0 | S117: =SUMIF(dati_sp!$H$2:$H$65536,s_bil_std!$A117,dati_sp!$F$2:$F$65536) -> 0 | U117: =SUMIF(dati_sp!$H$2:$H$65536,s_bil_std!$A117,dati_sp!$G$2:$G$65536) -> 0 | V117: =SUMIF(dati_sp!$H$2:$H$65536,s_bil_std!$A117,dati_sp!$G$2:$G$65536) -> 0 | Y117: 0 | Z117: 0 | AA117: 0 | AB117: 0 | AC117: 0
A118: 2.A.7.14 | B118: Riserva da conversione in Euro | C118: NO | D118: Dett. | E118: Dett. | I118: =SUMIF(dati_sp!$H$2:$H$65536,s_bil_std!$A118,dati_sp!$C$2:$C$65536) -> 0 | J118: =SUMIF(dati_sp!$H$2:$H$65536,s_bil_std!$A118,dati_sp!$C$2:$C$65536) -> 0 | L118: =SUMIF(dati_sp!$H$2:$H$65536,s_bil_std!$A118,dati_sp!$D$2:$D$65536) -> 0 | M118: =SUMIF(dati_sp!$H$2:$H$65536,s_bil_std!$A118,dati_sp!$D$2:$D$65536) -> 0 | O118: =SUMIF(dati_sp!$H$2:$H$65536,s_bil_std!$A118,dati_sp!$E$2:$E$65536) -> 0 | P118: =SUMIF(dati_sp!$H$2:$H$65536,s_bil_std!$A118,dati_sp!$E$2:$E$65536) -> 0 | R118: =SUMIF(dati_sp!$H$2:$H$65536,s_bil_std!$A118,dati_sp!$F$2:$F$65536) -> 0 | S118: =SUMIF(dati_sp!$H$2:$H$65536,s_bil_std!$A118,dati_sp!$F$2:$F$65536) -> 0 | U118: =SUMIF(dati_sp!$H$2:$H$65536,s_bil_std!$A118,dati_sp!$G$2:$G$65536) -> 0 | V118: =SUMIF(dati_sp!$H$2:$H$65536,s_bil_std!$A118,dati_sp!$G$2:$G$65536) -> 0 | Y118: 0 | Z118: 0 | AA118: 0 | AB118: 0 | AC118: 0
A119: 2.A.7.15 | B119: Riserva da condono fiscale | C119: NO | D119: Dett. | E119: Dett. | I119: =SUMIF(dati_sp!$H$2:$H$65536,s_bil_std!$A119,dati_sp!$C$2:$C$65536) -> 0 | J119: =SUMIF(dati_sp!$H$2:$H$65536,s_bil_std!$A119,dati_sp!$C$2:$C$65536) -> 0 | L119: =SUMIF(dati_sp!$H$2:$H$65536,s_bil_std!$A119,dati_sp!$D$2:$D$65536) -> 0 | M119: =SUMIF(dati_sp!$H$2:$H$65536,s_bil_std!$A119,dati_sp!$D$2:$D$65536) -> 0 | O119: =SUMIF(dati_sp!$H$2:$H$65536,s_bil_std!$A119,dati_sp!$E$2:$E$65536) -> 0 | P119: =SUMIF(dati_sp!$H$2:$H$65536,s_bil_std!$A119,dati_sp!$E$2:$E$65536) -> 0 | R119: =SUMIF(dati_sp!$H$2:$H$65536,s_bil_std!$A119,dati_sp!$F$2:$F$65536) -> 0 | S119: =SUMIF(dati_sp!$H$2:$H$65536,s_bil_std!$A119,dati_sp!$F$2:$F$65536) -> 0 | U119: =SUMIF(dati_sp!$H$2:$H$65536,s_bil_std!$A119,dati_sp!$G$2:$G$65536) -> 0 | V119: =SUMIF(dati_sp!$H$2:$H$65536,s_bil_std!$A119,dati_sp!$G$2:$G$65536) -> 0 | Y119: 0 | Z119: 0 | AA119: 0 | AB119: 0 | AC119: 0
A120: 2.A.7.16 | B120: Riserva per utili su cambi | C120: NO | D120: Dett. | E120: Dett. | I120: =SUMIF(dati_sp!$H$2:$H$65536,s_bil_std!$A120,dati_sp!$C$2:$C$65536) -> 0 | J120: =SUMIF(dati_sp!$H$2:$H$65536,s_bil_std!$A120,dati_sp!$C$2:$C$65536) -> 0 | L120: =SUMIF(dati_sp!$H$2:$H$65536,s_bil_std!$A120,dati_sp!$D$2:$D$65536) -> 0 | M120: =SUMIF(dati_sp!$H$2:$H$65536,s_bil_std!$A120,dati_sp!$D$2:$D$65536) -> 0 | O120: =SUMIF(dati_sp!$H$2:$H$65536,s_bil_std!$A120,dati_sp!$E$2:$E$65536) -> 0 | P120: =SUMIF(dati_sp!$H$2:$H$65536,s_bil_std!$A120,dati_sp!$E$2:$E$65536) -> 0 | R120: =SUMIF(dati_sp!$H$2:$H$65536,s_bil_std!$A120,dati_sp!$F$2:$F$65536) -> 0 | S120: =SUMIF(dati_sp!$H$2:$H$65536,s_bil_std!$A120,dati_sp!$F$2:$F$65536) -> 0 | U120: =SUMIF(dati_sp!$H$2:$H$65536,s_bil_std!$A120,dati_sp!$G$2:$G$65536) -> 0 | V120: =SUMIF(dati_sp!$H$2:$H$65536,s_bil_std!$A120,dati_sp!$G$2:$G$65536) -> 0 | Y120: 0 | Z120: 0 | AA120: 0 | AB120: 0 | AC120: 0
A121: 2.A.7.17 | B121: Riserva per differenza da arrotondamento all'unità di euro | C121: NO | D121: Dett. | E121: Dett. | I121: =SUMIF(dati_sp!$H$2:$H$65536,s_bil_std!$A121,dati_sp!$C$2:$C$65536) -> 0 | J121: =SUMIF(dati_sp!$H$2:$H$65536,s_bil_std!$A121,dati_sp!$C$2:$C$65536) -> 0 | L121: =SUMIF(dati_sp!$H$2:$H$65536,s_bil_std!$A121,dati_sp!$D$2:$D$65536) -> 0 | M121: =SUMIF(dati_sp!$H$2:$H$65536,s_bil_std!$A121,dati_sp!$D$2:$D$65536) -> 0 | O121: =SUMIF(dati_sp!$H$2:$H$65536,s_bil_std!$A121,dati_sp!$E$2:$E$65536) -> 0 | P121: =SUMIF(dati_sp!$H$2:$H$65536,s_bil_std!$A121,dati_sp!$E$2:$E$65536) -> 0 | R121: =SUMIF(dati_sp!$H$2:$H$65536,s_bil_std!$A121,dati_sp!$F$2:$F$65536) -> 0 | S121: =SUMIF(dati_sp!$H$2:$H$65536,s_bil_std!$A121,dati_sp!$F$2:$F$65536) -> 0 | U121: =SUMIF(dati_sp!$H$2:$H$65536,s_bil_std!$A121,dati_sp!$G$2:$G$65536) -> 0 | V121: =SUMIF(dati_sp!$H$2:$H$65536,s_bil_std!$A121,dati_sp!$G$2:$G$65536) -> 0 | Y121: 0 | Z121: 0 | AA121: 0 | AB121: 0 | AC121: 0
A122: 2.A.7.99 | B122: Varie altre riserve | C122: NO | D122: Dett. | E122: Dett. | I122: =SUMIF(dati_sp!$H$2:$H$65536,s_bil_std!$A122,dati_sp!$C$2:$C$65536) -> 1 | J122: =SUMIF(dati_sp!$H$2:$H$65536,s_bil_std!$A122,dati_sp!$C$2:$C$65536) -> 1 | L122: =SUMIF(dati_sp!$H$2:$H$65536,s_bil_std!$A122,dati_sp!$D$2:$D$65536) -> 0 | M122: =SUMIF(dati_sp!$H$2:$H$65536,s_bil_std!$A122,dati_sp!$D$2:$D$65536) -> 0 | O122: =SUMIF(dati_sp!$H$2:$H$65536,s_bil_std!$A122,dati_sp!$E$2:$E$65536) -> 0 | P122: =SUMIF(dati_sp!$H$2:$H$65536,s_bil_std!$A122,dati_sp!$E$2:$E$65536) -> 0 | R122: =SUMIF(dati_sp!$H$2:$H$65536,s_bil_std!$A122,dati_sp!$F$2:$F$65536) -> 0 | S122: =SUMIF(dati_sp!$H$2:$H$65536,s_bil_std!$A122,dati_sp!$F$2:$F$65536) -> 0 | U122: =SUMIF(dati_sp!$H$2:$H$65536,s_bil_std!$A122,dati_sp!$G$2:$G$65536) -> 0 | V122: =SUMIF(dati_sp!$H$2:$H$65536,s_bil_std!$A122,dati_sp!$G$2:$G$65536) -> 0 | Y122: 1 | Z122: 0 | AA122: 0 | AB122: 0 | AC122: 0
A123: 2.A.7.101 | B123: Riserve di conversione da consolidamento estero | C123: SI | D123: Dett. | E123: Dett. | I123: =SUMIF(dati_sp!$H$2:$H$65536,s_bil_std!$A123,dati_sp!$C$2:$C$65536) -> 0 | L123: =SUMIF(dati_sp!$H$2:$H$65536,s_bil_std!$A123,dati_sp!$D$2:$D$65536) -> 0 | O123: =SUMIF(dati_sp!$H$2:$H$65536,s_bil_std!$A123,dati_sp!$E$2:$E$65536) -> 0 | R123: =SUMIF(dati_sp!$H$2:$H$65536,s_bil_std!$A123,dati_sp!$F$2:$F$65536) -> 0 | U123: =SUMIF(dati_sp!$H$2:$H$65536,s_bil_std!$A123,dati_sp!$G$2:$G$65536) -> 0 | Y123: 0 | Z123: 0 | AA123: 0 | AB123: 0 | AC123: 0
A124: 2.A.7.103 | B124: Riserva di consolidamento | C124: SI | D124: Dett. | E124: Dett. | I124: =SUMIF(dati_sp!$H$2:$H$65536,s_bil_std!$A124,dati_sp!$C$2:$C$65536) -> 0 | L124: =SUMIF(dati_sp!$H$2:$H$65536,s_bil_std!$A124,dati_sp!$D$2:$D$65536) -> 0 | O124: =SUMIF(dati_sp!$H$2:$H$65536,s_bil_std!$A124,dati_sp!$E$2:$E$65536) -> 0 | R124: =SUMIF(dati_sp!$H$2:$H$65536,s_bil_std!$A124,dati_sp!$F$2:$F$65536) -> 0 | U124: =SUMIF(dati_sp!$H$2:$H$65536,s_bil_std!$A124,dati_sp!$G$2:$G$65536) -> 0 | Y124: 0 | Z124: 0 | AA124: 0 | AB124: 0 | AC124: 0
A125: 2.A.8 | B125: Utili (perdite) portati a nuovo | C125: NO | D125: Dett. | E125: Dett. | F125: 171 | I125: =SUMIF(dati_sp!$H$2:$H$65536,s_bil_std!$A125,dati_sp!$C$2:$C$65536) -> 64367 | J125: =SUMIF(dati_sp!$H$2:$H$65536,s_bil_std!$A125,dati_sp!$C$2:$C$65536) -> 64367 | L125: =SUMIF(dati_sp!$H$2:$H$65536,s_bil_std!$A125,dati_sp!$D$2:$D$65536) -> 63824 | M125: =SUMIF(dati_sp!$H$2:$H$65536,s_bil_std!$A125,dati_sp!$D$2:$D$65536) -> 63824 | O125: =SUMIF(dati_sp!$H$2:$H$65536,s_bil_std!$A125,dati_sp!$E$2:$E$65536) -> 0 | P125: =SUMIF(dati_sp!$H$2:$H$65536,s_bil_std!$A125,dati_sp!$E$2:$E$65536) -> 0 | R125: =SUMIF(dati_sp!$H$2:$H$65536,s_bil_std!$A125,dati_sp!$F$2:$F$65536) -> 0 | S125: =SUMIF(dati_sp!$H$2:$H$65536,s_bil_std!$A125,dati_sp!$F$2:$F$65536) -> 0 | U125: =SUMIF(dati_sp!$H$2:$H$65536,s_bil_std!$A125,dati_sp!$G$2:$G$65536) -> 0 | V125: =SUMIF(dati_sp!$H$2:$H$65536,s_bil_std!$A125,dati_sp!$G$2:$G$65536) -> 0 | Y125: 64367 | Z125: 63824 | AA125: 0 | AB125: 0 | AC125: 0 | AE125: VIII -
A126: 2.A.9 | B126: Utile (perdita) dell'esercizio | C126: NO | D126: Dett. | E126: Dett. | F126: 172 | I126: =SUMIF(dati_sp!$H$2:$H$65536,s_bil_std!$A126,dati_sp!$C$2:$C$65536) -> 0 | J126: =SUMIF(dati_sp!$H$2:$H$65536,s_bil_std!$A126,dati_sp!$C$2:$C$65536) -> 0 | L126: =SUMIF(dati_sp!$H$2:$H$65536,s_bil_std!$A126,dati_sp!$D$2:$D$65536) -> 0 | M126: =SUMIF(dati_sp!$H$2:$H$65536,s_bil_std!$A126,dati_sp!$D$2:$D$65536) -> 0 | O126: =SUMIF(dati_sp!$H$2:$H$65536,s_bil_std!$A126,dati_sp!$E$2:$E$65536) -> 0 | P126: =SUMIF(dati_sp!$H$2:$H$65536,s_bil_std!$A126,dati_sp!$E$2:$E$65536) -> 0 | R126: =SUMIF(dati_sp!$H$2:$H$65536,s_bil_std!$A126,dati_sp!$F$2:$F$65536) -> 0 | S126: =SUMIF(dati_sp!$H$2:$H$65536,s_bil_std!$A126,dati_sp!$F$2:$F$65536) -> 0 | U126: =SUMIF(dati_sp!$H$2:$H$65536,s_bil_std!$A126,dati_sp!$G$2:$G$65536) -> 0 | V126: =SUMIF(dati_sp!$H$2:$H$65536,s_bil_std!$A126,dati_sp!$G$2:$G$65536) -> 0 | Y126: 0 | Z126: 0 | AA126: 0 | AB126: 0 | AC126: 0 | AE126: IX -
A127: 2.A.10 | B127: TOTALE PATRIMONIO NETTO DI GRUPPO | C127: SI | D127: Totale | I127: =SUM(I97:I103,I125:I126) -> 92654 | L127: =SUM(L97:L103,L125:L126) -> 92110 | O127: =SUM(O97:O103,O125:O126) -> 0 | R127: =SUM(R97:R103,R125:R126) -> 0 | U127: =SUM(U97:U103,U125:U126) -> 0 | Y127: 0 | Z127: 0 | AA127: 0 | AB127: 0 | AC127: 0
A128: 2.A.11 | B128: PATRIMONIO NETTO DI TERZI | C128: SI | D128: Totale | F128: 168 | I128: =SUM(I129:I130) -> 0 | L128: =SUM(L129:L130) -> 0 | O128: =SUM(O129:O130) -> 0 | R128: =SUM(R129:R130) -> 0 | U128: =SUM(U129:U130) -> 0 | Y128: =IF($AA$2="1",I128,J128) -> 0 | Z128: =IF($AA$2="1",L128,M128) -> 0 | AA128: =IF($AA$2="1",O128,P128) -> 0 | AB128: =IF($AA$2="1",R128,S128) -> 0 | AC128: =IF($AA$2="1",U128,V128) -> 0
A129: 2.A.11.1 | B129: Capitale e riserve di terzi | C129: SI | D129: Dett. | I129: =SUMIF(dati_sp!$H$2:$H$65536,s_bil_std!$A129,dati_sp!$C$2:$C$65536) -> 0 | L129: =SUMIF(dati_sp!$H$2:$H$65536,s_bil_std!$A129,dati_sp!$D$2:$D$65536) -> 0 | O129: =SUMIF(dati_sp!$H$2:$H$65536,s_bil_std!$A129,dati_sp!$E$2:$E$65536) -> 0 | R129: =SUMIF(dati_sp!$H$2:$H$65536,s_bil_std!$A129,dati_sp!$F$2:$F$65536) -> 0 | U129: =SUMIF(dati_sp!$H$2:$H$65536,s_bil_std!$A129,dati_sp!$G$2:$G$65536) -> 0 | Y129: 0 | Z129: 0 | AA129: 0 | AB129: 0 | AC129: 0
A130: 2.A.11.2 | B130: Utile (perdita) dell'esercizio di pertinenza di terzi | C130: SI | D130: Dett. | I130: =SUMIF(dati_sp!$H$2:$H$65536,s_bil_std!$A130,dati_sp!$C$2:$C$65536) -> 0 | L130: =SUMIF(dati_sp!$H$2:$H$65536,s_bil_std!$A130,dati_sp!$D$2:$D$65536) -> 0 | O130: =SUMIF(dati_sp!$H$2:$H$65536,s_bil_std!$A130,dati_sp!$E$2:$E$65536) -> 0 | R130: =SUMIF(dati_sp!$H$2:$H$65536,s_bil_std!$A130,dati_sp!$F$2:$F$65536) -> 0 | U130: =SUMIF(dati_sp!$H$2:$H$65536,s_bil_std!$A130,dati_sp!$G$2:$G$65536) -> 0 | Y130: 0 | Z130: 0 | AA130: 0 | AB130: 0 | AC130: 0
A131: 2.B | B131: FONDI PER RISCHI E ONERI | C131: NO | D131: Totale | E131: Dett. | F131: 170 | G131: 170 | I131: =SUM(I132:I135) -> 0 | J131: =SUMIF(dati_sp!$H$2:$H$65536,s_bil_std!$A131,dati_sp!$C$2:$C$65536) -> 0 | L131: =SUM(L132:L135) -> 0 | M131: =SUMIF(dati_sp!$H$2:$H$65536,s_bil_std!$A131,dati_sp!$D$2:$D$65536) -> 0 | O131: =SUM(O132:O135) -> 0 | P131: =SUMIF(dati_sp!$H$2:$H$65536,s_bil_std!$A131,dati_sp!$E$2:$E$65536) -> 0 | R131: =SUM(R132:R135) -> 0 | S131: =SUMIF(dati_sp!$H$2:$H$65536,s_bil_std!$A131,dati_sp!$F$2:$F$65536) -> 0 | U131: =SUM(U132:U135) -> 0 | V131: =SUMIF(dati_sp!$H$2:$H$65536,s_bil_std!$A131,dati_sp!$G$2:$G$65536) -> 0 | Y131: 0 | Z131: 0 | AA131: 0 | AB131: 0 | AC131: 0 | AE131: B)
A132: 2.B.1 | B132: Fondo per trattamento di quiescenza e obblighi simili | C132: NO | D132: Dett. | F132: 173 | I132: =SUMIF(dati_sp!$H$2:$H$65536,s_bil_std!$A132,dati_sp!$C$2:$C$65536) -> 0 | L132: =SUMIF(dati_sp!$H$2:$H$65536,s_bil_std!$A132,dati_sp!$D$2:$D$65536) -> 0 | O132: =SUMIF(dati_sp!$H$2:$H$65536,s_bil_std!$A132,dati_sp!$E$2:$E$65536) -> 0 | R132: =SUMIF(dati_sp!$H$2:$H$65536,s_bil_std!$A132,dati_sp!$F$2:$F$65536) -> 0 | U132: =SUMIF(dati_sp!$H$2:$H$65536,s_bil_std!$A132,dati_sp!$G$2:$G$65536) -> 0 | Y132: 0 | Z132: 0 | AA132: 0 | AB132: 0 | AC132: 0 | AE132: 1)
A133: 2.B.2 | B133: Fondo per imposte, anche differite | C133: NO | D133: Dett. | F133: 175 | G133: 175 | I133: =SUMIF(dati_sp!$H$2:$H$65536,s_bil_std!$A133,dati_sp!$C$2:$C$65536) -> 0 | L133: =SUMIF(dati_sp!$H$2:$H$65536,s_bil_std!$A133,dati_sp!$D$2:$D$65536) -> 0 | O133: =SUMIF(dati_sp!$H$2:$H$65536,s_bil_std!$A133,dati_sp!$E$2:$E$65536) -> 0 | R133: =SUMIF(dati_sp!$H$2:$H$65536,s_bil_std!$A133,dati_sp!$F$2:$F$65536) -> 0 | U133: =SUMIF(dati_sp!$H$2:$H$65536,s_bil_std!$A133,dati_sp!$G$2:$G$65536) -> 0 | Y133: 0 | Z133: 0 | AA133: 0 | AB133: 0 | AC133: 0 | AE133: 2)
A134: 2.B.2a | B134: Fondo consolidamento rischi e oneri futuri | C134: SI | D134: Dett. | F134: 174 | G134: 174 | I134: =SUMIF(dati_sp!$H$2:$H$65536,s_bil_std!$A134,dati_sp!$C$2:$C$65536) -> 0 | L134: =SUMIF(dati_sp!$H$2:$H$65536,s_bil_std!$A134,dati_sp!$D$2:$D$65536) -> 0 | O134: =SUMIF(dati_sp!$H$2:$H$65536,s_bil_std!$A134,dati_sp!$E$2:$E$65536) -> 0 | R134: =SUMIF(dati_sp!$H$2:$H$65536,s_bil_std!$A134,dati_sp!$F$2:$F$65536) -> 0 | U134: =SUMIF(dati_sp!$H$2:$H$65536,s_bil_std!$A134,dati_sp!$G$2:$G$65536) -> 0 | Y134: 0 | Z134: 0 | AA134: 0 | AB134: 0 | AC134: 0 | AE134: 4)
A135: 2.B.3 | B135: Atri fondi | C135: NO | D135: Dett. | F135: 174 | G135: 174 | I135: =SUMIF(dati_sp!$H$2:$H$65536,s_bil_std!$A135,dati_sp!$C$2:$C$65536) -> 0 | L135: =SUMIF(dati_sp!$H$2:$H$65536,s_bil_std!$A135,dati_sp!$D$2:$D$65536) -> 0 | O135: =SUMIF(dati_sp!$H$2:$H$65536,s_bil_std!$A135,dati_sp!$E$2:$E$65536) -> 0 | R135: =SUMIF(dati_sp!$H$2:$H$65536,s_bil_std!$A135,dati_sp!$F$2:$F$65536) -> 0 | U135: =SUMIF(dati_sp!$H$2:$H$65536,s_bil_std!$A135,dati_sp!$G$2:$G$65536) -> 0 | Y135: 0 | Z135: 0 | AA135: 0 | AB135: 0 | AC135: 0 | AE135: 3)
A136: 2.C | B136: TRATTAMENTO DI FINE RAPPORTO DI LAVORO | C136: NO | D136: Dett. | E136: Dett. | F136: 180 | G136: 180 | I136: =SUMIF(dati_sp!$H$2:$H$65536,s_bil_std!$A136,dati_sp!$C$2:$C$65536) -> 0 | J136: =SUMIF(dati_sp!$H$2:$H$65536,s_bil_std!$A136,dati_sp!$C$2:$C$65536) -> 0 | L136: =SUMIF(dati_sp!$H$2:$H$65536,s_bil_std!$A136,dati_sp!$D$2:$D$65536) -> 0 | M136: =SUMIF(dati_sp!$H$2:$H$65536,s_bil_std!$A136,dati_sp!$D$2:$D$65536) -> 0 | O136: =SUMIF(dati_sp!$H$2:$H$65536,s_bil_std!$A136,dati_sp!$E$2:$E$65536) -> 0 | P136: =SUMIF(dati_sp!$H$2:$H$65536,s_bil_std!$A136,dati_sp!$E$2:$E$65536) -> 0 | R136: =SUMIF(dati_sp!$H$2:$H$65536,s_bil_std!$A136,dati_sp!$F$2:$F$65536) -> 0 | S136: =SUMIF(dati_sp!$H$2:$H$65536,s_bil_std!$A136,dati_sp!$F$2:$F$65536) -> 0 | U136: =SUMIF(dati_sp!$H$2:$H$65536,s_bil_std!$A136,dati_sp!$G$2:$G$65536) -> 0 | V136: =SUMIF(dati_sp!$H$2:$H$65536,s_bil_std!$A136,dati_sp!$G$2:$G$65536) -> 0 | Y136: 0 | Z136: 0 | AA136: 0 | AB136: 0 | AC136: 0 | AE136: C)
A137: 2.D | B137: DEBITI | C137: NO | D137: Totale | E137: Dett. | F137: 190 | G137: 190 | I137: =SUM(I140,I143,I146,I149,I152,I155,I158,I161,I164,I167,I170,I173,I176,I179) -> 86818 | J137: =SUMIF(dati_sp!$H$2:$H$65536,s_bil_std!$A137,dati_sp!$C$2:$C$65536) -> 0 | L137: =SUM(L140,L143,L146,L149,L152,L155,L158,L161,L164,L167,L170,L173,L176,L179) -> 90304 | M137: =SUMIF(dati_sp!$H$2:$H$65536,s_bil_std!$A137,dati_sp!$D$2:$D$65536) -> 0 | O137: =SUM(O140,O143,O146,O149,O152,O155,O158,O161,O164,O167,O170,O173,O176,O179) -> 0 | P137: =SUMIF(dati_sp!$H$2:$H$65536,s_bil_std!$A137,dati_sp!$E$2:$E$65536) -> 0 | R137: =SUM(R140,R143,R146,R149,R152,R155,R158,R161,R164,R167,R170,R173,R176,R179) -> 0 | S137: =SUMIF(dati_sp!$H$2:$H$65536,s_bil_std!$A137,dati_sp!$F$2:$F$65536) -> 0 | U137: =SUM(U140,U143,U146,U149,U152,U155,U158,U161,U164,U167,U170,U173,U176,U179) -> 0 | V137: =SUMIF(dati_sp!$H$2:$H$65536,s_bil_std!$A137,dati_sp!$G$2:$G$65536) -> 0 | Y137: 0 | Z137: 0 | AA137: 0 | AB137: 0 | AC137: 0 | AE137: D)
A138: 2.D.a | B138: Entro l'esercizio successivo | F138: S201 | G138: 200 | I138: =SUM(I141,I144,I147,I150,I153,I156,I159,I162,I165,I168,I171,I174,I177,I180) -> 86818 | J138: =s_sep_ind!E45+s_sep_ind!F45 -> 0 | L138: =SUM(L141,L144,L147,L150,L153,L156,L159,L162,L165,L168,L171,L174,L177,L180) -> 90304 | M138: =s_sep_ind!I45+s_sep_ind!J45 -> 0 | O138: =SUM(O141,O144,O147,O150,O153,O156,O159,O162,O165,O168,O171,O174,O177,O180) -> 0 | P138: =s_sep_ind!M45+s_sep_ind!N45 -> 0 | R138: =SUM(R141,R144,R147,R150,R153,R156,R159,R162,R165,R168,R171,R174,R177,R180) -> 0 | S138: =s_sep_ind!Q45+s_sep_ind!R45 -> 0 | U138: =SUM(U141,U144,U147,U150,U153,U156,U159,U162,U165,U168,U171,U174,U177,U180) -> 0 | V138: =s_sep_ind!U45+s_sep_ind!V45 -> 0 | Y138: 0 | Z138: 0 | AA138: 0 | AB138: 0 | AC138: 0
A139: 2.D.b | B139: Oltre l'esercizio successivo | F139: 211 | I139: =SUM(I142,I145,I148,I151,I154,I157,I160,I163,I166,I169,I172,I175,I178,I181) -> 0 | J139: =s_sep_ind!E46 -> 0 | L139: =SUM(L142,L145,L148,L151,L154,L157,L160,L163,L166,L169,L172,L175,L178,L181) -> 0 | M139: =s_sep_ind!I46 -> 0 | O139: =SUM(O142,O145,O148,O151,O154,O157,O160,O163,O166,O169,O172,O175,O178,O181) -> 0 | P139: =s_sep_ind!M46 -> 0 | R139: =SUM(R142,R145,R148,R151,R154,R157,R160,R163,R166,R169,R172,R175,R178,R181) -> 0 | S139: =s_sep_ind!Q46 -> 0 | U139: =SUM(U142,U145,U148,U151,U154,U157,U160,U163,U166,U169,U172,U175,U178,U181) -> 0 | V139: =s_sep_ind!U46 -> 0 | Y139: 0 | Z139: 0 | AA139: 0 | AB139: 0 | AC139: 0
A140: 2.D.1 | B140: Debiti per obbligazioni | C140: NO | D140: Dett. | F140: 191 | I140: =SUMIF(dati_sp!$H$2:$H$65536,s_bil_std!$A140,dati_sp!$C$2:$C$65536) -> 0 | L140: =SUMIF(dati_sp!$H$2:$H$65536,s_bil_std!$A140,dati_sp!$D$2:$D$65536) -> 0 | O140: =SUMIF(dati_sp!$H$2:$H$65536,s_bil_std!$A140,dati_sp!$E$2:$E$65536) -> 0 | R140: =SUMIF(dati_sp!$H$2:$H$65536,s_bil_std!$A140,dati_sp!$F$2:$F$65536) -> 0 | U140: =SUMIF(dati_sp!$H$2:$H$65536,s_bil_std!$A140,dati_sp!$G$2:$G$65536) -> 0 | Y140: 0 | Z140: 0 | AA140: 0 | AB140: 0 | AC140: 0 | AE140: 1)
A141: 2.D.1.1 | B141: Entro l'esercizio successivo | C141: NO | D141: Sc. Temp. | I141: =s_sep_ind!C48+s_sep_ind!D48 -> 0 | L141: =s_sep_ind!G48+s_sep_ind!H48 -> 0 | O141: =s_sep_ind!K48+s_sep_ind!L48 -> 0 | R141: =s_sep_ind!O48+s_sep_ind!P48 -> 0 | U141: =s_sep_ind!S48+s_sep_ind!T48 -> 0 | Y141: 0 | Z141: 0 | AA141: 0 | AB141: 0 | AC141: 0
A142: 2.D.1.2 | B142: Oltre l'esercizio successivo | C142: NO | D142: Sc. Temp. | F142: 181 | I142: =s_sep_ind!C49 -> 0 | L142: =s_sep_ind!G49 -> 0 | O142: =s_sep_ind!K49 -> 0 | R142: =s_sep_ind!O49 -> 0 | U142: =s_sep_ind!S49 -> 0 | Y142: 0 | Z142: 0 | AA142: 0 | AB142: 0 | AC142: 0
A143: 2.D.2 | B143: Debiti per obbligazioni convertibili | C143: NO | D143: Dett. | F143: 192 | I143: =SUMIF(dati_sp!$H$2:$H$65536,s_bil_std!$A143,dati_sp!$C$2:$C$65536) -> 0 | L143: =SUMIF(dati_sp!$H$2:$H$65536,s_bil_std!$A143,dati_sp!$D$2:$D$65536) -> 0 | O143: =SUMIF(dati_sp!$H$2:$H$65536,s_bil_std!$A143,dati_sp!$E$2:$E$65536) -> 0 | R143: =SUMIF(dati_sp!$H$2:$H$65536,s_bil_std!$A143,dati_sp!$F$2:$F$65536) -> 0 | U143: =SUMIF(dati_sp!$H$2:$H$65536,s_bil_std!$A143,dati_sp!$G$2:$G$65536) -> 0 | Y143: 0 | Z143: 0 | AA143: 0 | AB143: 0 | AC143: 0 | AE143: 2)
A144: 2.D.2.1 | B144: Entro l'esercizio successivo | C144: NO | D144: Sc. Temp. | I144: =s_sep_ind!C51+s_sep_ind!D51 -> 0 | L144: =s_sep_ind!G51+s_sep_ind!H51 -> 0 | O144: =s_sep_ind!K51+s_sep_ind!L51 -> 0 | R144: =s_sep_ind!O51+s_sep_ind!P51 -> 0 | U144: =s_sep_ind!S51+s_sep_ind!T51 -> 0 | Y144: 0 | Z144: 0 | AA144: 0 | AB144: 0 | AC144: 0
A145: 2.D.2.2 | B145: Oltre l'esercizio successivo | C145: NO | D145: Sc. Temp. | F145: 182 | I145: =s_sep_ind!C52 -> 0 | L145: =s_sep_ind!G52 -> 0 | O145: =s_sep_ind!K52 -> 0 | R145: =s_sep_ind!O52 -> 0 | U145: =s_sep_ind!S52 -> 0 | Y145: 0 | Z145: 0 | AA145: 0 | AB145: 0 | AC145: 0
A146: 2.D.3 | B146: Debiti verso soci per finanziamenti | C146: NO | D146: Dett. | F146: 11400 | I146: =SUMIF(dati_sp!$H$2:$H$65536,s_bil_std!$A146,dati_sp!$C$2:$C$65536) -> 21490 | L146: =SUMIF(dati_sp!$H$2:$H$65536,s_bil_std!$A146,dati_sp!$D$2:$D$65536) -> 21490 | O146: =SUMIF(dati_sp!$H$2:$H$65536,s_bil_std!$A146,dati_sp!$E$2:$E$65536) -> 0 | R146: =SUMIF(dati_sp!$H$2:$H$65536,s_bil_std!$A146,dati_sp!$F$2:$F$65536) -> 0 | U146: =SUMIF(dati_sp!$H$2:$H$65536,s_bil_std!$A146,dati_sp!$G$2:$G$65536) -> 0 | Y146: 0 | Z146: 0 | AA146: 0 | AB146: 0 | AC146: 0 | AE146: 3)
A147: 2.D.3.1 | B147: Entro l'esercizio successivo | C147: NO | D147: Sc. Temp. | I147: =s_sep_ind!C54+s_sep_ind!D54 -> 21490 | L147: =s_sep_ind!G54+s_sep_ind!H54 -> 21490 | O147: =s_sep_ind!K54+s_sep_ind!L54 -> 0 | R147: =s_sep_ind!O54+s_sep_ind!P54 -> 0 | U147: =s_sep_ind!S54+s_sep_ind!T54 -> 0 | Y147: 0 | Z147: 0 | AA147: 0 | AB147: 0 | AC147: 0
A148: 2.D.3.2 | B148: Oltre l'esercizio successivo | C148: NO | D148: Sc. Temp. | F148: 11450 | I148: =s_sep_ind!C55 -> 0 | L148: =s_sep_ind!G55 -> 0 | O148: =s_sep_ind!K55 -> 0 | R148: =s_sep_ind!O55 -> 0 | U148: =s_sep_ind!S55 -> 0 | Y148: 0 | Z148: 0 | AA148: 0 | AB148: 0 | AC148: 0
A149: 2.D.4 | B149: Debiti verso banche | C149: NO | D149: T.per. | F149: 193 | I149: =SUMIF(dati_sp!$H$2:$H$65536,s_bil_std!$A149,dati_sp!$C$2:$C$65536) -> 1514 | L149: =SUMIF(dati_sp!$H$2:$H$65536,s_bil_std!$A149,dati_sp!$D$2:$D$65536) -> 5000 | O149: =SUMIF(dati_sp!$H$2:$H$65536,s_bil_std!$A149,dati_sp!$E$2:$E$65536) -> 0 | R149: =SUMIF(dati_sp!$H$2:$H$65536,s_bil_std!$A149,dati_sp!$F$2:$F$65536) -> 0 | U149: =SUMIF(dati_sp!$H$2:$H$65536,s_bil_std!$A149,dati_sp!$G$2:$G$65536) -> 0 | Y149: 0 | Z149: 0 | AA149: 0 | AB149: 0 | AC149: 0 | AE149: 4)
A150: 2.D.4.1 | B150: Entro l'esercizio successivo | C150: NO | D150: Sc. Temp. | F150: S202 | G150: 212 | I150: =s_sep_ind!C57+s_sep_ind!D57 -> 1514 | L150: =s_sep_ind!G57+s_sep_ind!H57 -> 5000 | O150: =s_sep_ind!K57+s_sep_ind!L57 -> 0 | R150: =s_sep_ind!O57+s_sep_ind!P57 -> 0 | U150: =s_sep_ind!S57+s_sep_ind!T57 -> 0 | Y150: 0 | Z150: 0 | AA150: 0 | AB150: 0 | AC150: 0
A151: 2.D.4.2 | B151: Oltre l'esercizio successivo | C151: NO | D151: Sc. Temp. | F151: 210 | G151: 210 | I151: =s_sep_ind!C58 -> 0 | L151: =s_sep_ind!G58 -> 0 | O151: =s_sep_ind!K58 -> 0 | R151: =s_sep_ind!O58 -> 0 | U151: =s_sep_ind!S58 -> 0 | Y151: 0 | Z151: 0 | AA151: 0 | AB151: 0 | AC151: 0
A152: 2.D.5 | B152: Debiti verso altri finanziatori | C152: NO | D152: Dett. | F152: 194 | I152: =SUMIF(dati_sp!$H$2:$H$65536,s_bil_std!$A152,dati_sp!$C$2:$C$65536) -> 0 | L152: =SUMIF(dati_sp!$H$2:$H$65536,s_bil_std!$A152,dati_sp!$D$2:$D$65536) -> 0 | O152: =SUMIF(dati_sp!$H$2:$H$65536,s_bil_std!$A152,dati_sp!$E$2:$E$65536) -> 0 | R152: =SUMIF(dati_sp!$H$2:$H$65536,s_bil_std!$A152,dati_sp!$F$2:$F$65536) -> 0 | U152: =SUMIF(dati_sp!$H$2:$H$65536,s_bil_std!$A152,dati_sp!$G$2:$G$65536) -> 0 | Y152: 0 | Z152: 0 | AA152: 0 | AB152: 0 | AC152: 0 | AE152: 5)
A153: 2.D.5.1 | B153: Entro l'esercizio successivo | C153: NO | D153: Sc. Temp. | I153: =s_sep_ind!C60+s_sep_ind!D60 -> 0 | L153: =s_sep_ind!G60+s_sep_ind!H60 -> 0 | O153: =s_sep_ind!K60+s_sep_ind!L60 -> 0 | R153: =s_sep_ind!O60+s_sep_ind!P60 -> 0 | U153: =s_sep_ind!S60+s_sep_ind!T60 -> 0 | Y153: 0 | Z153: 0 | AA153: 0 | AB153: 0 | AC153: 0
A154: 2.D.5.2 | B154: Oltre l'esercizio successivo | C154: NO | D154: Sc. Temp. | F154: 184 | I154: =s_sep_ind!C61 -> 0 | L154: =s_sep_ind!G61 -> 0 | O154: =s_sep_ind!K61 -> 0 | R154: =s_sep_ind!O61 -> 0 | U154: =s_sep_ind!S61 -> 0 | Y154: 0 | Z154: 0 | AA154: 0 | AB154: 0 | AC154: 0
A155: 2.D.6 | B155: Acconti da clienti | C155: NO | D155: Dett. | F155: 215 | I155: =SUMIF(dati_sp!$H$2:$H$65536,s_bil_std!$A155,dati_sp!$C$2:$C$65536) -> -6000 | L155: =SUMIF(dati_sp!$H$2:$H$65536,s_bil_std!$A155,dati_sp!$D$2:$D$65536) -> -6000 | O155: =SUMIF(dati_sp!$H$2:$H$65536,s_bil_std!$A155,dati_sp!$E$2:$E$65536) -> 0 | R155: =SUMIF(dati_sp!$H$2:$H$65536,s_bil_std!$A155,dati_sp!$F$2:$F$65536) -> 0 | U155: =SUMIF(dati_sp!$H$2:$H$65536,s_bil_std!$A155,dati_sp!$G$2:$G$65536) -> 0 | Y155: 0 | Z155: 0 | AA155: 0 | AB155: 0 | AC155: 0 | AE155: 6)
A156: 2.D.6.1 | B156: Entro l'esercizio successivo | C156: NO | D156: Sc. Temp. | I156: =s_sep_ind!C63+s_sep_ind!D63 -> -6000 | L156: =s_sep_ind!G63+s_sep_ind!H63 -> -6000 | O156: =s_sep_ind!K63+s_sep_ind!L63 -> 0 | R156: =s_sep_ind!O63+s_sep_ind!P63 -> 0 | U156: =s_sep_ind!S63+s_sep_ind!T63 -> 0 | Y156: 0 | Z156: 0 | AA156: 0 | AB156: 0 | AC156: 0
A157: 2.D.6.2 | B157: Oltre l'esercizio successivo | C157: NO | D157: Sc. Temp. | F157: 185 | I157: =s_sep_ind!C64 -> 0 | L157: =s_sep_ind!G64 -> 0 | O157: =s_sep_ind!K64 -> 0 | R157: =s_sep_ind!O64 -> 0 | U157: =s_sep_ind!S64 -> 0 | Y157: 0 | Z157: 0 | AA157: 0 | AB157: 0 | AC157: 0
A158: 2.D.7 | B158: Debiti verso fornitori | C158: NO | D158: Dett. | F158: 195 | G158: 195 | I158: =SUMIF(dati_sp!$H$2:$H$65536,s_bil_std!$A158,dati_sp!$C$2:$C$65536) -> 67139 | L158: =SUMIF(dati_sp!$H$2:$H$65536,s_bil_std!$A158,dati_sp!$D$2:$D$65536) -> 67139 | O158: =SUMIF(dati_sp!$H$2:$H$65536,s_bil_std!$A158,dati_sp!$E$2:$E$65536) -> 0 | R158: =SUMIF(dati_sp!$H$2:$H$65536,s_bil_std!$A158,dati_sp!$F$2:$F$65536) -> 0 | U158: =SUMIF(dati_sp!$H$2:$H$65536,s_bil_std!$A158,dati_sp!$G$2:$G$65536) -> 0 | Y158: 0 | Z158: 0 | AA158: 0 | AB158: 0 | AC158: 0 | AE158: 7)
A159: 2.D.7.1 | B159: Entro l'esercizio successivo | C159: NO | D159: Sc. Temp. | I159: =s_sep_ind!C66+s_sep_ind!D66 -> 67139 | L159: =s_sep_ind!G66+s_sep_ind!H66 -> 67139 | O159: =s_sep_ind!K66+s_sep_ind!L66 -> 0 | R159: =s_sep_ind!O66+s_sep_ind!P66 -> 0 | U159: =s_sep_ind!S66+s_sep_ind!T66 -> 0 | Y159: 0 | Z159: 0 | AA159: 0 | AB159: 0 | AC159: 0
A160: 2.D.7.2 | B160: Oltre l'esercizio successivo | C160: NO | D160: Sc. Temp. | F160: 186 | I160: =s_sep_ind!C67 -> 0 | L160: =s_sep_ind!G67 -> 0 | O160: =s_sep_ind!K67 -> 0 | R160: =s_sep_ind!O67 -> 0 | U160: =s_sep_ind!S67 -> 0 | Y160: =IF($AA$2="1",I160,J160) -> 0 | Z160: =IF($AA$2="1",L160,M160) -> 0 | AA160: =IF($AA$2="1",O160,P160) -> 0 | AB160: =IF($AA$2="1",R160,S160) -> 0 | AC160: =IF($AA$2="1",U160,V160) -> 0
A161: 2.D.8 | B161: Debiti rappresentati da titoli di credi | C161: NO | D161: Dett. | F161: 196 | I161: =SUMIF(dati_sp!$H$2:$H$65536,s_bil_std!$A161,dati_sp!$C$2:$C$65536) -> 0 | L161: =SUMIF(dati_sp!$H$2:$H$65536,s_bil_std!$A161,dati_sp!$D$2:$D$65536) -> 0 | O161: =SUMIF(dati_sp!$H$2:$H$65536,s_bil_std!$A161,dati_sp!$E$2:$E$65536) -> 0 | R161: =SUMIF(dati_sp!$H$2:$H$65536,s_bil_std!$A161,dati_sp!$F$2:$F$65536) -> 0 | U161: =SUMIF(dati_sp!$H$2:$H$65536,s_bil_std!$A161,dati_sp!$G$2:$G$65536) -> 0 | Y161: 0 | Z161: 0 | AA161: 0 | AB161: 0 | AC161: 0 | AE161: 8)
A162: 2.D.8.1 | B162: Entro l'esercizio successivo | C162: NO | D162: Sc. Temp. | I162: =s_sep_ind!C69+s_sep_ind!D69 -> 0 | L162: =s_sep_ind!G69+s_sep_ind!H69 -> 0 | O162: =s_sep_ind!K69+s_sep_ind!L69 -> 0 | R162: =s_sep_ind!O69+s_sep_ind!P69 -> 0 | U162: =s_sep_ind!S69+s_sep_ind!T69 -> 0 | Y162: 0 | Z162: 0 | AA162: 0 | AB162: 0 | AC162: 0
A163: 2.D.8.2 | B163: Oltre l'esercizio successivo | C163: NO | D163: Sc. Temp. | F163: 187 | I163: =s_sep_ind!C70 -> 0 | L163: =s_sep_ind!G70 -> 0 | O163: =s_sep_ind!K70 -> 0 | R163: =s_sep_ind!O70 -> 0 | U163: =s_sep_ind!S70 -> 0 | Y163: 0 | Z163: 0 | AA163: 0 | AB163: 0 | AC163: 0
A164: 2.D.9 | B164: Debiti verso imprese controllate | C164: NO | D164: Dett. | F164: 197 | I164: =SUMIF(dati_sp!$H$2:$H$65536,s_bil_std!$A164,dati_sp!$C$2:$C$65536) -> 0 | L164: =SUMIF(dati_sp!$H$2:$H$65536,s_bil_std!$A164,dati_sp!$D$2:$D$65536) -> 0 | O164: =SUMIF(dati_sp!$H$2:$H$65536,s_bil_std!$A164,dati_sp!$E$2:$E$65536) -> 0 | R164: =SUMIF(dati_sp!$H$2:$H$65536,s_bil_std!$A164,dati_sp!$F$2:$F$65536) -> 0 | U164: =SUMIF(dati_sp!$H$2:$H$65536,s_bil_std!$A164,dati_sp!$G$2:$G$65536) -> 0 | Y164: 0 | Z164: 0 | AA164: 0 | AB164: 0 | AC164: 0 | AE164: 9)
A165: 2.D.9.1 | B165: Entro l'esercizio successivo | C165: NO | D165: Sc. Temp. | I165: =s_sep_ind!C72+s_sep_ind!D72 -> 0 | L165: =s_sep_ind!G72+s_sep_ind!H72 -> 0 | O165: =s_sep_ind!K72+s_sep_ind!L72 -> 0 | R165: =s_sep_ind!O72+s_sep_ind!P72 -> 0 | U165: =s_sep_ind!S72+s_sep_ind!T72 -> 0 | Y165: 0 | Z165: 0 | AA165: 0 | AB165: 0 | AC165: 0
A166: 2.D.9.2 | B166: Oltre l'esercizio successivo | C166: NO | D166: Sc. Temp. | F166: 188 | I166: =s_sep_ind!C73 -> 0 | L166: =s_sep_ind!G73 -> 0 | O166: =s_sep_ind!K73 -> 0 | R166: =s_sep_ind!O73 -> 0 | U166: =s_sep_ind!S73 -> 0 | Y166: 0 | Z166: 0 | AA166: 0 | AB166: 0 | AC166: 0
A167: 2.D.10 | B167: Debiti verso imprese collegate | C167: NO | D167: Dett. | F167: 198 | I167: =SUMIF(dati_sp!$H$2:$H$65536,s_bil_std!$A167,dati_sp!$C$2:$C$65536) -> 0 | L167: =SUMIF(dati_sp!$H$2:$H$65536,s_bil_std!$A167,dati_sp!$D$2:$D$65536) -> 0 | O167: =SUMIF(dati_sp!$H$2:$H$65536,s_bil_std!$A167,dati_sp!$E$2:$E$65536) -> 0 | R167: =SUMIF(dati_sp!$H$2:$H$65536,s_bil_std!$A167,dati_sp!$F$2:$F$65536) -> 0 | U167: =SUMIF(dati_sp!$H$2:$H$65536,s_bil_std!$A167,dati_sp!$G$2:$G$65536) -> 0 | Y167: 0 | Z167: 0 | AA167: 0 | AB167: 0 | AC167: 0 | AE167: 10)
A168: 2.D.10.1 | B168: Entro l'esercizio successivo | C168: NO | D168: Sc. Temp. | I168: =s_sep_ind!C75+s_sep_ind!D75 -> 0 | L168: =s_sep_ind!G75+s_sep_ind!H75 -> 0 | O168: =s_sep_ind!K75+s_sep_ind!L75 -> 0 | R168: =s_sep_ind!O75+s_sep_ind!P75 -> 0 | U168: =s_sep_ind!S75+s_sep_ind!T75 -> 0 | Y168: 0 | Z168: 0 | AA168: 0 | AB168: 0 | AC168: 0
A169: 2.D.10.2 | B169: Oltre l'esercizio successivo | C169: NO | D169: Sc. Temp. | F169: 189 | I169: =s_sep_ind!C76 -> 0 | L169: =s_sep_ind!G76 -> 0 | O169: =s_sep_ind!K76 -> 0 | R169: =s_sep_ind!O76 -> 0 | U169: =s_sep_ind!S76 -> 0 | Y169: 0 | Z169: 0 | AA169: 0 | AB169: 0 | AC169: 0
A170: 2.D.11 | B170: Debiti verso imprese controllanti | C170: NO | D170: Dett. | F170: 199 | I170: =SUMIF(dati_sp!$H$2:$H$65536,s_bil_std!$A170,dati_sp!$C$2:$C$65536) -> 0 | L170: =SUMIF(dati_sp!$H$2:$H$65536,s_bil_std!$A170,dati_sp!$D$2:$D$65536) -> 0 | O170: =SUMIF(dati_sp!$H$2:$H$65536,s_bil_std!$A170,dati_sp!$E$2:$E$65536) -> 0 | R170: =SUMIF(dati_sp!$H$2:$H$65536,s_bil_std!$A170,dati_sp!$F$2:$F$65536) -> 0 | U170: =SUMIF(dati_sp!$H$2:$H$65536,s_bil_std!$A170,dati_sp!$G$2:$G$65536) -> 0 | Y170: 0 | Z170: 0 | AA170: 0 | AB170: 0 | AC170: 0 | AE170: 11)
A171: 2.D.11.1 | B171: Entro l'esercizio successivo | C171: NO | D171: Sc. Temp. | I171: =s_sep_ind!C78+s_sep_ind!D78 -> 0 | L171: =s_sep_ind!G78+s_sep_ind!H78 -> 0 | O171: =s_sep_ind!K78+s_sep_ind!L78 -> 0 | R171: =s_sep_ind!O78+s_sep_ind!P78 -> 0 | U171: =s_sep_ind!S78+s_sep_ind!T78 -> 0 | Y171: 0 | Z171: 0 | AA171: 0 | AB171: 0 | AC171: 0
A172: 2.D.11.2 | B172: Oltre l'esercizio successivo | C172: NO | D172: Sc. Temp. | F172: 204 | I172: =s_sep_ind!C79 -> 0 | L172: =s_sep_ind!G79 -> 0 | O172: =s_sep_ind!K79 -> 0 | R172: =s_sep_ind!O79 -> 0 | U172: =s_sep_ind!S79 -> 0 | Y172: 0 | Z172: 0 | AA172: 0 | AB172: 0 | AC172: 0
A173: 2.D.12 | B173: Debiti tributari | C173: NO | D173: Dett. | F173: 201 | I173: =SUMIF(dati_sp!$H$2:$H$65536,s_bil_std!$A173,dati_sp!$C$2:$C$65536) -> 440 | L173: =SUMIF(dati_sp!$H$2:$H$65536,s_bil_std!$A173,dati_sp!$D$2:$D$65536) -> 440 | O173: =SUMIF(dati_sp!$H$2:$H$65536,s_bil_std!$A173,dati_sp!$E$2:$E$65536) -> 0 | R173: =SUMIF(dati_sp!$H$2:$H$65536,s_bil_std!$A173,dati_sp!$F$2:$F$65536) -> 0 | U173: =SUMIF(dati_sp!$H$2:$H$65536,s_bil_std!$A173,dati_sp!$G$2:$G$65536) -> 0 | Y173: 0 | Z173: 0 | AA173: 0 | AB173: 0 | AC173: 0 | AE173: 12)
A174: 2.D.12.1 | B174: Entro l'esercizio successivo | C174: NO | D174: Sc. Temp. | I174: =s_sep_ind!C81+s_sep_ind!D81 -> 440 | L174: =s_sep_ind!G81+s_sep_ind!H81 -> 440 | O174: =s_sep_ind!K81+s_sep_ind!L81 -> 0 | R174: =s_sep_ind!O81+s_sep_ind!P81 -> 0 | U174: =s_sep_ind!S81+s_sep_ind!T81 -> 0 | Y174: 0 | Z174: 0 | AA174: 0 | AB174: 0 | AC174: 0
A175: 2.D.12.2 | B175: Oltre l'esercizio successivo | C175: NO | D175: Sc. Temp. | F175: 205 | I175: =s_sep_ind!C82 -> 0 | L175: =s_sep_ind!G82 -> 0 | O175: =s_sep_ind!K82 -> 0 | R175: =s_sep_ind!O82 -> 0 | U175: =s_sep_ind!S82 -> 0 | Y175: 0 | Z175: 0 | AA175: 0 | AB175: 0 | AC175: 0
A176: 2.D.13 | B176: Debiti verso istituti di previdenza e di sicurezza sociale | C176: NO | D176: Dett. | F176: 202 | I176: =SUMIF(dati_sp!$H$2:$H$65536,s_bil_std!$A176,dati_sp!$C$2:$C$65536) -> 0 | L176: =SUMIF(dati_sp!$H$2:$H$65536,s_bil_std!$A176,dati_sp!$D$2:$D$65536) -> 0 | O176: =SUMIF(dati_sp!$H$2:$H$65536,s_bil_std!$A176,dati_sp!$E$2:$E$65536) -> 0 | R176: =SUMIF(dati_sp!$H$2:$H$65536,s_bil_std!$A176,dati_sp!$F$2:$F$65536) -> 0 | U176: =SUMIF(dati_sp!$H$2:$H$65536,s_bil_std!$A176,dati_sp!$G$2:$G$65536) -> 0 | Y176: 0 | Z176: 0 | AA176: 0 | AB176: 0 | AC176: 0 | AE176: 13)
A177: 2.D.13.1 | B177: Entro l'esercizio successivo | C177: NO | D177: Sc. Temp. | I177: =s_sep_ind!C84+s_sep_ind!D84 -> 0 | L177: =s_sep_ind!G84+s_sep_ind!H84 -> 0 | O177: =s_sep_ind!K84+s_sep_ind!L84 -> 0 | R177: =s_sep_ind!O84+s_sep_ind!P84 -> 0 | U177: =s_sep_ind!S84+s_sep_ind!T84 -> 0 | Y177: 0 | Z177: 0 | AA177: 0 | AB177: 0 | AC177: 0
A178: 2.D.13.2 | B178: Oltre l'esercizio successivo | C178: NO | D178: Sc. Temp. | F178: 206 | I178: =s_sep_ind!C85 -> 0 | L178: =s_sep_ind!G85 -> 0 | O178: =s_sep_ind!K85 -> 0 | R178: =s_sep_ind!O85 -> 0 | U178: =s_sep_ind!S85 -> 0 | Y178: 0 | Z178: 0 | AA178: 0 | AB178: 0 | AC178: 0
A179: 2.D.14 | B179: Altri debiti | C179: NO | D179: Dett. | F179: 203 | I179: =SUMIF(dati_sp!$H$2:$H$65536,s_bil_std!$A179,dati_sp!$C$2:$C$65536) -> 2235 | L179: =SUMIF(dati_sp!$H$2:$H$65536,s_bil_std!$A179,dati_sp!$D$2:$D$65536) -> 2235 | O179: =SUMIF(dati_sp!$H$2:$H$65536,s_bil_std!$A179,dati_sp!$E$2:$E$65536) -> 0 | R179: =SUMIF(dati_sp!$H$2:$H$65536,s_bil_std!$A179,dati_sp!$F$2:$F$65536) -> 0 | U179: =SUMIF(dati_sp!$H$2:$H$65536,s_bil_std!$A179,dati_sp!$G$2:$G$65536) -> 0 | Y179: 0 | Z179: 0 | AA179: 0 | AB179: 0 | AC179: 0 | AE179: 14)
A180: 2.D.14.1 | B180: Entro l'esercizio successivo | C180: NO | D180: Sc. Temp. | I180: =s_sep_ind!C87+s_sep_ind!D87 -> 2235 | L180: =s_sep_ind!G87+s_sep_ind!H87 -> 2235 | O180: =s_sep_ind!K87+s_sep_ind!L87 -> 0 | R180: =s_sep_ind!O87+s_sep_ind!O88 -> 0 | U180: =s_sep_ind!S87+s_sep_ind!T87 -> 0 | Y180: 0 | Z180: 0 | AA180: 0 | AB180: 0 | AC180: 0
A181: 2.D.14.2 | B181: Oltre l'esercizio successivo | C181: NO | D181: Sc. Temp. | F181: 207 | I181: =s_sep_ind!C88 -> 0 | L181: =s_sep_ind!G88 -> 0 | O181: =s_sep_ind!K88 -> 0 | R181: =s_sep_ind!P87 -> 0 | U181: =s_sep_ind!S88 -> 0 | Y181: 0 | Z181: 0 | AA181: 0 | AB181: 0 | AC181: 0
A182: 2.E | B182: RATEI E RISCONTI PASSIVI | C182: NO | D182: Totale | E182: Totale | F182: 220 | G182: 220 | I182: =SUM(I183:I184) -> 0 | J182: =SUM(J183:J184) -> 0 | L182: =SUM(L183:L184) -> 0 | M182: =SUM(M183:M184) -> 0 | O182: =SUM(O183:O184) -> 0 | P182: =SUM(P183:P184) -> 0 | R182: =SUM(R183:R184) -> 0 | S182: =SUM(S183:S184) -> 0 | U182: =SUM(U183:U184) -> 0 | V182: =SUM(V183:V184) -> 0 | Y182: 0 | Z182: 0 | AA182: 0 | AB182: 0 | AC182: 0 | AE182: E)
A183: 2.E.1 | B183: Aggio su prestiti | C183: NO | D183: Dett. | E183: Dett. | F183: 221 | I183: =SUMIF(dati_sp!$H$2:$H$65536,s_bil_std!$A183,dati_sp!$C$2:$C$65536) -> 0 | J183: =SUMIF(dati_sp!$H$2:$H$65536,s_bil_std!$A183,dati_sp!$C$2:$C$65536) -> 0 | L183: =SUMIF(dati_sp!$H$2:$H$65536,s_bil_std!$A183,dati_sp!$D$2:$D$65536) -> 0 | M183: =SUMIF(dati_sp!$H$2:$H$65536,s_bil_std!$A183,dati_sp!$D$2:$D$65536) -> 0 | O183: =SUMIF(dati_sp!$H$2:$H$65536,s_bil_std!$A183,dati_sp!$E$2:$E$65536) -> 0 | P183: =SUMIF(dati_sp!$H$2:$H$65536,s_bil_std!$A183,dati_sp!$E$2:$E$65536) -> 0 | R183: =SUMIF(dati_sp!$H$2:$H$65536,s_bil_std!$A183,dati_sp!$F$2:$F$65536) -> 0 | S183: =SUMIF(dati_sp!$H$2:$H$65536,s_bil_std!$A183,dati_sp!$F$2:$F$65536) -> 0 | U183: =SUMIF(dati_sp!$H$2:$H$65536,s_bil_std!$A183,dati_sp!$G$2:$G$65536) -> 0 | V183: =SUMIF(dati_sp!$H$2:$H$65536,s_bil_std!$A183,dati_sp!$G$2:$G$65536) -> 0 | Y183: 0 | Z183: 0 | AA183: 0 | AB183: 0 | AC183: 0
A184: 2.E.2 | B184: Altri ratei e risconti passivi | C184: NO | D184: Dett. | E184: Dett. | I184: =SUMIF(dati_sp!$H$2:$H$65536,s_bil_std!$A184,dati_sp!$C$2:$C$65536) -> 0 | J184: =SUMIF(dati_sp!$H$2:$H$65536,s_bil_std!$A184,dati_sp!$C$2:$C$65536) -> 0 | L184: =SUMIF(dati_sp!$H$2:$H$65536,s_bil_std!$A184,dati_sp!$D$2:$D$65536) -> 0 | M184: =SUMIF(dati_sp!$H$2:$H$65536,s_bil_std!$A184,dati_sp!$D$2:$D$65536) -> 0 | O184: =SUMIF(dati_sp!$H$2:$H$65536,s_bil_std!$A184,dati_sp!$E$2:$E$65536) -> 0 | P184: =SUMIF(dati_sp!$H$2:$H$65536,s_bil_std!$A184,dati_sp!$E$2:$E$65536) -> 0 | R184: =SUMIF(dati_sp!$H$2:$H$65536,s_bil_std!$A184,dati_sp!$F$2:$F$65536) -> 0 | S184: =SUMIF(dati_sp!$H$2:$H$65536,s_bil_std!$A184,dati_sp!$F$2:$F$65536) -> 0 | U184: =SUMIF(dati_sp!$H$2:$H$65536,s_bil_std!$A184,dati_sp!$G$2:$G$65536) -> 0 | V184: =SUMIF(dati_sp!$H$2:$H$65536,s_bil_std!$A184,dati_sp!$G$2:$G$65536) -> 0 | Y184: 0 | Z184: 0 | AA184: 0 | AB184: 0 | AC184: 0
B185: TOTALE PASSIVO | F185: 240 | G185: 240 | I185: =SUM(I182,I137,I136,I131,I96) -> 179472 | J185: =SUM(J182,J137,J136,J131,J96) -> 92654 | L185: =SUM(L182,L137,L136,L131,L96) -> 182414 | M185: =SUM(M182,M137,M136,M131,M96) -> 92110 | O185: =SUM(O182,O137,O136,O131,O96) -> 0 | P185: =SUM(P182,P137,P136,P131,P96) -> 0 | R185: =SUM(R182,R137,R136,R131,R96) -> 0 | S185: =SUM(S182,S137,S136,S131,S96) -> 0 | U185: =SUM(U182,U137,U136,U131,U96) -> 0 | V185: =SUM(V182,V137,V136,V131,V96) -> 0 | Y185: 92654 | Z185: 92110 | AA185: 0 | AB185: 0 | AC185: 0
A186: 3 | B186: Conto economico
A187: 3.A | B187: VALORE DELLA PRODUZIONE | C187: NO | D187: Totale | E187: Totale | F187: 270 | G187: 270 | I187: =SUM(I188:I192) -> 73800 | J187: =SUM(J188:J192) -> 73800 | L187: =SUM(L188:L192) -> 9425 | M187: =SUM(M188:M192) -> 9425 | O187: =SUM(O188:O192) -> 0 | P187: =SUM(P188:P192) -> 0 | R187: =SUM(R188:R192) -> 0 | S187: =SUM(S188:S192) -> 0 | U187: =SUM(U188:U192) -> 0 | V187: =SUM(V188:V192) -> 0 | Y187: =IF($AA$2="1",I187,J187) -> 73800 | Z187: =IF($AA$2="1",L187,M187) -> 9425 | AA187: =IF($AA$2="1",O187,P187) -> 0 | AB187: =IF($AA$2="1",R187,S187) -> 0 | AC187: =IF($AA$2="1",U187,V187) -> 0 | AE187: A)
A188: 3.A.1 | B188: Ricavi delle vendite e delle prestazioni | C188: NO | D188: Dett. | E188: Dett. | F188: 280 | G188: 280 | I188: =SUMIF(dati_ce!$H$2:$H$304,s_bil_std!$A188,dati_ce!$C$2:$C$304) -> 73800 | J188: =SUMIF(dati_ce!$H$2:$H$304,s_bil_std!$A188,dati_ce!$C$2:$C$304) -> 73800 | L188: =SUMIF(dati_ce!$H$2:$H$304,s_bil_std!$A188,dati_ce!$D$2:$D$304) -> 9425 | M188: =SUMIF(dati_ce!$H$2:$H$304,s_bil_std!$A188,dati_ce!$D$2:$D$304) -> 9425 | O188: =SUMIF(dati_ce!$H$2:$H$304,s_bil_std!$A188,dati_ce!$E$2:$E$304) -> 0 | P188: =SUMIF(dati_ce!$H$2:$H$304,s_bil_std!$A188,dati_ce!$E$2:$E$304) -> 0 | R188: =SUMIF(dati_ce!$H$2:$H$304,s_bil_std!$A188,dati_ce!$F$2:$F$304) -> 0 | S188: =SUMIF(dati_ce!$H$2:$H$304,s_bil_std!$A188,dati_ce!$F$2:$F$304) -> 0 | U188: =SUMIF(dati_ce!$H$2:$H$304,s_bil_std!$A188,dati_ce!$G$2:$G$304) -> 0 | V188: =SUMIF(dati_ce!$H$2:$H$304,s_bil_std!$A188,dati_ce!$G$2:$G$304) -> 0 | Y188: 73800 | Z188: 9425 | AA188: 0 | AB188: 0 | AC188: 0 | AE188: 1)
A189: 3.A.2 | B189: Variazione delle rimanenze di prodotti in corso di lavorazione, semilavorati e finiti | C189: NO | D189: Dett. | E189: Dett. | F189: 290 | G189: 290 | I189: =SUMIF(dati_ce!$H$2:$H$304,s_bil_std!$A189,dati_ce!$C$2:$C$304) -> 0 | J189: =SUMIF(dati_ce!$H$2:$H$304,s_bil_std!$A189,dati_ce!$C$2:$C$304) -> 0 | L189: =SUMIF(dati_ce!$H$2:$H$304,s_bil_std!$A189,dati_ce!$D$2:$D$304) -> 0 | M189: =SUMIF(dati_ce!$H$2:$H$304,s_bil_std!$A189,dati_ce!$D$2:$D$304) -> 0 | O189: =SUMIF(dati_ce!$H$2:$H$304,s_bil_std!$A189,dati_ce!$E$2:$E$304) -> 0 | P189: =SUMIF(dati_ce!$H$2:$H$304,s_bil_std!$A189,dati_ce!$E$2:$E$304) -> 0 | R189: =SUMIF(dati_ce!$H$2:$H$304,s_bil_std!$A189,dati_ce!$F$2:$F$304) -> 0 | S189: =SUMIF(dati_ce!$H$2:$H$304,s_bil_std!$A189,dati_ce!$F$2:$F$304) -> 0 | U189: =SUMIF(dati_ce!$H$2:$H$304,s_bil_std!$A189,dati_ce!$G$2:$G$304) -> 0 | V189: =SUMIF(dati_ce!$H$2:$H$304,s_bil_std!$A189,dati_ce!$G$2:$G$304) -> 0 | Y189: 0 | Z189: 0 | AA189: 0 | AB189: 0 | AC189: 0 | AE189: 2)
A190: 3.A.3 | B190: Variazione dei lavori in corso su ordinazione | C190: NO | D190: Dett. | E190: Dett. | F190: 285 | G190: 290 | I190: =SUMIF(dati_ce!$H$2:$H$304,s_bil_std!$A190,dati_ce!$C$2:$C$304) -> 0 | J190: =SUMIF(dati_ce!$H$2:$H$304,s_bil_std!$A190,dati_ce!$C$2:$C$304) -> 0 | L190: =SUMIF(dati_ce!$H$2:$H$304,s_bil_std!$A190,dati_ce!$D$2:$D$304) -> 0 | M190: =SUMIF(dati_ce!$H$2:$H$304,s_bil_std!$A190,dati_ce!$D$2:$D$304) -> 0 | O190: =SUMIF(dati_ce!$H$2:$H$304,s_bil_std!$A190,dati_ce!$E$2:$E$304) -> 0 | P190: =SUMIF(dati_ce!$H$2:$H$304,s_bil_std!$A190,dati_ce!$E$2:$E$304) -> 0 | R190: =SUMIF(dati_ce!$H$2:$H$304,s_bil_std!$A190,dati_ce!$F$2:$F$304) -> 0 | S190: =SUMIF(dati_ce!$H$2:$H$304,s_bil_std!$A190,dati_ce!$F$2:$F$304) -> 0 | U190: =SUMIF(dati_ce!$H$2:$H$304,s_bil_std!$A190,dati_ce!$G$2:$G$304) -> 0 | V190: =SUMIF(dati_ce!$H$2:$H$304,s_bil_std!$A190,dati_ce!$G$2:$G$304) -> 0 | Y190: 0 | Z190: 0 | AA190: 0 | AB190: 0 | AC190: 0 | AE190: 3)
A191: 3.A.4 | B191: Incrementi di immobilizzazioni per lavori interni | C191: NO | D191: Dett. | E191: Dett. | F191: 282 | I191: =SUMIF(dati_ce!$H$2:$H$304,s_bil_std!$A191,dati_ce!$C$2:$C$304) -> 0 | J191: =SUMIF(dati_ce!$H$2:$H$304,s_bil_std!$A191,dati_ce!$C$2:$C$304) -> 0 | L191: =SUMIF(dati_ce!$H$2:$H$304,s_bil_std!$A191,dati_ce!$D$2:$D$304) -> 0 | M191: =SUMIF(dati_ce!$H$2:$H$304,s_bil_std!$A191,dati_ce!$D$2:$D$304) -> 0 | O191: =SUMIF(dati_ce!$H$2:$H$304,s_bil_std!$A191,dati_ce!$E$2:$E$304) -> 0 | P191: =SUMIF(dati_ce!$H$2:$H$304,s_bil_std!$A191,dati_ce!$E$2:$E$304) -> 0 | R191: =SUMIF(dati_ce!$H$2:$H$304,s_bil_std!$A191,dati_ce!$F$2:$F$304) -> 0 | S191: =SUMIF(dati_ce!$H$2:$H$304,s_bil_std!$A191,dati_ce!$F$2:$F$304) -> 0 | U191: =SUMIF(dati_ce!$H$2:$H$304,s_bil_std!$A191,dati_ce!$G$2:$G$304) -> 0 | V191: =SUMIF(dati_ce!$H$2:$H$304,s_bil_std!$A191,dati_ce!$G$2:$G$304) -> 0 | Y191: 0 | Z191: 0 | AA191: 0 | AB191: 0 | AC191: 0 | AE191: 4)
A192: 3.A.5 | B192: Altri ricavi e proventi | C192: NO | D192: Totale | E192: Totale | F192: 300 | G192: 300 | I192: =SUM(I193:I194) -> 0 | J192: =SUM(J193:J194) -> 0 | L192: =SUM(L193:L194) -> 0 | M192: =SUM(M193:M194) -> 0 | O192: =SUM(O193:O194) -> 0 | P192: =SUM(P193:P194) -> 0 | R192: =SUM(R193:R194) -> 0 | S192: =SUM(S193:S194) -> 0 | U192: =SUM(U193:U194) -> 0 | V192: =SUM(V193:V194) -> 0 | Y192: 0 | Z192: 0 | AA192: 0 | AB192: 0 | AC192: 0 | AE192: 5)
A193: 3.A.5.a | B193: Contributi in conto esercizio | C193: NO | D193: Dett. | E193: Dett. | F193: 11000 | I193: =SUMIF(dati_ce!$H$2:$H$304,s_bil_std!$A193,dati_ce!$C$2:$C$304) -> 0 | J193: =SUMIF(dati_ce!$H$2:$H$304,s_bil_std!$A193,dati_ce!$C$2:$C$304) -> 0 | L193: =SUMIF(dati_ce!$H$2:$H$304,s_bil_std!$A193,dati_ce!$D$2:$D$304) -> 0 | M193: =SUMIF(dati_ce!$H$2:$H$304,s_bil_std!$A193,dati_ce!$D$2:$D$304) -> 0 | O193: =SUMIF(dati_ce!$H$2:$H$304,s_bil_std!$A193,dati_ce!$E$2:$E$304) -> 0 | P193: =SUMIF(dati_ce!$H$2:$H$304,s_bil_std!$A193,dati_ce!$E$2:$E$304) -> 0 | R193: =SUMIF(dati_ce!$H$2:$H$304,s_bil_std!$A193,dati_ce!$F$2:$F$304) -> 0 | S193: =SUMIF(dati_ce!$H$2:$H$304,s_bil_std!$A193,dati_ce!$F$2:$F$304) -> 0 | U193: =SUMIF(dati_ce!$H$2:$H$304,s_bil_std!$A193,dati_ce!$G$2:$G$304) -> 0 | V193: =SUMIF(dati_ce!$H$2:$H$304,s_bil_std!$A193,dati_ce!$G$2:$G$304) -> 0 | Y193: 0 | Z193: 0 | AA193: 0 | AB193: 0 | AC193: 0
A194: 3.A.5.b | B194: Ricavi e proventi diversi | C194: NO | D194: Dett. | E194: Dett. | I194: =SUMIF(dati_ce!$H$2:$H$304,s_bil_std!$A194,dati_ce!$C$2:$C$304) -> 0 | J194: =SUMIF(dati_ce!$H$2:$H$304,s_bil_std!$A194,dati_ce!$C$2:$C$304) -> 0 | L194: =SUMIF(dati_ce!$H$2:$H$304,s_bil_std!$A194,dati_ce!$D$2:$D$304) -> 0 | M194: =SUMIF(dati_ce!$H$2:$H$304,s_bil_std!$A194,dati_ce!$D$2:$D$304) -> 0 | O194: =SUMIF(dati_ce!$H$2:$H$304,s_bil_std!$A194,dati_ce!$E$2:$E$304) -> 0 | P194: =SUMIF(dati_ce!$H$2:$H$304,s_bil_std!$A194,dati_ce!$E$2:$E$304) -> 0 | R194: =SUMIF(dati_ce!$H$2:$H$304,s_bil_std!$A194,dati_ce!$F$2:$F$304) -> 0 | S194: =SUMIF(dati_ce!$H$2:$H$304,s_bil_std!$A194,dati_ce!$F$2:$F$304) -> 0 | U194: =SUMIF(dati_ce!$H$2:$H$304,s_bil_std!$A194,dati_ce!$G$2:$G$304) -> 0 | V194: =SUMIF(dati_ce!$H$2:$H$304,s_bil_std!$A194,dati_ce!$G$2:$G$304) -> 0 | Y194: 0 | Z194: 0 | AA194: 0 | AB194: 0 | AC194: 0
A195: 3.B | B195: COSTI DELLA PRODUZIONE | C195: NO | D195: Totale | E195: Totale | F195: 310 | G195: 310 | I195: =SUM(I196:I199,I205,I210:I213) -> 656 | J195: =SUM(J196:J199,J205,J210:J213) -> 656 | L195: =SUM(L196:L199,L205,L210:L213) -> 2399 | M195: =SUM(M196:M199,M205,M210:M213) -> 2399 | O195: =SUM(O196:O199,O205,O210:O213) -> 0 | P195: =SUM(P196:P199,P205,P210:P213) -> 0 | R195: =SUM(R196:R199,R205,R210:R213) -> 0 | S195: =SUM(S196:S199,S205,S210:S213) -> 0 | U195: =SUM(U196:U199,U205,U210:U213) -> 0 | V195: =SUM(V196:V199,V205,V210:V213) -> 0 | Y195: 656 | Z195: 2399 | AA195: 0 | AB195: 0 | AC195: 0 | AE195: B)
A196: 3.B.6 | B196: Costi per materie prime, sussidiarie, di consumo e merci | C196: NO | D196: Dett. | E196: Dett. | F196: 320 | G196: 340 | H196: 320 | I196: =SUMIF(dati_ce!$H$2:$H$304,s_bil_std!$A196,dati_ce!$C$2:$C$304) -> 0 | J196: =SUMIF(dati_ce!$H$2:$H$304,s_bil_std!$A196,dati_ce!$C$2:$C$304) -> 0 | L196: =SUMIF(dati_ce!$H$2:$H$304,s_bil_std!$A196,dati_ce!$D$2:$D$304) -> 0 | M196: =SUMIF(dati_ce!$H$2:$H$304,s_bil_std!$A196,dati_ce!$D$2:$D$304) -> 0 | O196: =SUMIF(dati_ce!$H$2:$H$304,s_bil_std!$A196,dati_ce!$E$2:$E$304) -> 0 | P196: =SUMIF(dati_ce!$H$2:$H$304,s_bil_std!$A196,dati_ce!$E$2:$E$304) -> 0 | R196: =SUMIF(dati_ce!$H$2:$H$304,s_bil_std!$A196,dati_ce!$F$2:$F$304) -> 0 | S196: =SUMIF(dati_ce!$H$2:$H$304,s_bil_std!$A196,dati_ce!$F$2:$F$304) -> 0 | U196: =SUMIF(dati_ce!$H$2:$H$304,s_bil_std!$A196,dati_ce!$G$2:$G$304) -> 0 | V196: =SUMIF(dati_ce!$H$2:$H$304,s_bil_std!$A196,dati_ce!$G$2:$G$304) -> 0 | Y196: 0 | Z196: 0 | AA196: 0 | AB196: 0 | AC196: 0 | AE196: 6)
A197: 3.B.7 | B197: Costi per servizi | C197: NO | D197: Dett. | E197: Dett. | F197: 302 | G197: 350 | I197: =SUMIF(dati_ce!$H$2:$H$304,s_bil_std!$A197,dati_ce!$C$2:$C$304) -> 65 | J197: =SUMIF(dati_ce!$H$2:$H$304,s_bil_std!$A197,dati_ce!$C$2:$C$304) -> 65 | L197: =SUMIF(dati_ce!$H$2:$H$304,s_bil_std!$A197,dati_ce!$D$2:$D$304) -> 221 | M197: =SUMIF(dati_ce!$H$2:$H$304,s_bil_std!$A197,dati_ce!$D$2:$D$304) -> 221 | O197: =SUMIF(dati_ce!$H$2:$H$304,s_bil_std!$A197,dati_ce!$E$2:$E$304) -> 0 | P197: =SUMIF(dati_ce!$H$2:$H$304,s_bil_std!$A197,dati_ce!$E$2:$E$304) -> 0 | R197: =SUMIF(dati_ce!$H$2:$H$304,s_bil_std!$A197,dati_ce!$F$2:$F$304) -> 0 | S197: =SUMIF(dati_ce!$H$2:$H$304,s_bil_std!$A197,dati_ce!$F$2:$F$304) -> 0 | U197: =SUMIF(dati_ce!$H$2:$H$304,s_bil_std!$A197,dati_ce!$G$2:$G$304) -> 0 | V197: =SUMIF(dati_ce!$H$2:$H$304,s_bil_std!$A197,dati_ce!$G$2:$G$304) -> 0 | Y197: 65 | Z197: 221 | AA197: 0 | AB197: 0 | AC197: 0 | AE197: 7)
A198: 3.B.8 | B198: Costi per godimento di beni di terzi | C198: NO | D198: Dett. | E198: Dett. | F198: 304 | G198: 350 | I198: =SUMIF(dati_ce!$H$2:$H$304,s_bil_std!$A198,dati_ce!$C$2:$C$304) -> 31 | J198: =SUMIF(dati_ce!$H$2:$H$304,s_bil_std!$A198,dati_ce!$C$2:$C$304) -> 31 | L198: =SUMIF(dati_ce!$H$2:$H$304,s_bil_std!$A198,dati_ce!$D$2:$D$304) -> 31 | M198: =SUMIF(dati_ce!$H$2:$H$304,s_bil_std!$A198,dati_ce!$D$2:$D$304) -> 31 | O198: =SUMIF(dati_ce!$H$2:$H$304,s_bil_std!$A198,dati_ce!$E$2:$E$304) -> 0 | P198: =SUMIF(dati_ce!$H$2:$H$304,s_bil_std!$A198,dati_ce!$E$2:$E$304) -> 0 | R198: =SUMIF(dati_ce!$H$2:$H$304,s_bil_std!$A198,dati_ce!$F$2:$F$304) -> 0 | S198: =SUMIF(dati_ce!$H$2:$H$304,s_bil_std!$A198,dati_ce!$F$2:$F$304) -> 0 | U198: =SUMIF(dati_ce!$H$2:$H$304,s_bil_std!$A198,dati_ce!$G$2:$G$304) -> 0 | V198: =SUMIF(dati_ce!$H$2:$H$304,s_bil_std!$A198,dati_ce!$G$2:$G$304) -> 0 | Y198: 31 | Z198: 31 | AA198: 0 | AB198: 0 | AC198: 0 | AE198: 8)
A199: 3.B.9 | B199: Costi per il personale | C199: NO | D199: Totale | E199: Totale | F199: 370 | G199: 370 | I199: =SUM(I200:I204) -> 0 | J199: =SUM(J200:J204) -> 0 | L199: =SUM(L200:L204) -> 0 | M199: =SUM(M200:M204) -> 0 | O199: =SUM(O200:O204) -> 0 | P199: =SUM(P200:P204) -> 0 | R199: =SUM(R200:R204) -> 0 | S199: =SUM(S200:S204) -> 0 | U199: =SUM(U200:U204) -> 0 | V199: =SUM(V200:V204) -> 0 | Y199: 0 | Z199: 0 | AA199: 0 | AB199: 0 | AC199: 0 | AE199: 9)
A200: 3.B.9.a | B200: Salari e stipendi | C200: NO | D200: Dett. | E200: Dett. | F200: 371 | I200: =SUMIF(dati_ce!$H$2:$H$304,s_bil_std!$A200,dati_ce!$C$2:$C$304) -> 0 | J200: =SUMIF(dati_ce!$H$2:$H$304,s_bil_std!$A200,dati_ce!$C$2:$C$304) -> 0 | L200: =SUMIF(dati_ce!$H$2:$H$304,s_bil_std!$A200,dati_ce!$D$2:$D$304) -> 0 | M200: =SUMIF(dati_ce!$H$2:$H$304,s_bil_std!$A200,dati_ce!$D$2:$D$304) -> 0 | O200: =SUMIF(dati_ce!$H$2:$H$304,s_bil_std!$A200,dati_ce!$E$2:$E$304) -> 0 | P200: =SUMIF(dati_ce!$H$2:$H$304,s_bil_std!$A200,dati_ce!$E$2:$E$304) -> 0 | R200: =SUMIF(dati_ce!$H$2:$H$304,s_bil_std!$A200,dati_ce!$F$2:$F$304) -> 0 | S200: =SUMIF(dati_ce!$H$2:$H$304,s_bil_std!$A200,dati_ce!$F$2:$F$304) -> 0 | U200: =SUMIF(dati_ce!$H$2:$H$304,s_bil_std!$A200,dati_ce!$G$2:$G$304) -> 0 | V200: =SUMIF(dati_ce!$H$2:$H$304,s_bil_std!$A200,dati_ce!$G$2:$G$304) -> 0 | Y200: 0 | Z200: 0 | AA200: 0 | AB200: 0 | AC200: 0 | AE200: a)
... 72 more rows

Sheet dati_an (hidden)
A1: Ragione sociale | B1: Immobiliare Silvia Srl
A2: Titolo | B2: Analisi di Bilancio
A3: Sottotitolo
A4: Forma di bilancio | B4: 7 | C4: Ordinaria
A5: Consolidato | B5: 0
A6: Esercizio prospetto n | B6: 2015
A7: Esercizio prospetto n-1 | B7: 2014
A8: Esercizio prospetto n-2
A9: Esercizio prospetto n-3
A10: Esercizio prospetto n-4
A11: Esercizio BdV n | B11: 2015
A12: Esercizio BdV n-1 | B12: 2014
A13: Esercizio BdV n-2
A14: Esercizio BdV n-3
A15: Esercizio BdV n-4
A16: Data fine esercizio prospetto n | B16: 31/12/2015
A17: Data fine esercizio prospetto n-1 | B17: 31/12/2014
A18: Data fine esercizio prospetto n-2
A19: Data fine esercizio prospetto n-3
A20: Data fine esercizio prospetto n-4
A21: Data fine esercizio BdV n | B21: 31/12/2015
A22: Data fine esercizio BdV n-1 | B22: 31/12/2014
A23: Data fine esercizio BdV n-2
A24: Data fine esercizio BdV n-3
A25: Data fine esercizio BdV n-4
A26: Piano dei conti | B26: ORD
A27: Numero caratteri PdC | B27: 6
A28: Livello 1 - Nr caratteri | B28: 2 | C28: Gruppo
A29: Livello 2 - Nr caratteri | B29: 2 | C29: Mastro
A30: Livello 3 - Nr caratteri | B30: 2 | C30: Conto
A31: Livello 4 - Nr caratteri | B31: 0
A32: Livello 5 - Nr caratteri | B32: 0
A33: Livello 6 - Nr caratteri | B33: 0
A34: Numero medio dipendenti n | B34: 0
A35: Numero medio dipendenti n-1 | B35: 0
A36: Numero medio dipendenti n-2 | B36: 0
A37: Numero medio dipendenti n-3 | B37: 0
A38: Numero medio dipendenti n-4 | B38: 0

Sheet dati_pdc (hidden)
A1: Conto | B1: Descrizione | C1: Livello | D1: Conto partitario | E1: Nr crt partitario | F1: Tipo conto | G1: Sezione | H1: Segno tipico
A2: 11 | B2: IMMOBILIZZAZIONI IMMATERIALI | C2: 1 | D2: 0 | E2: 0 | F2: SP | G2: A
A3: 1103 | B3: BENI IMMATERIALI | C3: 2 | D3: 0 | E3: 0 | F3: SP | G3: A
A4: 110301 | B4: Software di proprieta' capitalizzato | C4: 3 | D4: 0 | E4: 0 | F4: SP | G4: A | H4: D
A5: 110303 | B5: Software in concessione capitalizzato | C5: 3 | D5: 0 | E5: 0 | F5: SP | G5: A | H5: D
A6: 21 | B6: RIMANENZE | C6: 1 | D6: 0 | E6: 0 | F6: SP | G6: A
A7: 2101 | B7: RIMANENZE DI MAGAZZINO | C7: 2 | D7: 0 | E7: 0 | F7: SP | G7: A
A8: 210121 | B8: Riman. prod.in corso lavoraz. e semilav. | C8: 3 | D8: 0 | E8: 0 | F8: SP | G8: A | H8: D
A9: 23 | B9: CREDITI COMMERCIALI | C9: 1 | D9: 0 | E9: 0 | F9: SP | G9: A
A10: 2303 | B10: CLIENTI | C10: 2 | D10: 0 | E10: 0 | F10: SP | G10: A
A11: 230301 | B11: Clienti terzi Italia | C11: 3 | D11: 0 | E11: 0 | F11: SP | G11: A
A12: 27 | B12: CREDITI VARI | C12: 1 | D12: 0 | E12: 0 | F12: SP | G12: A
A13: 2705 | B13: CREDITI VARI V/TERZI | C13: 2 | D13: 0 | E13: 0 | F13: SP | G13: A
A14: 270551 | B14: Crediti vari v/terzi | C14: 3 | D14: 0 | E14: 0 | F14: SP | G14: A | H14: D
A15: 31 | B15: DISPONIBILITA' LIQUIDE | C15: 1 | D15: 0 | E15: 0 | F15: SP | G15: AP
A16: 3101 | B16: BANCHE C/C E POSTA C/C | C16: 2 | D16: 0 | E16: 0 | F16: SP | G16: AP
A17: 310101 | B17: Banca c/c | C17: 3 | D17: 0 | E17: 0 | F17: SP | G17: AP
A18: 3103 | B18: CASSA | C18: 2 | D18: 0 | E18: 0 | F18: SP | G18: A
A19: 310303 | B19: Cassa contanti | C19: 3 | D19: 0 | E19: 0 | F19: SP | G19: A | H19: D
A20: 39 | B20: RATEI E RISCONTI ATTIVI | C20: 1 | D20: 0 | E20: 0 | F20: SP | G20: A
A21: 3901 | B21: RATEI E RISCONTI ATTIVI | C21: 2 | D21: 0 | E21: 0 | F21: SP | G21: A
A22: 390103 | B22: Risconti attivi | C22: 3 | D22: 0 | E22: 0 | F22: SP | G22: A | H22: D
A23: 41 | B23: CAPITALE E RISERVE | C23: 1 | D23: 0 | E23: 0 | F23: SP | G23: P
A24: 4101 | B24: CAPITALE E RISERVE | C24: 2 | D24: 0 | E24: 0 | F24: SP | G24: P
A25: 410101 | B25: Capitale sociale | C25: 3 | D25: 0 | E25: 0 | F25: SP | G25: P | H25: A
A26: 410107 | B26: Riserva legale (con utili fino al 2007) | C26: 3 | D26: 0 | E26: 0 | F26: SP | G26: P | H26: A
A27: 410108 | B27: Riserva legale | C27: 3 | D27: 0 | E27: 0 | F27: SP | G27: P | H27: A
A28: 43 | B28: RISULTATI DELL'ESERCIZIO | C28: 1 | D28: 0 | E28: 0 | F28: SP | G28: AP
A29: 4301 | B29: RISULTATI PORTATI A NUOVO | C29: 2 | D29: 0 | E29: 0 | F29: SP | G29: AP
A30: 430101 | B30: Utile a nuovo (con utili fino al 2007) | C30: 3 | D30: 0 | E30: 0 | F30: SP | G30: P | H30: A
A31: 430106 | B31: Utile portato a nuovo | C31: 3 | D31: 0 | E31: 0 | F31: SP | G31: P | H31: A
A32: 430199 | B32: Risultato da assegnare periodi precedenti | C32: 3 | D32: 0 | E32: 0 | F32: SP | G32: AP
A33: 4303 | B33: RISULTATO D'ESERCIZIO | C33: 2 | D33: 0 | E33: 0 | F33: SP | G33: AP
A34: 430301 | B34: Utile d'esercizio | C34: 3 | D34: 0 | E34: 0 | F34: SP | G34: P | H34: A
A35: 55 | B35: FINANZIAMENTI DI TERZI | C35: 1 | D35: 0 | E35: 0 | F35: SP | G35: P
A36: 5503 | B36: MUTUI E FINANZIAMENTI | C36: 2 | D36: 0 | E36: 0 | F36: SP | G36: P
A37: 550325 | B37: Soci conto finanziamento infruttifero | C37: 3 | D37: 0 | E37: 0 | F37: SP | G37: P | H37: A
A38: 57 | B38: DEBITI COMMERCIALI | C38: 1 | D38: 0 | E38: 0 | F38: SP | G38: P
A39: 5703 | B39: FORNITORI | C39: 2 | D39: 0 | E39: 0 | F39: SP | G39: P
A40: 570301 | B40: Fornitori terzi Italia | C40: 3 | D40: 0 | E40: 0 | F40: SP | G40: P
A41: 59 | B41: CONTI ERARIALI | C41: 1 | D41: 0 | E41: 0 | F41: SP | G41: AP
A42: 5901 | B42: ERARIO C/IVA | C42: 2 | D42: 0 | E42: 0 | F42: SP | G42: AP
A43: 590103 | B43: Iva su vendite | C43: 3 | D43: 0 | E43: 0 | F43: SP | G43: AP | H43: A
A44: 590165 | B44: IVA art.17ter DPR633/72(split transit.) | C44: 3 | D44: 0 | E44: 0 | F44: SP | G44: AP | H44: A
A45: 5905 | B45: ERARIO C/RIT. SUBITE E CREDITI D'IMPOSTA | C45: 2 | D45: 0 | E45: 0 | F45: SP | G45: A
A46: 590501 | B46: Ritenute subite su interessi attivi | C46: 3 | D46: 0 | E46: 0 | F46: SP | G46: A | H46: D
A47: 5907 | B47: ERARIO C/IMPOSTE | C47: 2 | D47: 0 | E47: 0 | F47: SP | G47: AP
A48: 590701 | B48: Erario c/IRES | C48: 3 | D48: 0 | E48: 0 | F48: SP | G48: AP
A49: 590702 | B49: Erario c/acconti IRES | C49: 3 | D49: 0 | E49: 0 | F49: SP | G49: A | H49: D
A50: 590703 | B50: Erario c/IRAP | C50: 3 | D50: 0 | E50: 0 | F50: SP | G50: AP
A51: 590711 | B51: Erario c/rimborsi imposte | C51: 3 | D51: 0 | E51: 0 | F51: SP | G51: A | H51: D
A52: 63 | B52: ALTRI DEBITI | C52: 1 | D52: 0 | E52: 0 | F52: SP | G52: P
A53: 6301 | B53: ANTICIPI DA CLIENTI | C53: 2 | D53: 0 | E53: 0 | F53: SP | G53: P
A54: 630107 | B54: Anticipi da clienti terzi e fondi spese | C54: 3 | D54: 0 | E54: 0 | F54: SP | G54: P
A55: 6305 | B55: DEBITI VARI | C55: 2 | D55: 0 | E55: 0 | F55: SP | G55: P
A56: 630501 | B56: Depositi cauzionali ricevuti | C56: 3 | D56: 0 | E56: 0 | F56: SP | G56: P | H56: A
A57: 6309 | B57: COMPETENZE SOCI | C57: 2 | D57: 0 | E57: 0 | F57: SP | G57: P
A58: 630903 | B58: Soci c/utili | C58: 3 | D58: 0 | E58: 0 | F58: SP | G58: P | H58: A
A59: 70 | B59: RICAVI DELLE VENDITE E DELLE PRESTAZIONI | C59: 1 | D59: 0 | E59: 0 | F59: CE | G59: R
A60: 7009 | B60: RICAVI DA PRESTAZIONI | C60: 2 | D60: 0 | E60: 0 | F60: CE | G60: R
A61: 700903 | B61: Affitti attivi | C61: 3 | D61: 0 | E61: 0 | F61: CE | G61: R | H61: A
A62: 71 | B62: VARIAZ.RIMAN.FINALI E COSTRUZIONI INTERNE | C62: 1 | D62: 0 | E62: 0 | F62: CE | G62: R
A63: 7101 | B63: RIMANENZE FINALI | C63: 2 | D63: 0 | E63: 0 | F63: CE | G63: R
A64: 710121 | B64: Rim.finali prod.in corso lavor. e semil. | C64: 3 | D64: 0 | E64: 0 | F64: CE | G64: R | H64: A
A65: 72 | B65: VARIAZ. RIMANENZE INIZIALI | C65: 1 | D65: 0 | E65: 0 | F65: CE | G65: C
A66: 7205 | B66: RIMANENZE INIZIALI | C66: 2 | D66: 0 | E66: 0 | F66: CE | G66: C
A67: 720521 | B67: Rim.iniz.prod.in corso lavoraz.e semil. | C67: 3 | D67: 0 | E67: 0 | F67: CE | G67: C | H67: D
A68: 76 | B68: ACQUISTI DI SERVIZI | C68: 1 | D68: 0 | E68: 0 | F68: CE | G68: C
A69: 7609 | B69: COSTI PER UTENZE | C69: 2 | D69: 0 | E69: 0 | F69: CE | G69: C
A70: 760901 | B70: Assistenza software | C70: 3 | D70: 0 | E70: 0 | F70: CE | G70: C | H70: D
A71: 80 | B71: COSTI PER GODIMENTO BENI DI TERZI | C71: 1 | D71: 0 | E71: 0 | F71: CE | G71: C
A72: 8007 | B72: CANONI E LICENZE SOFTWARE | C72: 2 | D72: 0 | E72: 0 | F72: CE | G72: C
A73: 800701 | B73: Canoni | C73: 3 | D73: 0 | E73: 0 | F73: CE | G73: C | H73: D
A74: 83 | B74: ONERI DIVERSI DI GESTIONE | C74: 1 | D74: 0 | E74: 0 | F74: CE | G74: C
A75: 8305 | B75: ONERI TRIBUTARI | C75: 2 | D75: 0 | E75: 0 | F75: CE | G75: C
A76: 830504 | B76: IMU | C76: 3 | D76: 0 | E76: 0 | F76: CE | G76: C | H76: D
A77: 830511 | B77: Diritti camerali | C77: 3 | D77: 0 | E77: 0 | F77: CE | G77: C | H77: D
A78: 830521 | B78: Imposta di registro e concess. govern. | C78: 3 | D78: 0 | E78: 0 | F78: CE | G78: C | H78: D
A79: 830549 | B79: Altre imposte e tasse deducibili | C79: 3 | D79: 0 | E79: 0 | F79: CE | G79: C | H79: D
A80: 8307 | B80: ALTRI COSTI DI ESERCIZIO | C80: 2 | D80: 0 | E80: 0 | F80: CE | G80: C
A81: 830725 | B81: Arrotondamenti passivi diversi | C81: 3 | D81: 0 | E81: 0 | F81: CE | G81: C | H81: D
A82: 830751 | B82: Costi e spese diverse | C82: 3 | D82: 0 | E82: 0 | F82: CE | G82: C | H82: D
A83: 85 | B83: PROVENTI FINANZIARI | C83: 1 | D83: 0 | E83: 0 | F83: CE | G83: R
A84: 8511 | B84: PROVENTI FINANZIARI VARI | C84: 2 | D84: 0 | E84: 0 | F84: CE | G84: R
A85: 851113 | B85: Interessi attivi su c/c bancari | C85: 3 | D85: 0 | E85: 0 | F85: CE | G85: R | H85: A
A86: 86 | B86: ONERI FINANZIARI | C86: 1 | D86: 0 | E86: 0 | F86: CE | G86: C
A87: 8601 | B87: ONERI FINANZIARI VERSO BANCHE | C87: 2 | D87: 0 | E87: 0 | F87: CE | G87: C
A88: 860105 | B88: Commissioni e spese bancarie | C88: 3 | D88: 0 | E88: 0 | F88: CE | G88: C | H88: D
A89: 93 | B89: IMPOSTE DELL'ESERCIZIO | C89: 1 | D89: 0 | E89: 0 | F89: CE | G89: C
A90: 9301 | B90: IMPOSTE DELL'ESERCIZIO | C90: 2 | D90: 0 | E90: 0 | F90: CE | G90: C
A91: 930101 | B91: IRES corrente | C91: 3 | D91: 0 | E91: 0 | F91: CE | G91: C | H91: D

Sheet dati_bdv (hidden)
A1: Conto | B1: Descrizione Conto | C1: Livello 1 | D1: Livello 2 | E1: Livello 3 | F1: Livello 4 | G1: Livello 5 | H1: Livello 6 | I1: Livello 7 | J1: Saldo es.N | K1: Saldo es.N-1 | L1: Saldo es.N-2 | M1: Saldo es.N-3 | N1: Saldo es.N-4
A2: 110301 | B2: Software di proprieta' capitalizzato | C2: 11 | D2: 1103 | E2: 110301 | J2: -2000 | K2: -2000 | L2: 0 | M2: 0 | N2: 0
A3: 110303 | B3: Software in concessione capitalizzato | C3: 11 | D3: 1103 | E3: 110303 | J3: 5000 | K3: 5000 | L3: 0 | M3: 0 | N3: 0
A4: 210121 | B4: Riman. prod.in corso lavoraz. e semilav. | C4: 21 | D4: 2101 | E4: 210121 | J4: 172854.87 | K4: 172854.87 | L4: 0 | M4: 0 | N4: 0
A5: 2303010 | B5: Clienti terzi Italia | C5: 23 | D5: 2303 | E5: 230301 | F5: 2303010 | J5: 70440 | K5: -1560 | L5: 0 | M5: 0 | N5: 0
A6: 270551 | B6: Crediti vari v/terzi | C6: 27 | D6: 2705 | E6: 270551 | J6: 3798.07 | K6: 3798.07 | L6: 0 | M6: 0 | N6: 0
A7: 3101010 | B7: Banca c/c | C7: 31 | D7: 3101 | E7: 310101 | F7: 3101010 | J7: -1514.22 | K7: 2340.94 | L7: 0 | M7: 0 | N7: 0
A8: 310303 | B8: Cassa contanti | C8: 31 | D8: 3103 | E8: 310303 | J8: 181.06 | K8: 181.06 | L8: 0 | M8: 0 | N8: 0
A9: 390103 | B9: Risconti attivi | C9: 39 | D9: 3901 | E9: 390103 | J9: 29525.6 | K9: 0 | L9: 0 | M9: 0 | N9: 0
A10: 410101 | B10: Capitale sociale | C10: 41 | D10: 4101 | E10: 410101 | J10: -20800 | K10: -20800 | L10: 0 | M10: 0 | N10: 0
A11: 410107 | B11: Riserva legale (con utili fino al 2007) | C11: 41 | D11: 4101 | E11: 410107 | J11: -6269.68 | K11: -6269.68 | L11: 0 | M11: 0 | N11: 0
A12: 410108 | B12: Riserva legale | C12: 41 | D12: 4101 | E12: 410108 | J12: -1216.1 | K12: -1216.1 | L12: 0 | M12: 0 | N12: 0
A13: 430101 | B13: Utile a nuovo (con utili fino al 2007) | C13: 43 | D13: 4301 | E13: 430101 | J13: -42588.25 | K13: -47588.25 | L13: 0 | M13: 0 | N13: 0
A14: 430106 | B14: Utile portato a nuovo | C14: 43 | D14: 4301 | E14: 430106 | J14: -16235.58 | K14: -16235.58 | L14: 0 | M14: 0 | N14: 0
A15: 430199 | B15: Risultato da assegnare periodi precedenti | C15: 43 | D15: 4301 | E15: 430199 | J15: -5543.65 | K15: 0 | L15: 0 | M15: 0 | N15: 0
A16: 550325 | B16: Soci conto finanziamento infruttifero | C16: 55 | D16: 5503 | E16: 550325 | J16: -21489.88 | K16: -21489.88 | L16: 0 | M16: 0 | N16: 0
A17: 5703010 | B17: Fornitori terzi Italia | C17: 57 | D17: 5703 | E17: 570301 | F17: 5703010 | J17: -67139.4 | K17: -67139.4 | L17: 0 | M17: 0 | N17: 0
A18: 590103 | B18: Iva su vendite | C18: 59 | D18: 5901 | E18: 590103 | J18: -440 | K18: -440 | L18: 0 | M18: 0 | N18: 0
A19: 590501 | B19: Ritenute subite su interessi attivi | C19: 59 | D19: 5905 | E19: 590501 | J19: 0.16 | K19: 0.14 | L19: 0 | M19: 0 | N19: 0
A20: 590701 | B20: Erario c/IRES | C20: 59 | D20: 5907 | E20: 590701 | J20: 125 | K20: 125 | L20: 0 | M20: 0 | N20: 0
A21: 590703 | B21: Erario c/IRAP | C21: 59 | D21: 5907 | E21: 590703 | J21: 141 | K21: 141 | L21: 0 | M21: 0 | N21: 0
A22: 590711 | B22: Erario c/rimborsi imposte | C22: 59 | D22: 5907 | E22: 590711 | J22: 516.46 | K22: 516.46 | L22: 0 | M22: 0 | N22: 0
A23: 630107 | B23: Anticipi da clienti terzi e fondi spese | C23: 63 | D23: 6301 | E23: 630107 | J23: 6000 | K23: 6000 | L23: 0 | M23: 0 | N23: 0
A24: 630501 | B24: Depositi cauzionali ricevuti | C24: 63 | D24: 6305 | E24: 630501 | J24: -675 | K24: -675 | L24: 0 | M24: 0 | N24: 0
A25: 700903 | B25: Prestazioni di servizi | C25: 70 | D25: 7009 | E25: 700903 | J25: -73800 | K25: -9425 | L25: 0 | M25: 0 | N25: 0
A26: 710121 | B26: Rim.finali prod.in corso lavor. e semil. | C26: 71 | D26: 7101 | E26: 710121 | J26: 0 | K26: -172854.87 | L26: 0 | M26: 0 | N26: 0
A27: 720521 | B27: Rim.iniz.prod.in corso lavoraz.e semil. | C27: 72 | D27: 7205 | E27: 720521 | J27: 0 | K27: 172854.87 | L27: 0 | M27: 0 | N27: 0
A28: 760901 | B28: Assistenza software | C28: 76 | D28: 7609 | E28: 760901 | J28: -29525.6 | K28: 0 | L28: 0 | M28: 0 | N28: 0
A29: 800701 | B29: Canoni | C29: 80 | D29: 8007 | E29: 800701 | J29: 30.5 | K29: 30.5 | L29: 0 | M29: 0 | N29: 0
A30: 830504 | B30: IMU | C30: 83 | D30: 8305 | E30: 830504 | J30: 0 | K30: 843 | L30: 0 | M30: 0 | N30: 0
A31: 830511 | B31: Diritti camerali | C31: 83 | D31: 8305 | E31: 830511 | J31: 0 | K31: 327.7 | L31: 0 | M31: 0 | N31: 0
A32: 830521 | B32: Imposta di registro e concess. govern. | C32: 83 | D32: 8305 | E32: 830521 | J32: 417.87 | K32: 471.87 | L32: 0 | M32: 0 | N32: 0
A33: 8305490 | B33: Altre imposte e tasse deducibili | C33: 83 | D33: 8305 | E33: 830549 | F33: 8305490 | J33: 33.36 | K33: 100 | L33: 0 | M33: 0 | N33: 0
A34: 830725 | B34: Arrotondamenti passivi diversi | C34: 83 | D34: 8307 | E34: 830725 | J34: 0 | K34: 0.31 | L34: 0 | M34: 0 | N34: 0
A35: 8307510 | B35: Costi e spese diverse | C35: 83 | D35: 8307 | E35: 830751 | F35: 8307510 | J35: 109 | K35: 404.15 | L35: 0 | M35: 0 | N35: 0
A36: 851113 | B36: Interessi attivi su c/c bancari | C36: 85 | D36: 8511 | E36: 851113 | J36: -0.09 | K36: -0.53 | L36: 0 | M36: 0 | N36: 0
A37: 860105 | B37: Commissioni e spese bancarie | C37: 86 | D37: 8601 | E37: 860105 | J37: 64.5 | K37: 221.35 | L37: 0 | M37: 0 | N37: 0
A38: 930101 | B38: IRES corrente | C38: 93 | D38: 9301 | E38: 930101 | J38: 0 | K38: 1483 | L38: 0 | M38: 0 | N38: 0

Sheet dati_sp (hidden)
A1: Voce | B1: Descrizione voce | C1: Importo Es.N | D1: Importo Es.N-1 | E1: Importo Es.N-2 | F1: Importo Es.N-3 | G1: Importo Es.N-4 | H1: Voce standard | I1: Voce consolidato
A2: 1.B.1.3 | B2: Diritto di brevetto industriale e diritti di utilizzazione di opere dell'ingegno | C2: 3000 | D2: 3000 | E2: 0 | F2: 0 | G2: 0 | H2: 1.B.1.3 | I2: 0
A3: 1.C.1.2 | B3: Prodotti in corso di lavorazione e semilavorati | C3: 172855 | D3: 172855 | E3: 0 | F3: 0 | G3: 0 | H3: 1.C.1.2 | I3: 0
A4: 1.C.2.1 | B4: Crediti verso clienti | C4: 72000 | D4: 0 | E4: 0 | F4: 0 | G4: 0 | H4: 1.C.2.1 | I4: 0
A5: 1.C.2.1.1 | B5: Crediti verso clienti esigibili entro l'esercizio successivo | C5: 0 | D5: 0 | E5: 0 | F5: 0 | G5: 0 | H5: 1.C.2.1.1 | I5: 0
A6: 1.C.2.1.2 | B6: Crediti verso clienti esigibili oltre l'esercizio successivo | C6: 0 | D6: 0 | E6: 0 | F6: 0 | G6: 0 | H6: 1.C.2.1.2 | I6: 0
A7: 1.C.2.4a | B7: Crediti tributari | C7: 783 | D7: 783 | E7: 0 | F7: 0 | G7: 0 | H7: 1.C.2.4a | I7: 0
A8: 1.C.2.4a.1 | B8: Crediti tributari esigibili entro l'esercizio successivo | C8: 0 | D8: 783 | E8: 0 | F8: 0 | G8: 0 | H8: 1.C.2.4a.1 | I8: 0
A9: 1.C.2.4a.2 | B9: Crediti tributari esigibili oltre l'esercizio successivo | C9: 0 | D9: 0 | E9: 0 | F9: 0 | G9: 0 | H9: 1.C.2.4a.2 | I9: 0
A10: 1.C.2.5 | B10: Crediti verso altri | C10: 3798 | D10: 3798 | E10: 0 | F10: 0 | G10: 0 | H10: 1.C.2.5 | I10: 0
A11: 1.C.2.5.1 | B11: Crediti verso altri esigibili entro l'esercizio successivo | C11: 0 | D11: 3798 | E11: 0 | F11: 0 | G11: 0 | H11: 1.C.2.5.1 | I11: 0
A12: 1.C.2.5.2 | B12: Crediti verso altri esigibili oltre l'esercizio successivo | C12: 0 | D12: 0 | E12: 0 | F12: 0 | G12: 0 | H12: 1.C.2.5.2 | I12: 0
A13: 1.C.4.1 | B13: Depositi bancari e postali | C13: 0 | D13: 7341 | E13: 0 | F13: 0 | G13: 0 | H13: 1.C.4.1 | I13: 0
A14: 1.C.4.3 | B14: Denaro e valori in cassa | C14: 181 | D14: 181 | E14: 0 | F14: 0 | G14: 0 | H14: 1.C.4.3 | I14: 0
A15: 2.A.1 | B15: Capitale | C15: 20800 | D15: 20800 | E15: 0 | F15: 0 | G15: 0 | H15: 2.A.1 | I15: 0
A16: 2.A.4 | B16: Riserva legale | C16: 7486 | D16: 7486 | E16: 0 | F16: 0 | G16: 0 | H16: 2.A.4 | I16: 0
A17: 2.A.7.99 | B17: Varie altre riserve | C17: 1 | D17: 0 | E17: 0 | F17: 0 | G17: 0 | H17: 2.A.7.99 | I17: 0
A18: 2.A.8 | B18: Utili (perdite) portati a nuovo | C18: 64367 | D18: 63824 | E18: 0 | F18: 0 | G18: 0 | H18: 2.A.8 | I18: 0
A19: 2.A.9.1 | B19: Utile (perdita) dell'esercizio | C19: 73145 | D19: 5544 | E19: 0 | F19: 0 | G19: 0 | H19: 2.A.9.1 | I19: 0
A20: 2.D.12 | B20: Debiti tributari | C20: 440 | D20: 440 | E20: 0 | F20: 0 | G20: 0 | H20: 2.D.12 | I20: 0
A21: 2.D.12.1 | B21: Debiti tributari esigibili entro l'esercizio successivo | C21: 0 | D21: 440 | E21: 0 | F21: 0 | G21: 0 | H21: 2.D.12.1 | I21: 0
A22: 2.D.12.2 | B22: Debiti tributari esigibili oltre l'esercizio successivo | C22: 0 | D22: 0 | E22: 0 | F22: 0 | G22: 0 | H22: 2.D.12.2 | I22: 0
A23: 2.D.14 | B23: Altri debiti | C23: 2235 | D23: 2235 | E23: 0 | F23: 0 | G23: 0 | H23: 2.D.14 | I23: 0
A24: 2.D.14.1 | B24: Altri debiti esigibili entro l'esercizio successivo | C24: 0 | D24: 2235 | E24: 0 | F24: 0 | G24: 0 | H24: 2.D.14.1 | I24: 0
A25: 2.D.14.2 | B25: Altri debiti esigibili oltre l'esercizio successivo | C25: 0 | D25: 0 | E25: 0 | F25: 0 | G25: 0 | H25: 2.D.14.2 | I25: 0
A26: 2.D.3 | B26: Debiti verso soci per finanziamenti | C26: 21490 | D26: 21490 | E26: 0 | F26: 0 | G26: 0 | H26: 2.D.3 | I26: 0
A27: 2.D.3.1 | B27: Debiti verso soci per finanziamenti esigibili entro l'esercizio successivo | C27: 0 | D27: 21490 | E27: 0 | F27: 0 | G27: 0 | H27: 2.D.3.1 | I27: 0
A28: 2.D.3.2 | B28: Debiti verso soci per finanziamenti esigibili oltre l'esercizio successivo | C28: 0 | D28: 0 | E28: 0 | F28: 0 | G28: 0 | H28: 2.D.3.2 | I28: 0
A29: 2.D.4 | B29: Debiti verso banche | C29: 1514 | D29: 5000 | E29: 0 | F29: 0 | G29: 0 | H29: 2.D.4 | I29: 0
A30: 2.D.4.1 | B30: Debiti verso banche esigibili entro l'esercizio successivo | C30: 0 | D30: 5000 | E30: 0 | F30: 0 | G30: 0 | H30: 2.D.4.1 | I30: 0
A31: 2.D.4.2 | B31: Debiti verso banche esigibili oltre l'esercizio successivo | C31: 0 | D31: 0 | E31: 0 | F31: 0 | G31: 0 | H31: 2.D.4.2 | I31: 0
A32: 2.D.6 | B32: Acconti | C32: -6000 | D32: -6000 | E32: 0 | F32: 0 | G32: 0 | H32: 2.D.6 | I32: 0
A33: 2.D.6.1 | B33: Acconti esigibili entro l'esercizio successivo | C33: 0 | D33: -6000 | E33: 0 | F33: 0 | G33: 0 | H33: 2.D.6.1 | I33: 0
A34: 2.D.6.2 | B34: Acconti esigibili oltre l'esercizio successivo | C34: 0 | D34: 0 | E34: 0 | F34: 0 | G34: 0 | H34: 2.D.6.2 | I34: 0
A35: 2.D.7 | B35: Debiti verso fornitori | C35: 67139 | D35: 67139 | E35: 0 | F35: 0 | G35: 0 | H35: 2.D.7 | I35: 0
A36: 2.D.7.1 | B36: Debiti verso fornitori esigibili entro l'esercizio successivo | C36: 0 | D36: 67139 | E36: 0 | F36: 0 | G36: 0 | H36: 2.D.7.1 | I36: 0
A37: 2.D.7.2 | B37: Debiti verso fornitori esigibili oltre l'esercizio successivo | C37: 0 | D37: 0 | E37: 0 | F37: 0 | G37: 0 | H37: 2.D.7.2 | I37: 0

Sheet dati_ce (hidden)
A1: Voce | B1: Descrizione voce | C1: Importo Es.N | D1: Importo Es.N-1 | E1: Importo Es.N-2 | F1: Importo Es.N-3 | G1: Importo Es.N-4 | H1: Voce standard | I1: Voce consolidato
A2: 3.23z | B2: Utile (perdita) dell'esercizio | C2: 73145 | D2: 5544 | E2: 0 | F2: 0 | G2: 0 | H2: 3.23 | I2: 0
A3: 3.A.1 | B3: Ricavi delle vendite e delle prestazioni | C3: 73800 | D3: 9425 | E3: 0 | F3: 0 | G3: 0 | H3: 3.A.1 | I3: 0
A4: 3.B.14 | B4: Oneri diversi di gestione | C4: 560 | D4: 2147 | E4: 0 | F4: 0 | G4: 0 | H4: 3.B.14 | I4: 0
A5: 3.B.7 | B5: Costi per servizi | C5: 65 | D5: 221 | E5: 0 | F5: 0 | G5: 0 | H5: 3.B.7 | I5: 0
A6: 3.B.8 | B6: Costi per godimento di beni di terzi | C6: 31 | D6: 31 | E6: 0 | F6: 0 | G6: 0 | H6: 3.B.8 | I6: 0
A7: 3.C.16.d.4 | B7: Proventi diversi dai precedenti da altre imprese | C7: 0 | D7: 1 | E7: 0 | F7: 0 | G7: 0 | H7: 3.C.16.d.4 | I7: 0
A8: 3.E.20.b | B8: Altri proventi straordinari | C8: 1 | D8: 0 | E8: 0 | F8: 0 | G8: 0 | H8: 3.E.20.b | I8: 0
A9: 3.22.a | B9: Imposte correnti sul reddito d'esercizio | C9: 0 | D9: 1483 | E9: 0 | F9: 0 | G9: 0 | H9: 3.22.a | I9: 0

Sheet s_somma_pdc (hidden)
A1: Conto | B1: N | C1: N-1 | D1: N-2 | E1: N-3 | F1: N-4 | G1: Numero conti | H1: =COUNTA(dati_pdc!A2:A2000) -> 90
A2: =dati_pdc!A2 -> 11 | B2: =SUMIF(IF(dati_pdc!$C2=1,dati_bdv!$C$2:$C$65536,IF(dati_pdc!$C2=2,dati_bdv!$D$2:$D$65536,IF(dati_pdc!$C2=3,dati_bdv!$E$2:$E$65536,IF(dati_pdc!$C2=4,dati_bdv!$F$2:$F$65536,IF(dati_pdc!$C2=5,dati_bdv!$G$2:$G$65536,dati_bdv!$H$2:$H$65536))))),$A2,dati_bdv!J$2:J$65536) -> 3000 | C2: =SUMIF(IF(dati_pdc!$C2=1,dati_bdv!$C$2:$C$65536,IF(dati_pdc!$C2=2,dati_bdv!$D$2:$D$65536,IF(dati_pdc!$C2=3,dati_bdv!$E$2:$E$65536,IF(dati_pdc!$C2=4,dati_bdv!$F$2:$F$65536,IF(dati_pdc!$C2=5,dati_bdv!$G$2:$G$65536,dati_bdv!$H$2:$H$65536))))),$A2,dati_bdv!K$2:K$65536) -> 3000 | D2: =SUMIF(IF(dati_pdc!$C2=1,dati_bdv!$C$2:$C$65536,IF(dati_pdc!$C2=2,dati_bdv!$D$2:$D$65536,IF(dati_pdc!$C2=3,dati_bdv!$E$2:$E$65536,IF(dati_pdc!$C2=4,dati_bdv!$F$2:$F$65536,IF(dati_pdc!$C2=5,dati_bdv!$G$2:$G$65536,dati_bdv!$H$2:$H$65536))))),$A2,dati_bdv!L$2:L$65536) -> 0 | E2: =SUMIF(IF(dati_pdc!$C2=1,dati_bdv!$C$2:$C$65536,IF(dati_pdc!$C2=2,dati_bdv!$D$2:$D$65536,IF(dati_pdc!$C2=3,dati_bdv!$E$2:$E$65536,IF(dati_pdc!$C2=4,dati_bdv!$F$2:$F$65536,IF(dati_pdc!$C2=5,dati_bdv!$G$2:$G$65536,dati_bdv!$H$2:$H$65536))))),$A2,dati_bdv!M$2:M$65536) -> 0 | F2: =SUMIF(IF(dati_pdc!$C2=1,dati_bdv!$C$2:$C$65536,IF(dati_pdc!$C2=2,dati_bdv!$D$2:$D$65536,IF(dati_pdc!$C2=3,dati_bdv!$E$2:$E$65536,IF(dati_pdc!$C2=4,dati_bdv!$F$2:$F$65536,IF(dati_pdc!$C2=5,dati_bdv!$G$2:$G$65536,dati_bdv!$H$2:$H$65536))))),$A2,dati_bdv!N$2:N$65536) -> 0
A3: =dati_pdc!A3 -> 1103 | B3: =SUMIF(IF(dati_pdc!$C3=1,dati_bdv!$C$2:$C$65536,IF(dati_pdc!$C3=2,dati_bdv!$D$2:$D$65536,IF(dati_pdc!$C3=3,dati_bdv!$E$2:$E$65536,IF(dati_pdc!$C3=4,dati_bdv!$F$2:$F$65536,IF(dati_pdc!$C3=5,dati_bdv!$G$2:$G$65536,dati_bdv!$H$2:$H$65536))))),$A3,dati_bdv!J$2:J$65536) -> 3000 | C3: =SUMIF(IF(dati_pdc!$C3=1,dati_bdv!$C$2:$C$65536,IF(dati_pdc!$C3=2,dati_bdv!$D$2:$D$65536,IF(dati_pdc!$C3=3,dati_bdv!$E$2:$E$65536,IF(dati_pdc!$C3=4,dati_bdv!$F$2:$F$65536,IF(dati_pdc!$C3=5,dati_bdv!$G$2:$G$65536,dati_bdv!$H$2:$H$65536))))),$A3,dati_bdv!K$2:K$65536) -> 3000 | D3: =SUMIF(IF(dati_pdc!$C3=1,dati_bdv!$C$2:$C$65536,IF(dati_pdc!$C3=2,dati_bdv!$D$2:$D$65536,IF(dati_pdc!$C3=3,dati_bdv!$E$2:$E$65536,IF(dati_pdc!$C3=4,dati_bdv!$F$2:$F$65536,IF(dati_pdc!$C3=5,dati_bdv!$G$2:$G$65536,dati_bdv!$H$2:$H$65536))))),$A3,dati_bdv!L$2:L$65536) -> 0 | E3: =SUMIF(IF(dati_pdc!$C3=1,dati_bdv!$C$2:$C$65536,IF(dati_pdc!$C3=2,dati_bdv!$D$2:$D$65536,IF(dati_pdc!$C3=3,dati_bdv!$E$2:$E$65536,IF(dati_pdc!$C3=4,dati_bdv!$F$2:$F$65536,IF(dati_pdc!$C3=5,dati_bdv!$G$2:$G$65536,dati_bdv!$H$2:$H$65536))))),$A3,dati_bdv!M$2:M$65536) -> 0 | F3: =SUMIF(IF(dati_pdc!$C3=1,dati_bdv!$C$2:$C$65536,IF(dati_pdc!$C3=2,dati_bdv!$D$2:$D$65536,IF(dati_pdc!$C3=3,dati_bdv!$E$2:$E$65536,IF(dati_pdc!$C3=4,dati_bdv!$F$2:$F$65536,IF(dati_pdc!$C3=5,dati_bdv!$G$2:$G$65536,dati_bdv!$H$2:$H$65536))))),$A3,dati_bdv!N$2:N$65536) -> 0
A4: =dati_pdc!A4 -> 110301 | B4: =SUMIF(IF(dati_pdc!$C4=1,dati_bdv!$C$2:$C$65536,IF(dati_pdc!$C4=2,dati_bdv!$D$2:$D$65536,IF(dati_pdc!$C4=3,dati_bdv!$E$2:$E$65536,IF(dati_pdc!$C4=4,dati_bdv!$F$2:$F$65536,IF(dati_pdc!$C4=5,dati_bdv!$G$2:$G$65536,dati_bdv!$H$2:$H$65536))))),$A4,dati_bdv!J$2:J$65536) -> -2000 | C4: =SUMIF(IF(dati_pdc!$C4=1,dati_bdv!$C$2:$C$65536,IF(dati_pdc!$C4=2,dati_bdv!$D$2:$D$65536,IF(dati_pdc!$C4=3,dati_bdv!$E$2:$E$65536,IF(dati_pdc!$C4=4,dati_bdv!$F$2:$F$65536,IF(dati_pdc!$C4=5,dati_bdv!$G$2:$G$65536,dati_bdv!$H$2:$H$65536))))),$A4,dati_bdv!K$2:K$65536) -> -2000 | D4: =SUMIF(IF(dati_pdc!$C4=1,dati_bdv!$C$2:$C$65536,IF(dati_pdc!$C4=2,dati_bdv!$D$2:$D$65536,IF(dati_pdc!$C4=3,dati_bdv!$E$2:$E$65536,IF(dati_pdc!$C4=4,dati_bdv!$F$2:$F$65536,IF(dati_pdc!$C4=5,dati_bdv!$G$2:$G$65536,dati_bdv!$H$2:$H$65536))))),$A4,dati_bdv!L$2:L$65536) -> 0 | E4: =SUMIF(IF(dati_pdc!$C4=1,dati_bdv!$C$2:$C$65536,IF(dati_pdc!$C4=2,dati_bdv!$D$2:$D$65536,IF(dati_pdc!$C4=3,dati_bdv!$E$2:$E$65536,IF(dati_pdc!$C4=4,dati_bdv!$F$2:$F$65536,IF(dati_pdc!$C4=5,dati_bdv!$G$2:$G$65536,dati_bdv!$H$2:$H$65536))))),$A4,dati_bdv!M$2:M$65536) -> 0 | F4: =SUMIF(IF(dati_pdc!$C4=1,dati_bdv!$C$2:$C$65536,IF(dati_pdc!$C4=2,dati_bdv!$D$2:$D$65536,IF(dati_pdc!$C4=3,dati_bdv!$E$2:$E$65536,IF(dati_pdc!$C4=4,dati_bdv!$F$2:$F$65536,IF(dati_pdc!$C4=5,dati_bdv!$G$2:$G$65536,dati_bdv!$H$2:$H$65536))))),$A4,dati_bdv!N$2:N$65536) -> 0
A5: =dati_pdc!A5 -> 110303 | B5: =SUMIF(IF(dati_pdc!$C5=1,dati_bdv!$C$2:$C$65536,IF(dati_pdc!$C5=2,dati_bdv!$D$2:$D$65536,IF(dati_pdc!$C5=3,dati_bdv!$E$2:$E$65536,IF(dati_pdc!$C5=4,dati_bdv!$F$2:$F$65536,IF(dati_pdc!$C5=5,dati_bdv!$G$2:$G$65536,dati_bdv!$H$2:$H$65536))))),$A5,dati_bdv!J$2:J$65536) -> 5000 | C5: =SUMIF(IF(dati_pdc!$C5=1,dati_bdv!$C$2:$C$65536,IF(dati_pdc!$C5=2,dati_bdv!$D$2:$D$65536,IF(dati_pdc!$C5=3,dati_bdv!$E$2:$E$65536,IF(dati_pdc!$C5=4,dati_bdv!$F$2:$F$65536,IF(dati_pdc!$C5=5,dati_bdv!$G$2:$G$65536,dati_bdv!$H$2:$H$65536))))),$A5,dati_bdv!K$2:K$65536) -> 5000 | D5: =SUMIF(IF(dati_pdc!$C5=1,dati_bdv!$C$2:$C$65536,IF(dati_pdc!$C5=2,dati_bdv!$D$2:$D$65536,IF(dati_pdc!$C5=3,dati_bdv!$E$2:$E$65536,IF(dati_pdc!$C5=4,dati_bdv!$F$2:$F$65536,IF(dati_pdc!$C5=5,dati_bdv!$G$2:$G$65536,dati_bdv!$H$2:$H$65536))))),$A5,dati_bdv!L$2:L$65536) -> 0 | E5: =SUMIF(IF(dati_pdc!$C5=1,dati_bdv!$C$2:$C$65536,IF(dati_pdc!$C5=2,dati_bdv!$D$2:$D$65536,IF(dati_pdc!$C5=3,dati_bdv!$E$2:$E$65536,IF(dati_pdc!$C5=4,dati_bdv!$F$2:$F$65536,IF(dati_pdc!$C5=5,dati_bdv!$G$2:$G$65536,dati_bdv!$H$2:$H$65536))))),$A5,dati_bdv!M$2:M$65536) -> 0 | F5: =SUMIF(IF(dati_pdc!$C5=1,dati_bdv!$C$2:$C$65536,IF(dati_pdc!$C5=2,dati_bdv!$D$2:$D$65536,IF(dati_pdc!$C5=3,dati_bdv!$E$2:$E$65536,IF(dati_pdc!$C5=4,dati_bdv!$F$2:$F$65536,IF(dati_pdc!$C5=5,dati_bdv!$G$2:$G$65536,dati_bdv!$H$2:$H$65536))))),$A5,dati_bdv!N$2:N$65536) -> 0
A6: =dati_pdc!A6 -> 21 | B6: =SUMIF(IF(dati_pdc!$C6=1,dati_bdv!$C$2:$C$65536,IF(dati_pdc!$C6=2,dati_bdv!$D$2:$D$65536,IF(dati_pdc!$C6=3,dati_bdv!$E$2:$E$65536,IF(dati_pdc!$C6=4,dati_bdv!$F$2:$F$65536,IF(dati_pdc!$C6=5,dati_bdv!$G$2:$G$65536,dati_bdv!$H$2:$H$65536))))),$A6,dati_bdv!J$2:J$65536) -> 172854.87 | C6: =SUMIF(IF(dati_pdc!$C6=1,dati_bdv!$C$2:$C$65536,IF(dati_pdc!$C6=2,dati_bdv!$D$2:$D$65536,IF(dati_pdc!$C6=3,dati_bdv!$E$2:$E$65536,IF(dati_pdc!$C6=4,dati_bdv!$F$2:$F$65536,IF(dati_pdc!$C6=5,dati_bdv!$G$2:$G$65536,dati_bdv!$H$2:$H$65536))))),$A6,dati_bdv!K$2:K$65536) -> 172854.87 | D6: =SUMIF(IF(dati_pdc!$C6=1,dati_bdv!$C$2:$C$65536,IF(dati_pdc!$C6=2,dati_bdv!$D$2:$D$65536,IF(dati_pdc!$C6=3,dati_bdv!$E$2:$E$65536,IF(dati_pdc!$C6=4,dati_bdv!$F$2:$F$65536,IF(dati_pdc!$C6=5,dati_bdv!$G$2:$G$65536,dati_bdv!$H$2:$H$65536))))),$A6,dati_bdv!L$2:L$65536) -> 0 | E6: =SUMIF(IF(dati_pdc!$C6=1,dati_bdv!$C$2:$C$65536,IF(dati_pdc!$C6=2,dati_bdv!$D$2:$D$65536,IF(dati_pdc!$C6=3,dati_bdv!$E$2:$E$65536,IF(dati_pdc!$C6=4,dati_bdv!$F$2:$F$65536,IF(dati_pdc!$C6=5,dati_bdv!$G$2:$G$65536,dati_bdv!$H$2:$H$65536))))),$A6,dati_bdv!M$2:M$65536) -> 0 | F6: =SUMIF(IF(dati_pdc!$C6=1,dati_bdv!$C$2:$C$65536,IF(dati_pdc!$C6=2,dati_bdv!$D$2:$D$65536,IF(dati_pdc!$C6=3,dati_bdv!$E$2:$E$65536,IF(dati_pdc!$C6=4,dati_bdv!$F$2:$F$65536,IF(dati_pdc!$C6=5,dati_bdv!$G$2:$G$65536,dati_bdv!$H$2:$H$65536))))),$A6,dati_bdv!N$2:N$65536) -> 0
A7: =dati_pdc!A7 -> 2101 | B7: =SUMIF(IF(dati_pdc!$C7=1,dati_bdv!$C$2:$C$65536,IF(dati_pdc!$C7=2,dati_bdv!$D$2:$D$65536,IF(dati_pdc!$C7=3,dati_bdv!$E$2:$E$65536,IF(dati_pdc!$C7=4,dati_bdv!$F$2:$F$65536,IF(dati_pdc!$C7=5,dati_bdv!$G$2:$G$65536,dati_bdv!$H$2:$H$65536))))),$A7,dati_bdv!J$2:J$65536) -> 172854.87 | C7: =SUMIF(IF(dati_pdc!$C7=1,dati_bdv!$C$2:$C$65536,IF(dati_pdc!$C7=2,dati_bdv!$D$2:$D$65536,IF(dati_pdc!$C7=3,dati_bdv!$E$2:$E$65536,IF(dati_pdc!$C7=4,dati_bdv!$F$2:$F$65536,IF(dati_pdc!$C7=5,dati_bdv!$G$2:$G$65536,dati_bdv!$H$2:$H$65536))))),$A7,dati_bdv!K$2:K$65536) -> 172854.87 | D7: =SUMIF(IF(dati_pdc!$C7=1,dati_bdv!$C$2:$C$65536,IF(dati_pdc!$C7=2,dati_bdv!$D$2:$D$65536,IF(dati_pdc!$C7=3,dati_bdv!$E$2:$E$65536,IF(dati_pdc!$C7=4,dati_bdv!$F$2:$F$65536,IF(dati_pdc!$C7=5,dati_bdv!$G$2:$G$65536,dati_bdv!$H$2:$H$65536))))),$A7,dati_bdv!L$2:L$65536) -> 0 | E7: =SUMIF(IF(dati_pdc!$C7=1,dati_bdv!$C$2:$C$65536,IF(dati_pdc!$C7=2,dati_bdv!$D$2:$D$65536,IF(dati_pdc!$C7=3,dati_bdv!$E$2:$E$65536,IF(dati_pdc!$C7=4,dati_bdv!$F$2:$F$65536,IF(dati_pdc!$C7=5,dati_bdv!$G$2:$G$65536,dati_bdv!$H$2:$H$65536))))),$A7,dati_bdv!M$2:M$65536) -> 0 | F7: =SUMIF(IF(dati_pdc!$C7=1,dati_bdv!$C$2:$C$65536,IF(dati_pdc!$C7=2,dati_bdv!$D$2:$D$65536,IF(dati_pdc!$C7=3,dati_bdv!$E$2:$E$65536,IF(dati_pdc!$C7=4,dati_bdv!$F$2:$F$65536,IF(dati_pdc!$C7=5,dati_bdv!$G$2:$G$65536,dati_bdv!$H$2:$H$65536))))),$A7,dati_bdv!N$2:N$65536) -> 0
A8: =dati_pdc!A8 -> 210121 | B8: =SUMIF(IF(dati_pdc!$C8=1,dati_bdv!$C$2:$C$65536,IF(dati_pdc!$C8=2,dati_bdv!$D$2:$D$65536,IF(dati_pdc!$C8=3,dati_bdv!$E$2:$E$65536,IF(dati_pdc!$C8=4,dati_bdv!$F$2:$F$65536,IF(dati_pdc!$C8=5,dati_bdv!$G$2:$G$65536,dati_bdv!$H$2:$H$65536))))),$A8,dati_bdv!J$2:J$65536) -> 172854.87 | C8: =SUMIF(IF(dati_pdc!$C8=1,dati_bdv!$C$2:$C$65536,IF(dati_pdc!$C8=2,dati_bdv!$D$2:$D$65536,IF(dati_pdc!$C8=3,dati_bdv!$E$2:$E$65536,IF(dati_pdc!$C8=4,dati_bdv!$F$2:$F$65536,IF(dati_pdc!$C8=5,dati_bdv!$G$2:$G$65536,dati_bdv!$H$2:$H$65536))))),$A8,dati_bdv!K$2:K$65536) -> 172854.87 | D8: =SUMIF(IF(dati_pdc!$C8=1,dati_bdv!$C$2:$C$65536,IF(dati_pdc!$C8=2,dati_bdv!$D$2:$D$65536,IF(dati_pdc!$C8=3,dati_bdv!$E$2:$E$65536,IF(dati_pdc!$C8=4,dati_bdv!$F$2:$F$65536,IF(dati_pdc!$C8=5,dati_bdv!$G$2:$G$65536,dati_bdv!$H$2:$H$65536))))),$A8,dati_bdv!L$2:L$65536) -> 0 | E8: =SUMIF(IF(dati_pdc!$C8=1,dati_bdv!$C$2:$C$65536,IF(dati_pdc!$C8=2,dati_bdv!$D$2:$D$65536,IF(dati_pdc!$C8=3,dati_bdv!$E$2:$E$65536,IF(dati_pdc!$C8=4,dati_bdv!$F$2:$F$65536,IF(dati_pdc!$C8=5,dati_bdv!$G$2:$G$65536,dati_bdv!$H$2:$H$65536))))),$A8,dati_bdv!M$2:M$65536) -> 0 | F8: =SUMIF(IF(dati_pdc!$C8=1,dati_bdv!$C$2:$C$65536,IF(dati_pdc!$C8=2,dati_bdv!$D$2:$D$65536,IF(dati_pdc!$C8=3,dati_bdv!$E$2:$E$65536,IF(dati_pdc!$C8=4,dati_bdv!$F$2:$F$65536,IF(dati_pdc!$C8=5,dati_bdv!$G$2:$G$65536,dati_bdv!$H$2:$H$65536))))),$A8,dati_bdv!N$2:N$65536) -> 0
A9: =dati_pdc!A9 -> 23 | B9: =SUMIF(IF(dati_pdc!$C9=1,dati_bdv!$C$2:$C$65536,IF(dati_pdc!$C9=2,dati_bdv!$D$2:$D$65536,IF(dati_pdc!$C9=3,dati_bdv!$E$2:$E$65536,IF(dati_pdc!$C9=4,dati_bdv!$F$2:$F$65536,IF(dati_pdc!$C9=5,dati_bdv!$G$2:$G$65536,dati_bdv!$H$2:$H$65536))))),$A9,dati_bdv!J$2:J$65536) -> 70440 | C9: =SUMIF(IF(dati_pdc!$C9=1,dati_bdv!$C$2:$C$65536,IF(dati_pdc!$C9=2,dati_bdv!$D$2:$D$65536,IF(dati_pdc!$C9=3,dati_bdv!$E$2:$E$65536,IF(dati_pdc!$C9=4,dati_bdv!$F$2:$F$65536,IF(dati_pdc!$C9=5,dati_bdv!$G$2:$G$65536,dati_bdv!$H$2:$H$65536))))),$A9,dati_bdv!K$2:K$65536) -> -1560 | D9: =SUMIF(IF(dati_pdc!$C9=1,dati_bdv!$C$2:$C$65536,IF(dati_pdc!$C9=2,dati_bdv!$D$2:$D$65536,IF(dati_pdc!$C9=3,dati_bdv!$E$2:$E$65536,IF(dati_pdc!$C9=4,dati_bdv!$F$2:$F$65536,IF(dati_pdc!$C9=5,dati_bdv!$G$2:$G$65536,dati_bdv!$H$2:$H$65536))))),$A9,dati_bdv!L$2:L$65536) -> 0 | E9: =SUMIF(IF(dati_pdc!$C9=1,dati_bdv!$C$2:$C$65536,IF(dati_pdc!$C9=2,dati_bdv!$D$2:$D$65536,IF(dati_pdc!$C9=3,dati_bdv!$E$2:$E$65536,IF(dati_pdc!$C9=4,dati_bdv!$F$2:$F$65536,IF(dati_pdc!$C9=5,dati_bdv!$G$2:$G$65536,dati_bdv!$H$2:$H$65536))))),$A9,dati_bdv!M$2:M$65536) -> 0 | F9: =SUMIF(IF(dati_pdc!$C9=1,dati_bdv!$C$2:$C$65536,IF(dati_pdc!$C9=2,dati_bdv!$D$2:$D$65536,IF(dati_pdc!$C9=3,dati_bdv!$E$2:$E$65536,IF(dati_pdc!$C9=4,dati_bdv!$F$2:$F$65536,IF(dati_pdc!$C9=5,dati_bdv!$G$2:$G$65536,dati_bdv!$H$2:$H$65536))))),$A9,dati_bdv!N$2:N$65536) -> 0
A10: =dati_pdc!A10 -> 2303 | B10: =SUMIF(IF(dati_pdc!$C10=1,dati_bdv!$C$2:$C$65536,IF(dati_pdc!$C10=2,dati_bdv!$D$2:$D$65536,IF(dati_pdc!$C10=3,dati_bdv!$E$2:$E$65536,IF(dati_pdc!$C10=4,dati_bdv!$F$2:$F$65536,IF(dati_pdc!$C10=5,dati_bdv!$G$2:$G$65536,dati_bdv!$H$2:$H$65536))))),$A10,dati_bdv!J$2:J$65536) -> 70440 | C10: =SUMIF(IF(dati_pdc!$C10=1,dati_bdv!$C$2:$C$65536,IF(dati_pdc!$C10=2,dati_bdv!$D$2:$D$65536,IF(dati_pdc!$C10=3,dati_bdv!$E$2:$E$65536,IF(dati_pdc!$C10=4,dati_bdv!$F$2:$F$65536,IF(dati_pdc!$C10=5,dati_bdv!$G$2:$G$65536,dati_bdv!$H$2:$H$65536))))),$A10,dati_bdv!K$2:K$65536) -> -1560 | D10: =SUMIF(IF(dati_pdc!$C10=1,dati_bdv!$C$2:$C$65536,IF(dati_pdc!$C10=2,dati_bdv!$D$2:$D$65536,IF(dati_pdc!$C10=3,dati_bdv!$E$2:$E$65536,IF(dati_pdc!$C10=4,dati_bdv!$F$2:$F$65536,IF(dati_pdc!$C10=5,dati_bdv!$G$2:$G$65536,dati_bdv!$H$2:$H$65536))))),$A10,dati_bdv!L$2:L$65536) -> 0 | E10: =SUMIF(IF(dati_pdc!$C10=1,dati_bdv!$C$2:$C$65536,IF(dati_pdc!$C10=2,dati_bdv!$D$2:$D$65536,IF(dati_pdc!$C10=3,dati_bdv!$E$2:$E$65536,IF(dati_pdc!$C10=4,dati_bdv!$F$2:$F$65536,IF(dati_pdc!$C10=5,dati_bdv!$G$2:$G$65536,dati_bdv!$H$2:$H$65536))))),$A10,dati_bdv!M$2:M$65536) -> 0 | F10: =SUMIF(IF(dati_pdc!$C10=1,dati_bdv!$C$2:$C$65536,IF(dati_pdc!$C10=2,dati_bdv!$D$2:$D$65536,IF(dati_pdc!$C10=3,dati_bdv!$E$2:$E$65536,IF(dati_pdc!$C10=4,dati_bdv!$F$2:$F$65536,IF(dati_pdc!$C10=5,dati_bdv!$G$2:$G$65536,dati_bdv!$H$2:$H$65536))))),$A10,dati_bdv!N$2:N$65536) -> 0
A11: =dati_pdc!A11 -> 230301 | B11: =SUMIF(IF(dati_pdc!$C11=1,dati_bdv!$C$2:$C$65536,IF(dati_pdc!$C11=2,dati_bdv!$D$2:$D$65536,IF(dati_pdc!$C11=3,dati_bdv!$E$2:$E$65536,IF(dati_pdc!$C11=4,dati_bdv!$F$2:$F$65536,IF(dati_pdc!$C11=5,dati_bdv!$G$2:$G$65536,dati_bdv!$H$2:$H$65536))))),$A11,dati_bdv!J$2:J$65536) -> 70440 | C11: =SUMIF(IF(dati_pdc!$C11=1,dati_bdv!$C$2:$C$65536,IF(dati_pdc!$C11=2,dati_bdv!$D$2:$D$65536,IF(dati_pdc!$C11=3,dati_bdv!$E$2:$E$65536,IF(dati_pdc!$C11=4,dati_bdv!$F$2:$F$65536,IF(dati_pdc!$C11=5,dati_bdv!$G$2:$G$65536,dati_bdv!$H$2:$H$65536))))),$A11,dati_bdv!K$2:K$65536) -> -1560 | D11: =SUMIF(IF(dati_pdc!$C11=1,dati_bdv!$C$2:$C$65536,IF(dati_pdc!$C11=2,dati_bdv!$D$2:$D$65536,IF(dati_pdc!$C11=3,dati_bdv!$E$2:$E$65536,IF(dati_pdc!$C11=4,dati_bdv!$F$2:$F$65536,IF(dati_pdc!$C11=5,dati_bdv!$G$2:$G$65536,dati_bdv!$H$2:$H$65536))))),$A11,dati_bdv!L$2:L$65536) -> 0 | E11: =SUMIF(IF(dati_pdc!$C11=1,dati_bdv!$C$2:$C$65536,IF(dati_pdc!$C11=2,dati_bdv!$D$2:$D$65536,IF(dati_pdc!$C11=3,dati_bdv!$E$2:$E$65536,IF(dati_pdc!$C11=4,dati_bdv!$F$2:$F$65536,IF(dati_pdc!$C11=5,dati_bdv!$G$2:$G$65536,dati_bdv!$H$2:$H$65536))))),$A11,dati_bdv!M$2:M$65536) -> 0 | F11: =SUMIF(IF(dati_pdc!$C11=1,dati_bdv!$C$2:$C$65536,IF(dati_pdc!$C11=2,dati_bdv!$D$2:$D$65536,IF(dati_pdc!$C11=3,dati_bdv!$E$2:$E$65536,IF(dati_pdc!$C11=4,dati_bdv!$F$2:$F$65536,IF(dati_pdc!$C11=5,dati_bdv!$G$2:$G$65536,dati_bdv!$H$2:$H$65536))))),$A11,dati_bdv!N$2:N$65536) -> 0
A12: =dati_pdc!A12 -> 27 | B12: =SUMIF(IF(dati_pdc!$C12=1,dati_bdv!$C$2:$C$65536,IF(dati_pdc!$C12=2,dati_bdv!$D$2:$D$65536,IF(dati_pdc!$C12=3,dati_bdv!$E$2:$E$65536,IF(dati_pdc!$C12=4,dati_bdv!$F$2:$F$65536,IF(dati_pdc!$C12=5,dati_bdv!$G$2:$G$65536,dati_bdv!$H$2:$H$65536))))),$A12,dati_bdv!J$2:J$65536) -> 3798.07 | C12: =SUMIF(IF(dati_pdc!$C12=1,dati_bdv!$C$2:$C$65536,IF(dati_pdc!$C12=2,dati_bdv!$D$2:$D$65536,IF(dati_pdc!$C12=3,dati_bdv!$E$2:$E$65536,IF(dati_pdc!$C12=4,dati_bdv!$F$2:$F$65536,IF(dati_pdc!$C12=5,dati_bdv!$G$2:$G$65536,dati_bdv!$H$2:$H$65536))))),$A12,dati_bdv!K$2:K$65536) -> 3798.07 | D12: =SUMIF(IF(dati_pdc!$C12=1,dati_bdv!$C$2:$C$65536,IF(dati_pdc!$C12=2,dati_bdv!$D$2:$D$65536,IF(dati_pdc!$C12=3,dati_bdv!$E$2:$E$65536,IF(dati_pdc!$C12=4,dati_bdv!$F$2:$F$65536,IF(dati_pdc!$C12=5,dati_bdv!$G$2:$G$65536,dati_bdv!$H$2:$H$65536))))),$A12,dati_bdv!L$2:L$65536) -> 0 | E12: =SUMIF(IF(dati_pdc!$C12=1,dati_bdv!$C$2:$C$65536,IF(dati_pdc!$C12=2,dati_bdv!$D$2:$D$65536,IF(dati_pdc!$C12=3,dati_bdv!$E$2:$E$65536,IF(dati_pdc!$C12=4,dati_bdv!$F$2:$F$65536,IF(dati_pdc!$C12=5,dati_bdv!$G$2:$G$65536,dati_bdv!$H$2:$H$65536))))),$A12,dati_bdv!M$2:M$65536) -> 0 | F12: =SUMIF(IF(dati_pdc!$C12=1,dati_bdv!$C$2:$C$65536,IF(dati_pdc!$C12=2,dati_bdv!$D$2:$D$65536,IF(dati_pdc!$C12=3,dati_bdv!$E$2:$E$65536,IF(dati_pdc!$C12=4,dati_bdv!$F$2:$F$65536,IF(dati_pdc!$C12=5,dati_bdv!$G$2:$G$65536,dati_bdv!$H$2:$H$65536))))),$A12,dati_bdv!N$2:N$65536) -> 0
A13: =dati_pdc!A13 -> 2705 | B13: =SUMIF(IF(dati_pdc!$C13=1,dati_bdv!$C$2:$C$65536,IF(dati_pdc!$C13=2,dati_bdv!$D$2:$D$65536,IF(dati_pdc!$C13=3,dati_bdv!$E$2:$E$65536,IF(dati_pdc!$C13=4,dati_bdv!$F$2:$F$65536,IF(dati_pdc!$C13=5,dati_bdv!$G$2:$G$65536,dati_bdv!$H$2:$H$65536))))),$A13,dati_bdv!J$2:J$65536) -> 3798.07 | C13: =SUMIF(IF(dati_pdc!$C13=1,dati_bdv!$C$2:$C$65536,IF(dati_pdc!$C13=2,dati_bdv!$D$2:$D$65536,IF(dati_pdc!$C13=3,dati_bdv!$E$2:$E$65536,IF(dati_pdc!$C13=4,dati_bdv!$F$2:$F$65536,IF(dati_pdc!$C13=5,dati_bdv!$G$2:$G$65536,dati_bdv!$H$2:$H$65536))))),$A13,dati_bdv!K$2:K$65536) -> 3798.07 | D13: =SUMIF(IF(dati_pdc!$C13=1,dati_bdv!$C$2:$C$65536,IF(dati_pdc!$C13=2,dati_bdv!$D$2:$D$65536,IF(dati_pdc!$C13=3,dati_bdv!$E$2:$E$65536,IF(dati_pdc!$C13=4,dati_bdv!$F$2:$F$65536,IF(dati_pdc!$C13=5,dati_bdv!$G$2:$G$65536,dati_bdv!$H$2:$H$65536))))),$A13,dati_bdv!L$2:L$65536) -> 0 | E13: =SUMIF(IF(dati_pdc!$C13=1,dati_bdv!$C$2:$C$65536,IF(dati_pdc!$C13=2,dati_bdv!$D$2:$D$65536,IF(dati_pdc!$C13=3,dati_bdv!$E$2:$E$65536,IF(dati_pdc!$C13=4,dati_bdv!$F$2:$F$65536,IF(dati_pdc!$C13=5,dati_bdv!$G$2:$G$65536,dati_bdv!$H$2:$H$65536))))),$A13,dati_bdv!M$2:M$65536) -> 0 | F13: =SUMIF(IF(dati_pdc!$C13=1,dati_bdv!$C$2:$C$65536,IF(dati_pdc!$C13=2,dati_bdv!$D$2:$D$65536,IF(dati_pdc!$C13=3,dati_bdv!$E$2:$E$65536,IF(dati_pdc!$C13=4,dati_bdv!$F$2:$F$65536,IF(dati_pdc!$C13=5,dati_bdv!$G$2:$G$65536,dati_bdv!$H$2:$H$65536))))),$A13,dati_bdv!N$2:N$65536) -> 0
A14: =dati_pdc!A14 -> 270551 | B14: =SUMIF(IF(dati_pdc!$C14=1,dati_bdv!$C$2:$C$65536,IF(dati_pdc!$C14=2,dati_bdv!$D$2:$D$65536,IF(dati_pdc!$C14=3,dati_bdv!$E$2:$E$65536,IF(dati_pdc!$C14=4,dati_bdv!$F$2:$F$65536,IF(dati_pdc!$C14=5,dati_bdv!$G$2:$G$65536,dati_bdv!$H$2:$H$65536))))),$A14,dati_bdv!J$2:J$65536) -> 3798.07 | C14: =SUMIF(IF(dati_pdc!$C14=1,dati_bdv!$C$2:$C$65536,IF(dati_pdc!$C14=2,dati_bdv!$D$2:$D$65536,IF(dati_pdc!$C14=3,dati_bdv!$E$2:$E$65536,IF(dati_pdc!$C14=4,dati_bdv!$F$2:$F$65536,IF(dati_pdc!$C14=5,dati_bdv!$G$2:$G$65536,dati_bdv!$H$2:$H$65536))))),$A14,dati_bdv!K$2:K$65536) -> 3798.07 | D14: =SUMIF(IF(dati_pdc!$C14=1,dati_bdv!$C$2:$C$65536,IF(dati_pdc!$C14=2,dati_bdv!$D$2:$D$65536,IF(dati_pdc!$C14=3,dati_bdv!$E$2:$E$65536,IF(dati_pdc!$C14=4,dati_bdv!$F$2:$F$65536,IF(dati_pdc!$C14=5,dati_bdv!$G$2:$G$65536,dati_bdv!$H$2:$H$65536))))),$A14,dati_bdv!L$2:L$65536) -> 0 | E14: =SUMIF(IF(dati_pdc!$C14=1,dati_bdv!$C$2:$C$65536,IF(dati_pdc!$C14=2,dati_bdv!$D$2:$D$65536,IF(dati_pdc!$C14=3,dati_bdv!$E$2:$E$65536,IF(dati_pdc!$C14=4,dati_bdv!$F$2:$F$65536,IF(dati_pdc!$C14=5,dati_bdv!$G$2:$G$65536,dati_bdv!$H$2:$H$65536))))),$A14,dati_bdv!M$2:M$65536) -> 0 | F14: =SUMIF(IF(dati_pdc!$C14=1,dati_bdv!$C$2:$C$65536,IF(dati_pdc!$C14=2,dati_bdv!$D$2:$D$65536,IF(dati_pdc!$C14=3,dati_bdv!$E$2:$E$65536,IF(dati_pdc!$C14=4,dati_bdv!$F$2:$F$65536,IF(dati_pdc!$C14=5,dati_bdv!$G$2:$G$65536,dati_bdv!$H$2:$H$65536))))),$A14,dati_bdv!N$2:N$65536) -> 0
A15: =dati_pdc!A15 -> 31 | B15: =SUMIF(IF(dati_pdc!$C15=1,dati_bdv!$C$2:$C$65536,IF(dati_pdc!$C15=2,dati_bdv!$D$2:$D$65536,IF(dati_pdc!$C15=3,dati_bdv!$E$2:$E$65536,IF(dati_pdc!$C15=4,dati_bdv!$F$2:$F$65536,IF(dati_pdc!$C15=5,dati_bdv!$G$2:$G$65536,dati_bdv!$H$2:$H$65536))))),$A15,dati_bdv!J$2:J$65536) -> -1333.16 | C15: =SUMIF(IF(dati_pdc!$C15=1,dati_bdv!$C$2:$C$65536,IF(dati_pdc!$C15=2,dati_bdv!$D$2:$D$65536,IF(dati_pdc!$C15=3,dati_bdv!$E$2:$E$65536,IF(dati_pdc!$C15=4,dati_bdv!$F$2:$F$65536,IF(dati_pdc!$C15=5,dati_bdv!$G$2:$G$65536,dati_bdv!$H$2:$H$65536))))),$A15,dati_bdv!K$2:K$65536) -> 2522 | D15: =SUMIF(IF(dati_pdc!$C15=1,dati_bdv!$C$2:$C$65536,IF(dati_pdc!$C15=2,dati_bdv!$D$2:$D$65536,IF(dati_pdc!$C15=3,dati_bdv!$E$2:$E$65536,IF(dati_pdc!$C15=4,dati_bdv!$F$2:$F$65536,IF(dati_pdc!$C15=5,dati_bdv!$G$2:$G$65536,dati_bdv!$H$2:$H$65536))))),$A15,dati_bdv!L$2:L$65536) -> 0 | E15: =SUMIF(IF(dati_pdc!$C15=1,dati_bdv!$C$2:$C$65536,IF(dati_pdc!$C15=2,dati_bdv!$D$2:$D$65536,IF(dati_pdc!$C15=3,dati_bdv!$E$2:$E$65536,IF(dati_pdc!$C15=4,dati_bdv!$F$2:$F$65536,IF(dati_pdc!$C15=5,dati_bdv!$G$2:$G$65536,dati_bdv!$H$2:$H$65536))))),$A15,dati_bdv!M$2:M$65536) -> 0 | F15: =SUMIF(IF(dati_pdc!$C15=1,dati_bdv!$C$2:$C$65536,IF(dati_pdc!$C15=2,dati_bdv!$D$2:$D$65536,IF(dati_pdc!$C15=3,dati_bdv!$E$2:$E$65536,IF(dati_pdc!$C15=4,dati_bdv!$F$2:$F$65536,IF(dati_pdc!$C15=5,dati_bdv!$G$2:$G$65536,dati_bdv!$H$2:$H$65536))))),$A15,dati_bdv!N$2:N$65536) -> 0
A16: =dati_pdc!A16 -> 3101 | B16: =SUMIF(IF(dati_pdc!$C16=1,dati_bdv!$C$2:$C$65536,IF(dati_pdc!$C16=2,dati_bdv!$D$2:$D$65536,IF(dati_pdc!$C16=3,dati_bdv!$E$2:$E$65536,IF(dati_pdc!$C16=4,dati_bdv!$F$2:$F$65536,IF(dati_pdc!$C16=5,dati_bdv!$G$2:$G$65536,dati_bdv!$H$2:$H$65536))))),$A16,dati_bdv!J$2:J$65536) -> -1514.22 | C16: =SUMIF(IF(dati_pdc!$C16=1,dati_bdv!$C$2:$C$65536,IF(dati_pdc!$C16=2,dati_bdv!$D$2:$D$65536,IF(dati_pdc!$C16=3,dati_bdv!$E$2:$E$65536,IF(dati_pdc!$C16=4,dati_bdv!$F$2:$F$65536,IF(dati_pdc!$C16=5,dati_bdv!$G$2:$G$65536,dati_bdv!$H$2:$H$65536))))),$A16,dati_bdv!K$2:K$65536) -> 2340.94 | D16: =SUMIF(IF(dati_pdc!$C16=1,dati_bdv!$C$2:$C$65536,IF(dati_pdc!$C16=2,dati_bdv!$D$2:$D$65536,IF(dati_pdc!$C16=3,dati_bdv!$E$2:$E$65536,IF(dati_pdc!$C16=4,dati_bdv!$F$2:$F$65536,IF(dati_pdc!$C16=5,dati_bdv!$G$2:$G$65536,dati_bdv!$H$2:$H$65536))))),$A16,dati_bdv!L$2:L$65536) -> 0 | E16: =SUMIF(IF(dati_pdc!$C16=1,dati_bdv!$C$2:$C$65536,IF(dati_pdc!$C16=2,dati_bdv!$D$2:$D$65536,IF(dati_pdc!$C16=3,dati_bdv!$E$2:$E$65536,IF(dati_pdc!$C16=4,dati_bdv!$F$2:$F$65536,IF(dati_pdc!$C16=5,dati_bdv!$G$2:$G$65536,dati_bdv!$H$2:$H$65536))))),$A16,dati_bdv!M$2:M$65536) -> 0 | F16: =SUMIF(IF(dati_pdc!$C16=1,dati_bdv!$C$2:$C$65536,IF(dati_pdc!$C16=2,dati_bdv!$D$2:$D$65536,IF(dati_pdc!$C16=3,dati_bdv!$E$2:$E$65536,IF(dati_pdc!$C16=4,dati_bdv!$F$2:$F$65536,IF(dati_pdc!$C16=5,dati_bdv!$G$2:$G$65536,dati_bdv!$H$2:$H$65536))))),$A16,dati_bdv!N$2:N$65536) -> 0
A17: =dati_pdc!A17 -> 310101 | B17: =SUMIF(IF(dati_pdc!$C17=1,dati_bdv!$C$2:$C$65536,IF(dati_pdc!$C17=2,dati_bdv!$D$2:$D$65536,IF(dati_pdc!$C17=3,dati_bdv!$E$2:$E$65536,IF(dati_pdc!$C17=4,dati_bdv!$F$2:$F$65536,IF(dati_pdc!$C17=5,dati_bdv!$G$2:$G$65536,dati_bdv!$H$2:$H$65536))))),$A17,dati_bdv!J$2:J$65536) -> -1514.22 | C17: =SUMIF(IF(dati_pdc!$C17=1,dati_bdv!$C$2:$C$65536,IF(dati_pdc!$C17=2,dati_bdv!$D$2:$D$65536,IF(dati_pdc!$C17=3,dati_bdv!$E$2:$E$65536,IF(dati_pdc!$C17=4,dati_bdv!$F$2:$F$65536,IF(dati_pdc!$C17=5,dati_bdv!$G$2:$G$65536,dati_bdv!$H$2:$H$65536))))),$A17,dati_bdv!K$2:K$65536) -> 2340.94 | D17: =SUMIF(IF(dati_pdc!$C17=1,dati_bdv!$C$2:$C$65536,IF(dati_pdc!$C17=2,dati_bdv!$D$2:$D$65536,IF(dati_pdc!$C17=3,dati_bdv!$E$2:$E$65536,IF(dati_pdc!$C17=4,dati_bdv!$F$2:$F$65536,IF(dati_pdc!$C17=5,dati_bdv!$G$2:$G$65536,dati_bdv!$H$2:$H$65536))))),$A17,dati_bdv!L$2:L$65536) -> 0 | E17: =SUMIF(IF(dati_pdc!$C17=1,dati_bdv!$C$2:$C$65536,IF(dati_pdc!$C17=2,dati_bdv!$D$2:$D$65536,IF(dati_pdc!$C17=3,dati_bdv!$E$2:$E$65536,IF(dati_pdc!$C17=4,dati_bdv!$F$2:$F$65536,IF(dati_pdc!$C17=5,dati_bdv!$G$2:$G$65536,dati_bdv!$H$2:$H$65536))))),$A17,dati_bdv!M$2:M$65536) -> 0 | F17: =SUMIF(IF(dati_pdc!$C17=1,dati_bdv!$C$2:$C$65536,IF(dati_pdc!$C17=2,dati_bdv!$D$2:$D$65536,IF(dati_pdc!$C17=3,dati_bdv!$E$2:$E$65536,IF(dati_pdc!$C17=4,dati_bdv!$F$2:$F$65536,IF(dati_pdc!$C17=5,dati_bdv!$G$2:$G$65536,dati_bdv!$H$2:$H$65536))))),$A17,dati_bdv!N$2:N$65536) -> 0
A18: =dati_pdc!A18 -> 3103 | B18: =SUMIF(IF(dati_pdc!$C18=1,dati_bdv!$C$2:$C$65536,IF(dati_pdc!$C18=2,dati_bdv!$D$2:$D$65536,IF(dati_pdc!$C18=3,dati_bdv!$E$2:$E$65536,IF(dati_pdc!$C18=4,dati_bdv!$F$2:$F$65536,IF(dati_pdc!$C18=5,dati_bdv!$G$2:$G$65536,dati_bdv!$H$2:$H$65536))))),$A18,dati_bdv!J$2:J$65536) -> 181.06 | C18: =SUMIF(IF(dati_pdc!$C18=1,dati_bdv!$C$2:$C$65536,IF(dati_pdc!$C18=2,dati_bdv!$D$2:$D$65536,IF(dati_pdc!$C18=3,dati_bdv!$E$2:$E$65536,IF(dati_pdc!$C18=4,dati_bdv!$F$2:$F$65536,IF(dati_pdc!$C18=5,dati_bdv!$G$2:$G$65536,dati_bdv!$H$2:$H$65536))))),$A18,dati_bdv!K$2:K$65536) -> 181.06 | D18: =SUMIF(IF(dati_pdc!$C18=1,dati_bdv!$C$2:$C$65536,IF(dati_pdc!$C18=2,dati_bdv!$D$2:$D$65536,IF(dati_pdc!$C18=3,dati_bdv!$E$2:$E$65536,IF(dati_pdc!$C18=4,dati_bdv!$F$2:$F$65536,IF(dati_pdc!$C18=5,dati_bdv!$G$2:$G$65536,dati_bdv!$H$2:$H$65536))))),$A18,dati_bdv!L$2:L$65536) -> 0 | E18: =SUMIF(IF(dati_pdc!$C18=1,dati_bdv!$C$2:$C$65536,IF(dati_pdc!$C18=2,dati_bdv!$D$2:$D$65536,IF(dati_pdc!$C18=3,dati_bdv!$E$2:$E$65536,IF(dati_pdc!$C18=4,dati_bdv!$F$2:$F$65536,IF(dati_pdc!$C18=5,dati_bdv!$G$2:$G$65536,dati_bdv!$H$2:$H$65536))))),$A18,dati_bdv!M$2:M$65536) -> 0 | F18: =SUMIF(IF(dati_pdc!$C18=1,dati_bdv!$C$2:$C$65536,IF(dati_pdc!$C18=2,dati_bdv!$D$2:$D$65536,IF(dati_pdc!$C18=3,dati_bdv!$E$2:$E$65536,IF(dati_pdc!$C18=4,dati_bdv!$F$2:$F$65536,IF(dati_pdc!$C18=5,dati_bdv!$G$2:$G$65536,dati_bdv!$H$2:$H$65536))))),$A18,dati_bdv!N$2:N$65536) -> 0
A19: =dati_pdc!A19 -> 310303 | B19: =SUMIF(IF(dati_pdc!$C19=1,dati_bdv!$C$2:$C$65536,IF(dati_pdc!$C19=2,dati_bdv!$D$2:$D$65536,IF(dati_pdc!$C19=3,dati_bdv!$E$2:$E$65536,IF(dati_pdc!$C19=4,dati_bdv!$F$2:$F$65536,IF(dati_pdc!$C19=5,dati_bdv!$G$2:$G$65536,dati_bdv!$H$2:$H$65536))))),$A19,dati_bdv!J$2:J$65536) -> 181.06 | C19: =SUMIF(IF(dati_pdc!$C19=1,dati_bdv!$C$2:$C$65536,IF(dati_pdc!$C19=2,dati_bdv!$D$2:$D$65536,IF(dati_pdc!$C19=3,dati_bdv!$E$2:$E$65536,IF(dati_pdc!$C19=4,dati_bdv!$F$2:$F$65536,IF(dati_pdc!$C19=5,dati_bdv!$G$2:$G$65536,dati_bdv!$H$2:$H$65536))))),$A19,dati_bdv!K$2:K$65536) -> 181.06 | D19: =SUMIF(IF(dati_pdc!$C19=1,dati_bdv!$C$2:$C$65536,IF(dati_pdc!$C19=2,dati_bdv!$D$2:$D$65536,IF(dati_pdc!$C19=3,dati_bdv!$E$2:$E$65536,IF(dati_pdc!$C19=4,dati_bdv!$F$2:$F$65536,IF(dati_pdc!$C19=5,dati_bdv!$G$2:$G$65536,dati_bdv!$H$2:$H$65536))))),$A19,dati_bdv!L$2:L$65536) -> 0 | E19: =SUMIF(IF(dati_pdc!$C19=1,dati_bdv!$C$2:$C$65536,IF(dati_pdc!$C19=2,dati_bdv!$D$2:$D$65536,IF(dati_pdc!$C19=3,dati_bdv!$E$2:$E$65536,IF(dati_pdc!$C19=4,dati_bdv!$F$2:$F$65536,IF(dati_pdc!$C19=5,dati_bdv!$G$2:$G$65536,dati_bdv!$H$2:$H$65536))))),$A19,dati_bdv!M$2:M$65536) -> 0 | F19: =SUMIF(IF(dati_pdc!$C19=1,dati_bdv!$C$2:$C$65536,IF(dati_pdc!$C19=2,dati_bdv!$D$2:$D$65536,IF(dati_pdc!$C19=3,dati_bdv!$E$2:$E$65536,IF(dati_pdc!$C19=4,dati_bdv!$F$2:$F$65536,IF(dati_pdc!$C19=5,dati_bdv!$G$2:$G$65536,dati_bdv!$H$2:$H$65536))))),$A19,dati_bdv!N$2:N$65536) -> 0
A20: =dati_pdc!A20 -> 39 | B20: =SUMIF(IF(dati_pdc!$C20=1,dati_bdv!$C$2:$C$65536,IF(dati_pdc!$C20=2,dati_bdv!$D$2:$D$65536,IF(dati_pdc!$C20=3,dati_bdv!$E$2:$E$65536,IF(dati_pdc!$C20=4,dati_bdv!$F$2:$F$65536,IF(dati_pdc!$C20=5,dati_bdv!$G$2:$G$65536,dati_bdv!$H$2:$H$65536))))),$A20,dati_bdv!J$2:J$65536) -> 29525.6 | C20: =SUMIF(IF(dati_pdc!$C20=1,dati_bdv!$C$2:$C$65536,IF(dati_pdc!$C20=2,dati_bdv!$D$2:$D$65536,IF(dati_pdc!$C20=3,dati_bdv!$E$2:$E$65536,IF(dati_pdc!$C20=4,dati_bdv!$F$2:$F$65536,IF(dati_pdc!$C20=5,dati_bdv!$G$2:$G$65536,dati_bdv!$H$2:$H$65536))))),$A20,dati_bdv!K$2:K$65536) -> 0 | D20: =SUMIF(IF(dati_pdc!$C20=1,dati_bdv!$C$2:$C$65536,IF(dati_pdc!$C20=2,dati_bdv!$D$2:$D$65536,IF(dati_pdc!$C20=3,dati_bdv!$E$2:$E$65536,IF(dati_pdc!$C20=4,dati_bdv!$F$2:$F$65536,IF(dati_pdc!$C20=5,dati_bdv!$G$2:$G$65536,dati_bdv!$H$2:$H$65536))))),$A20,dati_bdv!L$2:L$65536) -> 0 | E20: =SUMIF(IF(dati_pdc!$C20=1,dati_bdv!$C$2:$C$65536,IF(dati_pdc!$C20=2,dati_bdv!$D$2:$D$65536,IF(dati_pdc!$C20=3,dati_bdv!$E$2:$E$65536,IF(dati_pdc!$C20=4,dati_bdv!$F$2:$F$65536,IF(dati_pdc!$C20=5,dati_bdv!$G$2:$G$65536,dati_bdv!$H$2:$H$65536))))),$A20,dati_bdv!M$2:M$65536) -> 0 | F20: =SUMIF(IF(dati_pdc!$C20=1,dati_bdv!$C$2:$C$65536,IF(dati_pdc!$C20=2,dati_bdv!$D$2:$D$65536,IF(dati_pdc!$C20=3,dati_bdv!$E$2:$E$65536,IF(dati_pdc!$C20=4,dati_bdv!$F$2:$F$65536,IF(dati_pdc!$C20=5,dati_bdv!$G$2:$G$65536,dati_bdv!$H$2:$H$65536))))),$A20,dati_bdv!N$2:N$65536) -> 0
A21: =dati_pdc!A21 -> 3901 | B21: =SUMIF(IF(dati_pdc!$C21=1,dati_bdv!$C$2:$C$65536,IF(dati_pdc!$C21=2,dati_bdv!$D$2:$D$65536,IF(dati_pdc!$C21=3,dati_bdv!$E$2:$E$65536,IF(dati_pdc!$C21=4,dati_bdv!$F$2:$F$65536,IF(dati_pdc!$C21=5,dati_bdv!$G$2:$G$65536,dati_bdv!$H$2:$H$65536))))),$A21,dati_bdv!J$2:J$65536) -> 29525.6 | C21: =SUMIF(IF(dati_pdc!$C21=1,dati_bdv!$C$2:$C$65536,IF(dati_pdc!$C21=2,dati_bdv!$D$2:$D$65536,IF(dati_pdc!$C21=3,dati_bdv!$E$2:$E$65536,IF(dati_pdc!$C21=4,dati_bdv!$F$2:$F$65536,IF(dati_pdc!$C21=5,dati_bdv!$G$2:$G$65536,dati_bdv!$H$2:$H$65536))))),$A21,dati_bdv!K$2:K$65536) -> 0 | D21: =SUMIF(IF(dati_pdc!$C21=1,dati_bdv!$C$2:$C$65536,IF(dati_pdc!$C21=2,dati_bdv!$D$2:$D$65536,IF(dati_pdc!$C21=3,dati_bdv!$E$2:$E$65536,IF(dati_pdc!$C21=4,dati_bdv!$F$2:$F$65536,IF(dati_pdc!$C21=5,dati_bdv!$G$2:$G$65536,dati_bdv!$H$2:$H$65536))))),$A21,dati_bdv!L$2:L$65536) -> 0 | E21: =SUMIF(IF(dati_pdc!$C21=1,dati_bdv!$C$2:$C$65536,IF(dati_pdc!$C21=2,dati_bdv!$D$2:$D$65536,IF(dati_pdc!$C21=3,dati_bdv!$E$2:$E$65536,IF(dati_pdc!$C21=4,dati_bdv!$F$2:$F$65536,IF(dati_pdc!$C21=5,dati_bdv!$G$2:$G$65536,dati_bdv!$H$2:$H$65536))))),$A21,dati_bdv!M$2:M$65536) -> 0 | F21: =SUMIF(IF(dati_pdc!$C21=1,dati_bdv!$C$2:$C$65536,IF(dati_pdc!$C21=2,dati_bdv!$D$2:$D$65536,IF(dati_pdc!$C21=3,dati_bdv!$E$2:$E$65536,IF(dati_pdc!$C21=4,dati_bdv!$F$2:$F$65536,IF(dati_pdc!$C21=5,dati_bdv!$G$2:$G$65536,dati_bdv!$H$2:$H$65536))))),$A21,dati_bdv!N$2:N$65536) -> 0
A22: =dati_pdc!A22 -> 390103 | B22: =SUMIF(IF(dati_pdc!$C22=1,dati_bdv!$C$2:$C$65536,IF(dati_pdc!$C22=2,dati_bdv!$D$2:$D$65536,IF(dati_pdc!$C22=3,dati_bdv!$E$2:$E$65536,IF(dati_pdc!$C22=4,dati_bdv!$F$2:$F$65536,IF(dati_pdc!$C22=5,dati_bdv!$G$2:$G$65536,dati_bdv!$H$2:$H$65536))))),$A22,dati_bdv!J$2:J$65536) -> 29525.6 | C22: =SUMIF(IF(dati_pdc!$C22=1,dati_bdv!$C$2:$C$65536,IF(dati_pdc!$C22=2,dati_bdv!$D$2:$D$65536,IF(dati_pdc!$C22=3,dati_bdv!$E$2:$E$65536,IF(dati_pdc!$C22=4,dati_bdv!$F$2:$F$65536,IF(dati_pdc!$C22=5,dati_bdv!$G$2:$G$65536,dati_bdv!$H$2:$H$65536))))),$A22,dati_bdv!K$2:K$65536) -> 0 | D22: =SUMIF(IF(dati_pdc!$C22=1,dati_bdv!$C$2:$C$65536,IF(dati_pdc!$C22=2,dati_bdv!$D$2:$D$65536,IF(dati_pdc!$C22=3,dati_bdv!$E$2:$E$65536,IF(dati_pdc!$C22=4,dati_bdv!$F$2:$F$65536,IF(dati_pdc!$C22=5,dati_bdv!$G$2:$G$65536,dati_bdv!$H$2:$H$65536))))),$A22,dati_bdv!L$2:L$65536) -> 0 | E22: =SUMIF(IF(dati_pdc!$C22=1,dati_bdv!$C$2:$C$65536,IF(dati_pdc!$C22=2,dati_bdv!$D$2:$D$65536,IF(dati_pdc!$C22=3,dati_bdv!$E$2:$E$65536,IF(dati_pdc!$C22=4,dati_bdv!$F$2:$F$65536,IF(dati_pdc!$C22=5,dati_bdv!$G$2:$G$65536,dati_bdv!$H$2:$H$65536))))),$A22,dati_bdv!M$2:M$65536) -> 0 | F22: =SUMIF(IF(dati_pdc!$C22=1,dati_bdv!$C$2:$C$65536,IF(dati_pdc!$C22=2,dati_bdv!$D$2:$D$65536,IF(dati_pdc!$C22=3,dati_bdv!$E$2:$E$65536,IF(dati_pdc!$C22=4,dati_bdv!$F$2:$F$65536,IF(dati_pdc!$C22=5,dati_bdv!$G$2:$G$65536,dati_bdv!$H$2:$H$65536))))),$A22,dati_bdv!N$2:N$65536) -> 0
A23: =dati_pdc!A23 -> 41 | B23: =SUMIF(IF(dati_pdc!$C23=1,dati_bdv!$C$2:$C$65536,IF(dati_pdc!$C23=2,dati_bdv!$D$2:$D$65536,IF(dati_pdc!$C23=3,dati_bdv!$E$2:$E$65536,IF(dati_pdc!$C23=4,dati_bdv!$F$2:$F$65536,IF(dati_pdc!$C23=5,dati_bdv!$G$2:$G$65536,dati_bdv!$H$2:$H$65536))))),$A23,dati_bdv!J$2:J$65536) -> -28285.78 | C23: =SUMIF(IF(dati_pdc!$C23=1,dati_bdv!$C$2:$C$65536,IF(dati_pdc!$C23=2,dati_bdv!$D$2:$D$65536,IF(dati_pdc!$C23=3,dati_bdv!$E$2:$E$65536,IF(dati_pdc!$C23=4,dati_bdv!$F$2:$F$65536,IF(dati_pdc!$C23=5,dati_bdv!$G$2:$G$65536,dati_bdv!$H$2:$H$65536))))),$A23,dati_bdv!K$2:K$65536) -> -28285.78 | D23: =SUMIF(IF(dati_pdc!$C23=1,dati_bdv!$C$2:$C$65536,IF(dati_pdc!$C23=2,dati_bdv!$D$2:$D$65536,IF(dati_pdc!$C23=3,dati_bdv!$E$2:$E$65536,IF(dati_pdc!$C23=4,dati_bdv!$F$2:$F$65536,IF(dati_pdc!$C23=5,dati_bdv!$G$2:$G$65536,dati_bdv!$H$2:$H$65536))))),$A23,dati_bdv!L$2:L$65536) -> 0 | E23: =SUMIF(IF(dati_pdc!$C23=1,dati_bdv!$C$2:$C$65536,IF(dati_pdc!$C23=2,dati_bdv!$D$2:$D$65536,IF(dati_pdc!$C23=3,dati_bdv!$E$2:$E$65536,IF(dati_pdc!$C23=4,dati_bdv!$F$2:$F$65536,IF(dati_pdc!$C23=5,dati_bdv!$G$2:$G$65536,dati_bdv!$H$2:$H$65536))))),$A23,dati_bdv!M$2:M$65536) -> 0 | F23: =SUMIF(IF(dati_pdc!$C23=1,dati_bdv!$C$2:$C$65536,IF(dati_pdc!$C23=2,dati_bdv!$D$2:$D$65536,IF(dati_pdc!$C23=3,dati_bdv!$E$2:$E$65536,IF(dati_pdc!$C23=4,dati_bdv!$F$2:$F$65536,IF(dati_pdc!$C23=5,dati_bdv!$G$2:$G$65536,dati_bdv!$H$2:$H$65536))))),$A23,dati_bdv!N$2:N$65536) -> 0
A24: =dati_pdc!A24 -> 4101 | B24: =SUMIF(IF(dati_pdc!$C24=1,dati_bdv!$C$2:$C$65536,IF(dati_pdc!$C24=2,dati_bdv!$D$2:$D$65536,IF(dati_pdc!$C24=3,dati_bdv!$E$2:$E$65536,IF(dati_pdc!$C24=4,dati_bdv!$F$2:$F$65536,IF(dati_pdc!$C24=5,dati_bdv!$G$2:$G$65536,dati_bdv!$H$2:$H$65536))))),$A24,dati_bdv!J$2:J$65536) -> -28285.78 | C24: =SUMIF(IF(dati_pdc!$C24=1,dati_bdv!$C$2:$C$65536,IF(dati_pdc!$C24=2,dati_bdv!$D$2:$D$65536,IF(dati_pdc!$C24=3,dati_bdv!$E$2:$E$65536,IF(dati_pdc!$C24=4,dati_bdv!$F$2:$F$65536,IF(dati_pdc!$C24=5,dati_bdv!$G$2:$G$65536,dati_bdv!$H$2:$H$65536))))),$A24,dati_bdv!K$2:K$65536) -> -28285.78 | D24: =SUMIF(IF(dati_pdc!$C24=1,dati_bdv!$C$2:$C$65536,IF(dati_pdc!$C24=2,dati_bdv!$D$2:$D$65536,IF(dati_pdc!$C24=3,dati_bdv!$E$2:$E$65536,IF(dati_pdc!$C24=4,dati_bdv!$F$2:$F$65536,IF(dati_pdc!$C24=5,dati_bdv!$G$2:$G$65536,dati_bdv!$H$2:$H$65536))))),$A24,dati_bdv!L$2:L$65536) -> 0 | E24: =SUMIF(IF(dati_pdc!$C24=1,dati_bdv!$C$2:$C$65536,IF(dati_pdc!$C24=2,dati_bdv!$D$2:$D$65536,IF(dati_pdc!$C24=3,dati_bdv!$E$2:$E$65536,IF(dati_pdc!$C24=4,dati_bdv!$F$2:$F$65536,IF(dati_pdc!$C24=5,dati_bdv!$G$2:$G$65536,dati_bdv!$H$2:$H$65536))))),$A24,dati_bdv!M$2:M$65536) -> 0 | F24: =SUMIF(IF(dati_pdc!$C24=1,dati_bdv!$C$2:$C$65536,IF(dati_pdc!$C24=2,dati_bdv!$D$2:$D$65536,IF(dati_pdc!$C24=3,dati_bdv!$E$2:$E$65536,IF(dati_pdc!$C24=4,dati_bdv!$F$2:$F$65536,IF(dati_pdc!$C24=5,dati_bdv!$G$2:$G$65536,dati_bdv!$H$2:$H$65536))))),$A24,dati_bdv!N$2:N$65536) -> 0
A25: =dati_pdc!A25 -> 410101 | B25: =SUMIF(IF(dati_pdc!$C25=1,dati_bdv!$C$2:$C$65536,IF(dati_pdc!$C25=2,dati_bdv!$D$2:$D$65536,IF(dati_pdc!$C25=3,dati_bdv!$E$2:$E$65536,IF(dati_pdc!$C25=4,dati_bdv!$F$2:$F$65536,IF(dati_pdc!$C25=5,dati_bdv!$G$2:$G$65536,dati_bdv!$H$2:$H$65536))))),$A25,dati_bdv!J$2:J$65536) -> -20800 | C25: =SUMIF(IF(dati_pdc!$C25=1,dati_bdv!$C$2:$C$65536,IF(dati_pdc!$C25=2,dati_bdv!$D$2:$D$65536,IF(dati_pdc!$C25=3,dati_bdv!$E$2:$E$65536,IF(dati_pdc!$C25=4,dati_bdv!$F$2:$F$65536,IF(dati_pdc!$C25=5,dati_bdv!$G$2:$G$65536,dati_bdv!$H$2:$H$65536))))),$A25,dati_bdv!K$2:K$65536) -> -20800 | D25: =SUMIF(IF(dati_pdc!$C25=1,dati_bdv!$C$2:$C$65536,IF(dati_pdc!$C25=2,dati_bdv!$D$2:$D$65536,IF(dati_pdc!$C25=3,dati_bdv!$E$2:$E$65536,IF(dati_pdc!$C25=4,dati_bdv!$F$2:$F$65536,IF(dati_pdc!$C25=5,dati_bdv!$G$2:$G$65536,dati_bdv!$H$2:$H$65536))))),$A25,dati_bdv!L$2:L$65536) -> 0 | E25: =SUMIF(IF(dati_pdc!$C25=1,dati_bdv!$C$2:$C$65536,IF(dati_pdc!$C25=2,dati_bdv!$D$2:$D$65536,IF(dati_pdc!$C25=3,dati_bdv!$E$2:$E$65536,IF(dati_pdc!$C25=4,dati_bdv!$F$2:$F$65536,IF(dati_pdc!$C25=5,dati_bdv!$G$2:$G$65536,dati_bdv!$H$2:$H$65536))))),$A25,dati_bdv!M$2:M$65536) -> 0 | F25: =SUMIF(IF(dati_pdc!$C25=1,dati_bdv!$C$2:$C$65536,IF(dati_pdc!$C25=2,dati_bdv!$D$2:$D$65536,IF(dati_pdc!$C25=3,dati_bdv!$E$2:$E$65536,IF(dati_pdc!$C25=4,dati_bdv!$F$2:$F$65536,IF(dati_pdc!$C25=5,dati_bdv!$G$2:$G$65536,dati_bdv!$H$2:$H$65536))))),$A25,dati_bdv!N$2:N$65536) -> 0
A26: =dati_pdc!A26 -> 410107 | B26: =SUMIF(IF(dati_pdc!$C26=1,dati_bdv!$C$2:$C$65536,IF(dati_pdc!$C26=2,dati_bdv!$D$2:$D$65536,IF(dati_pdc!$C26=3,dati_bdv!$E$2:$E$65536,IF(dati_pdc!$C26=4,dati_bdv!$F$2:$F$65536,IF(dati_pdc!$C26=5,dati_bdv!$G$2:$G$65536,dati_bdv!$H$2:$H$65536))))),$A26,dati_bdv!J$2:J$65536) -> -6269.68 | C26: =SUMIF(IF(dati_pdc!$C26=1,dati_bdv!$C$2:$C$65536,IF(dati_pdc!$C26=2,dati_bdv!$D$2:$D$65536,IF(dati_pdc!$C26=3,dati_bdv!$E$2:$E$65536,IF(dati_pdc!$C26=4,dati_bdv!$F$2:$F$65536,IF(dati_pdc!$C26=5,dati_bdv!$G$2:$G$65536,dati_bdv!$H$2:$H$65536))))),$A26,dati_bdv!K$2:K$65536) -> -6269.68 | D26: =SUMIF(IF(dati_pdc!$C26=1,dati_bdv!$C$2:$C$65536,IF(dati_pdc!$C26=2,dati_bdv!$D$2:$D$65536,IF(dati_pdc!$C26=3,dati_bdv!$E$2:$E$65536,IF(dati_pdc!$C26=4,dati_bdv!$F$2:$F$65536,IF(dati_pdc!$C26=5,dati_bdv!$G$2:$G$65536,dati_bdv!$H$2:$H$65536))))),$A26,dati_bdv!L$2:L$65536) -> 0 | E26: =SUMIF(IF(dati_pdc!$C26=1,dati_bdv!$C$2:$C$65536,IF(dati_pdc!$C26=2,dati_bdv!$D$2:$D$65536,IF(dati_pdc!$C26=3,dati_bdv!$E$2:$E$65536,IF(dati_pdc!$C26=4,dati_bdv!$F$2:$F$65536,IF(dati_pdc!$C26=5,dati_bdv!$G$2:$G$65536,dati_bdv!$H$2:$H$65536))))),$A26,dati_bdv!M$2:M$65536) -> 0 | F26: =SUMIF(IF(dati_pdc!$C26=1,dati_bdv!$C$2:$C$65536,IF(dati_pdc!$C26=2,dati_bdv!$D$2:$D$65536,IF(dati_pdc!$C26=3,dati_bdv!$E$2:$E$65536,IF(dati_pdc!$C26=4,dati_bdv!$F$2:$F$65536,IF(dati_pdc!$C26=5,dati_bdv!$G$2:$G$65536,dati_bdv!$H$2:$H$65536))))),$A26,dati_bdv!N$2:N$65536) -> 0
A27: =dati_pdc!A27 -> 410108 | B27: =SUMIF(IF(dati_pdc!$C27=1,dati_bdv!$C$2:$C$65536,IF(dati_pdc!$C27=2,dati_bdv!$D$2:$D$65536,IF(dati_pdc!$C27=3,dati_bdv!$E$2:$E$65536,IF(dati_pdc!$C27=4,dati_bdv!$F$2:$F$65536,IF(dati_pdc!$C27=5,dati_bdv!$G$2:$G$65536,dati_bdv!$H$2:$H$65536))))),$A27,dati_bdv!J$2:J$65536) -> -1216.1 | C27: =SUMIF(IF(dati_pdc!$C27=1,dati_bdv!$C$2:$C$65536,IF(dati_pdc!$C27=2,dati_bdv!$D$2:$D$65536,IF(dati_pdc!$C27=3,dati_bdv!$E$2:$E$65536,IF(dati_pdc!$C27=4,dati_bdv!$F$2:$F$65536,IF(dati_pdc!$C27=5,dati_bdv!$G$2:$G$65536,dati_bdv!$H$2:$H$65536))))),$A27,dati_bdv!K$2:K$65536) -> -1216.1 | D27: =SUMIF(IF(dati_pdc!$C27=1,dati_bdv!$C$2:$C$65536,IF(dati_pdc!$C27=2,dati_bdv!$D$2:$D$65536,IF(dati_pdc!$C27=3,dati_bdv!$E$2:$E$65536,IF(dati_pdc!$C27=4,dati_bdv!$F$2:$F$65536,IF(dati_pdc!$C27=5,dati_bdv!$G$2:$G$65536,dati_bdv!$H$2:$H$65536))))),$A27,dati_bdv!L$2:L$65536) -> 0 | E27: =SUMIF(IF(dati_pdc!$C27=1,dati_bdv!$C$2:$C$65536,IF(dati_pdc!$C27=2,dati_bdv!$D$2:$D$65536,IF(dati_pdc!$C27=3,dati_bdv!$E$2:$E$65536,IF(dati_pdc!$C27=4,dati_bdv!$F$2:$F$65536,IF(dati_pdc!$C27=5,dati_bdv!$G$2:$G$65536,dati_bdv!$H$2:$H$65536))))),$A27,dati_bdv!M$2:M$65536) -> 0 | F27: =SUMIF(IF(dati_pdc!$C27=1,dati_bdv!$C$2:$C$65536,IF(dati_pdc!$C27=2,dati_bdv!$D$2:$D$65536,IF(dati_pdc!$C27=3,dati_bdv!$E$2:$E$65536,IF(dati_pdc!$C27=4,dati_bdv!$F$2:$F$65536,IF(dati_pdc!$C27=5,dati_bdv!$G$2:$G$65536,dati_bdv!$H$2:$H$65536))))),$A27,dati_bdv!N$2:N$65536) -> 0
A28: =dati_pdc!A28 -> 43 | B28: =SUMIF(IF(dati_pdc!$C28=1,dati_bdv!$C$2:$C$65536,IF(dati_pdc!$C28=2,dati_bdv!$D$2:$D$65536,IF(dati_pdc!$C28=3,dati_bdv!$E$2:$E$65536,IF(dati_pdc!$C28=4,dati_bdv!$F$2:$F$65536,IF(dati_pdc!$C28=5,dati_bdv!$G$2:$G$65536,dati_bdv!$H$2:$H$65536))))),$A28,dati_bdv!J$2:J$65536) -> -64367.48 | C28: =SUMIF(IF(dati_pdc!$C28=1,dati_bdv!$C$2:$C$65536,IF(dati_pdc!$C28=2,dati_bdv!$D$2:$D$65536,IF(dati_pdc!$C28=3,dati_bdv!$E$2:$E$65536,IF(dati_pdc!$C28=4,dati_bdv!$F$2:$F$65536,IF(dati_pdc!$C28=5,dati_bdv!$G$2:$G$65536,dati_bdv!$H$2:$H$65536))))),$A28,dati_bdv!K$2:K$65536) -> -63823.83 | D28: =SUMIF(IF(dati_pdc!$C28=1,dati_bdv!$C$2:$C$65536,IF(dati_pdc!$C28=2,dati_bdv!$D$2:$D$65536,IF(dati_pdc!$C28=3,dati_bdv!$E$2:$E$65536,IF(dati_pdc!$C28=4,dati_bdv!$F$2:$F$65536,IF(dati_pdc!$C28=5,dati_bdv!$G$2:$G$65536,dati_bdv!$H$2:$H$65536))))),$A28,dati_bdv!L$2:L$65536) -> 0 | E28: =SUMIF(IF(dati_pdc!$C28=1,dati_bdv!$C$2:$C$65536,IF(dati_pdc!$C28=2,dati_bdv!$D$2:$D$65536,IF(dati_pdc!$C28=3,dati_bdv!$E$2:$E$65536,IF(dati_pdc!$C28=4,dati_bdv!$F$2:$F$65536,IF(dati_pdc!$C28=5,dati_bdv!$G$2:$G$65536,dati_bdv!$H$2:$H$65536))))),$A28,dati_bdv!M$2:M$65536) -> 0 | F28: =SUMIF(IF(dati_pdc!$C28=1,dati_bdv!$C$2:$C$65536,IF(dati_pdc!$C28=2,dati_bdv!$D$2:$D$65536,IF(dati_pdc!$C28=3,dati_bdv!$E$2:$E$65536,IF(dati_pdc!$C28=4,dati_bdv!$F$2:$F$65536,IF(dati_pdc!$C28=5,dati_bdv!$G$2:$G$65536,dati_bdv!$H$2:$H$65536))))),$A28,dati_bdv!N$2:N$65536) -> 0
A29: =dati_pdc!A29 -> 4301 | B29: =SUMIF(IF(dati_pdc!$C29=1,dati_bdv!$C$2:$C$65536,IF(dati_pdc!$C29=2,dati_bdv!$D$2:$D$65536,IF(dati_pdc!$C29=3,dati_bdv!$E$2:$E$65536,IF(dati_pdc!$C29=4,dati_bdv!$F$2:$F$65536,IF(dati_pdc!$C29=5,dati_bdv!$G$2:$G$65536,dati_bdv!$H$2:$H$65536))))),$A29,dati_bdv!J$2:J$65536) -> -64367.48 | C29: =SUMIF(IF(dati_pdc!$C29=1,dati_bdv!$C$2:$C$65536,IF(dati_pdc!$C29=2,dati_bdv!$D$2:$D$65536,IF(dati_pdc!$C29=3,dati_bdv!$E$2:$E$65536,IF(dati_pdc!$C29=4,dati_bdv!$F$2:$F$65536,IF(dati_pdc!$C29=5,dati_bdv!$G$2:$G$65536,dati_bdv!$H$2:$H$65536))))),$A29,dati_bdv!K$2:K$65536) -> -63823.83 | D29: =SUMIF(IF(dati_pdc!$C29=1,dati_bdv!$C$2:$C$65536,IF(dati_pdc!$C29=2,dati_bdv!$D$2:$D$65536,IF(dati_pdc!$C29=3,dati_bdv!$E$2:$E$65536,IF(dati_pdc!$C29=4,dati_bdv!$F$2:$F$65536,IF(dati_pdc!$C29=5,dati_bdv!$G$2:$G$65536,dati_bdv!$H$2:$H$65536))))),$A29,dati_bdv!L$2:L$65536) -> 0 | E29: =SUMIF(IF(dati_pdc!$C29=1,dati_bdv!$C$2:$C$65536,IF(dati_pdc!$C29=2,dati_bdv!$D$2:$D$65536,IF(dati_pdc!$C29=3,dati_bdv!$E$2:$E$65536,IF(dati_pdc!$C29=4,dati_bdv!$F$2:$F$65536,IF(dati_pdc!$C29=5,dati_bdv!$G$2:$G$65536,dati_bdv!$H$2:$H$65536))))),$A29,dati_bdv!M$2:M$65536) -> 0 | F29: =SUMIF(IF(dati_pdc!$C29=1,dati_bdv!$C$2:$C$65536,IF(dati_pdc!$C29=2,dati_bdv!$D$2:$D$65536,IF(dati_pdc!$C29=3,dati_bdv!$E$2:$E$65536,IF(dati_pdc!$C29=4,dati_bdv!$F$2:$F$65536,IF(dati_pdc!$C29=5,dati_bdv!$G$2:$G$65536,dati_bdv!$H$2:$H$65536))))),$A29,dati_bdv!N$2:N$65536) -> 0
A30: =dati_pdc!A30 -> 430101 | B30: =SUMIF(IF(dati_pdc!$C30=1,dati_bdv!$C$2:$C$65536,IF(dati_pdc!$C30=2,dati_bdv!$D$2:$D$65536,IF(dati_pdc!$C30=3,dati_bdv!$E$2:$E$65536,IF(dati_pdc!$C30=4,dati_bdv!$F$2:$F$65536,IF(dati_pdc!$C30=5,dati_bdv!$G$2:$G$65536,dati_bdv!$H$2:$H$65536))))),$A30,dati_bdv!J$2:J$65536) -> -42588.25 | C30: =SUMIF(IF(dati_pdc!$C30=1,dati_bdv!$C$2:$C$65536,IF(dati_pdc!$C30=2,dati_bdv!$D$2:$D$65536,IF(dati_pdc!$C30=3,dati_bdv!$E$2:$E$65536,IF(dati_pdc!$C30=4,dati_bdv!$F$2:$F$65536,IF(dati_pdc!$C30=5,dati_bdv!$G$2:$G$65536,dati_bdv!$H$2:$H$65536))))),$A30,dati_bdv!K$2:K$65536) -> -47588.25 | D30: =SUMIF(IF(dati_pdc!$C30=1,dati_bdv!$C$2:$C$65536,IF(dati_pdc!$C30=2,dati_bdv!$D$2:$D$65536,IF(dati_pdc!$C30=3,dati_bdv!$E$2:$E$65536,IF(dati_pdc!$C30=4,dati_bdv!$F$2:$F$65536,IF(dati_pdc!$C30=5,dati_bdv!$G$2:$G$65536,dati_bdv!$H$2:$H$65536))))),$A30,dati_bdv!L$2:L$65536) -> 0 | E30: =SUMIF(IF(dati_pdc!$C30=1,dati_bdv!$C$2:$C$65536,IF(dati_pdc!$C30=2,dati_bdv!$D$2:$D$65536,IF(dati_pdc!$C30=3,dati_bdv!$E$2:$E$65536,IF(dati_pdc!$C30=4,dati_bdv!$F$2:$F$65536,IF(dati_pdc!$C30=5,dati_bdv!$G$2:$G$65536,dati_bdv!$H$2:$H$65536))))),$A30,dati_bdv!M$2:M$65536) -> 0 | F30: =SUMIF(IF(dati_pdc!$C30=1,dati_bdv!$C$2:$C$65536,IF(dati_pdc!$C30=2,dati_bdv!$D$2:$D$65536,IF(dati_pdc!$C30=3,dati_bdv!$E$2:$E$65536,IF(dati_pdc!$C30=4,dati_bdv!$F$2:$F$65536,IF(dati_pdc!$C30=5,dati_bdv!$G$2:$G$65536,dati_bdv!$H$2:$H$65536))))),$A30,dati_bdv!N$2:N$65536) -> 0
A31: =dati_pdc!A31 -> 430106 | B31: =SUMIF(IF(dati_pdc!$C31=1,dati_bdv!$C$2:$C$65536,IF(dati_pdc!$C31=2,dati_bdv!$D$2:$D$65536,IF(dati_pdc!$C31=3,dati_bdv!$E$2:$E$65536,IF(dati_pdc!$C31=4,dati_bdv!$F$2:$F$65536,IF(dati_pdc!$C31=5,dati_bdv!$G$2:$G$65536,dati_bdv!$H$2:$H$65536))))),$A31,dati_bdv!J$2:J$65536) -> -16235.58 | C31: =SUMIF(IF(dati_pdc!$C31=1,dati_bdv!$C$2:$C$65536,IF(dati_pdc!$C31=2,dati_bdv!$D$2:$D$65536,IF(dati_pdc!$C31=3,dati_bdv!$E$2:$E$65536,IF(dati_pdc!$C31=4,dati_bdv!$F$2:$F$65536,IF(dati_pdc!$C31=5,dati_bdv!$G$2:$G$65536,dati_bdv!$H$2:$H$65536))))),$A31,dati_bdv!K$2:K$65536) -> -16235.58 | D31: =SUMIF(IF(dati_pdc!$C31=1,dati_bdv!$C$2:$C$65536,IF(dati_pdc!$C31=2,dati_bdv!$D$2:$D$65536,IF(dati_pdc!$C31=3,dati_bdv!$E$2:$E$65536,IF(dati_pdc!$C31=4,dati_bdv!$F$2:$F$65536,IF(dati_pdc!$C31=5,dati_bdv!$G$2:$G$65536,dati_bdv!$H$2:$H$65536))))),$A31,dati_bdv!L$2:L$65536) -> 0 | E31: =SUMIF(IF(dati_pdc!$C31=1,dati_bdv!$C$2:$C$65536,IF(dati_pdc!$C31=2,dati_bdv!$D$2:$D$65536,IF(dati_pdc!$C31=3,dati_bdv!$E$2:$E$65536,IF(dati_pdc!$C31=4,dati_bdv!$F$2:$F$65536,IF(dati_pdc!$C31=5,dati_bdv!$G$2:$G$65536,dati_bdv!$H$2:$H$65536))))),$A31,dati_bdv!M$2:M$65536) -> 0 | F31: =SUMIF(IF(dati_pdc!$C31=1,dati_bdv!$C$2:$C$65536,IF(dati_pdc!$C31=2,dati_bdv!$D$2:$D$65536,IF(dati_pdc!$C31=3,dati_bdv!$E$2:$E$65536,IF(dati_pdc!$C31=4,dati_bdv!$F$2:$F$65536,IF(dati_pdc!$C31=5,dati_bdv!$G$2:$G$65536,dati_bdv!$H$2:$H$65536))))),$A31,dati_bdv!N$2:N$65536) -> 0
A32: =dati_pdc!A32 -> 430199 | B32: =SUMIF(IF(dati_pdc!$C32=1,dati_bdv!$C$2:$C$65536,IF(dati_pdc!$C32=2,dati_bdv!$D$2:$D$65536,IF(dati_pdc!$C32=3,dati_bdv!$E$2:$E$65536,IF(dati_pdc!$C32=4,dati_bdv!$F$2:$F$65536,IF(dati_pdc!$C32=5,dati_bdv!$G$2:$G$65536,dati_bdv!$H$2:$H$65536))))),$A32,dati_bdv!J$2:J$65536) -> -5543.65 | C32: =SUMIF(IF(dati_pdc!$C32=1,dati_bdv!$C$2:$C$65536,IF(dati_pdc!$C32=2,dati_bdv!$D$2:$D$65536,IF(dati_pdc!$C32=3,dati_bdv!$E$2:$E$65536,IF(dati_pdc!$C32=4,dati_bdv!$F$2:$F$65536,IF(dati_pdc!$C32=5,dati_bdv!$G$2:$G$65536,dati_bdv!$H$2:$H$65536))))),$A32,dati_bdv!K$2:K$65536) -> 0 | D32: =SUMIF(IF(dati_pdc!$C32=1,dati_bdv!$C$2:$C$65536,IF(dati_pdc!$C32=2,dati_bdv!$D$2:$D$65536,IF(dati_pdc!$C32=3,dati_bdv!$E$2:$E$65536,IF(dati_pdc!$C32=4,dati_bdv!$F$2:$F$65536,IF(dati_pdc!$C32=5,dati_bdv!$G$2:$G$65536,dati_bdv!$H$2:$H$65536))))),$A32,dati_bdv!L$2:L$65536) -> 0 | E32: =SUMIF(IF(dati_pdc!$C32=1,dati_bdv!$C$2:$C$65536,IF(dati_pdc!$C32=2,dati_bdv!$D$2:$D$65536,IF(dati_pdc!$C32=3,dati_bdv!$E$2:$E$65536,IF(dati_pdc!$C32=4,dati_bdv!$F$2:$F$65536,IF(dati_pdc!$C32=5,dati_bdv!$G$2:$G$65536,dati_bdv!$H$2:$H$65536))))),$A32,dati_bdv!M$2:M$65536) -> 0 | F32: =SUMIF(IF(dati_pdc!$C32=1,dati_bdv!$C$2:$C$65536,IF(dati_pdc!$C32=2,dati_bdv!$D$2:$D$65536,IF(dati_pdc!$C32=3,dati_bdv!$E$2:$E$65536,IF(dati_pdc!$C32=4,dati_bdv!$F$2:$F$65536,IF(dati_pdc!$C32=5,dati_bdv!$G$2:$G$65536,dati_bdv!$H$2:$H$65536))))),$A32,dati_bdv!N$2:N$65536) -> 0
A33: =dati_pdc!A33 -> 4303 | B33: =SUMIF(IF(dati_pdc!$C33=1,dati_bdv!$C$2:$C$65536,IF(dati_pdc!$C33=2,dati_bdv!$D$2:$D$65536,IF(dati_pdc!$C33=3,dati_bdv!$E$2:$E$65536,IF(dati_pdc!$C33=4,dati_bdv!$F$2:$F$65536,IF(dati_pdc!$C33=5,dati_bdv!$G$2:$G$65536,dati_bdv!$H$2:$H$65536))))),$A33,dati_bdv!J$2:J$65536) -> 0 | C33: =SUMIF(IF(dati_pdc!$C33=1,dati_bdv!$C$2:$C$65536,IF(dati_pdc!$C33=2,dati_bdv!$D$2:$D$65536,IF(dati_pdc!$C33=3,dati_bdv!$E$2:$E$65536,IF(dati_pdc!$C33=4,dati_bdv!$F$2:$F$65536,IF(dati_pdc!$C33=5,dati_bdv!$G$2:$G$65536,dati_bdv!$H$2:$H$65536))))),$A33,dati_bdv!K$2:K$65536) -> 0 | D33: =SUMIF(IF(dati_pdc!$C33=1,dati_bdv!$C$2:$C$65536,IF(dati_pdc!$C33=2,dati_bdv!$D$2:$D$65536,IF(dati_pdc!$C33=3,dati_bdv!$E$2:$E$65536,IF(dati_pdc!$C33=4,dati_bdv!$F$2:$F$65536,IF(dati_pdc!$C33=5,dati_bdv!$G$2:$G$65536,dati_bdv!$H$2:$H$65536))))),$A33,dati_bdv!L$2:L$65536) -> 0 | E33: =SUMIF(IF(dati_pdc!$C33=1,dati_bdv!$C$2:$C$65536,IF(dati_pdc!$C33=2,dati_bdv!$D$2:$D$65536,IF(dati_pdc!$C33=3,dati_bdv!$E$2:$E$65536,IF(dati_pdc!$C33=4,dati_bdv!$F$2:$F$65536,IF(dati_pdc!$C33=5,dati_bdv!$G$2:$G$65536,dati_bdv!$H$2:$H$65536))))),$A33,dati_bdv!M$2:M$65536) -> 0 | F33: =SUMIF(IF(dati_pdc!$C33=1,dati_bdv!$C$2:$C$65536,IF(dati_pdc!$C33=2,dati_bdv!$D$2:$D$65536,IF(dati_pdc!$C33=3,dati_bdv!$E$2:$E$65536,IF(dati_pdc!$C33=4,dati_bdv!$F$2:$F$65536,IF(dati_pdc!$C33=5,dati_bdv!$G$2:$G$65536,dati_bdv!$H$2:$H$65536))))),$A33,dati_bdv!N$2:N$65536) -> 0
A34: =dati_pdc!A34 -> 430301 | B34: =SUMIF(IF(dati_pdc!$C34=1,dati_bdv!$C$2:$C$65536,IF(dati_pdc!$C34=2,dati_bdv!$D$2:$D$65536,IF(dati_pdc!$C34=3,dati_bdv!$E$2:$E$65536,IF(dati_pdc!$C34=4,dati_bdv!$F$2:$F$65536,IF(dati_pdc!$C34=5,dati_bdv!$G$2:$G$65536,dati_bdv!$H$2:$H$65536))))),$A34,dati_bdv!J$2:J$65536) -> 0 | C34: =SUMIF(IF(dati_pdc!$C34=1,dati_bdv!$C$2:$C$65536,IF(dati_pdc!$C34=2,dati_bdv!$D$2:$D$65536,IF(dati_pdc!$C34=3,dati_bdv!$E$2:$E$65536,IF(dati_pdc!$C34=4,dati_bdv!$F$2:$F$65536,IF(dati_pdc!$C34=5,dati_bdv!$G$2:$G$65536,dati_bdv!$H$2:$H$65536))))),$A34,dati_bdv!K$2:K$65536) -> 0 | D34: =SUMIF(IF(dati_pdc!$C34=1,dati_bdv!$C$2:$C$65536,IF(dati_pdc!$C34=2,dati_bdv!$D$2:$D$65536,IF(dati_pdc!$C34=3,dati_bdv!$E$2:$E$65536,IF(dati_pdc!$C34=4,dati_bdv!$F$2:$F$65536,IF(dati_pdc!$C34=5,dati_bdv!$G$2:$G$65536,dati_bdv!$H$2:$H$65536))))),$A34,dati_bdv!L$2:L$65536) -> 0 | E34: =SUMIF(IF(dati_pdc!$C34=1,dati_bdv!$C$2:$C$65536,IF(dati_pdc!$C34=2,dati_bdv!$D$2:$D$65536,IF(dati_pdc!$C34=3,dati_bdv!$E$2:$E$65536,IF(dati_pdc!$C34=4,dati_bdv!$F$2:$F$65536,IF(dati_pdc!$C34=5,dati_bdv!$G$2:$G$65536,dati_bdv!$H$2:$H$65536))))),$A34,dati_bdv!M$2:M$65536) -> 0 | F34: =SUMIF(IF(dati_pdc!$C34=1,dati_bdv!$C$2:$C$65536,IF(dati_pdc!$C34=2,dati_bdv!$D$2:$D$65536,IF(dati_pdc!$C34=3,dati_bdv!$E$2:$E$65536,IF(dati_pdc!$C34=4,dati_bdv!$F$2:$F$65536,IF(dati_pdc!$C34=5,dati_bdv!$G$2:$G$65536,dati_bdv!$H$2:$H$65536))))),$A34,dati_bdv!N$2:N$65536) -> 0
A35: =dati_pdc!A35 -> 55 | B35: =SUMIF(IF(dati_pdc!$C35=1,dati_bdv!$C$2:$C$65536,IF(dati_pdc!$C35=2,dati_bdv!$D$2:$D$65536,IF(dati_pdc!$C35=3,dati_bdv!$E$2:$E$65536,IF(dati_pdc!$C35=4,dati_bdv!$F$2:$F$65536,IF(dati_pdc!$C35=5,dati_bdv!$G$2:$G$65536,dati_bdv!$H$2:$H$65536))))),$A35,dati_bdv!J$2:J$65536) -> -21489.88 | C35: =SUMIF(IF(dati_pdc!$C35=1,dati_bdv!$C$2:$C$65536,IF(dati_pdc!$C35=2,dati_bdv!$D$2:$D$65536,IF(dati_pdc!$C35=3,dati_bdv!$E$2:$E$65536,IF(dati_pdc!$C35=4,dati_bdv!$F$2:$F$65536,IF(dati_pdc!$C35=5,dati_bdv!$G$2:$G$65536,dati_bdv!$H$2:$H$65536))))),$A35,dati_bdv!K$2:K$65536) -> -21489.88 | D35: =SUMIF(IF(dati_pdc!$C35=1,dati_bdv!$C$2:$C$65536,IF(dati_pdc!$C35=2,dati_bdv!$D$2:$D$65536,IF(dati_pdc!$C35=3,dati_bdv!$E$2:$E$65536,IF(dati_pdc!$C35=4,dati_bdv!$F$2:$F$65536,IF(dati_pdc!$C35=5,dati_bdv!$G$2:$G$65536,dati_bdv!$H$2:$H$65536))))),$A35,dati_bdv!L$2:L$65536) -> 0 | E35: =SUMIF(IF(dati_pdc!$C35=1,dati_bdv!$C$2:$C$65536,IF(dati_pdc!$C35=2,dati_bdv!$D$2:$D$65536,IF(dati_pdc!$C35=3,dati_bdv!$E$2:$E$65536,IF(dati_pdc!$C35=4,dati_bdv!$F$2:$F$65536,IF(dati_pdc!$C35=5,dati_bdv!$G$2:$G$65536,dati_bdv!$H$2:$H$65536))))),$A35,dati_bdv!M$2:M$65536) -> 0 | F35: =SUMIF(IF(dati_pdc!$C35=1,dati_bdv!$C$2:$C$65536,IF(dati_pdc!$C35=2,dati_bdv!$D$2:$D$65536,IF(dati_pdc!$C35=3,dati_bdv!$E$2:$E$65536,IF(dati_pdc!$C35=4,dati_bdv!$F$2:$F$65536,IF(dati_pdc!$C35=5,dati_bdv!$G$2:$G$65536,dati_bdv!$H$2:$H$65536))))),$A35,dati_bdv!N$2:N$65536) -> 0
A36: =dati_pdc!A36 -> 5503 | B36: =SUMIF(IF(dati_pdc!$C36=1,dati_bdv!$C$2:$C$65536,IF(dati_pdc!$C36=2,dati_bdv!$D$2:$D$65536,IF(dati_pdc!$C36=3,dati_bdv!$E$2:$E$65536,IF(dati_pdc!$C36=4,dati_bdv!$F$2:$F$65536,IF(dati_pdc!$C36=5,dati_bdv!$G$2:$G$65536,dati_bdv!$H$2:$H$65536))))),$A36,dati_bdv!J$2:J$65536) -> -21489.88 | C36: =SUMIF(IF(dati_pdc!$C36=1,dati_bdv!$C$2:$C$65536,IF(dati_pdc!$C36=2,dati_bdv!$D$2:$D$65536,IF(dati_pdc!$C36=3,dati_bdv!$E$2:$E$65536,IF(dati_pdc!$C36=4,dati_bdv!$F$2:$F$65536,IF(dati_pdc!$C36=5,dati_bdv!$G$2:$G$65536,dati_bdv!$H$2:$H$65536))))),$A36,dati_bdv!K$2:K$65536) -> -21489.88 | D36: =SUMIF(IF(dati_pdc!$C36=1,dati_bdv!$C$2:$C$65536,IF(dati_pdc!$C36=2,dati_bdv!$D$2:$D$65536,IF(dati_pdc!$C36=3,dati_bdv!$E$2:$E$65536,IF(dati_pdc!$C36=4,dati_bdv!$F$2:$F$65536,IF(dati_pdc!$C36=5,dati_bdv!$G$2:$G$65536,dati_bdv!$H$2:$H$65536))))),$A36,dati_bdv!L$2:L$65536) -> 0 | E36: =SUMIF(IF(dati_pdc!$C36=1,dati_bdv!$C$2:$C$65536,IF(dati_pdc!$C36=2,dati_bdv!$D$2:$D$65536,IF(dati_pdc!$C36=3,dati_bdv!$E$2:$E$65536,IF(dati_pdc!$C36=4,dati_bdv!$F$2:$F$65536,IF(dati_pdc!$C36=5,dati_bdv!$G$2:$G$65536,dati_bdv!$H$2:$H$65536))))),$A36,dati_bdv!M$2:M$65536) -> 0 | F36: =SUMIF(IF(dati_pdc!$C36=1,dati_bdv!$C$2:$C$65536,IF(dati_pdc!$C36=2,dati_bdv!$D$2:$D$65536,IF(dati_pdc!$C36=3,dati_bdv!$E$2:$E$65536,IF(dati_pdc!$C36=4,dati_bdv!$F$2:$F$65536,IF(dati_pdc!$C36=5,dati_bdv!$G$2:$G$65536,dati_bdv!$H$2:$H$65536))))),$A36,dati_bdv!N$2:N$65536) -> 0
A37: =dati_pdc!A37 -> 550325 | B37: =SUMIF(IF(dati_pdc!$C37=1,dati_bdv!$C$2:$C$65536,IF(dati_pdc!$C37=2,dati_bdv!$D$2:$D$65536,IF(dati_pdc!$C37=3,dati_bdv!$E$2:$E$65536,IF(dati_pdc!$C37=4,dati_bdv!$F$2:$F$65536,IF(dati_pdc!$C37=5,dati_bdv!$G$2:$G$65536,dati_bdv!$H$2:$H$65536))))),$A37,dati_bdv!J$2:J$65536) -> -21489.88 | C37: =SUMIF(IF(dati_pdc!$C37=1,dati_bdv!$C$2:$C$65536,IF(dati_pdc!$C37=2,dati_bdv!$D$2:$D$65536,IF(dati_pdc!$C37=3,dati_bdv!$E$2:$E$65536,IF(dati_pdc!$C37=4,dati_bdv!$F$2:$F$65536,IF(dati_pdc!$C37=5,dati_bdv!$G$2:$G$65536,dati_bdv!$H$2:$H$65536))))),$A37,dati_bdv!K$2:K$65536) -> -21489.88 | D37: =SUMIF(IF(dati_pdc!$C37=1,dati_bdv!$C$2:$C$65536,IF(dati_pdc!$C37=2,dati_bdv!$D$2:$D$65536,IF(dati_pdc!$C37=3,dati_bdv!$E$2:$E$65536,IF(dati_pdc!$C37=4,dati_bdv!$F$2:$F$65536,IF(dati_pdc!$C37=5,dati_bdv!$G$2:$G$65536,dati_bdv!$H$2:$H$65536))))),$A37,dati_bdv!L$2:L$65536) -> 0 | E37: =SUMIF(IF(dati_pdc!$C37=1,dati_bdv!$C$2:$C$65536,IF(dati_pdc!$C37=2,dati_bdv!$D$2:$D$65536,IF(dati_pdc!$C37=3,dati_bdv!$E$2:$E$65536,IF(dati_pdc!$C37=4,dati_bdv!$F$2:$F$65536,IF(dati_pdc!$C37=5,dati_bdv!$G$2:$G$65536,dati_bdv!$H$2:$H$65536))))),$A37,dati_bdv!M$2:M$65536) -> 0 | F37: =SUMIF(IF(dati_pdc!$C37=1,dati_bdv!$C$2:$C$65536,IF(dati_pdc!$C37=2,dati_bdv!$D$2:$D$65536,IF(dati_pdc!$C37=3,dati_bdv!$E$2:$E$65536,IF(dati_pdc!$C37=4,dati_bdv!$F$2:$F$65536,IF(dati_pdc!$C37=5,dati_bdv!$G$2:$G$65536,dati_bdv!$H$2:$H$65536))))),$A37,dati_bdv!N$2:N$65536) -> 0
A38: =dati_pdc!A38 -> 57 | B38: =SUMIF(IF(dati_pdc!$C38=1,dati_bdv!$C$2:$C$65536,IF(dati_pdc!$C38=2,dati_bdv!$D$2:$D$65536,IF(dati_pdc!$C38=3,dati_bdv!$E$2:$E$65536,IF(dati_pdc!$C38=4,dati_bdv!$F$2:$F$65536,IF(dati_pdc!$C38=5,dati_bdv!$G$2:$G$65536,dati_bdv!$H$2:$H$65536))))),$A38,dati_bdv!J$2:J$65536) -> -67139.4 | C38: =SUMIF(IF(dati_pdc!$C38=1,dati_bdv!$C$2:$C$65536,IF(dati_pdc!$C38=2,dati_bdv!$D$2:$D$65536,IF(dati_pdc!$C38=3,dati_bdv!$E$2:$E$65536,IF(dati_pdc!$C38=4,dati_bdv!$F$2:$F$65536,IF(dati_pdc!$C38=5,dati_bdv!$G$2:$G$65536,dati_bdv!$H$2:$H$65536))))),$A38,dati_bdv!K$2:K$65536) -> -67139.4 | D38: =SUMIF(IF(dati_pdc!$C38=1,dati_bdv!$C$2:$C$65536,IF(dati_pdc!$C38=2,dati_bdv!$D$2:$D$65536,IF(dati_pdc!$C38=3,dati_bdv!$E$2:$E$65536,IF(dati_pdc!$C38=4,dati_bdv!$F$2:$F$65536,IF(dati_pdc!$C38=5,dati_bdv!$G$2:$G$65536,dati_bdv!$H$2:$H$65536))))),$A38,dati_bdv!L$2:L$65536) -> 0 | E38: =SUMIF(IF(dati_pdc!$C38=1,dati_bdv!$C$2:$C$65536,IF(dati_pdc!$C38=2,dati_bdv!$D$2:$D$65536,IF(dati_pdc!$C38=3,dati_bdv!$E$2:$E$65536,IF(dati_pdc!$C38=4,dati_bdv!$F$2:$F$65536,IF(dati_pdc!$C38=5,dati_bdv!$G$2:$G$65536,dati_bdv!$H$2:$H$65536))))),$A38,dati_bdv!M$2:M$65536) -> 0 | F38: =SUMIF(IF(dati_pdc!$C38=1,dati_bdv!$C$2:$C$65536,IF(dati_pdc!$C38=2,dati_bdv!$D$2:$D$65536,IF(dati_pdc!$C38=3,dati_bdv!$E$2:$E$65536,IF(dati_pdc!$C38=4,dati_bdv!$F$2:$F$65536,IF(dati_pdc!$C38=5,dati_bdv!$G$2:$G$65536,dati_bdv!$H$2:$H$65536))))),$A38,dati_bdv!N$2:N$65536) -> 0
A39: =dati_pdc!A39 -> 5703 | B39: =SUMIF(IF(dati_pdc!$C39=1,dati_bdv!$C$2:$C$65536,IF(dati_pdc!$C39=2,dati_bdv!$D$2:$D$65536,IF(dati_pdc!$C39=3,dati_bdv!$E$2:$E$65536,IF(dati_pdc!$C39=4,dati_bdv!$F$2:$F$65536,IF(dati_pdc!$C39=5,dati_bdv!$G$2:$G$65536,dati_bdv!$H$2:$H$65536))))),$A39,dati_bdv!J$2:J$65536) -> -67139.4 | C39: =SUMIF(IF(dati_pdc!$C39=1,dati_bdv!$C$2:$C$65536,IF(dati_pdc!$C39=2,dati_bdv!$D$2:$D$65536,IF(dati_pdc!$C39=3,dati_bdv!$E$2:$E$65536,IF(dati_pdc!$C39=4,dati_bdv!$F$2:$F$65536,IF(dati_pdc!$C39=5,dati_bdv!$G$2:$G$65536,dati_bdv!$H$2:$H$65536))))),$A39,dati_bdv!K$2:K$65536) -> -67139.4 | D39: =SUMIF(IF(dati_pdc!$C39=1,dati_bdv!$C$2:$C$65536,IF(dati_pdc!$C39=2,dati_bdv!$D$2:$D$65536,IF(dati_pdc!$C39=3,dati_bdv!$E$2:$E$65536,IF(dati_pdc!$C39=4,dati_bdv!$F$2:$F$65536,IF(dati_pdc!$C39=5,dati_bdv!$G$2:$G$65536,dati_bdv!$H$2:$H$65536))))),$A39,dati_bdv!L$2:L$65536) -> 0 | E39: =SUMIF(IF(dati_pdc!$C39=1,dati_bdv!$C$2:$C$65536,IF(dati_pdc!$C39=2,dati_bdv!$D$2:$D$65536,IF(dati_pdc!$C39=3,dati_bdv!$E$2:$E$65536,IF(dati_pdc!$C39=4,dati_bdv!$F$2:$F$65536,IF(dati_pdc!$C39=5,dati_bdv!$G$2:$G$65536,dati_bdv!$H$2:$H$65536))))),$A39,dati_bdv!M$2:M$65536) -> 0 | F39: =SUMIF(IF(dati_pdc!$C39=1,dati_bdv!$C$2:$C$65536,IF(dati_pdc!$C39=2,dati_bdv!$D$2:$D$65536,IF(dati_pdc!$C39=3,dati_bdv!$E$2:$E$65536,IF(dati_pdc!$C39=4,dati_bdv!$F$2:$F$65536,IF(dati_pdc!$C39=5,dati_bdv!$G$2:$G$65536,dati_bdv!$H$2:$H$65536))))),$A39,dati_bdv!N$2:N$65536) -> 0
A40: =dati_pdc!A40 -> 570301 | B40: =SUMIF(IF(dati_pdc!$C40=1,dati_bdv!$C$2:$C$65536,IF(dati_pdc!$C40=2,dati_bdv!$D$2:$D$65536,IF(dati_pdc!$C40=3,dati_bdv!$E$2:$E$65536,IF(dati_pdc!$C40=4,dati_bdv!$F$2:$F$65536,IF(dati_pdc!$C40=5,dati_bdv!$G$2:$G$65536,dati_bdv!$H$2:$H$65536))))),$A40,dati_bdv!J$2:J$65536) -> -67139.4 | C40: =SUMIF(IF(dati_pdc!$C40=1,dati_bdv!$C$2:$C$65536,IF(dati_pdc!$C40=2,dati_bdv!$D$2:$D$65536,IF(dati_pdc!$C40=3,dati_bdv!$E$2:$E$65536,IF(dati_pdc!$C40=4,dati_bdv!$F$2:$F$65536,IF(dati_pdc!$C40=5,dati_bdv!$G$2:$G$65536,dati_bdv!$H$2:$H$65536))))),$A40,dati_bdv!K$2:K$65536) -> -67139.4 | D40: =SUMIF(IF(dati_pdc!$C40=1,dati_bdv!$C$2:$C$65536,IF(dati_pdc!$C40=2,dati_bdv!$D$2:$D$65536,IF(dati_pdc!$C40=3,dati_bdv!$E$2:$E$65536,IF(dati_pdc!$C40=4,dati_bdv!$F$2:$F$65536,IF(dati_pdc!$C40=5,dati_bdv!$G$2:$G$65536,dati_bdv!$H$2:$H$65536))))),$A40,dati_bdv!L$2:L$65536) -> 0 | E40: =SUMIF(IF(dati_pdc!$C40=1,dati_bdv!$C$2:$C$65536,IF(dati_pdc!$C40=2,dati_bdv!$D$2:$D$65536,IF(dati_pdc!$C40=3,dati_bdv!$E$2:$E$65536,IF(dati_pdc!$C40=4,dati_bdv!$F$2:$F$65536,IF(dati_pdc!$C40=5,dati_bdv!$G$2:$G$65536,dati_bdv!$H$2:$H$65536))))),$A40,dati_bdv!M$2:M$65536) -> 0 | F40: =SUMIF(IF(dati_pdc!$C40=1,dati_bdv!$C$2:$C$65536,IF(dati_pdc!$C40=2,dati_bdv!$D$2:$D$65536,IF(dati_pdc!$C40=3,dati_bdv!$E$2:$E$65536,IF(dati_pdc!$C40=4,dati_bdv!$F$2:$F$65536,IF(dati_pdc!$C40=5,dati_bdv!$G$2:$G$65536,dati_bdv!$H$2:$H$65536))))),$A40,dati_bdv!N$2:N$65536) -> 0
A41: =dati_pdc!A41 -> 59 | B41: =SUMIF(IF(dati_pdc!$C41=1,dati_bdv!$C$2:$C$65536,IF(dati_pdc!$C41=2,dati_bdv!$D$2:$D$65536,IF(dati_pdc!$C41=3,dati_bdv!$E$2:$E$65536,IF(dati_pdc!$C41=4,dati_bdv!$F$2:$F$65536,IF(dati_pdc!$C41=5,dati_bdv!$G$2:$G$65536,dati_bdv!$H$2:$H$65536))))),$A41,dati_bdv!J$2:J$65536) -> 342.62 | C41: =SUMIF(IF(dati_pdc!$C41=1,dati_bdv!$C$2:$C$65536,IF(dati_pdc!$C41=2,dati_bdv!$D$2:$D$65536,IF(dati_pdc!$C41=3,dati_bdv!$E$2:$E$65536,IF(dati_pdc!$C41=4,dati_bdv!$F$2:$F$65536,IF(dati_pdc!$C41=5,dati_bdv!$G$2:$G$65536,dati_bdv!$H$2:$H$65536))))),$A41,dati_bdv!K$2:K$65536) -> 342.6 | D41: =SUMIF(IF(dati_pdc!$C41=1,dati_bdv!$C$2:$C$65536,IF(dati_pdc!$C41=2,dati_bdv!$D$2:$D$65536,IF(dati_pdc!$C41=3,dati_bdv!$E$2:$E$65536,IF(dati_pdc!$C41=4,dati_bdv!$F$2:$F$65536,IF(dati_pdc!$C41=5,dati_bdv!$G$2:$G$65536,dati_bdv!$H$2:$H$65536))))),$A41,dati_bdv!L$2:L$65536) -> 0 | E41: =SUMIF(IF(dati_pdc!$C41=1,dati_bdv!$C$2:$C$65536,IF(dati_pdc!$C41=2,dati_bdv!$D$2:$D$65536,IF(dati_pdc!$C41=3,dati_bdv!$E$2:$E$65536,IF(dati_pdc!$C41=4,dati_bdv!$F$2:$F$65536,IF(dati_pdc!$C41=5,dati_bdv!$G$2:$G$65536,dati_bdv!$H$2:$H$65536))))),$A41,dati_bdv!M$2:M$65536) -> 0 | F41: =SUMIF(IF(dati_pdc!$C41=1,dati_bdv!$C$2:$C$65536,IF(dati_pdc!$C41=2,dati_bdv!$D$2:$D$65536,IF(dati_pdc!$C41=3,dati_bdv!$E$2:$E$65536,IF(dati_pdc!$C41=4,dati_bdv!$F$2:$F$65536,IF(dati_pdc!$C41=5,dati_bdv!$G$2:$G$65536,dati_bdv!$H$2:$H$65536))))),$A41,dati_bdv!N$2:N$65536) -> 0
A42: =dati_pdc!A42 -> 5901 | B42: =SUMIF(IF(dati_pdc!$C42=1,dati_bdv!$C$2:$C$65536,IF(dati_pdc!$C42=2,dati_bdv!$D$2:$D$65536,IF(dati_pdc!$C42=3,dati_bdv!$E$2:$E$65536,IF(dati_pdc!$C42=4,dati_bdv!$F$2:$F$65536,IF(dati_pdc!$C42=5,dati_bdv!$G$2:$G$65536,dati_bdv!$H$2:$H$65536))))),$A42,dati_bdv!J$2:J$65536) -> -440 | C42: =SUMIF(IF(dati_pdc!$C42=1,dati_bdv!$C$2:$C$65536,IF(dati_pdc!$C42=2,dati_bdv!$D$2:$D$65536,IF(dati_pdc!$C42=3,dati_bdv!$E$2:$E$65536,IF(dati_pdc!$C42=4,dati_bdv!$F$2:$F$65536,IF(dati_pdc!$C42=5,dati_bdv!$G$2:$G$65536,dati_bdv!$H$2:$H$65536))))),$A42,dati_bdv!K$2:K$65536) -> -440 | D42: =SUMIF(IF(dati_pdc!$C42=1,dati_bdv!$C$2:$C$65536,IF(dati_pdc!$C42=2,dati_bdv!$D$2:$D$65536,IF(dati_pdc!$C42=3,dati_bdv!$E$2:$E$65536,IF(dati_pdc!$C42=4,dati_bdv!$F$2:$F$65536,IF(dati_pdc!$C42=5,dati_bdv!$G$2:$G$65536,dati_bdv!$H$2:$H$65536))))),$A42,dati_bdv!L$2:L$65536) -> 0 | E42: =SUMIF(IF(dati_pdc!$C42=1,dati_bdv!$C$2:$C$65536,IF(dati_pdc!$C42=2,dati_bdv!$D$2:$D$65536,IF(dati_pdc!$C42=3,dati_bdv!$E$2:$E$65536,IF(dati_pdc!$C42=4,dati_bdv!$F$2:$F$65536,IF(dati_pdc!$C42=5,dati_bdv!$G$2:$G$65536,dati_bdv!$H$2:$H$65536))))),$A42,dati_bdv!M$2:M$65536) -> 0 | F42: =SUMIF(IF(dati_pdc!$C42=1,dati_bdv!$C$2:$C$65536,IF(dati_pdc!$C42=2,dati_bdv!$D$2:$D$65536,IF(dati_pdc!$C42=3,dati_bdv!$E$2:$E$65536,IF(dati_pdc!$C42=4,dati_bdv!$F$2:$F$65536,IF(dati_pdc!$C42=5,dati_bdv!$G$2:$G$65536,dati_bdv!$H$2:$H$65536))))),$A42,dati_bdv!N$2:N$65536) -> 0
A43: =dati_pdc!A43 -> 590103 | B43: =SUMIF(IF(dati_pdc!$C43=1,dati_bdv!$C$2:$C$65536,IF(dati_pdc!$C43=2,dati_bdv!$D$2:$D$65536,IF(dati_pdc!$C43=3,dati_bdv!$E$2:$E$65536,IF(dati_pdc!$C43=4,dati_bdv!$F$2:$F$65536,IF(dati_pdc!$C43=5,dati_bdv!$G$2:$G$65536,dati_bdv!$H$2:$H$65536))))),$A43,dati_bdv!J$2:J$65536) -> -440 | C43: =SUMIF(IF(dati_pdc!$C43=1,dati_bdv!$C$2:$C$65536,IF(dati_pdc!$C43=2,dati_bdv!$D$2:$D$65536,IF(dati_pdc!$C43=3,dati_bdv!$E$2:$E$65536,IF(dati_pdc!$C43=4,dati_bdv!$F$2:$F$65536,IF(dati_pdc!$C43=5,dati_bdv!$G$2:$G$65536,dati_bdv!$H$2:$H$65536))))),$A43,dati_bdv!K$2:K$65536) -> -440 | D43: =SUMIF(IF(dati_pdc!$C43=1,dati_bdv!$C$2:$C$65536,IF(dati_pdc!$C43=2,dati_bdv!$D$2:$D$65536,IF(dati_pdc!$C43=3,dati_bdv!$E$2:$E$65536,IF(dati_pdc!$C43=4,dati_bdv!$F$2:$F$65536,IF(dati_pdc!$C43=5,dati_bdv!$G$2:$G$65536,dati_bdv!$H$2:$H$65536))))),$A43,dati_bdv!L$2:L$65536) -> 0 | E43: =SUMIF(IF(dati_pdc!$C43=1,dati_bdv!$C$2:$C$65536,IF(dati_pdc!$C43=2,dati_bdv!$D$2:$D$65536,IF(dati_pdc!$C43=3,dati_bdv!$E$2:$E$65536,IF(dati_pdc!$C43=4,dati_bdv!$F$2:$F$65536,IF(dati_pdc!$C43=5,dati_bdv!$G$2:$G$65536,dati_bdv!$H$2:$H$65536))))),$A43,dati_bdv!M$2:M$65536) -> 0 | F43: =SUMIF(IF(dati_pdc!$C43=1,dati_bdv!$C$2:$C$65536,IF(dati_pdc!$C43=2,dati_bdv!$D$2:$D$65536,IF(dati_pdc!$C43=3,dati_bdv!$E$2:$E$65536,IF(dati_pdc!$C43=4,dati_bdv!$F$2:$F$65536,IF(dati_pdc!$C43=5,dati_bdv!$G$2:$G$65536,dati_bdv!$H$2:$H$65536))))),$A43,dati_bdv!N$2:N$65536) -> 0
A44: =dati_pdc!A44 -> 590165 | B44: =SUMIF(IF(dati_pdc!$C44=1,dati_bdv!$C$2:$C$65536,IF(dati_pdc!$C44=2,dati_bdv!$D$2:$D$65536,IF(dati_pdc!$C44=3,dati_bdv!$E$2:$E$65536,IF(dati_pdc!$C44=4,dati_bdv!$F$2:$F$65536,IF(dati_pdc!$C44=5,dati_bdv!$G$2:$G$65536,dati_bdv!$H$2:$H$65536))))),$A44,dati_bdv!J$2:J$65536) -> 0 | C44: =SUMIF(IF(dati_pdc!$C44=1,dati_bdv!$C$2:$C$65536,IF(dati_pdc!$C44=2,dati_bdv!$D$2:$D$65536,IF(dati_pdc!$C44=3,dati_bdv!$E$2:$E$65536,IF(dati_pdc!$C44=4,dati_bdv!$F$2:$F$65536,IF(dati_pdc!$C44=5,dati_bdv!$G$2:$G$65536,dati_bdv!$H$2:$H$65536))))),$A44,dati_bdv!K$2:K$65536) -> 0 | D44: =SUMIF(IF(dati_pdc!$C44=1,dati_bdv!$C$2:$C$65536,IF(dati_pdc!$C44=2,dati_bdv!$D$2:$D$65536,IF(dati_pdc!$C44=3,dati_bdv!$E$2:$E$65536,IF(dati_pdc!$C44=4,dati_bdv!$F$2:$F$65536,IF(dati_pdc!$C44=5,dati_bdv!$G$2:$G$65536,dati_bdv!$H$2:$H$65536))))),$A44,dati_bdv!L$2:L$65536) -> 0 | E44: =SUMIF(IF(dati_pdc!$C44=1,dati_bdv!$C$2:$C$65536,IF(dati_pdc!$C44=2,dati_bdv!$D$2:$D$65536,IF(dati_pdc!$C44=3,dati_bdv!$E$2:$E$65536,IF(dati_pdc!$C44=4,dati_bdv!$F$2:$F$65536,IF(dati_pdc!$C44=5,dati_bdv!$G$2:$G$65536,dati_bdv!$H$2:$H$65536))))),$A44,dati_bdv!M$2:M$65536) -> 0 | F44: =SUMIF(IF(dati_pdc!$C44=1,dati_bdv!$C$2:$C$65536,IF(dati_pdc!$C44=2,dati_bdv!$D$2:$D$65536,IF(dati_pdc!$C44=3,dati_bdv!$E$2:$E$65536,IF(dati_pdc!$C44=4,dati_bdv!$F$2:$F$65536,IF(dati_pdc!$C44=5,dati_bdv!$G$2:$G$65536,dati_bdv!$H$2:$H$65536))))),$A44,dati_bdv!N$2:N$65536) -> 0
A45: =dati_pdc!A45 -> 5905 | B45: =SUMIF(IF(dati_pdc!$C45=1,dati_bdv!$C$2:$C$65536,IF(dati_pdc!$C45=2,dati_bdv!$D$2:$D$65536,IF(dati_pdc!$C45=3,dati_bdv!$E$2:$E$65536,IF(dati_pdc!$C45=4,dati_bdv!$F$2:$F$65536,IF(dati_pdc!$C45=5,dati_bdv!$G$2:$G$65536,dati_bdv!$H$2:$H$65536))))),$A45,dati_bdv!J$2:J$65536) -> 0.16 | C45: =SUMIF(IF(dati_pdc!$C45=1,dati_bdv!$C$2:$C$65536,IF(dati_pdc!$C45=2,dati_bdv!$D$2:$D$65536,IF(dati_pdc!$C45=3,dati_bdv!$E$2:$E$65536,IF(dati_pdc!$C45=4,dati_bdv!$F$2:$F$65536,IF(dati_pdc!$C45=5,dati_bdv!$G$2:$G$65536,dati_bdv!$H$2:$H$65536))))),$A45,dati_bdv!K$2:K$65536) -> 0.14 | D45: =SUMIF(IF(dati_pdc!$C45=1,dati_bdv!$C$2:$C$65536,IF(dati_pdc!$C45=2,dati_bdv!$D$2:$D$65536,IF(dati_pdc!$C45=3,dati_bdv!$E$2:$E$65536,IF(dati_pdc!$C45=4,dati_bdv!$F$2:$F$65536,IF(dati_pdc!$C45=5,dati_bdv!$G$2:$G$65536,dati_bdv!$H$2:$H$65536))))),$A45,dati_bdv!L$2:L$65536) -> 0 | E45: =SUMIF(IF(dati_pdc!$C45=1,dati_bdv!$C$2:$C$65536,IF(dati_pdc!$C45=2,dati_bdv!$D$2:$D$65536,IF(dati_pdc!$C45=3,dati_bdv!$E$2:$E$65536,IF(dati_pdc!$C45=4,dati_bdv!$F$2:$F$65536,IF(dati_pdc!$C45=5,dati_bdv!$G$2:$G$65536,dati_bdv!$H$2:$H$65536))))),$A45,dati_bdv!M$2:M$65536) -> 0 | F45: =SUMIF(IF(dati_pdc!$C45=1,dati_bdv!$C$2:$C$65536,IF(dati_pdc!$C45=2,dati_bdv!$D$2:$D$65536,IF(dati_pdc!$C45=3,dati_bdv!$E$2:$E$65536,IF(dati_pdc!$C45=4,dati_bdv!$F$2:$F$65536,IF(dati_pdc!$C45=5,dati_bdv!$G$2:$G$65536,dati_bdv!$H$2:$H$65536))))),$A45,dati_bdv!N$2:N$65536) -> 0
A46: =dati_pdc!A46 -> 590501 | B46: =SUMIF(IF(dati_pdc!$C46=1,dati_bdv!$C$2:$C$65536,IF(dati_pdc!$C46=2,dati_bdv!$D$2:$D$65536,IF(dati_pdc!$C46=3,dati_bdv!$E$2:$E$65536,IF(dati_pdc!$C46=4,dati_bdv!$F$2:$F$65536,IF(dati_pdc!$C46=5,dati_bdv!$G$2:$G$65536,dati_bdv!$H$2:$H$65536))))),$A46,dati_bdv!J$2:J$65536) -> 0.16 | C46: =SUMIF(IF(dati_pdc!$C46=1,dati_bdv!$C$2:$C$65536,IF(dati_pdc!$C46=2,dati_bdv!$D$2:$D$65536,IF(dati_pdc!$C46=3,dati_bdv!$E$2:$E$65536,IF(dati_pdc!$C46=4,dati_bdv!$F$2:$F$65536,IF(dati_pdc!$C46=5,dati_bdv!$G$2:$G$65536,dati_bdv!$H$2:$H$65536))))),$A46,dati_bdv!K$2:K$65536) -> 0.14 | D46: =SUMIF(IF(dati_pdc!$C46=1,dati_bdv!$C$2:$C$65536,IF(dati_pdc!$C46=2,dati_bdv!$D$2:$D$65536,IF(dati_pdc!$C46=3,dati_bdv!$E$2:$E$65536,IF(dati_pdc!$C46=4,dati_bdv!$F$2:$F$65536,IF(dati_pdc!$C46=5,dati_bdv!$G$2:$G$65536,dati_bdv!$H$2:$H$65536))))),$A46,dati_bdv!L$2:L$65536) -> 0 | E46: =SUMIF(IF(dati_pdc!$C46=1,dati_bdv!$C$2:$C$65536,IF(dati_pdc!$C46=2,dati_bdv!$D$2:$D$65536,IF(dati_pdc!$C46=3,dati_bdv!$E$2:$E$65536,IF(dati_pdc!$C46=4,dati_bdv!$F$2:$F$65536,IF(dati_pdc!$C46=5,dati_bdv!$G$2:$G$65536,dati_bdv!$H$2:$H$65536))))),$A46,dati_bdv!M$2:M$65536) -> 0 | F46: =SUMIF(IF(dati_pdc!$C46=1,dati_bdv!$C$2:$C$65536,IF(dati_pdc!$C46=2,dati_bdv!$D$2:$D$65536,IF(dati_pdc!$C46=3,dati_bdv!$E$2:$E$65536,IF(dati_pdc!$C46=4,dati_bdv!$F$2:$F$65536,IF(dati_pdc!$C46=5,dati_bdv!$G$2:$G$65536,dati_bdv!$H$2:$H$65536))))),$A46,dati_bdv!N$2:N$65536) -> 0
A47: =dati_pdc!A47 -> 5907 | B47: =SUMIF(IF(dati_pdc!$C47=1,dati_bdv!$C$2:$C$65536,IF(dati_pdc!$C47=2,dati_bdv!$D$2:$D$65536,IF(dati_pdc!$C47=3,dati_bdv!$E$2:$E$65536,IF(dati_pdc!$C47=4,dati_bdv!$F$2:$F$65536,IF(dati_pdc!$C47=5,dati_bdv!$G$2:$G$65536,dati_bdv!$H$2:$H$65536))))),$A47,dati_bdv!J$2:J$65536) -> 782.46 | C47: =SUMIF(IF(dati_pdc!$C47=1,dati_bdv!$C$2:$C$65536,IF(dati_pdc!$C47=2,dati_bdv!$D$2:$D$65536,IF(dati_pdc!$C47=3,dati_bdv!$E$2:$E$65536,IF(dati_pdc!$C47=4,dati_bdv!$F$2:$F$65536,IF(dati_pdc!$C47=5,dati_bdv!$G$2:$G$65536,dati_bdv!$H$2:$H$65536))))),$A47,dati_bdv!K$2:K$65536) -> 782.46 | D47: =SUMIF(IF(dati_pdc!$C47=1,dati_bdv!$C$2:$C$65536,IF(dati_pdc!$C47=2,dati_bdv!$D$2:$D$65536,IF(dati_pdc!$C47=3,dati_bdv!$E$2:$E$65536,IF(dati_pdc!$C47=4,dati_bdv!$F$2:$F$65536,IF(dati_pdc!$C47=5,dati_bdv!$G$2:$G$65536,dati_bdv!$H$2:$H$65536))))),$A47,dati_bdv!L$2:L$65536) -> 0 | E47: =SUMIF(IF(dati_pdc!$C47=1,dati_bdv!$C$2:$C$65536,IF(dati_pdc!$C47=2,dati_bdv!$D$2:$D$65536,IF(dati_pdc!$C47=3,dati_bdv!$E$2:$E$65536,IF(dati_pdc!$C47=4,dati_bdv!$F$2:$F$65536,IF(dati_pdc!$C47=5,dati_bdv!$G$2:$G$65536,dati_bdv!$H$2:$H$65536))))),$A47,dati_bdv!M$2:M$65536) -> 0 | F47: =SUMIF(IF(dati_pdc!$C47=1,dati_bdv!$C$2:$C$65536,IF(dati_pdc!$C47=2,dati_bdv!$D$2:$D$65536,IF(dati_pdc!$C47=3,dati_bdv!$E$2:$E$65536,IF(dati_pdc!$C47=4,dati_bdv!$F$2:$F$65536,IF(dati_pdc!$C47=5,dati_bdv!$G$2:$G$65536,dati_bdv!$H$2:$H$65536))))),$A47,dati_bdv!N$2:N$65536) -> 0
A48: =dati_pdc!A48 -> 590701 | B48: =SUMIF(IF(dati_pdc!$C48=1,dati_bdv!$C$2:$C$65536,IF(dati_pdc!$C48=2,dati_bdv!$D$2:$D$65536,IF(dati_pdc!$C48=3,dati_bdv!$E$2:$E$65536,IF(dati_pdc!$C48=4,dati_bdv!$F$2:$F$65536,IF(dati_pdc!$C48=5,dati_bdv!$G$2:$G$65536,dati_bdv!$H$2:$H$65536))))),$A48,dati_bdv!J$2:J$65536) -> 125 | C48: =SUMIF(IF(dati_pdc!$C48=1,dati_bdv!$C$2:$C$65536,IF(dati_pdc!$C48=2,dati_bdv!$D$2:$D$65536,IF(dati_pdc!$C48=3,dati_bdv!$E$2:$E$65536,IF(dati_pdc!$C48=4,dati_bdv!$F$2:$F$65536,IF(dati_pdc!$C48=5,dati_bdv!$G$2:$G$65536,dati_bdv!$H$2:$H$65536))))),$A48,dati_bdv!K$2:K$65536) -> 125 | D48: =SUMIF(IF(dati_pdc!$C48=1,dati_bdv!$C$2:$C$65536,IF(dati_pdc!$C48=2,dati_bdv!$D$2:$D$65536,IF(dati_pdc!$C48=3,dati_bdv!$E$2:$E$65536,IF(dati_pdc!$C48=4,dati_bdv!$F$2:$F$65536,IF(dati_pdc!$C48=5,dati_bdv!$G$2:$G$65536,dati_bdv!$H$2:$H$65536))))),$A48,dati_bdv!L$2:L$65536) -> 0 | E48: =SUMIF(IF(dati_pdc!$C48=1,dati_bdv!$C$2:$C$65536,IF(dati_pdc!$C48=2,dati_bdv!$D$2:$D$65536,IF(dati_pdc!$C48=3,dati_bdv!$E$2:$E$65536,IF(dati_pdc!$C48=4,dati_bdv!$F$2:$F$65536,IF(dati_pdc!$C48=5,dati_bdv!$G$2:$G$65536,dati_bdv!$H$2:$H$65536))))),$A48,dati_bdv!M$2:M$65536) -> 0 | F48: =SUMIF(IF(dati_pdc!$C48=1,dati_bdv!$C$2:$C$65536,IF(dati_pdc!$C48=2,dati_bdv!$D$2:$D$65536,IF(dati_pdc!$C48=3,dati_bdv!$E$2:$E$65536,IF(dati_pdc!$C48=4,dati_bdv!$F$2:$F$65536,IF(dati_pdc!$C48=5,dati_bdv!$G$2:$G$65536,dati_bdv!$H$2:$H$65536))))),$A48,dati_bdv!N$2:N$65536) -> 0
A49: =dati_pdc!A49 -> 590702 | B49: =SUMIF(IF(dati_pdc!$C49=1,dati_bdv!$C$2:$C$65536,IF(dati_pdc!$C49=2,dati_bdv!$D$2:$D$65536,IF(dati_pdc!$C49=3,dati_bdv!$E$2:$E$65536,IF(dati_pdc!$C49=4,dati_bdv!$F$2:$F$65536,IF(dati_pdc!$C49=5,dati_bdv!$G$2:$G$65536,dati_bdv!$H$2:$H$65536))))),$A49,dati_bdv!J$2:J$65536) -> 0 | C49: =SUMIF(IF(dati_pdc!$C49=1,dati_bdv!$C$2:$C$65536,IF(dati_pdc!$C49=2,dati_bdv!$D$2:$D$65536,IF(dati_pdc!$C49=3,dati_bdv!$E$2:$E$65536,IF(dati_pdc!$C49=4,dati_bdv!$F$2:$F$65536,IF(dati_pdc!$C49=5,dati_bdv!$G$2:$G$65536,dati_bdv!$H$2:$H$65536))))),$A49,dati_bdv!K$2:K$65536) -> 0 | D49: =SUMIF(IF(dati_pdc!$C49=1,dati_bdv!$C$2:$C$65536,IF(dati_pdc!$C49=2,dati_bdv!$D$2:$D$65536,IF(dati_pdc!$C49=3,dati_bdv!$E$2:$E$65536,IF(dati_pdc!$C49=4,dati_bdv!$F$2:$F$65536,IF(dati_pdc!$C49=5,dati_bdv!$G$2:$G$65536,dati_bdv!$H$2:$H$65536))))),$A49,dati_bdv!L$2:L$65536) -> 0 | E49: =SUMIF(IF(dati_pdc!$C49=1,dati_bdv!$C$2:$C$65536,IF(dati_pdc!$C49=2,dati_bdv!$D$2:$D$65536,IF(dati_pdc!$C49=3,dati_bdv!$E$2:$E$65536,IF(dati_pdc!$C49=4,dati_bdv!$F$2:$F$65536,IF(dati_pdc!$C49=5,dati_bdv!$G$2:$G$65536,dati_bdv!$H$2:$H$65536))))),$A49,dati_bdv!M$2:M$65536) -> 0 | F49: =SUMIF(IF(dati_pdc!$C49=1,dati_bdv!$C$2:$C$65536,IF(dati_pdc!$C49=2,dati_bdv!$D$2:$D$65536,IF(dati_pdc!$C49=3,dati_bdv!$E$2:$E$65536,IF(dati_pdc!$C49=4,dati_bdv!$F$2:$F$65536,IF(dati_pdc!$C49=5,dati_bdv!$G$2:$G$65536,dati_bdv!$H$2:$H$65536))))),$A49,dati_bdv!N$2:N$65536) -> 0
A50: =dati_pdc!A50 -> 590703 | B50: =SUMIF(IF(dati_pdc!$C50=1,dati_bdv!$C$2:$C$65536,IF(dati_pdc!$C50=2,dati_bdv!$D$2:$D$65536,IF(dati_pdc!$C50=3,dati_bdv!$E$2:$E$65536,IF(dati_pdc!$C50=4,dati_bdv!$F$2:$F$65536,IF(dati_pdc!$C50=5,dati_bdv!$G$2:$G$65536,dati_bdv!$H$2:$H$65536))))),$A50,dati_bdv!J$2:J$65536) -> 141 | C50: =SUMIF(IF(dati_pdc!$C50=1,dati_bdv!$C$2:$C$65536,IF(dati_pdc!$C50=2,dati_bdv!$D$2:$D$65536,IF(dati_pdc!$C50=3,dati_bdv!$E$2:$E$65536,IF(dati_pdc!$C50=4,dati_bdv!$F$2:$F$65536,IF(dati_pdc!$C50=5,dati_bdv!$G$2:$G$65536,dati_bdv!$H$2:$H$65536))))),$A50,dati_bdv!K$2:K$65536) -> 141 | D50: =SUMIF(IF(dati_pdc!$C50=1,dati_bdv!$C$2:$C$65536,IF(dati_pdc!$C50=2,dati_bdv!$D$2:$D$65536,IF(dati_pdc!$C50=3,dati_bdv!$E$2:$E$65536,IF(dati_pdc!$C50=4,dati_bdv!$F$2:$F$65536,IF(dati_pdc!$C50=5,dati_bdv!$G$2:$G$65536,dati_bdv!$H$2:$H$65536))))),$A50,dati_bdv!L$2:L$65536) -> 0 | E50: =SUMIF(IF(dati_pdc!$C50=1,dati_bdv!$C$2:$C$65536,IF(dati_pdc!$C50=2,dati_bdv!$D$2:$D$65536,IF(dati_pdc!$C50=3,dati_bdv!$E$2:$E$65536,IF(dati_pdc!$C50=4,dati_bdv!$F$2:$F$65536,IF(dati_pdc!$C50=5,dati_bdv!$G$2:$G$65536,dati_bdv!$H$2:$H$65536))))),$A50,dati_bdv!M$2:M$65536) -> 0 | F50: =SUMIF(IF(dati_pdc!$C50=1,dati_bdv!$C$2:$C$65536,IF(dati_pdc!$C50=2,dati_bdv!$D$2:$D$65536,IF(dati_pdc!$C50=3,dati_bdv!$E$2:$E$65536,IF(dati_pdc!$C50=4,dati_bdv!$F$2:$F$65536,IF(dati_pdc!$C50=5,dati_bdv!$G$2:$G$65536,dati_bdv!$H$2:$H$65536))))),$A50,dati_bdv!N$2:N$65536) -> 0
A51: =dati_pdc!A51 -> 590711 | B51: =SUMIF(IF(dati_pdc!$C51=1,dati_bdv!$C$2:$C$65536,IF(dati_pdc!$C51=2,dati_bdv!$D$2:$D$65536,IF(dati_pdc!$C51=3,dati_bdv!$E$2:$E$65536,IF(dati_pdc!$C51=4,dati_bdv!$F$2:$F$65536,IF(dati_pdc!$C51=5,dati_bdv!$G$2:$G$65536,dati_bdv!$H$2:$H$65536))))),$A51,dati_bdv!J$2:J$65536) -> 516.46 | C51: =SUMIF(IF(dati_pdc!$C51=1,dati_bdv!$C$2:$C$65536,IF(dati_pdc!$C51=2,dati_bdv!$D$2:$D$65536,IF(dati_pdc!$C51=3,dati_bdv!$E$2:$E$65536,IF(dati_pdc!$C51=4,dati_bdv!$F$2:$F$65536,IF(dati_pdc!$C51=5,dati_bdv!$G$2:$G$65536,dati_bdv!$H$2:$H$65536))))),$A51,dati_bdv!K$2:K$65536) -> 516.46 | D51: =SUMIF(IF(dati_pdc!$C51=1,dati_bdv!$C$2:$C$65536,IF(dati_pdc!$C51=2,dati_bdv!$D$2:$D$65536,IF(dati_pdc!$C51=3,dati_bdv!$E$2:$E$65536,IF(dati_pdc!$C51=4,dati_bdv!$F$2:$F$65536,IF(dati_pdc!$C51=5,dati_bdv!$G$2:$G$65536,dati_bdv!$H$2:$H$65536))))),$A51,dati_bdv!L$2:L$65536) -> 0 | E51: =SUMIF(IF(dati_pdc!$C51=1,dati_bdv!$C$2:$C$65536,IF(dati_pdc!$C51=2,dati_bdv!$D$2:$D$65536,IF(dati_pdc!$C51=3,dati_bdv!$E$2:$E$65536,IF(dati_pdc!$C51=4,dati_bdv!$F$2:$F$65536,IF(dati_pdc!$C51=5,dati_bdv!$G$2:$G$65536,dati_bdv!$H$2:$H$65536))))),$A51,dati_bdv!M$2:M$65536) -> 0 | F51: =SUMIF(IF(dati_pdc!$C51=1,dati_bdv!$C$2:$C$65536,IF(dati_pdc!$C51=2,dati_bdv!$D$2:$D$65536,IF(dati_pdc!$C51=3,dati_bdv!$E$2:$E$65536,IF(dati_pdc!$C51=4,dati_bdv!$F$2:$F$65536,IF(dati_pdc!$C51=5,dati_bdv!$G$2:$G$65536,dati_bdv!$H$2:$H$65536))))),$A51,dati_bdv!N$2:N$65536) -> 0
A52: =dati_pdc!A52 -> 63 | B52: =SUMIF(IF(dati_pdc!$C52=1,dati_bdv!$C$2:$C$65536,IF(dati_pdc!$C52=2,dati_bdv!$D$2:$D$65536,IF(dati_pdc!$C52=3,dati_bdv!$E$2:$E$65536,IF(dati_pdc!$C52=4,dati_bdv!$F$2:$F$65536,IF(dati_pdc!$C52=5,dati_bdv!$G$2:$G$65536,dati_bdv!$H$2:$H$65536))))),$A52,dati_bdv!J$2:J$65536) -> 5325 | C52: =SUMIF(IF(dati_pdc!$C52=1,dati_bdv!$C$2:$C$65536,IF(dati_pdc!$C52=2,dati_bdv!$D$2:$D$65536,IF(dati_pdc!$C52=3,dati_bdv!$E$2:$E$65536,IF(dati_pdc!$C52=4,dati_bdv!$F$2:$F$65536,IF(dati_pdc!$C52=5,dati_bdv!$G$2:$G$65536,dati_bdv!$H$2:$H$65536))))),$A52,dati_bdv!K$2:K$65536) -> 5325 | D52: =SUMIF(IF(dati_pdc!$C52=1,dati_bdv!$C$2:$C$65536,IF(dati_pdc!$C52=2,dati_bdv!$D$2:$D$65536,IF(dati_pdc!$C52=3,dati_bdv!$E$2:$E$65536,IF(dati_pdc!$C52=4,dati_bdv!$F$2:$F$65536,IF(dati_pdc!$C52=5,dati_bdv!$G$2:$G$65536,dati_bdv!$H$2:$H$65536))))),$A52,dati_bdv!L$2:L$65536) -> 0 | E52: =SUMIF(IF(dati_pdc!$C52=1,dati_bdv!$C$2:$C$65536,IF(dati_pdc!$C52=2,dati_bdv!$D$2:$D$65536,IF(dati_pdc!$C52=3,dati_bdv!$E$2:$E$65536,IF(dati_pdc!$C52=4,dati_bdv!$F$2:$F$65536,IF(dati_pdc!$C52=5,dati_bdv!$G$2:$G$65536,dati_bdv!$H$2:$H$65536))))),$A52,dati_bdv!M$2:M$65536) -> 0 | F52: =SUMIF(IF(dati_pdc!$C52=1,dati_bdv!$C$2:$C$65536,IF(dati_pdc!$C52=2,dati_bdv!$D$2:$D$65536,IF(dati_pdc!$C52=3,dati_bdv!$E$2:$E$65536,IF(dati_pdc!$C52=4,dati_bdv!$F$2:$F$65536,IF(dati_pdc!$C52=5,dati_bdv!$G$2:$G$65536,dati_bdv!$H$2:$H$65536))))),$A52,dati_bdv!N$2:N$65536) -> 0
A53: =dati_pdc!A53 -> 6301 | B53: =SUMIF(IF(dati_pdc!$C53=1,dati_bdv!$C$2:$C$65536,IF(dati_pdc!$C53=2,dati_bdv!$D$2:$D$65536,IF(dati_pdc!$C53=3,dati_bdv!$E$2:$E$65536,IF(dati_pdc!$C53=4,dati_bdv!$F$2:$F$65536,IF(dati_pdc!$C53=5,dati_bdv!$G$2:$G$65536,dati_bdv!$H$2:$H$65536))))),$A53,dati_bdv!J$2:J$65536) -> 6000 | C53: =SUMIF(IF(dati_pdc!$C53=1,dati_bdv!$C$2:$C$65536,IF(dati_pdc!$C53=2,dati_bdv!$D$2:$D$65536,IF(dati_pdc!$C53=3,dati_bdv!$E$2:$E$65536,IF(dati_pdc!$C53=4,dati_bdv!$F$2:$F$65536,IF(dati_pdc!$C53=5,dati_bdv!$G$2:$G$65536,dati_bdv!$H$2:$H$65536))))),$A53,dati_bdv!K$2:K$65536) -> 6000 | D53: =SUMIF(IF(dati_pdc!$C53=1,dati_bdv!$C$2:$C$65536,IF(dati_pdc!$C53=2,dati_bdv!$D$2:$D$65536,IF(dati_pdc!$C53=3,dati_bdv!$E$2:$E$65536,IF(dati_pdc!$C53=4,dati_bdv!$F$2:$F$65536,IF(dati_pdc!$C53=5,dati_bdv!$G$2:$G$65536,dati_bdv!$H$2:$H$65536))))),$A53,dati_bdv!L$2:L$65536) -> 0 | E53: =SUMIF(IF(dati_pdc!$C53=1,dati_bdv!$C$2:$C$65536,IF(dati_pdc!$C53=2,dati_bdv!$D$2:$D$65536,IF(dati_pdc!$C53=3,dati_bdv!$E$2:$E$65536,IF(dati_pdc!$C53=4,dati_bdv!$F$2:$F$65536,IF(dati_pdc!$C53=5,dati_bdv!$G$2:$G$65536,dati_bdv!$H$2:$H$65536))))),$A53,dati_bdv!M$2:M$65536) -> 0 | F53: =SUMIF(IF(dati_pdc!$C53=1,dati_bdv!$C$2:$C$65536,IF(dati_pdc!$C53=2,dati_bdv!$D$2:$D$65536,IF(dati_pdc!$C53=3,dati_bdv!$E$2:$E$65536,IF(dati_pdc!$C53=4,dati_bdv!$F$2:$F$65536,IF(dati_pdc!$C53=5,dati_bdv!$G$2:$G$65536,dati_bdv!$H$2:$H$65536))))),$A53,dati_bdv!N$2:N$65536) -> 0
A54: =dati_pdc!A54 -> 630107 | B54: =SUMIF(IF(dati_pdc!$C54=1,dati_bdv!$C$2:$C$65536,IF(dati_pdc!$C54=2,dati_bdv!$D$2:$D$65536,IF(dati_pdc!$C54=3,dati_bdv!$E$2:$E$65536,IF(dati_pdc!$C54=4,dati_bdv!$F$2:$F$65536,IF(dati_pdc!$C54=5,dati_bdv!$G$2:$G$65536,dati_bdv!$H$2:$H$65536))))),$A54,dati_bdv!J$2:J$65536) -> 6000 | C54: =SUMIF(IF(dati_pdc!$C54=1,dati_bdv!$C$2:$C$65536,IF(dati_pdc!$C54=2,dati_bdv!$D$2:$D$65536,IF(dati_pdc!$C54=3,dati_bdv!$E$2:$E$65536,IF(dati_pdc!$C54=4,dati_bdv!$F$2:$F$65536,IF(dati_pdc!$C54=5,dati_bdv!$G$2:$G$65536,dati_bdv!$H$2:$H$65536))))),$A54,dati_bdv!K$2:K$65536) -> 6000 | D54: =SUMIF(IF(dati_pdc!$C54=1,dati_bdv!$C$2:$C$65536,IF(dati_pdc!$C54=2,dati_bdv!$D$2:$D$65536,IF(dati_pdc!$C54=3,dati_bdv!$E$2:$E$65536,IF(dati_pdc!$C54=4,dati_bdv!$F$2:$F$65536,IF(dati_pdc!$C54=5,dati_bdv!$G$2:$G$65536,dati_bdv!$H$2:$H$65536))))),$A54,dati_bdv!L$2:L$65536) -> 0 | E54: =SUMIF(IF(dati_pdc!$C54=1,dati_bdv!$C$2:$C$65536,IF(dati_pdc!$C54=2,dati_bdv!$D$2:$D$65536,IF(dati_pdc!$C54=3,dati_bdv!$E$2:$E$65536,IF(dati_pdc!$C54=4,dati_bdv!$F$2:$F$65536,IF(dati_pdc!$C54=5,dati_bdv!$G$2:$G$65536,dati_bdv!$H$2:$H$65536))))),$A54,dati_bdv!M$2:M$65536) -> 0 | F54: =SUMIF(IF(dati_pdc!$C54=1,dati_bdv!$C$2:$C$65536,IF(dati_pdc!$C54=2,dati_bdv!$D$2:$D$65536,IF(dati_pdc!$C54=3,dati_bdv!$E$2:$E$65536,IF(dati_pdc!$C54=4,dati_bdv!$F$2:$F$65536,IF(dati_pdc!$C54=5,dati_bdv!$G$2:$G$65536,dati_bdv!$H$2:$H$65536))))),$A54,dati_bdv!N$2:N$65536) -> 0
A55: =dati_pdc!A55 -> 6305 | B55: =SUMIF(IF(dati_pdc!$C55=1,dati_bdv!$C$2:$C$65536,IF(dati_pdc!$C55=2,dati_bdv!$D$2:$D$65536,IF(dati_pdc!$C55=3,dati_bdv!$E$2:$E$65536,IF(dati_pdc!$C55=4,dati_bdv!$F$2:$F$65536,IF(dati_pdc!$C55=5,dati_bdv!$G$2:$G$65536,dati_bdv!$H$2:$H$65536))))),$A55,dati_bdv!J$2:J$65536) -> -675 | C55: =SUMIF(IF(dati_pdc!$C55=1,dati_bdv!$C$2:$C$65536,IF(dati_pdc!$C55=2,dati_bdv!$D$2:$D$65536,IF(dati_pdc!$C55=3,dati_bdv!$E$2:$E$65536,IF(dati_pdc!$C55=4,dati_bdv!$F$2:$F$65536,IF(dati_pdc!$C55=5,dati_bdv!$G$2:$G$65536,dati_bdv!$H$2:$H$65536))))),$A55,dati_bdv!K$2:K$65536) -> -675 | D55: =SUMIF(IF(dati_pdc!$C55=1,dati_bdv!$C$2:$C$65536,IF(dati_pdc!$C55=2,dati_bdv!$D$2:$D$65536,IF(dati_pdc!$C55=3,dati_bdv!$E$2:$E$65536,IF(dati_pdc!$C55=4,dati_bdv!$F$2:$F$65536,IF(dati_pdc!$C55=5,dati_bdv!$G$2:$G$65536,dati_bdv!$H$2:$H$65536))))),$A55,dati_bdv!L$2:L$65536) -> 0 | E55: =SUMIF(IF(dati_pdc!$C55=1,dati_bdv!$C$2:$C$65536,IF(dati_pdc!$C55=2,dati_bdv!$D$2:$D$65536,IF(dati_pdc!$C55=3,dati_bdv!$E$2:$E$65536,IF(dati_pdc!$C55=4,dati_bdv!$F$2:$F$65536,IF(dati_pdc!$C55=5,dati_bdv!$G$2:$G$65536,dati_bdv!$H$2:$H$65536))))),$A55,dati_bdv!M$2:M$65536) -> 0 | F55: =SUMIF(IF(dati_pdc!$C55=1,dati_bdv!$C$2:$C$65536,IF(dati_pdc!$C55=2,dati_bdv!$D$2:$D$65536,IF(dati_pdc!$C55=3,dati_bdv!$E$2:$E$65536,IF(dati_pdc!$C55=4,dati_bdv!$F$2:$F$65536,IF(dati_pdc!$C55=5,dati_bdv!$G$2:$G$65536,dati_bdv!$H$2:$H$65536))))),$A55,dati_bdv!N$2:N$65536) -> 0
A56: =dati_pdc!A56 -> 630501 | B56: =SUMIF(IF(dati_pdc!$C56=1,dati_bdv!$C$2:$C$65536,IF(dati_pdc!$C56=2,dati_bdv!$D$2:$D$65536,IF(dati_pdc!$C56=3,dati_bdv!$E$2:$E$65536,IF(dati_pdc!$C56=4,dati_bdv!$F$2:$F$65536,IF(dati_pdc!$C56=5,dati_bdv!$G$2:$G$65536,dati_bdv!$H$2:$H$65536))))),$A56,dati_bdv!J$2:J$65536) -> -675 | C56: =SUMIF(IF(dati_pdc!$C56=1,dati_bdv!$C$2:$C$65536,IF(dati_pdc!$C56=2,dati_bdv!$D$2:$D$65536,IF(dati_pdc!$C56=3,dati_bdv!$E$2:$E$65536,IF(dati_pdc!$C56=4,dati_bdv!$F$2:$F$65536,IF(dati_pdc!$C56=5,dati_bdv!$G$2:$G$65536,dati_bdv!$H$2:$H$65536))))),$A56,dati_bdv!K$2:K$65536) -> -675 | D56: =SUMIF(IF(dati_pdc!$C56=1,dati_bdv!$C$2:$C$65536,IF(dati_pdc!$C56=2,dati_bdv!$D$2:$D$65536,IF(dati_pdc!$C56=3,dati_bdv!$E$2:$E$65536,IF(dati_pdc!$C56=4,dati_bdv!$F$2:$F$65536,IF(dati_pdc!$C56=5,dati_bdv!$G$2:$G$65536,dati_bdv!$H$2:$H$65536))))),$A56,dati_bdv!L$2:L$65536) -> 0 | E56: =SUMIF(IF(dati_pdc!$C56=1,dati_bdv!$C$2:$C$65536,IF(dati_pdc!$C56=2,dati_bdv!$D$2:$D$65536,IF(dati_pdc!$C56=3,dati_bdv!$E$2:$E$65536,IF(dati_pdc!$C56=4,dati_bdv!$F$2:$F$65536,IF(dati_pdc!$C56=5,dati_bdv!$G$2:$G$65536,dati_bdv!$H$2:$H$65536))))),$A56,dati_bdv!M$2:M$65536) -> 0 | F56: =SUMIF(IF(dati_pdc!$C56=1,dati_bdv!$C$2:$C$65536,IF(dati_pdc!$C56=2,dati_bdv!$D$2:$D$65536,IF(dati_pdc!$C56=3,dati_bdv!$E$2:$E$65536,IF(dati_pdc!$C56=4,dati_bdv!$F$2:$F$65536,IF(dati_pdc!$C56=5,dati_bdv!$G$2:$G$65536,dati_bdv!$H$2:$H$65536))))),$A56,dati_bdv!N$2:N$65536) -> 0
A57: =dati_pdc!A57 -> 6309 | B57: =SUMIF(IF(dati_pdc!$C57=1,dati_bdv!$C$2:$C$65536,IF(dati_pdc!$C57=2,dati_bdv!$D$2:$D$65536,IF(dati_pdc!$C57=3,dati_bdv!$E$2:$E$65536,IF(dati_pdc!$C57=4,dati_bdv!$F$2:$F$65536,IF(dati_pdc!$C57=5,dati_bdv!$G$2:$G$65536,dati_bdv!$H$2:$H$65536))))),$A57,dati_bdv!J$2:J$65536) -> 0 | C57: =SUMIF(IF(dati_pdc!$C57=1,dati_bdv!$C$2:$C$65536,IF(dati_pdc!$C57=2,dati_bdv!$D$2:$D$65536,IF(dati_pdc!$C57=3,dati_bdv!$E$2:$E$65536,IF(dati_pdc!$C57=4,dati_bdv!$F$2:$F$65536,IF(dati_pdc!$C57=5,dati_bdv!$G$2:$G$65536,dati_bdv!$H$2:$H$65536))))),$A57,dati_bdv!K$2:K$65536) -> 0 | D57: =SUMIF(IF(dati_pdc!$C57=1,dati_bdv!$C$2:$C$65536,IF(dati_pdc!$C57=2,dati_bdv!$D$2:$D$65536,IF(dati_pdc!$C57=3,dati_bdv!$E$2:$E$65536,IF(dati_pdc!$C57=4,dati_bdv!$F$2:$F$65536,IF(dati_pdc!$C57=5,dati_bdv!$G$2:$G$65536,dati_bdv!$H$2:$H$65536))))),$A57,dati_bdv!L$2:L$65536) -> 0 | E57: =SUMIF(IF(dati_pdc!$C57=1,dati_bdv!$C$2:$C$65536,IF(dati_pdc!$C57=2,dati_bdv!$D$2:$D$65536,IF(dati_pdc!$C57=3,dati_bdv!$E$2:$E$65536,IF(dati_pdc!$C57=4,dati_bdv!$F$2:$F$65536,IF(dati_pdc!$C57=5,dati_bdv!$G$2:$G$65536,dati_bdv!$H$2:$H$65536))))),$A57,dati_bdv!M$2:M$65536) -> 0 | F57: =SUMIF(IF(dati_pdc!$C57=1,dati_bdv!$C$2:$C$65536,IF(dati_pdc!$C57=2,dati_bdv!$D$2:$D$65536,IF(dati_pdc!$C57=3,dati_bdv!$E$2:$E$65536,IF(dati_pdc!$C57=4,dati_bdv!$F$2:$F$65536,IF(dati_pdc!$C57=5,dati_bdv!$G$2:$G$65536,dati_bdv!$H$2:$H$65536))))),$A57,dati_bdv!N$2:N$65536) -> 0
A58: =dati_pdc!A58 -> 630903 | B58: =SUMIF(IF(dati_pdc!$C58=1,dati_bdv!$C$2:$C$65536,IF(dati_pdc!$C58=2,dati_bdv!$D$2:$D$65536,IF(dati_pdc!$C58=3,dati_bdv!$E$2:$E$65536,IF(dati_pdc!$C58=4,dati_bdv!$F$2:$F$65536,IF(dati_pdc!$C58=5,dati_bdv!$G$2:$G$65536,dati_bdv!$H$2:$H$65536))))),$A58,dati_bdv!J$2:J$65536) -> 0 | C58: =SUMIF(IF(dati_pdc!$C58=1,dati_bdv!$C$2:$C$65536,IF(dati_pdc!$C58=2,dati_bdv!$D$2:$D$65536,IF(dati_pdc!$C58=3,dati_bdv!$E$2:$E$65536,IF(dati_pdc!$C58=4,dati_bdv!$F$2:$F$65536,IF(dati_pdc!$C58=5,dati_bdv!$G$2:$G$65536,dati_bdv!$H$2:$H$65536))))),$A58,dati_bdv!K$2:K$65536) -> 0 | D58: =SUMIF(IF(dati_pdc!$C58=1,dati_bdv!$C$2:$C$65536,IF(dati_pdc!$C58=2,dati_bdv!$D$2:$D$65536,IF(dati_pdc!$C58=3,dati_bdv!$E$2:$E$65536,IF(dati_pdc!$C58=4,dati_bdv!$F$2:$F$65536,IF(dati_pdc!$C58=5,dati_bdv!$G$2:$G$65536,dati_bdv!$H$2:$H$65536))))),$A58,dati_bdv!L$2:L$65536) -> 0 | E58: =SUMIF(IF(dati_pdc!$C58=1,dati_bdv!$C$2:$C$65536,IF(dati_pdc!$C58=2,dati_bdv!$D$2:$D$65536,IF(dati_pdc!$C58=3,dati_bdv!$E$2:$E$65536,IF(dati_pdc!$C58=4,dati_bdv!$F$2:$F$65536,IF(dati_pdc!$C58=5,dati_bdv!$G$2:$G$65536,dati_bdv!$H$2:$H$65536))))),$A58,dati_bdv!M$2:M$65536) -> 0 | F58: =SUMIF(IF(dati_pdc!$C58=1,dati_bdv!$C$2:$C$65536,IF(dati_pdc!$C58=2,dati_bdv!$D$2:$D$65536,IF(dati_pdc!$C58=3,dati_bdv!$E$2:$E$65536,IF(dati_pdc!$C58=4,dati_bdv!$F$2:$F$65536,IF(dati_pdc!$C58=5,dati_bdv!$G$2:$G$65536,dati_bdv!$H$2:$H$65536))))),$A58,dati_bdv!N$2:N$65536) -> 0
A59: =dati_pdc!A59 -> 70 | B59: =SUMIF(IF(dati_pdc!$C59=1,dati_bdv!$C$2:$C$65536,IF(dati_pdc!$C59=2,dati_bdv!$D$2:$D$65536,IF(dati_pdc!$C59=3,dati_bdv!$E$2:$E$65536,IF(dati_pdc!$C59=4,dati_bdv!$F$2:$F$65536,IF(dati_pdc!$C59=5,dati_bdv!$G$2:$G$65536,dati_bdv!$H$2:$H$65536))))),$A59,dati_bdv!J$2:J$65536) -> -73800 | C59: =SUMIF(IF(dati_pdc!$C59=1,dati_bdv!$C$2:$C$65536,IF(dati_pdc!$C59=2,dati_bdv!$D$2:$D$65536,IF(dati_pdc!$C59=3,dati_bdv!$E$2:$E$65536,IF(dati_pdc!$C59=4,dati_bdv!$F$2:$F$65536,IF(dati_pdc!$C59=5,dati_bdv!$G$2:$G$65536,dati_bdv!$H$2:$H$65536))))),$A59,dati_bdv!K$2:K$65536) -> -9425 | D59: =SUMIF(IF(dati_pdc!$C59=1,dati_bdv!$C$2:$C$65536,IF(dati_pdc!$C59=2,dati_bdv!$D$2:$D$65536,IF(dati_pdc!$C59=3,dati_bdv!$E$2:$E$65536,IF(dati_pdc!$C59=4,dati_bdv!$F$2:$F$65536,IF(dati_pdc!$C59=5,dati_bdv!$G$2:$G$65536,dati_bdv!$H$2:$H$65536))))),$A59,dati_bdv!L$2:L$65536) -> 0 | E59: =SUMIF(IF(dati_pdc!$C59=1,dati_bdv!$C$2:$C$65536,IF(dati_pdc!$C59=2,dati_bdv!$D$2:$D$65536,IF(dati_pdc!$C59=3,dati_bdv!$E$2:$E$65536,IF(dati_pdc!$C59=4,dati_bdv!$F$2:$F$65536,IF(dati_pdc!$C59=5,dati_bdv!$G$2:$G$65536,dati_bdv!$H$2:$H$65536))))),$A59,dati_bdv!M$2:M$65536) -> 0 | F59: =SUMIF(IF(dati_pdc!$C59=1,dati_bdv!$C$2:$C$65536,IF(dati_pdc!$C59=2,dati_bdv!$D$2:$D$65536,IF(dati_pdc!$C59=3,dati_bdv!$E$2:$E$65536,IF(dati_pdc!$C59=4,dati_bdv!$F$2:$F$65536,IF(dati_pdc!$C59=5,dati_bdv!$G$2:$G$65536,dati_bdv!$H$2:$H$65536))))),$A59,dati_bdv!N$2:N$65536) -> 0
A60: =dati_pdc!A60 -> 7009 | B60: =SUMIF(IF(dati_pdc!$C60=1,dati_bdv!$C$2:$C$65536,IF(dati_pdc!$C60=2,dati_bdv!$D$2:$D$65536,IF(dati_pdc!$C60=3,dati_bdv!$E$2:$E$65536,IF(dati_pdc!$C60=4,dati_bdv!$F$2:$F$65536,IF(dati_pdc!$C60=5,dati_bdv!$G$2:$G$65536,dati_bdv!$H$2:$H$65536))))),$A60,dati_bdv!J$2:J$65536) -> -73800 | C60: =SUMIF(IF(dati_pdc!$C60=1,dati_bdv!$C$2:$C$65536,IF(dati_pdc!$C60=2,dati_bdv!$D$2:$D$65536,IF(dati_pdc!$C60=3,dati_bdv!$E$2:$E$65536,IF(dati_pdc!$C60=4,dati_bdv!$F$2:$F$65536,IF(dati_pdc!$C60=5,dati_bdv!$G$2:$G$65536,dati_bdv!$H$2:$H$65536))))),$A60,dati_bdv!K$2:K$65536) -> -9425 | D60: =SUMIF(IF(dati_pdc!$C60=1,dati_bdv!$C$2:$C$65536,IF(dati_pdc!$C60=2,dati_bdv!$D$2:$D$65536,IF(dati_pdc!$C60=3,dati_bdv!$E$2:$E$65536,IF(dati_pdc!$C60=4,dati_bdv!$F$2:$F$65536,IF(dati_pdc!$C60=5,dati_bdv!$G$2:$G$65536,dati_bdv!$H$2:$H$65536))))),$A60,dati_bdv!L$2:L$65536) -> 0 | E60: =SUMIF(IF(dati_pdc!$C60=1,dati_bdv!$C$2:$C$65536,IF(dati_pdc!$C60=2,dati_bdv!$D$2:$D$65536,IF(dati_pdc!$C60=3,dati_bdv!$E$2:$E$65536,IF(dati_pdc!$C60=4,dati_bdv!$F$2:$F$65536,IF(dati_pdc!$C60=5,dati_bdv!$G$2:$G$65536,dati_bdv!$H$2:$H$65536))))),$A60,dati_bdv!M$2:M$65536) -> 0 | F60: =SUMIF(IF(dati_pdc!$C60=1,dati_bdv!$C$2:$C$65536,IF(dati_pdc!$C60=2,dati_bdv!$D$2:$D$65536,IF(dati_pdc!$C60=3,dati_bdv!$E$2:$E$65536,IF(dati_pdc!$C60=4,dati_bdv!$F$2:$F$65536,IF(dati_pdc!$C60=5,dati_bdv!$G$2:$G$65536,dati_bdv!$H$2:$H$65536))))),$A60,dati_bdv!N$2:N$65536) -> 0
A61: =dati_pdc!A61 -> 700903 | B61: =SUMIF(IF(dati_pdc!$C61=1,dati_bdv!$C$2:$C$65536,IF(dati_pdc!$C61=2,dati_bdv!$D$2:$D$65536,IF(dati_pdc!$C61=3,dati_bdv!$E$2:$E$65536,IF(dati_pdc!$C61=4,dati_bdv!$F$2:$F$65536,IF(dati_pdc!$C61=5,dati_bdv!$G$2:$G$65536,dati_bdv!$H$2:$H$65536))))),$A61,dati_bdv!J$2:J$65536) -> -73800 | C61: =SUMIF(IF(dati_pdc!$C61=1,dati_bdv!$C$2:$C$65536,IF(dati_pdc!$C61=2,dati_bdv!$D$2:$D$65536,IF(dati_pdc!$C61=3,dati_bdv!$E$2:$E$65536,IF(dati_pdc!$C61=4,dati_bdv!$F$2:$F$65536,IF(dati_pdc!$C61=5,dati_bdv!$G$2:$G$65536,dati_bdv!$H$2:$H$65536))))),$A61,dati_bdv!K$2:K$65536) -> -9425 | D61: =SUMIF(IF(dati_pdc!$C61=1,dati_bdv!$C$2:$C$65536,IF(dati_pdc!$C61=2,dati_bdv!$D$2:$D$65536,IF(dati_pdc!$C61=3,dati_bdv!$E$2:$E$65536,IF(dati_pdc!$C61=4,dati_bdv!$F$2:$F$65536,IF(dati_pdc!$C61=5,dati_bdv!$G$2:$G$65536,dati_bdv!$H$2:$H$65536))))),$A61,dati_bdv!L$2:L$65536) -> 0 | E61: =SUMIF(IF(dati_pdc!$C61=1,dati_bdv!$C$2:$C$65536,IF(dati_pdc!$C61=2,dati_bdv!$D$2:$D$65536,IF(dati_pdc!$C61=3,dati_bdv!$E$2:$E$65536,IF(dati_pdc!$C61=4,dati_bdv!$F$2:$F$65536,IF(dati_pdc!$C61=5,dati_bdv!$G$2:$G$65536,dati_bdv!$H$2:$H$65536))))),$A61,dati_bdv!M$2:M$65536) -> 0 | F61: =SUMIF(IF(dati_pdc!$C61=1,dati_bdv!$C$2:$C$65536,IF(dati_pdc!$C61=2,dati_bdv!$D$2:$D$65536,IF(dati_pdc!$C61=3,dati_bdv!$E$2:$E$65536,IF(dati_pdc!$C61=4,dati_bdv!$F$2:$F$65536,IF(dati_pdc!$C61=5,dati_bdv!$G$2:$G$65536,dati_bdv!$H$2:$H$65536))))),$A61,dati_bdv!N$2:N$65536) -> 0
A62: =dati_pdc!A62 -> 71 | B62: =SUMIF(IF(dati_pdc!$C62=1,dati_bdv!$C$2:$C$65536,IF(dati_pdc!$C62=2,dati_bdv!$D$2:$D$65536,IF(dati_pdc!$C62=3,dati_bdv!$E$2:$E$65536,IF(dati_pdc!$C62=4,dati_bdv!$F$2:$F$65536,IF(dati_pdc!$C62=5,dati_bdv!$G$2:$G$65536,dati_bdv!$H$2:$H$65536))))),$A62,dati_bdv!J$2:J$65536) -> 0 | C62: =SUMIF(IF(dati_pdc!$C62=1,dati_bdv!$C$2:$C$65536,IF(dati_pdc!$C62=2,dati_bdv!$D$2:$D$65536,IF(dati_pdc!$C62=3,dati_bdv!$E$2:$E$65536,IF(dati_pdc!$C62=4,dati_bdv!$F$2:$F$65536,IF(dati_pdc!$C62=5,dati_bdv!$G$2:$G$65536,dati_bdv!$H$2:$H$65536))))),$A62,dati_bdv!K$2:K$65536) -> -172854.87 | D62: =SUMIF(IF(dati_pdc!$C62=1,dati_bdv!$C$2:$C$65536,IF(dati_pdc!$C62=2,dati_bdv!$D$2:$D$65536,IF(dati_pdc!$C62=3,dati_bdv!$E$2:$E$65536,IF(dati_pdc!$C62=4,dati_bdv!$F$2:$F$65536,IF(dati_pdc!$C62=5,dati_bdv!$G$2:$G$65536,dati_bdv!$H$2:$H$65536))))),$A62,dati_bdv!L$2:L$65536) -> 0 | E62: =SUMIF(IF(dati_pdc!$C62=1,dati_bdv!$C$2:$C$65536,IF(dati_pdc!$C62=2,dati_bdv!$D$2:$D$65536,IF(dati_pdc!$C62=3,dati_bdv!$E$2:$E$65536,IF(dati_pdc!$C62=4,dati_bdv!$F$2:$F$65536,IF(dati_pdc!$C62=5,dati_bdv!$G$2:$G$65536,dati_bdv!$H$2:$H$65536))))),$A62,dati_bdv!M$2:M$65536) -> 0 | F62: =SUMIF(IF(dati_pdc!$C62=1,dati_bdv!$C$2:$C$65536,IF(dati_pdc!$C62=2,dati_bdv!$D$2:$D$65536,IF(dati_pdc!$C62=3,dati_bdv!$E$2:$E$65536,IF(dati_pdc!$C62=4,dati_bdv!$F$2:$F$65536,IF(dati_pdc!$C62=5,dati_bdv!$G$2:$G$65536,dati_bdv!$H$2:$H$65536))))),$A62,dati_bdv!N$2:N$65536) -> 0
A63: =dati_pdc!A63 -> 7101 | B63: =SUMIF(IF(dati_pdc!$C63=1,dati_bdv!$C$2:$C$65536,IF(dati_pdc!$C63=2,dati_bdv!$D$2:$D$65536,IF(dati_pdc!$C63=3,dati_bdv!$E$2:$E$65536,IF(dati_pdc!$C63=4,dati_bdv!$F$2:$F$65536,IF(dati_pdc!$C63=5,dati_bdv!$G$2:$G$65536,dati_bdv!$H$2:$H$65536))))),$A63,dati_bdv!J$2:J$65536) -> 0 | C63: =SUMIF(IF(dati_pdc!$C63=1,dati_bdv!$C$2:$C$65536,IF(dati_pdc!$C63=2,dati_bdv!$D$2:$D$65536,IF(dati_pdc!$C63=3,dati_bdv!$E$2:$E$65536,IF(dati_pdc!$C63=4,dati_bdv!$F$2:$F$65536,IF(dati_pdc!$C63=5,dati_bdv!$G$2:$G$65536,dati_bdv!$H$2:$H$65536))))),$A63,dati_bdv!K$2:K$65536) -> -172854.87 | D63: =SUMIF(IF(dati_pdc!$C63=1,dati_bdv!$C$2:$C$65536,IF(dati_pdc!$C63=2,dati_bdv!$D$2:$D$65536,IF(dati_pdc!$C63=3,dati_bdv!$E$2:$E$65536,IF(dati_pdc!$C63=4,dati_bdv!$F$2:$F$65536,IF(dati_pdc!$C63=5,dati_bdv!$G$2:$G$65536,dati_bdv!$H$2:$H$65536))))),$A63,dati_bdv!L$2:L$65536) -> 0 | E63: =SUMIF(IF(dati_pdc!$C63=1,dati_bdv!$C$2:$C$65536,IF(dati_pdc!$C63=2,dati_bdv!$D$2:$D$65536,IF(dati_pdc!$C63=3,dati_bdv!$E$2:$E$65536,IF(dati_pdc!$C63=4,dati_bdv!$F$2:$F$65536,IF(dati_pdc!$C63=5,dati_bdv!$G$2:$G$65536,dati_bdv!$H$2:$H$65536))))),$A63,dati_bdv!M$2:M$65536) -> 0 | F63: =SUMIF(IF(dati_pdc!$C63=1,dati_bdv!$C$2:$C$65536,IF(dati_pdc!$C63=2,dati_bdv!$D$2:$D$65536,IF(dati_pdc!$C63=3,dati_bdv!$E$2:$E$65536,IF(dati_pdc!$C63=4,dati_bdv!$F$2:$F$65536,IF(dati_pdc!$C63=5,dati_bdv!$G$2:$G$65536,dati_bdv!$H$2:$H$65536))))),$A63,dati_bdv!N$2:N$65536) -> 0
A64: =dati_pdc!A64 -> 710121 | B64: =SUMIF(IF(dati_pdc!$C64=1,dati_bdv!$C$2:$C$65536,IF(dati_pdc!$C64=2,dati_bdv!$D$2:$D$65536,IF(dati_pdc!$C64=3,dati_bdv!$E$2:$E$65536,IF(dati_pdc!$C64=4,dati_bdv!$F$2:$F$65536,IF(dati_pdc!$C64=5,dati_bdv!$G$2:$G$65536,dati_bdv!$H$2:$H$65536))))),$A64,dati_bdv!J$2:J$65536) -> 0 | C64: =SUMIF(IF(dati_pdc!$C64=1,dati_bdv!$C$2:$C$65536,IF(dati_pdc!$C64=2,dati_bdv!$D$2:$D$65536,IF(dati_pdc!$C64=3,dati_bdv!$E$2:$E$65536,IF(dati_pdc!$C64=4,dati_bdv!$F$2:$F$65536,IF(dati_pdc!$C64=5,dati_bdv!$G$2:$G$65536,dati_bdv!$H$2:$H$65536))))),$A64,dati_bdv!K$2:K$65536) -> -172854.87 | D64: =SUMIF(IF(dati_pdc!$C64=1,dati_bdv!$C$2:$C$65536,IF(dati_pdc!$C64=2,dati_bdv!$D$2:$D$65536,IF(dati_pdc!$C64=3,dati_bdv!$E$2:$E$65536,IF(dati_pdc!$C64=4,dati_bdv!$F$2:$F$65536,IF(dati_pdc!$C64=5,dati_bdv!$G$2:$G$65536,dati_bdv!$H$2:$H$65536))))),$A64,dati_bdv!L$2:L$65536) -> 0 | E64: =SUMIF(IF(dati_pdc!$C64=1,dati_bdv!$C$2:$C$65536,IF(dati_pdc!$C64=2,dati_bdv!$D$2:$D$65536,IF(dati_pdc!$C64=3,dati_bdv!$E$2:$E$65536,IF(dati_pdc!$C64=4,dati_bdv!$F$2:$F$65536,IF(dati_pdc!$C64=5,dati_bdv!$G$2:$G$65536,dati_bdv!$H$2:$H$65536))))),$A64,dati_bdv!M$2:M$65536) -> 0 | F64: =SUMIF(IF(dati_pdc!$C64=1,dati_bdv!$C$2:$C$65536,IF(dati_pdc!$C64=2,dati_bdv!$D$2:$D$65536,IF(dati_pdc!$C64=3,dati_bdv!$E$2:$E$65536,IF(dati_pdc!$C64=4,dati_bdv!$F$2:$F$65536,IF(dati_pdc!$C64=5,dati_bdv!$G$2:$G$65536,dati_bdv!$H$2:$H$65536))))),$A64,dati_bdv!N$2:N$65536) -> 0
A65: =dati_pdc!A65 -> 72 | B65: =SUMIF(IF(dati_pdc!$C65=1,dati_bdv!$C$2:$C$65536,IF(dati_pdc!$C65=2,dati_bdv!$D$2:$D$65536,IF(dati_pdc!$C65=3,dati_bdv!$E$2:$E$65536,IF(dati_pdc!$C65=4,dati_bdv!$F$2:$F$65536,IF(dati_pdc!$C65=5,dati_bdv!$G$2:$G$65536,dati_bdv!$H$2:$H$65536))))),$A65,dati_bdv!J$2:J$65536) -> 0 | C65: =SUMIF(IF(dati_pdc!$C65=1,dati_bdv!$C$2:$C$65536,IF(dati_pdc!$C65=2,dati_bdv!$D$2:$D$65536,IF(dati_pdc!$C65=3,dati_bdv!$E$2:$E$65536,IF(dati_pdc!$C65=4,dati_bdv!$F$2:$F$65536,IF(dati_pdc!$C65=5,dati_bdv!$G$2:$G$65536,dati_bdv!$H$2:$H$65536))))),$A65,dati_bdv!K$2:K$65536) -> 172854.87 | D65: =SUMIF(IF(dati_pdc!$C65=1,dati_bdv!$C$2:$C$65536,IF(dati_pdc!$C65=2,dati_bdv!$D$2:$D$65536,IF(dati_pdc!$C65=3,dati_bdv!$E$2:$E$65536,IF(dati_pdc!$C65=4,dati_bdv!$F$2:$F$65536,IF(dati_pdc!$C65=5,dati_bdv!$G$2:$G$65536,dati_bdv!$H$2:$H$65536))))),$A65,dati_bdv!L$2:L$65536) -> 0 | E65: =SUMIF(IF(dati_pdc!$C65=1,dati_bdv!$C$2:$C$65536,IF(dati_pdc!$C65=2,dati_bdv!$D$2:$D$65536,IF(dati_pdc!$C65=3,dati_bdv!$E$2:$E$65536,IF(dati_pdc!$C65=4,dati_bdv!$F$2:$F$65536,IF(dati_pdc!$C65=5,dati_bdv!$G$2:$G$65536,dati_bdv!$H$2:$H$65536))))),$A65,dati_bdv!M$2:M$65536) -> 0 | F65: =SUMIF(IF(dati_pdc!$C65=1,dati_bdv!$C$2:$C$65536,IF(dati_pdc!$C65=2,dati_bdv!$D$2:$D$65536,IF(dati_pdc!$C65=3,dati_bdv!$E$2:$E$65536,IF(dati_pdc!$C65=4,dati_bdv!$F$2:$F$65536,IF(dati_pdc!$C65=5,dati_bdv!$G$2:$G$65536,dati_bdv!$H$2:$H$65536))))),$A65,dati_bdv!N$2:N$65536) -> 0
A66: =dati_pdc!A66 -> 7205 | B66: =SUMIF(IF(dati_pdc!$C66=1,dati_bdv!$C$2:$C$65536,IF(dati_pdc!$C66=2,dati_bdv!$D$2:$D$65536,IF(dati_pdc!$C66=3,dati_bdv!$E$2:$E$65536,IF(dati_pdc!$C66=4,dati_bdv!$F$2:$F$65536,IF(dati_pdc!$C66=5,dati_bdv!$G$2:$G$65536,dati_bdv!$H$2:$H$65536))))),$A66,dati_bdv!J$2:J$65536) -> 0 | C66: =SUMIF(IF(dati_pdc!$C66=1,dati_bdv!$C$2:$C$65536,IF(dati_pdc!$C66=2,dati_bdv!$D$2:$D$65536,IF(dati_pdc!$C66=3,dati_bdv!$E$2:$E$65536,IF(dati_pdc!$C66=4,dati_bdv!$F$2:$F$65536,IF(dati_pdc!$C66=5,dati_bdv!$G$2:$G$65536,dati_bdv!$H$2:$H$65536))))),$A66,dati_bdv!K$2:K$65536) -> 172854.87 | D66: =SUMIF(IF(dati_pdc!$C66=1,dati_bdv!$C$2:$C$65536,IF(dati_pdc!$C66=2,dati_bdv!$D$2:$D$65536,IF(dati_pdc!$C66=3,dati_bdv!$E$2:$E$65536,IF(dati_pdc!$C66=4,dati_bdv!$F$2:$F$65536,IF(dati_pdc!$C66=5,dati_bdv!$G$2:$G$65536,dati_bdv!$H$2:$H$65536))))),$A66,dati_bdv!L$2:L$65536) -> 0 | E66: =SUMIF(IF(dati_pdc!$C66=1,dati_bdv!$C$2:$C$65536,IF(dati_pdc!$C66=2,dati_bdv!$D$2:$D$65536,IF(dati_pdc!$C66=3,dati_bdv!$E$2:$E$65536,IF(dati_pdc!$C66=4,dati_bdv!$F$2:$F$65536,IF(dati_pdc!$C66=5,dati_bdv!$G$2:$G$65536,dati_bdv!$H$2:$H$65536))))),$A66,dati_bdv!M$2:M$65536) -> 0 | F66: =SUMIF(IF(dati_pdc!$C66=1,dati_bdv!$C$2:$C$65536,IF(dati_pdc!$C66=2,dati_bdv!$D$2:$D$65536,IF(dati_pdc!$C66=3,dati_bdv!$E$2:$E$65536,IF(dati_pdc!$C66=4,dati_bdv!$F$2:$F$65536,IF(dati_pdc!$C66=5,dati_bdv!$G$2:$G$65536,dati_bdv!$H$2:$H$65536))))),$A66,dati_bdv!N$2:N$65536) -> 0
A67: =dati_pdc!A67 -> 720521 | B67: =SUMIF(IF(dati_pdc!$C67=1,dati_bdv!$C$2:$C$65536,IF(dati_pdc!$C67=2,dati_bdv!$D$2:$D$65536,IF(dati_pdc!$C67=3,dati_bdv!$E$2:$E$65536,IF(dati_pdc!$C67=4,dati_bdv!$F$2:$F$65536,IF(dati_pdc!$C67=5,dati_bdv!$G$2:$G$65536,dati_bdv!$H$2:$H$65536))))),$A67,dati_bdv!J$2:J$65536) -> 0 | C67: =SUMIF(IF(dati_pdc!$C67=1,dati_bdv!$C$2:$C$65536,IF(dati_pdc!$C67=2,dati_bdv!$D$2:$D$65536,IF(dati_pdc!$C67=3,dati_bdv!$E$2:$E$65536,IF(dati_pdc!$C67=4,dati_bdv!$F$2:$F$65536,IF(dati_pdc!$C67=5,dati_bdv!$G$2:$G$65536,dati_bdv!$H$2:$H$65536))))),$A67,dati_bdv!K$2:K$65536) -> 172854.87 | D67: =SUMIF(IF(dati_pdc!$C67=1,dati_bdv!$C$2:$C$65536,IF(dati_pdc!$C67=2,dati_bdv!$D$2:$D$65536,IF(dati_pdc!$C67=3,dati_bdv!$E$2:$E$65536,IF(dati_pdc!$C67=4,dati_bdv!$F$2:$F$65536,IF(dati_pdc!$C67=5,dati_bdv!$G$2:$G$65536,dati_bdv!$H$2:$H$65536))))),$A67,dati_bdv!L$2:L$65536) -> 0 | E67: =SUMIF(IF(dati_pdc!$C67=1,dati_bdv!$C$2:$C$65536,IF(dati_pdc!$C67=2,dati_bdv!$D$2:$D$65536,IF(dati_pdc!$C67=3,dati_bdv!$E$2:$E$65536,IF(dati_pdc!$C67=4,dati_bdv!$F$2:$F$65536,IF(dati_pdc!$C67=5,dati_bdv!$G$2:$G$65536,dati_bdv!$H$2:$H$65536))))),$A67,dati_bdv!M$2:M$65536) -> 0 | F67: =SUMIF(IF(dati_pdc!$C67=1,dati_bdv!$C$2:$C$65536,IF(dati_pdc!$C67=2,dati_bdv!$D$2:$D$65536,IF(dati_pdc!$C67=3,dati_bdv!$E$2:$E$65536,IF(dati_pdc!$C67=4,dati_bdv!$F$2:$F$65536,IF(dati_pdc!$C67=5,dati_bdv!$G$2:$G$65536,dati_bdv!$H$2:$H$65536))))),$A67,dati_bdv!N$2:N$65536) -> 0
A68: =dati_pdc!A68 -> 76 | B68: =SUMIF(IF(dati_pdc!$C68=1,dati_bdv!$C$2:$C$65536,IF(dati_pdc!$C68=2,dati_bdv!$D$2:$D$65536,IF(dati_pdc!$C68=3,dati_bdv!$E$2:$E$65536,IF(dati_pdc!$C68=4,dati_bdv!$F$2:$F$65536,IF(dati_pdc!$C68=5,dati_bdv!$G$2:$G$65536,dati_bdv!$H$2:$H$65536))))),$A68,dati_bdv!J$2:J$65536) -> -29525.6 | C68: =SUMIF(IF(dati_pdc!$C68=1,dati_bdv!$C$2:$C$65536,IF(dati_pdc!$C68=2,dati_bdv!$D$2:$D$65536,IF(dati_pdc!$C68=3,dati_bdv!$E$2:$E$65536,IF(dati_pdc!$C68=4,dati_bdv!$F$2:$F$65536,IF(dati_pdc!$C68=5,dati_bdv!$G$2:$G$65536,dati_bdv!$H$2:$H$65536))))),$A68,dati_bdv!K$2:K$65536) -> 0 | D68: =SUMIF(IF(dati_pdc!$C68=1,dati_bdv!$C$2:$C$65536,IF(dati_pdc!$C68=2,dati_bdv!$D$2:$D$65536,IF(dati_pdc!$C68=3,dati_bdv!$E$2:$E$65536,IF(dati_pdc!$C68=4,dati_bdv!$F$2:$F$65536,IF(dati_pdc!$C68=5,dati_bdv!$G$2:$G$65536,dati_bdv!$H$2:$H$65536))))),$A68,dati_bdv!L$2:L$65536) -> 0 | E68: =SUMIF(IF(dati_pdc!$C68=1,dati_bdv!$C$2:$C$65536,IF(dati_pdc!$C68=2,dati_bdv!$D$2:$D$65536,IF(dati_pdc!$C68=3,dati_bdv!$E$2:$E$65536,IF(dati_pdc!$C68=4,dati_bdv!$F$2:$F$65536,IF(dati_pdc!$C68=5,dati_bdv!$G$2:$G$65536,dati_bdv!$H$2:$H$65536))))),$A68,dati_bdv!M$2:M$65536) -> 0 | F68: =SUMIF(IF(dati_pdc!$C68=1,dati_bdv!$C$2:$C$65536,IF(dati_pdc!$C68=2,dati_bdv!$D$2:$D$65536,IF(dati_pdc!$C68=3,dati_bdv!$E$2:$E$65536,IF(dati_pdc!$C68=4,dati_bdv!$F$2:$F$65536,IF(dati_pdc!$C68=5,dati_bdv!$G$2:$G$65536,dati_bdv!$H$2:$H$65536))))),$A68,dati_bdv!N$2:N$65536) -> 0
A69: =dati_pdc!A69 -> 7609 | B69: =SUMIF(IF(dati_pdc!$C69=1,dati_bdv!$C$2:$C$65536,IF(dati_pdc!$C69=2,dati_bdv!$D$2:$D$65536,IF(dati_pdc!$C69=3,dati_bdv!$E$2:$E$65536,IF(dati_pdc!$C69=4,dati_bdv!$F$2:$F$65536,IF(dati_pdc!$C69=5,dati_bdv!$G$2:$G$65536,dati_bdv!$H$2:$H$65536))))),$A69,dati_bdv!J$2:J$65536) -> -29525.6 | C69: =SUMIF(IF(dati_pdc!$C69=1,dati_bdv!$C$2:$C$65536,IF(dati_pdc!$C69=2,dati_bdv!$D$2:$D$65536,IF(dati_pdc!$C69=3,dati_bdv!$E$2:$E$65536,IF(dati_pdc!$C69=4,dati_bdv!$F$2:$F$65536,IF(dati_pdc!$C69=5,dati_bdv!$G$2:$G$65536,dati_bdv!$H$2:$H$65536))))),$A69,dati_bdv!K$2:K$65536) -> 0 | D69: =SUMIF(IF(dati_pdc!$C69=1,dati_bdv!$C$2:$C$65536,IF(dati_pdc!$C69=2,dati_bdv!$D$2:$D$65536,IF(dati_pdc!$C69=3,dati_bdv!$E$2:$E$65536,IF(dati_pdc!$C69=4,dati_bdv!$F$2:$F$65536,IF(dati_pdc!$C69=5,dati_bdv!$G$2:$G$65536,dati_bdv!$H$2:$H$65536))))),$A69,dati_bdv!L$2:L$65536) -> 0 | E69: =SUMIF(IF(dati_pdc!$C69=1,dati_bdv!$C$2:$C$65536,IF(dati_pdc!$C69=2,dati_bdv!$D$2:$D$65536,IF(dati_pdc!$C69=3,dati_bdv!$E$2:$E$65536,IF(dati_pdc!$C69=4,dati_bdv!$F$2:$F$65536,IF(dati_pdc!$C69=5,dati_bdv!$G$2:$G$65536,dati_bdv!$H$2:$H$65536))))),$A69,dati_bdv!M$2:M$65536) -> 0 | F69: =SUMIF(IF(dati_pdc!$C69=1,dati_bdv!$C$2:$C$65536,IF(dati_pdc!$C69=2,dati_bdv!$D$2:$D$65536,IF(dati_pdc!$C69=3,dati_bdv!$E$2:$E$65536,IF(dati_pdc!$C69=4,dati_bdv!$F$2:$F$65536,IF(dati_pdc!$C69=5,dati_bdv!$G$2:$G$65536,dati_bdv!$H$2:$H$65536))))),$A69,dati_bdv!N$2:N$65536) -> 0
A70: =dati_pdc!A70 -> 760901 | B70: =SUMIF(IF(dati_pdc!$C70=1,dati_bdv!$C$2:$C$65536,IF(dati_pdc!$C70=2,dati_bdv!$D$2:$D$65536,IF(dati_pdc!$C70=3,dati_bdv!$E$2:$E$65536,IF(dati_pdc!$C70=4,dati_bdv!$F$2:$F$65536,IF(dati_pdc!$C70=5,dati_bdv!$G$2:$G$65536,dati_bdv!$H$2:$H$65536))))),$A70,dati_bdv!J$2:J$65536) -> -29525.6 | C70: =SUMIF(IF(dati_pdc!$C70=1,dati_bdv!$C$2:$C$65536,IF(dati_pdc!$C70=2,dati_bdv!$D$2:$D$65536,IF(dati_pdc!$C70=3,dati_bdv!$E$2:$E$65536,IF(dati_pdc!$C70=4,dati_bdv!$F$2:$F$65536,IF(dati_pdc!$C70=5,dati_bdv!$G$2:$G$65536,dati_bdv!$H$2:$H$65536))))),$A70,dati_bdv!K$2:K$65536) -> 0 | D70: =SUMIF(IF(dati_pdc!$C70=1,dati_bdv!$C$2:$C$65536,IF(dati_pdc!$C70=2,dati_bdv!$D$2:$D$65536,IF(dati_pdc!$C70=3,dati_bdv!$E$2:$E$65536,IF(dati_pdc!$C70=4,dati_bdv!$F$2:$F$65536,IF(dati_pdc!$C70=5,dati_bdv!$G$2:$G$65536,dati_bdv!$H$2:$H$65536))))),$A70,dati_bdv!L$2:L$65536) -> 0 | E70: =SUMIF(IF(dati_pdc!$C70=1,dati_bdv!$C$2:$C$65536,IF(dati_pdc!$C70=2,dati_bdv!$D$2:$D$65536,IF(dati_pdc!$C70=3,dati_bdv!$E$2:$E$65536,IF(dati_pdc!$C70=4,dati_bdv!$F$2:$F$65536,IF(dati_pdc!$C70=5,dati_bdv!$G$2:$G$65536,dati_bdv!$H$2:$H$65536))))),$A70,dati_bdv!M$2:M$65536) -> 0 | F70: =SUMIF(IF(dati_pdc!$C70=1,dati_bdv!$C$2:$C$65536,IF(dati_pdc!$C70=2,dati_bdv!$D$2:$D$65536,IF(dati_pdc!$C70=3,dati_bdv!$E$2:$E$65536,IF(dati_pdc!$C70=4,dati_bdv!$F$2:$F$65536,IF(dati_pdc!$C70=5,dati_bdv!$G$2:$G$65536,dati_bdv!$H$2:$H$65536))))),$A70,dati_bdv!N$2:N$65536) -> 0
A71: =dati_pdc!A71 -> 80 | B71: =SUMIF(IF(dati_pdc!$C71=1,dati_bdv!$C$2:$C$65536,IF(dati_pdc!$C71=2,dati_bdv!$D$2:$D$65536,IF(dati_pdc!$C71=3,dati_bdv!$E$2:$E$65536,IF(dati_pdc!$C71=4,dati_bdv!$F$2:$F$65536,IF(dati_pdc!$C71=5,dati_bdv!$G$2:$G$65536,dati_bdv!$H$2:$H$65536))))),$A71,dati_bdv!J$2:J$65536) -> 30.5 | C71: =SUMIF(IF(dati_pdc!$C71=1,dati_bdv!$C$2:$C$65536,IF(dati_pdc!$C71=2,dati_bdv!$D$2:$D$65536,IF(dati_pdc!$C71=3,dati_bdv!$E$2:$E$65536,IF(dati_pdc!$C71=4,dati_bdv!$F$2:$F$65536,IF(dati_pdc!$C71=5,dati_bdv!$G$2:$G$65536,dati_bdv!$H$2:$H$65536))))),$A71,dati_bdv!K$2:K$65536) -> 30.5 | D71: =SUMIF(IF(dati_pdc!$C71=1,dati_bdv!$C$2:$C$65536,IF(dati_pdc!$C71=2,dati_bdv!$D$2:$D$65536,IF(dati_pdc!$C71=3,dati_bdv!$E$2:$E$65536,IF(dati_pdc!$C71=4,dati_bdv!$F$2:$F$65536,IF(dati_pdc!$C71=5,dati_bdv!$G$2:$G$65536,dati_bdv!$H$2:$H$65536))))),$A71,dati_bdv!L$2:L$65536) -> 0 | E71: =SUMIF(IF(dati_pdc!$C71=1,dati_bdv!$C$2:$C$65536,IF(dati_pdc!$C71=2,dati_bdv!$D$2:$D$65536,IF(dati_pdc!$C71=3,dati_bdv!$E$2:$E$65536,IF(dati_pdc!$C71=4,dati_bdv!$F$2:$F$65536,IF(dati_pdc!$C71=5,dati_bdv!$G$2:$G$65536,dati_bdv!$H$2:$H$65536))))),$A71,dati_bdv!M$2:M$65536) -> 0 | F71: =SUMIF(IF(dati_pdc!$C71=1,dati_bdv!$C$2:$C$65536,IF(dati_pdc!$C71=2,dati_bdv!$D$2:$D$65536,IF(dati_pdc!$C71=3,dati_bdv!$E$2:$E$65536,IF(dati_pdc!$C71=4,dati_bdv!$F$2:$F$65536,IF(dati_pdc!$C71=5,dati_bdv!$G$2:$G$65536,dati_bdv!$H$2:$H$65536))))),$A71,dati_bdv!N$2:N$65536) -> 0
A72: =dati_pdc!A72 -> 8007 | B72: =SUMIF(IF(dati_pdc!$C72=1,dati_bdv!$C$2:$C$65536,IF(dati_pdc!$C72=2,dati_bdv!$D$2:$D$65536,IF(dati_pdc!$C72=3,dati_bdv!$E$2:$E$65536,IF(dati_pdc!$C72=4,dati_bdv!$F$2:$F$65536,IF(dati_pdc!$C72=5,dati_bdv!$G$2:$G$65536,dati_bdv!$H$2:$H$65536))))),$A72,dati_bdv!J$2:J$65536) -> 30.5 | C72: =SUMIF(IF(dati_pdc!$C72=1,dati_bdv!$C$2:$C$65536,IF(dati_pdc!$C72=2,dati_bdv!$D$2:$D$65536,IF(dati_pdc!$C72=3,dati_bdv!$E$2:$E$65536,IF(dati_pdc!$C72=4,dati_bdv!$F$2:$F$65536,IF(dati_pdc!$C72=5,dati_bdv!$G$2:$G$65536,dati_bdv!$H$2:$H$65536))))),$A72,dati_bdv!K$2:K$65536) -> 30.5 | D72: =SUMIF(IF(dati_pdc!$C72=1,dati_bdv!$C$2:$C$65536,IF(dati_pdc!$C72=2,dati_bdv!$D$2:$D$65536,IF(dati_pdc!$C72=3,dati_bdv!$E$2:$E$65536,IF(dati_pdc!$C72=4,dati_bdv!$F$2:$F$65536,IF(dati_pdc!$C72=5,dati_bdv!$G$2:$G$65536,dati_bdv!$H$2:$H$65536))))),$A72,dati_bdv!L$2:L$65536) -> 0 | E72: =SUMIF(IF(dati_pdc!$C72=1,dati_bdv!$C$2:$C$65536,IF(dati_pdc!$C72=2,dati_bdv!$D$2:$D$65536,IF(dati_pdc!$C72=3,dati_bdv!$E$2:$E$65536,IF(dati_pdc!$C72=4,dati_bdv!$F$2:$F$65536,IF(dati_pdc!$C72=5,dati_bdv!$G$2:$G$65536,dati_bdv!$H$2:$H$65536))))),$A72,dati_bdv!M$2:M$65536) -> 0 | F72: =SUMIF(IF(dati_pdc!$C72=1,dati_bdv!$C$2:$C$65536,IF(dati_pdc!$C72=2,dati_bdv!$D$2:$D$65536,IF(dati_pdc!$C72=3,dati_bdv!$E$2:$E$65536,IF(dati_pdc!$C72=4,dati_bdv!$F$2:$F$65536,IF(dati_pdc!$C72=5,dati_bdv!$G$2:$G$65536,dati_bdv!$H$2:$H$65536))))),$A72,dati_bdv!N$2:N$65536) -> 0
A73: =dati_pdc!A73 -> 800701 | B73: =SUMIF(IF(dati_pdc!$C73=1,dati_bdv!$C$2:$C$65536,IF(dati_pdc!$C73=2,dati_bdv!$D$2:$D$65536,IF(dati_pdc!$C73=3,dati_bdv!$E$2:$E$65536,IF(dati_pdc!$C73=4,dati_bdv!$F$2:$F$65536,IF(dati_pdc!$C73=5,dati_bdv!$G$2:$G$65536,dati_bdv!$H$2:$H$65536))))),$A73,dati_bdv!J$2:J$65536) -> 30.5 | C73: =SUMIF(IF(dati_pdc!$C73=1,dati_bdv!$C$2:$C$65536,IF(dati_pdc!$C73=2,dati_bdv!$D$2:$D$65536,IF(dati_pdc!$C73=3,dati_bdv!$E$2:$E$65536,IF(dati_pdc!$C73=4,dati_bdv!$F$2:$F$65536,IF(dati_pdc!$C73=5,dati_bdv!$G$2:$G$65536,dati_bdv!$H$2:$H$65536))))),$A73,dati_bdv!K$2:K$65536) -> 30.5 | D73: =SUMIF(IF(dati_pdc!$C73=1,dati_bdv!$C$2:$C$65536,IF(dati_pdc!$C73=2,dati_bdv!$D$2:$D$65536,IF(dati_pdc!$C73=3,dati_bdv!$E$2:$E$65536,IF(dati_pdc!$C73=4,dati_bdv!$F$2:$F$65536,IF(dati_pdc!$C73=5,dati_bdv!$G$2:$G$65536,dati_bdv!$H$2:$H$65536))))),$A73,dati_bdv!L$2:L$65536) -> 0 | E73: =SUMIF(IF(dati_pdc!$C73=1,dati_bdv!$C$2:$C$65536,IF(dati_pdc!$C73=2,dati_bdv!$D$2:$D$65536,IF(dati_pdc!$C73=3,dati_bdv!$E$2:$E$65536,IF(dati_pdc!$C73=4,dati_bdv!$F$2:$F$65536,IF(dati_pdc!$C73=5,dati_bdv!$G$2:$G$65536,dati_bdv!$H$2:$H$65536))))),$A73,dati_bdv!M$2:M$65536) -> 0 | F73: =SUMIF(IF(dati_pdc!$C73=1,dati_bdv!$C$2:$C$65536,IF(dati_pdc!$C73=2,dati_bdv!$D$2:$D$65536,IF(dati_pdc!$C73=3,dati_bdv!$E$2:$E$65536,IF(dati_pdc!$C73=4,dati_bdv!$F$2:$F$65536,IF(dati_pdc!$C73=5,dati_bdv!$G$2:$G$65536,dati_bdv!$H$2:$H$65536))))),$A73,dati_bdv!N$2:N$65536) -> 0
A74: =dati_pdc!A74 -> 83 | B74: =SUMIF(IF(dati_pdc!$C74=1,dati_bdv!$C$2:$C$65536,IF(dati_pdc!$C74=2,dati_bdv!$D$2:$D$65536,IF(dati_pdc!$C74=3,dati_bdv!$E$2:$E$65536,IF(dati_pdc!$C74=4,dati_bdv!$F$2:$F$65536,IF(dati_pdc!$C74=5,dati_bdv!$G$2:$G$65536,dati_bdv!$H$2:$H$65536))))),$A74,dati_bdv!J$2:J$65536) -> 560.23 | C74: =SUMIF(IF(dati_pdc!$C74=1,dati_bdv!$C$2:$C$65536,IF(dati_pdc!$C74=2,dati_bdv!$D$2:$D$65536,IF(dati_pdc!$C74=3,dati_bdv!$E$2:$E$65536,IF(dati_pdc!$C74=4,dati_bdv!$F$2:$F$65536,IF(dati_pdc!$C74=5,dati_bdv!$G$2:$G$65536,dati_bdv!$H$2:$H$65536))))),$A74,dati_bdv!K$2:K$65536) -> 2147.03 | D74: =SUMIF(IF(dati_pdc!$C74=1,dati_bdv!$C$2:$C$65536,IF(dati_pdc!$C74=2,dati_bdv!$D$2:$D$65536,IF(dati_pdc!$C74=3,dati_bdv!$E$2:$E$65536,IF(dati_pdc!$C74=4,dati_bdv!$F$2:$F$65536,IF(dati_pdc!$C74=5,dati_bdv!$G$2:$G$65536,dati_bdv!$H$2:$H$65536))))),$A74,dati_bdv!L$2:L$65536) -> 0 | E74: =SUMIF(IF(dati_pdc!$C74=1,dati_bdv!$C$2:$C$65536,IF(dati_pdc!$C74=2,dati_bdv!$D$2:$D$65536,IF(dati_pdc!$C74=3,dati_bdv!$E$2:$E$65536,IF(dati_pdc!$C74=4,dati_bdv!$F$2:$F$65536,IF(dati_pdc!$C74=5,dati_bdv!$G$2:$G$65536,dati_bdv!$H$2:$H$65536))))),$A74,dati_bdv!M$2:M$65536) -> 0 | F74: =SUMIF(IF(dati_pdc!$C74=1,dati_bdv!$C$2:$C$65536,IF(dati_pdc!$C74=2,dati_bdv!$D$2:$D$65536,IF(dati_pdc!$C74=3,dati_bdv!$E$2:$E$65536,IF(dati_pdc!$C74=4,dati_bdv!$F$2:$F$65536,IF(dati_pdc!$C74=5,dati_bdv!$G$2:$G$65536,dati_bdv!$H$2:$H$65536))))),$A74,dati_bdv!N$2:N$65536) -> 0
A75: =dati_pdc!A75 -> 8305 | B75: =SUMIF(IF(dati_pdc!$C75=1,dati_bdv!$C$2:$C$65536,IF(dati_pdc!$C75=2,dati_bdv!$D$2:$D$65536,IF(dati_pdc!$C75=3,dati_bdv!$E$2:$E$65536,IF(dati_pdc!$C75=4,dati_bdv!$F$2:$F$65536,IF(dati_pdc!$C75=5,dati_bdv!$G$2:$G$65536,dati_bdv!$H$2:$H$65536))))),$A75,dati_bdv!J$2:J$65536) -> 451.23 | C75: =SUMIF(IF(dati_pdc!$C75=1,dati_bdv!$C$2:$C$65536,IF(dati_pdc!$C75=2,dati_bdv!$D$2:$D$65536,IF(dati_pdc!$C75=3,dati_bdv!$E$2:$E$65536,IF(dati_pdc!$C75=4,dati_bdv!$F$2:$F$65536,IF(dati_pdc!$C75=5,dati_bdv!$G$2:$G$65536,dati_bdv!$H$2:$H$65536))))),$A75,dati_bdv!K$2:K$65536) -> 1742.57 | D75: =SUMIF(IF(dati_pdc!$C75=1,dati_bdv!$C$2:$C$65536,IF(dati_pdc!$C75=2,dati_bdv!$D$2:$D$65536,IF(dati_pdc!$C75=3,dati_bdv!$E$2:$E$65536,IF(dati_pdc!$C75=4,dati_bdv!$F$2:$F$65536,IF(dati_pdc!$C75=5,dati_bdv!$G$2:$G$65536,dati_bdv!$H$2:$H$65536))))),$A75,dati_bdv!L$2:L$65536) -> 0 | E75: =SUMIF(IF(dati_pdc!$C75=1,dati_bdv!$C$2:$C$65536,IF(dati_pdc!$C75=2,dati_bdv!$D$2:$D$65536,IF(dati_pdc!$C75=3,dati_bdv!$E$2:$E$65536,IF(dati_pdc!$C75=4,dati_bdv!$F$2:$F$65536,IF(dati_pdc!$C75=5,dati_bdv!$G$2:$G$65536,dati_bdv!$H$2:$H$65536))))),$A75,dati_bdv!M$2:M$65536) -> 0 | F75: =SUMIF(IF(dati_pdc!$C75=1,dati_bdv!$C$2:$C$65536,IF(dati_pdc!$C75=2,dati_bdv!$D$2:$D$65536,IF(dati_pdc!$C75=3,dati_bdv!$E$2:$E$65536,IF(dati_pdc!$C75=4,dati_bdv!$F$2:$F$65536,IF(dati_pdc!$C75=5,dati_bdv!$G$2:$G$65536,dati_bdv!$H$2:$H$65536))))),$A75,dati_bdv!N$2:N$65536) -> 0
A76: =dati_pdc!A76 -> 830504 | B76: =SUMIF(IF(dati_pdc!$C76=1,dati_bdv!$C$2:$C$65536,IF(dati_pdc!$C76=2,dati_bdv!$D$2:$D$65536,IF(dati_pdc!$C76=3,dati_bdv!$E$2:$E$65536,IF(dati_pdc!$C76=4,dati_bdv!$F$2:$F$65536,IF(dati_pdc!$C76=5,dati_bdv!$G$2:$G$65536,dati_bdv!$H$2:$H$65536))))),$A76,dati_bdv!J$2:J$65536) -> 0 | C76: =SUMIF(IF(dati_pdc!$C76=1,dati_bdv!$C$2:$C$65536,IF(dati_pdc!$C76=2,dati_bdv!$D$2:$D$65536,IF(dati_pdc!$C76=3,dati_bdv!$E$2:$E$65536,IF(dati_pdc!$C76=4,dati_bdv!$F$2:$F$65536,IF(dati_pdc!$C76=5,dati_bdv!$G$2:$G$65536,dati_bdv!$H$2:$H$65536))))),$A76,dati_bdv!K$2:K$65536) -> 843 | D76: =SUMIF(IF(dati_pdc!$C76=1,dati_bdv!$C$2:$C$65536,IF(dati_pdc!$C76=2,dati_bdv!$D$2:$D$65536,IF(dati_pdc!$C76=3,dati_bdv!$E$2:$E$65536,IF(dati_pdc!$C76=4,dati_bdv!$F$2:$F$65536,IF(dati_pdc!$C76=5,dati_bdv!$G$2:$G$65536,dati_bdv!$H$2:$H$65536))))),$A76,dati_bdv!L$2:L$65536) -> 0 | E76: =SUMIF(IF(dati_pdc!$C76=1,dati_bdv!$C$2:$C$65536,IF(dati_pdc!$C76=2,dati_bdv!$D$2:$D$65536,IF(dati_pdc!$C76=3,dati_bdv!$E$2:$E$65536,IF(dati_pdc!$C76=4,dati_bdv!$F$2:$F$65536,IF(dati_pdc!$C76=5,dati_bdv!$G$2:$G$65536,dati_bdv!$H$2:$H$65536))))),$A76,dati_bdv!M$2:M$65536) -> 0 | F76: =SUMIF(IF(dati_pdc!$C76=1,dati_bdv!$C$2:$C$65536,IF(dati_pdc!$C76=2,dati_bdv!$D$2:$D$65536,IF(dati_pdc!$C76=3,dati_bdv!$E$2:$E$65536,IF(dati_pdc!$C76=4,dati_bdv!$F$2:$F$65536,IF(dati_pdc!$C76=5,dati_bdv!$G$2:$G$65536,dati_bdv!$H$2:$H$65536))))),$A76,dati_bdv!N$2:N$65536) -> 0
A77: =dati_pdc!A77 -> 830511 | B77: =SUMIF(IF(dati_pdc!$C77=1,dati_bdv!$C$2:$C$65536,IF(dati_pdc!$C77=2,dati_bdv!$D$2:$D$65536,IF(dati_pdc!$C77=3,dati_bdv!$E$2:$E$65536,IF(dati_pdc!$C77=4,dati_bdv!$F$2:$F$65536,IF(dati_pdc!$C77=5,dati_bdv!$G$2:$G$65536,dati_bdv!$H$2:$H$65536))))),$A77,dati_bdv!J$2:J$65536) -> 0 | C77: =SUMIF(IF(dati_pdc!$C77=1,dati_bdv!$C$2:$C$65536,IF(dati_pdc!$C77=2,dati_bdv!$D$2:$D$65536,IF(dati_pdc!$C77=3,dati_bdv!$E$2:$E$65536,IF(dati_pdc!$C77=4,dati_bdv!$F$2:$F$65536,IF(dati_pdc!$C77=5,dati_bdv!$G$2:$G$65536,dati_bdv!$H$2:$H$65536))))),$A77,dati_bdv!K$2:K$65536) -> 327.7 | D77: =SUMIF(IF(dati_pdc!$C77=1,dati_bdv!$C$2:$C$65536,IF(dati_pdc!$C77=2,dati_bdv!$D$2:$D$65536,IF(dati_pdc!$C77=3,dati_bdv!$E$2:$E$65536,IF(dati_pdc!$C77=4,dati_bdv!$F$2:$F$65536,IF(dati_pdc!$C77=5,dati_bdv!$G$2:$G$65536,dati_bdv!$H$2:$H$65536))))),$A77,dati_bdv!L$2:L$65536) -> 0 | E77: =SUMIF(IF(dati_pdc!$C77=1,dati_bdv!$C$2:$C$65536,IF(dati_pdc!$C77=2,dati_bdv!$D$2:$D$65536,IF(dati_pdc!$C77=3,dati_bdv!$E$2:$E$65536,IF(dati_pdc!$C77=4,dati_bdv!$F$2:$F$65536,IF(dati_pdc!$C77=5,dati_bdv!$G$2:$G$65536,dati_bdv!$H$2:$H$65536))))),$A77,dati_bdv!M$2:M$65536) -> 0 | F77: =SUMIF(IF(dati_pdc!$C77=1,dati_bdv!$C$2:$C$65536,IF(dati_pdc!$C77=2,dati_bdv!$D$2:$D$65536,IF(dati_pdc!$C77=3,dati_bdv!$E$2:$E$65536,IF(dati_pdc!$C77=4,dati_bdv!$F$2:$F$65536,IF(dati_pdc!$C77=5,dati_bdv!$G$2:$G$65536,dati_bdv!$H$2:$H$65536))))),$A77,dati_bdv!N$2:N$65536) -> 0
A78: =dati_pdc!A78 -> 830521 | B78: =SUMIF(IF(dati_pdc!$C78=1,dati_bdv!$C$2:$C$65536,IF(dati_pdc!$C78=2,dati_bdv!$D$2:$D$65536,IF(dati_pdc!$C78=3,dati_bdv!$E$2:$E$65536,IF(dati_pdc!$C78=4,dati_bdv!$F$2:$F$65536,IF(dati_pdc!$C78=5,dati_bdv!$G$2:$G$65536,dati_bdv!$H$2:$H$65536))))),$A78,dati_bdv!J$2:J$65536) -> 417.87 | C78: =SUMIF(IF(dati_pdc!$C78=1,dati_bdv!$C$2:$C$65536,IF(dati_pdc!$C78=2,dati_bdv!$D$2:$D$65536,IF(dati_pdc!$C78=3,dati_bdv!$E$2:$E$65536,IF(dati_pdc!$C78=4,dati_bdv!$F$2:$F$65536,IF(dati_pdc!$C78=5,dati_bdv!$G$2:$G$65536,dati_bdv!$H$2:$H$65536))))),$A78,dati_bdv!K$2:K$65536) -> 471.87 | D78: =SUMIF(IF(dati_pdc!$C78=1,dati_bdv!$C$2:$C$65536,IF(dati_pdc!$C78=2,dati_bdv!$D$2:$D$65536,IF(dati_pdc!$C78=3,dati_bdv!$E$2:$E$65536,IF(dati_pdc!$C78=4,dati_bdv!$F$2:$F$65536,IF(dati_pdc!$C78=5,dati_bdv!$G$2:$G$65536,dati_bdv!$H$2:$H$65536))))),$A78,dati_bdv!L$2:L$65536) -> 0 | E78: =SUMIF(IF(dati_pdc!$C78=1,dati_bdv!$C$2:$C$65536,IF(dati_pdc!$C78=2,dati_bdv!$D$2:$D$65536,IF(dati_pdc!$C78=3,dati_bdv!$E$2:$E$65536,IF(dati_pdc!$C78=4,dati_bdv!$F$2:$F$65536,IF(dati_pdc!$C78=5,dati_bdv!$G$2:$G$65536,dati_bdv!$H$2:$H$65536))))),$A78,dati_bdv!M$2:M$65536) -> 0 | F78: =SUMIF(IF(dati_pdc!$C78=1,dati_bdv!$C$2:$C$65536,IF(dati_pdc!$C78=2,dati_bdv!$D$2:$D$65536,IF(dati_pdc!$C78=3,dati_bdv!$E$2:$E$65536,IF(dati_pdc!$C78=4,dati_bdv!$F$2:$F$65536,IF(dati_pdc!$C78=5,dati_bdv!$G$2:$G$65536,dati_bdv!$H$2:$H$65536))))),$A78,dati_bdv!N$2:N$65536) -> 0
A79: =dati_pdc!A79 -> 830549 | B79: =SUMIF(IF(dati_pdc!$C79=1,dati_bdv!$C$2:$C$65536,IF(dati_pdc!$C79=2,dati_bdv!$D$2:$D$65536,IF(dati_pdc!$C79=3,dati_bdv!$E$2:$E$65536,IF(dati_pdc!$C79=4,dati_bdv!$F$2:$F$65536,IF(dati_pdc!$C79=5,dati_bdv!$G$2:$G$65536,dati_bdv!$H$2:$H$65536))))),$A79,dati_bdv!J$2:J$65536) -> 33.36 | C79: =SUMIF(IF(dati_pdc!$C79=1,dati_bdv!$C$2:$C$65536,IF(dati_pdc!$C79=2,dati_bdv!$D$2:$D$65536,IF(dati_pdc!$C79=3,dati_bdv!$E$2:$E$65536,IF(dati_pdc!$C79=4,dati_bdv!$F$2:$F$65536,IF(dati_pdc!$C79=5,dati_bdv!$G$2:$G$65536,dati_bdv!$H$2:$H$65536))))),$A79,dati_bdv!K$2:K$65536) -> 100 | D79: =SUMIF(IF(dati_pdc!$C79=1,dati_bdv!$C$2:$C$65536,IF(dati_pdc!$C79=2,dati_bdv!$D$2:$D$65536,IF(dati_pdc!$C79=3,dati_bdv!$E$2:$E$65536,IF(dati_pdc!$C79=4,dati_bdv!$F$2:$F$65536,IF(dati_pdc!$C79=5,dati_bdv!$G$2:$G$65536,dati_bdv!$H$2:$H$65536))))),$A79,dati_bdv!L$2:L$65536) -> 0 | E79: =SUMIF(IF(dati_pdc!$C79=1,dati_bdv!$C$2:$C$65536,IF(dati_pdc!$C79=2,dati_bdv!$D$2:$D$65536,IF(dati_pdc!$C79=3,dati_bdv!$E$2:$E$65536,IF(dati_pdc!$C79=4,dati_bdv!$F$2:$F$65536,IF(dati_pdc!$C79=5,dati_bdv!$G$2:$G$65536,dati_bdv!$H$2:$H$65536))))),$A79,dati_bdv!M$2:M$65536) -> 0 | F79: =SUMIF(IF(dati_pdc!$C79=1,dati_bdv!$C$2:$C$65536,IF(dati_pdc!$C79=2,dati_bdv!$D$2:$D$65536,IF(dati_pdc!$C79=3,dati_bdv!$E$2:$E$65536,IF(dati_pdc!$C79=4,dati_bdv!$F$2:$F$65536,IF(dati_pdc!$C79=5,dati_bdv!$G$2:$G$65536,dati_bdv!$H$2:$H$65536))))),$A79,dati_bdv!N$2:N$65536) -> 0
A80: =dati_pdc!A80 -> 8307 | B80: =SUMIF(IF(dati_pdc!$C80=1,dati_bdv!$C$2:$C$65536,IF(dati_pdc!$C80=2,dati_bdv!$D$2:$D$65536,IF(dati_pdc!$C80=3,dati_bdv!$E$2:$E$65536,IF(dati_pdc!$C80=4,dati_bdv!$F$2:$F$65536,IF(dati_pdc!$C80=5,dati_bdv!$G$2:$G$65536,dati_bdv!$H$2:$H$65536))))),$A80,dati_bdv!J$2:J$65536) -> 109 | C80: =SUMIF(IF(dati_pdc!$C80=1,dati_bdv!$C$2:$C$65536,IF(dati_pdc!$C80=2,dati_bdv!$D$2:$D$65536,IF(dati_pdc!$C80=3,dati_bdv!$E$2:$E$65536,IF(dati_pdc!$C80=4,dati_bdv!$F$2:$F$65536,IF(dati_pdc!$C80=5,dati_bdv!$G$2:$G$65536,dati_bdv!$H$2:$H$65536))))),$A80,dati_bdv!K$2:K$65536) -> 404.46 | D80: =SUMIF(IF(dati_pdc!$C80=1,dati_bdv!$C$2:$C$65536,IF(dati_pdc!$C80=2,dati_bdv!$D$2:$D$65536,IF(dati_pdc!$C80=3,dati_bdv!$E$2:$E$65536,IF(dati_pdc!$C80=4,dati_bdv!$F$2:$F$65536,IF(dati_pdc!$C80=5,dati_bdv!$G$2:$G$65536,dati_bdv!$H$2:$H$65536))))),$A80,dati_bdv!L$2:L$65536) -> 0 | E80: =SUMIF(IF(dati_pdc!$C80=1,dati_bdv!$C$2:$C$65536,IF(dati_pdc!$C80=2,dati_bdv!$D$2:$D$65536,IF(dati_pdc!$C80=3,dati_bdv!$E$2:$E$65536,IF(dati_pdc!$C80=4,dati_bdv!$F$2:$F$65536,IF(dati_pdc!$C80=5,dati_bdv!$G$2:$G$65536,dati_bdv!$H$2:$H$65536))))),$A80,dati_bdv!M$2:M$65536) -> 0 | F80: =SUMIF(IF(dati_pdc!$C80=1,dati_bdv!$C$2:$C$65536,IF(dati_pdc!$C80=2,dati_bdv!$D$2:$D$65536,IF(dati_pdc!$C80=3,dati_bdv!$E$2:$E$65536,IF(dati_pdc!$C80=4,dati_bdv!$F$2:$F$65536,IF(dati_pdc!$C80=5,dati_bdv!$G$2:$G$65536,dati_bdv!$H$2:$H$65536))))),$A80,dati_bdv!N$2:N$65536) -> 0
A81: =dati_pdc!A81 -> 830725 | B81: =SUMIF(IF(dati_pdc!$C81=1,dati_bdv!$C$2:$C$65536,IF(dati_pdc!$C81=2,dati_bdv!$D$2:$D$65536,IF(dati_pdc!$C81=3,dati_bdv!$E$2:$E$65536,IF(dati_pdc!$C81=4,dati_bdv!$F$2:$F$65536,IF(dati_pdc!$C81=5,dati_bdv!$G$2:$G$65536,dati_bdv!$H$2:$H$65536))))),$A81,dati_bdv!J$2:J$65536) -> 0 | C81: =SUMIF(IF(dati_pdc!$C81=1,dati_bdv!$C$2:$C$65536,IF(dati_pdc!$C81=2,dati_bdv!$D$2:$D$65536,IF(dati_pdc!$C81=3,dati_bdv!$E$2:$E$65536,IF(dati_pdc!$C81=4,dati_bdv!$F$2:$F$65536,IF(dati_pdc!$C81=5,dati_bdv!$G$2:$G$65536,dati_bdv!$H$2:$H$65536))))),$A81,dati_bdv!K$2:K$65536) -> 0.31 | D81: =SUMIF(IF(dati_pdc!$C81=1,dati_bdv!$C$2:$C$65536,IF(dati_pdc!$C81=2,dati_bdv!$D$2:$D$65536,IF(dati_pdc!$C81=3,dati_bdv!$E$2:$E$65536,IF(dati_pdc!$C81=4,dati_bdv!$F$2:$F$65536,IF(dati_pdc!$C81=5,dati_bdv!$G$2:$G$65536,dati_bdv!$H$2:$H$65536))))),$A81,dati_bdv!L$2:L$65536) -> 0 | E81: =SUMIF(IF(dati_pdc!$C81=1,dati_bdv!$C$2:$C$65536,IF(dati_pdc!$C81=2,dati_bdv!$D$2:$D$65536,IF(dati_pdc!$C81=3,dati_bdv!$E$2:$E$65536,IF(dati_pdc!$C81=4,dati_bdv!$F$2:$F$65536,IF(dati_pdc!$C81=5,dati_bdv!$G$2:$G$65536,dati_bdv!$H$2:$H$65536))))),$A81,dati_bdv!M$2:M$65536) -> 0 | F81: =SUMIF(IF(dati_pdc!$C81=1,dati_bdv!$C$2:$C$65536,IF(dati_pdc!$C81=2,dati_bdv!$D$2:$D$65536,IF(dati_pdc!$C81=3,dati_bdv!$E$2:$E$65536,IF(dati_pdc!$C81=4,dati_bdv!$F$2:$F$65536,IF(dati_pdc!$C81=5,dati_bdv!$G$2:$G$65536,dati_bdv!$H$2:$H$65536))))),$A81,dati_bdv!N$2:N$65536) -> 0
A82: =dati_pdc!A82 -> 830751 | B82: =SUMIF(IF(dati_pdc!$C82=1,dati_bdv!$C$2:$C$65536,IF(dati_pdc!$C82=2,dati_bdv!$D$2:$D$65536,IF(dati_pdc!$C82=3,dati_bdv!$E$2:$E$65536,IF(dati_pdc!$C82=4,dati_bdv!$F$2:$F$65536,IF(dati_pdc!$C82=5,dati_bdv!$G$2:$G$65536,dati_bdv!$H$2:$H$65536))))),$A82,dati_bdv!J$2:J$65536) -> 109 | C82: =SUMIF(IF(dati_pdc!$C82=1,dati_bdv!$C$2:$C$65536,IF(dati_pdc!$C82=2,dati_bdv!$D$2:$D$65536,IF(dati_pdc!$C82=3,dati_bdv!$E$2:$E$65536,IF(dati_pdc!$C82=4,dati_bdv!$F$2:$F$65536,IF(dati_pdc!$C82=5,dati_bdv!$G$2:$G$65536,dati_bdv!$H$2:$H$65536))))),$A82,dati_bdv!K$2:K$65536) -> 404.15 | D82: =SUMIF(IF(dati_pdc!$C82=1,dati_bdv!$C$2:$C$65536,IF(dati_pdc!$C82=2,dati_bdv!$D$2:$D$65536,IF(dati_pdc!$C82=3,dati_bdv!$E$2:$E$65536,IF(dati_pdc!$C82=4,dati_bdv!$F$2:$F$65536,IF(dati_pdc!$C82=5,dati_bdv!$G$2:$G$65536,dati_bdv!$H$2:$H$65536))))),$A82,dati_bdv!L$2:L$65536) -> 0 | E82: =SUMIF(IF(dati_pdc!$C82=1,dati_bdv!$C$2:$C$65536,IF(dati_pdc!$C82=2,dati_bdv!$D$2:$D$65536,IF(dati_pdc!$C82=3,dati_bdv!$E$2:$E$65536,IF(dati_pdc!$C82=4,dati_bdv!$F$2:$F$65536,IF(dati_pdc!$C82=5,dati_bdv!$G$2:$G$65536,dati_bdv!$H$2:$H$65536))))),$A82,dati_bdv!M$2:M$65536) -> 0 | F82: =SUMIF(IF(dati_pdc!$C82=1,dati_bdv!$C$2:$C$65536,IF(dati_pdc!$C82=2,dati_bdv!$D$2:$D$65536,IF(dati_pdc!$C82=3,dati_bdv!$E$2:$E$65536,IF(dati_pdc!$C82=4,dati_bdv!$F$2:$F$65536,IF(dati_pdc!$C82=5,dati_bdv!$G$2:$G$65536,dati_bdv!$H$2:$H$65536))))),$A82,dati_bdv!N$2:N$65536) -> 0
A83: =dati_pdc!A83 -> 85 | B83: =SUMIF(IF(dati_pdc!$C83=1,dati_bdv!$C$2:$C$65536,IF(dati_pdc!$C83=2,dati_bdv!$D$2:$D$65536,IF(dati_pdc!$C83=3,dati_bdv!$E$2:$E$65536,IF(dati_pdc!$C83=4,dati_bdv!$F$2:$F$65536,IF(dati_pdc!$C83=5,dati_bdv!$G$2:$G$65536,dati_bdv!$H$2:$H$65536))))),$A83,dati_bdv!J$2:J$65536) -> -0.09 | C83: =SUMIF(IF(dati_pdc!$C83=1,dati_bdv!$C$2:$C$65536,IF(dati_pdc!$C83=2,dati_bdv!$D$2:$D$65536,IF(dati_pdc!$C83=3,dati_bdv!$E$2:$E$65536,IF(dati_pdc!$C83=4,dati_bdv!$F$2:$F$65536,IF(dati_pdc!$C83=5,dati_bdv!$G$2:$G$65536,dati_bdv!$H$2:$H$65536))))),$A83,dati_bdv!K$2:K$65536) -> -0.53 | D83: =SUMIF(IF(dati_pdc!$C83=1,dati_bdv!$C$2:$C$65536,IF(dati_pdc!$C83=2,dati_bdv!$D$2:$D$65536,IF(dati_pdc!$C83=3,dati_bdv!$E$2:$E$65536,IF(dati_pdc!$C83=4,dati_bdv!$F$2:$F$65536,IF(dati_pdc!$C83=5,dati_bdv!$G$2:$G$65536,dati_bdv!$H$2:$H$65536))))),$A83,dati_bdv!L$2:L$65536) -> 0 | E83: =SUMIF(IF(dati_pdc!$C83=1,dati_bdv!$C$2:$C$65536,IF(dati_pdc!$C83=2,dati_bdv!$D$2:$D$65536,IF(dati_pdc!$C83=3,dati_bdv!$E$2:$E$65536,IF(dati_pdc!$C83=4,dati_bdv!$F$2:$F$65536,IF(dati_pdc!$C83=5,dati_bdv!$G$2:$G$65536,dati_bdv!$H$2:$H$65536))))),$A83,dati_bdv!M$2:M$65536) -> 0 | F83: =SUMIF(IF(dati_pdc!$C83=1,dati_bdv!$C$2:$C$65536,IF(dati_pdc!$C83=2,dati_bdv!$D$2:$D$65536,IF(dati_pdc!$C83=3,dati_bdv!$E$2:$E$65536,IF(dati_pdc!$C83=4,dati_bdv!$F$2:$F$65536,IF(dati_pdc!$C83=5,dati_bdv!$G$2:$G$65536,dati_bdv!$H$2:$H$65536))))),$A83,dati_bdv!N$2:N$65536) -> 0
A84: =dati_pdc!A84 -> 8511 | B84: =SUMIF(IF(dati_pdc!$C84=1,dati_bdv!$C$2:$C$65536,IF(dati_pdc!$C84=2,dati_bdv!$D$2:$D$65536,IF(dati_pdc!$C84=3,dati_bdv!$E$2:$E$65536,IF(dati_pdc!$C84=4,dati_bdv!$F$2:$F$65536,IF(dati_pdc!$C84=5,dati_bdv!$G$2:$G$65536,dati_bdv!$H$2:$H$65536))))),$A84,dati_bdv!J$2:J$65536) -> -0.09 | C84: =SUMIF(IF(dati_pdc!$C84=1,dati_bdv!$C$2:$C$65536,IF(dati_pdc!$C84=2,dati_bdv!$D$2:$D$65536,IF(dati_pdc!$C84=3,dati_bdv!$E$2:$E$65536,IF(dati_pdc!$C84=4,dati_bdv!$F$2:$F$65536,IF(dati_pdc!$C84=5,dati_bdv!$G$2:$G$65536,dati_bdv!$H$2:$H$65536))))),$A84,dati_bdv!K$2:K$65536) -> -0.53 | D84: =SUMIF(IF(dati_pdc!$C84=1,dati_bdv!$C$2:$C$65536,IF(dati_pdc!$C84=2,dati_bdv!$D$2:$D$65536,IF(dati_pdc!$C84=3,dati_bdv!$E$2:$E$65536,IF(dati_pdc!$C84=4,dati_bdv!$F$2:$F$65536,IF(dati_pdc!$C84=5,dati_bdv!$G$2:$G$65536,dati_bdv!$H$2:$H$65536))))),$A84,dati_bdv!L$2:L$65536) -> 0 | E84: =SUMIF(IF(dati_pdc!$C84=1,dati_bdv!$C$2:$C$65536,IF(dati_pdc!$C84=2,dati_bdv!$D$2:$D$65536,IF(dati_pdc!$C84=3,dati_bdv!$E$2:$E$65536,IF(dati_pdc!$C84=4,dati_bdv!$F$2:$F$65536,IF(dati_pdc!$C84=5,dati_bdv!$G$2:$G$65536,dati_bdv!$H$2:$H$65536))))),$A84,dati_bdv!M$2:M$65536) -> 0 | F84: =SUMIF(IF(dati_pdc!$C84=1,dati_bdv!$C$2:$C$65536,IF(dati_pdc!$C84=2,dati_bdv!$D$2:$D$65536,IF(dati_pdc!$C84=3,dati_bdv!$E$2:$E$65536,IF(dati_pdc!$C84=4,dati_bdv!$F$2:$F$65536,IF(dati_pdc!$C84=5,dati_bdv!$G$2:$G$65536,dati_bdv!$H$2:$H$65536))))),$A84,dati_bdv!N$2:N$65536) -> 0
A85: =dati_pdc!A85 -> 851113 | B85: =SUMIF(IF(dati_pdc!$C85=1,dati_bdv!$C$2:$C$65536,IF(dati_pdc!$C85=2,dati_bdv!$D$2:$D$65536,IF(dati_pdc!$C85=3,dati_bdv!$E$2:$E$65536,IF(dati_pdc!$C85=4,dati_bdv!$F$2:$F$65536,IF(dati_pdc!$C85=5,dati_bdv!$G$2:$G$65536,dati_bdv!$H$2:$H$65536))))),$A85,dati_bdv!J$2:J$65536) -> -0.09 | C85: =SUMIF(IF(dati_pdc!$C85=1,dati_bdv!$C$2:$C$65536,IF(dati_pdc!$C85=2,dati_bdv!$D$2:$D$65536,IF(dati_pdc!$C85=3,dati_bdv!$E$2:$E$65536,IF(dati_pdc!$C85=4,dati_bdv!$F$2:$F$65536,IF(dati_pdc!$C85=5,dati_bdv!$G$2:$G$65536,dati_bdv!$H$2:$H$65536))))),$A85,dati_bdv!K$2:K$65536) -> -0.53 | D85: =SUMIF(IF(dati_pdc!$C85=1,dati_bdv!$C$2:$C$65536,IF(dati_pdc!$C85=2,dati_bdv!$D$2:$D$65536,IF(dati_pdc!$C85=3,dati_bdv!$E$2:$E$65536,IF(dati_pdc!$C85=4,dati_bdv!$F$2:$F$65536,IF(dati_pdc!$C85=5,dati_bdv!$G$2:$G$65536,dati_bdv!$H$2:$H$65536))))),$A85,dati_bdv!L$2:L$65536) -> 0 | E85: =SUMIF(IF(dati_pdc!$C85=1,dati_bdv!$C$2:$C$65536,IF(dati_pdc!$C85=2,dati_bdv!$D$2:$D$65536,IF(dati_pdc!$C85=3,dati_bdv!$E$2:$E$65536,IF(dati_pdc!$C85=4,dati_bdv!$F$2:$F$65536,IF(dati_pdc!$C85=5,dati_bdv!$G$2:$G$65536,dati_bdv!$H$2:$H$65536))))),$A85,dati_bdv!M$2:M$65536) -> 0 | F85: =SUMIF(IF(dati_pdc!$C85=1,dati_bdv!$C$2:$C$65536,IF(dati_pdc!$C85=2,dati_bdv!$D$2:$D$65536,IF(dati_pdc!$C85=3,dati_bdv!$E$2:$E$65536,IF(dati_pdc!$C85=4,dati_bdv!$F$2:$F$65536,IF(dati_pdc!$C85=5,dati_bdv!$G$2:$G$65536,dati_bdv!$H$2:$H$65536))))),$A85,dati_bdv!N$2:N$65536) -> 0
